Workbook

Sheet Introduction
C4: Joint Monitoring Programme for Water Supply, Sanitation and Hygiene
C6: Estimates on household water, sanitation and hygiene by wealth quintile and sub-national region in
C7: =+Water!B5 -> Belarus
C9: Updated May 2021
C11: Follow the links below to find the following information:
C13: JMP Estimates
C14: WASH status and trends by wealth quintile (customized quintiles made without water and sanitation assets)
C15: Water
C16: Sanitation
C17: Hygiene
C19: Data inputs
C20: customized wealth quintiles and subnational data:
C21: =IF(INDIRECT(CONCATENATE("Water","!B105"))=0,"",INDIRECT(CONCATENATE("Water","!B105"))) -> MICS05
C22: =IF(INDIRECT(CONCATENATE("Water","!B106"))=0,"",INDIRECT(CONCATENATE("Water","!B106"))) -> MICS12
C23: =IF(INDIRECT(CONCATENATE("Water","!B107"))=0,"",INDIRECT(CONCATENATE("Water","!B107"))) -> 
C24: =IF(INDIRECT(CONCATENATE("Water","!B108"))=0,"",INDIRECT(CONCATENATE("Water","!B108"))) -> 
C25: =IF(INDIRECT(CONCATENATE("Water","!B109"))=0,"",INDIRECT(CONCATENATE("Water","!B109"))) -> 
C26: =IF(INDIRECT(CONCATENATE("Water","!B110"))=0,"",INDIRECT(CONCATENATE("Water","!B110"))) -> 
C27: =IF(INDIRECT(CONCATENATE("Water","!B111"))=0,"",INDIRECT(CONCATENATE("Water","!B111"))) -> 
C28: =IF(INDIRECT(CONCATENATE("Water","!B112"))=0,"",INDIRECT(CONCATENATE("Water","!B112"))) -> 
C29: =IF(INDIRECT(CONCATENATE("Water","!B113"))=0,"",INDIRECT(CONCATENATE("Water","!B113"))) -> 
C30: =IF(INDIRECT(CONCATENATE("Water","!B114"))=0,"",INDIRECT(CONCATENATE("Water","!B114"))) -> 
C31: =IF(INDIRECT(CONCATENATE("Water","!B115"))=0,"",INDIRECT(CONCATENATE("Water","!B115"))) -> 
C32: =IF(INDIRECT(CONCATENATE("Water","!B116"))=0,"",INDIRECT(CONCATENATE("Water","!B116"))) -> 
L55: =+IF(ISNUMBER(M48), "", "Insufficient data to estimate safely managed sanitation services at national level") -> Insufficient data to estimate safely managed sanitation services at national level

Sheet Water
A1: BGD
B4: Summary of trends in use of drinking water by wealth quintile (%)
B5: =IF(ISERROR(INDIRECT(CONCATENATE($B105,"!A2"))),"",INDIRECT(CONCATENATE($B105,"!A2"))) -> Belarus
B7: =B118 -> National use of drinking water sources, 2000–2018 | J7: =B218 -> Urban use of drinking water sources, 2000–2018 | R7: =B318 -> Rural use of drinking water sources, 2018–2020
B31: =IF(ISERROR(INDIRECT(CONCATENATE($B105,"!A2"))),"",INDIRECT(CONCATENATE($B105,"!A2"))) -> Belarus | F31: Poorest | J31: Poor | N31: Middle | R31: Rich | V31: Richest
F32: Basic | G32: Limited | H32: Unimproved | I32: Surface water | J32: Basic | K32: Limited | L32: Unimproved | M32: Surface water | N32: Basic | O32: Limited | P32: Unimproved | Q32: Surface water | R32: Basic | S32: Limited | T32: Unimproved | U32: Surface water | V32: Basic | W32: Limited | X32: Unimproved | Y32: Surface water
B33: NATIONAL | D33: Estimate | E33: =C99 -> 2000 | F33: =E99 -> 98.43817977 | G33: =F99 -> 0.2026570157 | H33: 1.359163216 | I33: 0 | J33: =J99 -> 99.38742678 | K33: =K99 -> 0.03781937164 | L33: 0.5747538508 | M33: 0 | N33: =O99 -> 100 | O33: =P99 -> 0 | P33: 0 | Q33: 0 | R33: =T99 -> 99.9626864 | S33: =U99 -> 0.0373135957 | T33: 0 | U33: 0 | V33: =Y99 -> 99.97200363 | W33: =Z99 -> 0.02138700315 | X33: 0.006609371292 | Y33: 0
E34: =C100 -> 2018 | F34: =E100 -> 98.80442684 | G34: 0.2034110172 | H34: 0.9921621421 | I34: 0 | J34: =J100 -> 99.57343889 | K34: 0.03789015385 | L34: 0.3886709563 | M34: 0 | N34: =O100 -> 99.77283195 | O34: 0 | P34: 0.2271680544 | Q34: 0 | R34: =T100 -> 99.78855855 | S34: 0.03724859808 | T34: 0.1741928496 | U34: 0 | V34: =Y100 -> 99.85338201 | W34: 0.02136162644 | X34: 0.1252563641 | Y34: 0
B36: URBAN | D36: Estimate | E36: =C199 -> 2000 | F36: =E199 -> 98.74058462 | G36: =F199 -> 0.141025452 | H36: 1.118389926 | I36: 0 | J36: =J199 -> 99.98717583 | K36: =K199 -> 0.01282416746 | L36: 0 | M36: 0 | N36: =O199 -> 99.94510328 | O36: =P199 -> 0.05489672257 | P36: 0 | Q36: 0 | R36: =T199 -> 100 | S36: =U199 -> 0 | T36: 0 | U36: 0 | V36: =Y199 -> 99.95370352 | W36: =Z199 -> 0.03238283089 | X36: 0.01391364975 | Y36: 0
E37: =C200 -> 2018 | F37: =E200 -> 99.85662691 | G37: 0.1426194305 | H37: 0.0007536568666 | I37: 0 | J37: =J200 -> 99.60295567 | K37: 0.01277488811 | L37: 0.3842694436 | M37: 0 | N37: =O200 -> 99.94510328 | O37: 0.05489672257 | P37: 0 | Q37: 0 | R37: =T200 -> 99.75969778 | S37: 0 | T37: 0.2403022214 | U37: 0 | V37: =Y200 -> 99.79575023 | W37: 0.03233165746 | X37: 0.1719181086 | Y37: 0
B39: RURAL | D39: Estimate | E39: =C299 -> 2018 | F39: =E299 -> 97.91511336 | G39: =F299 -> 0.1356938351 | H39: 1.94919281 | I39: 0 | J39: =J299 -> 98.34301376 | K39: =K299 -> 0.3565924841 | L39: 1.30039376 | M39: 0 | N39: =O299 -> 98.89594834 | O39: =P299 -> 0 | P39: 1.10405166 | Q39: 0 | R39: =T299 -> 99.93294377 | S39: =U299 -> 0 | T39: 0.06705622933 | U39: 0 | V39: =Y299 -> 99.42208182 | W39: =Z299 -> 0 | X39: 0.5779181841 | Y39: 0
E40: =C300 -> 2020 | F40: =E300 -> 97.91511336 | G40: 0.1356938351 | H40: 1.94919281 | I40: 0 | J40: =J300 -> 98.34301376 | K40: 0.3565924841 | L40: 1.30039376 | M40: 0 | N40: =O300 -> 98.89594834 | O40: 0 | P40: 1.10405166 | Q40: 0 | R40: =T300 -> 99.93294377 | S40: 0 | T40: 0.06705622933 | U40: 0 | V40: =Y300 -> 99.42208182 | W40: 0 | X40: 0.5779181841 | Y40: 0
A97: NATIONAL | D97: Poorest | I97: Poor | N97: Middle | S97: Rich | X97: Richest
D98: Improved | E98: Basic | F98: Limited | G98: Unimproved | H98: Surface water | I98: Improved | J98: Basic | K98: Limited | L98: Unimproved | M98: Surface water | N98: Improved | O98: Basic | P98: Limited | Q98: Unimproved | R98: Surface water | S98: Improved | T98: Basic | U98: Limited | V98: Unimproved | W98: Surface water | X98: Improved | Y98: Basic | Z98: Limited | AA98: Unimproved | AB98: Surface water
A99: Forecast period: | C99: =MinBase(C105:C116) -> 2000 | D99: =IF((D101+H101)>100,D101*100/(D101+H101),D101) -> 98.64083678 | E99: =D99*AVERAGEIF(E105:E116,">0")/100 -> 98.43817977 | F99: =D99*(100-AVERAGEIF(E105:E116,">0"))/100 -> 0.2026570157 | G99: =100-(E99+F99+H99) -> 1.359163216 | H99: =IF((D101+H101)>100,H101*100/(D101+H101),H101) -> 0 | I99: =IF((I101+M101)>100,I101*100/(I101+M101),I101) -> 99.42524615 | J99: =I99*AVERAGEIF(J105:J116,">0")/100 -> 99.38742678 | K99: =I99*(100-AVERAGEIF(J105:J116,">0"))/100 -> 0.03781937164 | L99: =100-(J99+K99+M99) -> 0.5747538508 | M99: =IF((I101+M101)>100,M101*100/(I101+M101),M101) -> 0 | N99: =IF((N101+R101)>100,N101*100/(N101+R101),N101) -> 100 | O99: =N99*AVERAGEIF(O105:O116,">0")/100 -> 100 | P99: =N99*(100-AVERAGEIF(O105:O116,">0"))/100 -> 0 | Q99: =100-(O99+P99+R99) -> 0 | R99: =IF((N101+R101)>100,R101*100/(N101+R101),R101) -> 0 | S99: =IF((S101+W101)>100,S101*100/(S101+W101),S101) -> 100 | T99: =S99*AVERAGEIF(T105:T116,">0")/100 -> 99.9626864 | U99: =S99*(100-AVERAGEIF(T105:T116,">0"))/100 -> 0.0373135957 | V99: =100-(T99+U99+W99) -> 0 | W99: =IF((S101+W101)>100,W101*100/(S101+W101),W101) -> 0 | X99: =IF((X101+AB101)>100,X101*100/(X101+AB101),X101) -> 99.99339063 | Y99: =X99*AVERAGEIF(Y105:Y116,">0")/100 -> 99.97200363 | Z99: =X99*(100-AVERAGEIF(Y105:Y116,">0"))/100 -> 0.02138700315 | AA99: =100-(Y99+Z99+AB99) -> 0.006609371292 | AB99: =IF((X101+AB101)>100,AB101*100/(X101+AB101),AB101) -> 0
C100: =MaxTarget(C105:C116) -> 2018 | D100: =IF((D102+H102)>100,D102*100/(D102+H102),D102) -> 99.00783786 | E100: =D100*AVERAGEIF(E105:E116,">0")/100 -> 98.80442684 | F100: =D100*(100-AVERAGEIF(E105:E116,">0"))/100 -> 0.2034110172 | G100: =100-(E100+F100+H100) -> 0.9921621421 | H100: =IF((D102+H102)>100,H102*100/(D102+H102),H102) -> 0 | I100: =IF((I102+M102)>100,I102*100/(I102+M102),I102) -> 99.61132904 | J100: =I100*AVERAGEIF(J105:J116,">0")/100 -> 99.57343889 | K100: =I100*(100-AVERAGEIF(J105:J116,">0"))/100 -> 0.03789015385 | L100: =100-(J100+K100+M100) -> 0.3886709563 | M100: =IF((I102+M102)>100,M102*100/(I102+M102),M102) -> 0 | N100: =IF((N102+R102)>100,N102*100/(N102+R102),N102) -> 99.77283195 | O100: =N100*AVERAGEIF(O105:O116,">0")/100 -> 99.77283195 | P100: =N100*(100-AVERAGEIF(O105:O116,">0"))/100 -> 0 | Q100: =100-(O100+P100+R100) -> 0.2271680544 | R100: =IF((N102+R102)>100,R102*100/(N102+R102),R102) -> 0 | S100: =IF((S102+W102)>100,S102*100/(S102+W102),S102) -> 99.82580715 | T100: =S100*AVERAGEIF(T105:T116,">0")/100 -> 99.78855855 | U100: =S100*(100-AVERAGEIF(T105:T116,">0"))/100 -> 0.03724859808 | V100: =100-(T100+U100+W100) -> 0.1741928496 | W100: =IF((S102+W102)>100,W102*100/(S102+W102),W102) -> 0 | X100: =IF((X102+AB102)>100,X102*100/(X102+AB102),X102) -> 99.87474364 | Y100: =X100*AVERAGEIF(Y105:Y116,">0")/100 -> 99.85338201 | Z100: =X100*(100-AVERAGEIF(Y105:Y116,">0"))/100 -> 0.02136162644 | AA100: =100-(Y100+Z100+AB100) -> 0.1252563641 | AB100: =IF((X102+AB102)>100,AB102*100/(X102+AB102),AB102) -> 0
A101: Regression period: | C101: =MinRegYear(C99,C105:C116) -> 2003 | D101: =IF(MAX(C105:C116)-MIN(C105:C116)<5,AVERAGEIF(C105:C116,">0",D105:D116), IF(FORECAST($C101,D$105:D$116,$C$105:$C$116)<0,0, IF(FORECAST($C101,D$105:D$116,$C$105:$C$116)>100,100, FORECAST($C101,D$105:D$116,$C$105:$C$116)))) -> 98.64083678 | H101: =IF(MAX(C105:C116)-MIN(C105:C116)<5,AVERAGEIF(C105:C116,">0",H105:H116), IF(FORECAST($C101,H$105:H$116,$C$105:$C$116)<0,0, IF(FORECAST($C101,H$105:H$116,$C$105:$C$116)>100,100, FORECAST($C101,H$105:H$116,$C$105:$C$116)))) -> 0 | I101: =IF(MAX(C105:C116)-MIN(C105:C116)<5,AVERAGEIF(C105:C116,">0",I105:I116), IF(FORECAST($C101,I$105:I$116,$C$105:$C$116)<0,0, IF(FORECAST($C101,I$105:I$116,$C$105:$C$116)>100,100, FORECAST($C101,I$105:I$116,$C$105:$C$116)))) -> 99.42524615 | M101: =IF(MAX(C105:C116)-MIN(C105:C116)<5,AVERAGEIF(C105:C116,">0",M105:M116), IF(FORECAST($C101,M$105:M$116,$C$105:$C$116)<0,0, IF(FORECAST($C101,M$105:M$116,$C$105:$C$116)>100,100, FORECAST($C101,M$105:M$116,$C$105:$C$116)))) -> 0 | N101: =IF(MAX(C105:C116)-MIN(C105:C116)<5,AVERAGEIF(C105:C116,">0",N105:N116), IF(FORECAST($C101,N$105:N$116,$C$105:$C$116)<0,0, IF(FORECAST($C101,N$105:N$116,$C$105:$C$116)>100,100, FORECAST($C101,N$105:N$116,$C$105:$C$116)))) -> 100 | R101: =IF(MAX(C105:C116)-MIN(C105:C116)<5,AVERAGEIF(C105:C116,">0",R105:R116), IF(FORECAST($C101,R$105:R$116,$C$105:$C$116)<0,0, IF(FORECAST($C101,R$105:R$116,$C$105:$C$116)>100,100, FORECAST($C101,R$105:R$116,$C$105:$C$116)))) -> 0 | S101: =IF(MAX(C105:C116)-MIN(C105:C116)<5,AVERAGEIF(C105:C116,">0",S105:S116), IF(FORECAST($C101,S$105:S$116,$C$105:$C$116)<0,0, IF(FORECAST($C101,S$105:S$116,$C$105:$C$116)>100,100, FORECAST($C101,S$105:S$116,$C$105:$C$116)))) -> 100 | W101: =IF(MAX(C105:C116)-MIN(C105:C116)<5,AVERAGEIF(C105:C116,">0",W105:W116), IF(FORECAST($C101,W$105:W$116,$C$105:$C$116)<0,0, IF(FORECAST($C101,W$105:W$116,$C$105:$C$116)>100,100, FORECAST($C101,W$105:W$116,$C$105:$C$116)))) -> 0 | X101: =IF(MAX(C105:C116)-MIN(C105:C116)<5,AVERAGEIF(C105:C116,">0",X105:X116), IF(FORECAST($C101,X$105:X$116,$C$105:$C$116)<0,0, IF(FORECAST($C101,X$105:X$116,$C$105:$C$116)>100,100, FORECAST($C101,X$105:X$116,$C$105:$C$116)))) -> 99.99339063 | AB101: =IF(MAX(C105:C116)-MIN(C105:C116)<5,AVERAGEIF(C105:C116,">0",AB105:AB116), IF(FORECAST($C101,AB$105:AB$116,$C$105:$C$116)<0,0, IF(FORECAST($C101,AB$105:AB$116,$C$105:$C$116)>100,100, FORECAST($C101,AB$105:AB$116,$C$105:$C$116)))) -> 0
C102: =MaxRegYear(C100,C105:C116) -> 2014 | D102: =IF(MAX(C105:C116)-MIN(C105:C116)<5,AVERAGEIF(C105:C116,">0",D105:D116), IF(FORECAST($C102,D$105:D$116,$C$105:$C$116)<0,0, IF(FORECAST($C102,D$105:D$116,$C$105:$C$116)>100,100, FORECAST($C102,D$105:D$116,$C$105:$C$116)))) -> 99.00783786 | H102: =IF(MAX(C105:C116)-MIN(C105:C116)<5,AVERAGEIF(C105:C116,">0",H105:H116), IF(FORECAST($C102,H$105:H$116,$C$105:$C$116)<0,0, IF(FORECAST($C102,H$105:H$116,$C$105:$C$116)>100,100, FORECAST($C102,H$105:H$116,$C$105:$C$116)))) -> 0 | I102: =IF(MAX(C105:C116)-MIN(C105:C116)<5,AVERAGEIF(C105:C116,">0",I105:I116), IF(FORECAST($C102,I$105:I$116,$C$105:$C$116)<0,0, IF(FORECAST($C102,I$105:I$116,$C$105:$C$116)>100,100, FORECAST($C102,I$105:I$116,$C$105:$C$116)))) -> 99.61132904 | M102: =IF(MAX(C105:C116)-MIN(C105:C116)<5,AVERAGEIF(C105:C116,">0",M105:M116), IF(FORECAST($C102,M$105:M$116,$C$105:$C$116)<0,0, IF(FORECAST($C102,M$105:M$116,$C$105:$C$116)>100,100, FORECAST($C102,M$105:M$116,$C$105:$C$116)))) -> 0 | N102: =IF(MAX(C105:C116)-MIN(C105:C116)<5,AVERAGEIF(C105:C116,">0",N105:N116), IF(FORECAST($C102,N$105:N$116,$C$105:$C$116)<0,0, IF(FORECAST($C102,N$105:N$116,$C$105:$C$116)>100,100, FORECAST($C102,N$105:N$116,$C$105:$C$116)))) -> 99.77283195 | R102: =IF(MAX(C105:C116)-MIN(C105:C116)<5,AVERAGEIF(C105:C116,">0",R105:R116), IF(FORECAST($C102,R$105:R$116,$C$105:$C$116)<0,0, IF(FORECAST($C102,R$105:R$116,$C$105:$C$116)>100,100, FORECAST($C102,R$105:R$116,$C$105:$C$116)))) -> 0 | S102: =IF(MAX(C105:C116)-MIN(C105:C116)<5,AVERAGEIF(C105:C116,">0",S105:S116), IF(FORECAST($C102,S$105:S$116,$C$105:$C$116)<0,0, IF(FORECAST($C102,S$105:S$116,$C$105:$C$116)>100,100, FORECAST($C102,S$105:S$116,$C$105:$C$116)))) -> 99.82580715 | W102: =IF(MAX(C105:C116)-MIN(C105:C116)<5,AVERAGEIF(C105:C116,">0",W105:W116), IF(FORECAST($C102,W$105:W$116,$C$105:$C$116)<0,0, IF(FORECAST($C102,W$105:W$116,$C$105:$C$116)>100,100, FORECAST($C102,W$105:W$116,$C$105:$C$116)))) -> 0 | X102: =IF(MAX(C105:C116)-MIN(C105:C116)<5,AVERAGEIF(C105:C116,">0",X105:X116), IF(FORECAST($C102,X$105:X$116,$C$105:$C$116)<0,0, IF(FORECAST($C102,X$105:X$116,$C$105:$C$116)>100,100, FORECAST($C102,X$105:X$116,$C$105:$C$116)))) -> 99.87474364 | AB102: =IF(MAX(C105:C116)-MIN(C105:C116)<5,AVERAGEIF(C105:C116,">0",AB105:AB116), IF(FORECAST($C102,AB$105:AB$116,$C$105:$C$116)<0,0, IF(FORECAST($C102,AB$105:AB$116,$C$105:$C$116)>100,100, FORECAST($C102,AB$105:AB$116,$C$105:$C$116)))) -> 0
B104: Survey | C104: Year | D104: Improved | E104: % Improved < = 30min | H104: Surface water | I104: Improved | J104: % Improved < = 30min | M104: Surface water | N104: Improved | O104: % Improved < = 30min | R104: Surface water | S104: Improved | T104: % Improved < = 30min | W104: Surface water | X104: Improved | Y104: % Improved < = 30min | AB104: Surface water
B105: MICS05 | C105: 2005 | D105: =IF(ISERROR(INDIRECT(CONCATENATE($B105,"!C16"))),"",INDIRECT(CONCATENATE($B105,"!C16"))) -> 98.70756425 | E105: =IF(ISERROR(INDIRECT(CONCATENATE($B105,"!C23"))),"",INDIRECT(CONCATENATE($B105,"!C23"))) -> 99.86344069 | H105: =IF(ISERROR(INDIRECT(CONCATENATE($B105,"!C21"))),"",INDIRECT(CONCATENATE($B105,"!C21"))) -> 0 | I105: =IF(ISERROR(INDIRECT(CONCATENATE($B105,"!D16"))),"",INDIRECT(CONCATENATE($B105,"!D16"))) -> 99.4590794 | J105: =IF(ISERROR(INDIRECT(CONCATENATE($B105,"!D23"))),"",INDIRECT(CONCATENATE($B105,"!D23"))) -> 100 | M105: =IF(ISERROR(INDIRECT(CONCATENATE($B105,"!D21"))),"",INDIRECT(CONCATENATE($B105,"!D21"))) -> 0 | N105: =IF(ISERROR(INDIRECT(CONCATENATE($B105,"!E16"))),"",INDIRECT(CONCATENATE($B105,"!E16"))) -> 99.96217489 | O105: =IF(ISERROR(INDIRECT(CONCATENATE($B105,"!E23"))),"",INDIRECT(CONCATENATE($B105,"!E23"))) -> 100 | R105: =IF(ISERROR(INDIRECT(CONCATENATE($B105,"!E21"))),"",INDIRECT(CONCATENATE($B105,"!E21"))) -> 0 | S105: =IF(ISERROR(INDIRECT(CONCATENATE($B105,"!F16"))),"",INDIRECT(CONCATENATE($B105,"!F16"))) -> 100 | T105: =IF(ISERROR(INDIRECT(CONCATENATE($B105,"!F23"))),"",INDIRECT(CONCATENATE($B105,"!F23"))) -> 99.95026522 | W105: =IF(ISERROR(INDIRECT(CONCATENATE($B105,"!F21"))),"",INDIRECT(CONCATENATE($B105,"!F21"))) -> 0 | X105: =IF(ISERROR(INDIRECT(CONCATENATE($B105,"!G16"))),"",INDIRECT(CONCATENATE($B105,"!G16"))) -> 99.97181845 | Y105: =IF(ISERROR(INDIRECT(CONCATENATE($B105,"!G23"))),"",INDIRECT(CONCATENATE($B105,"!G23"))) -> 99.95722317 | AB105: =IF(ISERROR(INDIRECT(CONCATENATE($B105,"!G221"))),"",INDIRECT(CONCATENATE($B105,"!G21"))) -> 0
B106: MICS12 | C106: 2012 | D106: 98.94111039 | E106: 99.7256605 | H106: 0 | I106: 99.57749579 | J106: 99.92392401 | M106: 0 | N106: 99.81490815 | O106: 100 | R106: 0 | S106: 99.86451667 | T106: 99.97510759 | W106: 0 | X106: 99.89631582 | Y106: 100 | AB106: 0
D111: =IF(ISERROR(INDIRECT(CONCATENATE($B111,"!C16"))),"",INDIRECT(CONCATENATE($B111,"!C16"))) ->  | E111: =IF(ISERROR(INDIRECT(CONCATENATE($B111,"!C23"))),"",INDIRECT(CONCATENATE($B111,"!C23"))) ->  | H111: =IF(ISERROR(INDIRECT(CONCATENATE($B111,"!C21"))),"",INDIRECT(CONCATENATE($B111,"!C21"))) ->  | I111: =IF(ISERROR(INDIRECT(CONCATENATE($B111,"!D16"))),"",INDIRECT(CONCATENATE($B111,"!D16"))) ->  | J111: =IF(ISERROR(INDIRECT(CONCATENATE($B111,"!D23"))),"",INDIRECT(CONCATENATE($B111,"!D23"))) ->  | M111: =IF(ISERROR(INDIRECT(CONCATENATE($B111,"!D21"))),"",INDIRECT(CONCATENATE($B111,"!D21"))) ->  | N111: =IF(ISERROR(INDIRECT(CONCATENATE($B111,"!E16"))),"",INDIRECT(CONCATENATE($B111,"!E16"))) ->  | O111: =IF(ISERROR(INDIRECT(CONCATENATE($B111,"!E23"))),"",INDIRECT(CONCATENATE($B111,"!E23"))) ->  | R111: =IF(ISERROR(INDIRECT(CONCATENATE($B111,"!E21"))),"",INDIRECT(CONCATENATE($B111,"!E21"))) ->  | S111: =IF(ISERROR(INDIRECT(CONCATENATE($B111,"!F16"))),"",INDIRECT(CONCATENATE($B111,"!F16"))) ->  | T111: =IF(ISERROR(INDIRECT(CONCATENATE($B111,"!F23"))),"",INDIRECT(CONCATENATE($B111,"!F23"))) ->  | W111: =IF(ISERROR(INDIRECT(CONCATENATE($B111,"!F21"))),"",INDIRECT(CONCATENATE($B111,"!F21"))) ->  | X111: =IF(ISERROR(INDIRECT(CONCATENATE($B111,"!G16"))),"",INDIRECT(CONCATENATE($B111,"!G16"))) ->  | Y111: =IF(ISERROR(INDIRECT(CONCATENATE($B111,"!G23"))),"",INDIRECT(CONCATENATE($B111,"!G23"))) ->  | AB111: =IF(ISERROR(INDIRECT(CONCATENATE($B111,"!G221"))),"",INDIRECT(CONCATENATE($B111,"!G21"))) -> 
D112: =IF(ISERROR(INDIRECT(CONCATENATE($B112,"!C16"))),"",INDIRECT(CONCATENATE($B112,"!C16"))) ->  | E112: =IF(ISERROR(INDIRECT(CONCATENATE($B112,"!C23"))),"",INDIRECT(CONCATENATE($B112,"!C23"))) ->  | H112: =IF(ISERROR(INDIRECT(CONCATENATE($B112,"!C21"))),"",INDIRECT(CONCATENATE($B112,"!C21"))) ->  | I112: =IF(ISERROR(INDIRECT(CONCATENATE($B112,"!D16"))),"",INDIRECT(CONCATENATE($B112,"!D16"))) ->  | J112: =IF(ISERROR(INDIRECT(CONCATENATE($B112,"!D23"))),"",INDIRECT(CONCATENATE($B112,"!D23"))) ->  | M112: =IF(ISERROR(INDIRECT(CONCATENATE($B112,"!D21"))),"",INDIRECT(CONCATENATE($B112,"!D21"))) ->  | N112: =IF(ISERROR(INDIRECT(CONCATENATE($B112,"!E16"))),"",INDIRECT(CONCATENATE($B112,"!E16"))) ->  | O112: =IF(ISERROR(INDIRECT(CONCATENATE($B112,"!E23"))),"",INDIRECT(CONCATENATE($B112,"!E23"))) ->  | R112: =IF(ISERROR(INDIRECT(CONCATENATE($B112,"!E21"))),"",INDIRECT(CONCATENATE($B112,"!E21"))) ->  | S112: =IF(ISERROR(INDIRECT(CONCATENATE($B112,"!F16"))),"",INDIRECT(CONCATENATE($B112,"!F16"))) ->  | T112: =IF(ISERROR(INDIRECT(CONCATENATE($B112,"!F23"))),"",INDIRECT(CONCATENATE($B112,"!F23"))) ->  | W112: =IF(ISERROR(INDIRECT(CONCATENATE($B112,"!F21"))),"",INDIRECT(CONCATENATE($B112,"!F21"))) ->  | X112: =IF(ISERROR(INDIRECT(CONCATENATE($B112,"!G16"))),"",INDIRECT(CONCATENATE($B112,"!G16"))) ->  | Y112: =IF(ISERROR(INDIRECT(CONCATENATE($B112,"!G23"))),"",INDIRECT(CONCATENATE($B112,"!G23"))) ->  | AB112: =IF(ISERROR(INDIRECT(CONCATENATE($B112,"!G221"))),"",INDIRECT(CONCATENATE($B112,"!G21"))) -> 
B118: =CONCATENATE("National use of drinking water sources, ",C99,"–",C100) -> National use of drinking water sources, 2000–2018 | S118: Data points used for regression
E153: =IF(ISERROR(INDIRECT(CONCATENATE($B153,"!M18"))),"",INDIRECT(CONCATENATE($B153,"!M18"))) ->  | F153: =IF(ISERROR(INDIRECT(CONCATENATE($B153,"!M19"))),"",INDIRECT(CONCATENATE($B153,"!M19"))) ->  | G153: =IF(ISERROR(INDIRECT(CONCATENATE($B153,"!M20"))),"",INDIRECT(CONCATENATE($B153,"!M20"))) ->  | H153: =IF(ISERROR(INDIRECT(CONCATENATE($B153,"!M21"))),"",INDIRECT(CONCATENATE($B153,"!M21"))) ->  | J153: =IF(ISERROR(INDIRECT(CONCATENATE($B153,"!N18"))),"",INDIRECT(CONCATENATE($B153,"!N18"))) ->  | K153: =IF(ISERROR(INDIRECT(CONCATENATE($B153,"!N19"))),"",INDIRECT(CONCATENATE($B153,"!N19"))) ->  | L153: =IF(ISERROR(INDIRECT(CONCATENATE($B153,"!N20"))),"",INDIRECT(CONCATENATE($B153,"!N20"))) ->  | M153: =IF(ISERROR(INDIRECT(CONCATENATE($B153,"!N21"))),"",INDIRECT(CONCATENATE($B153,"!N21"))) ->  | O153: =IF(ISERROR(INDIRECT(CONCATENATE($B153,"!O18"))),"",INDIRECT(CONCATENATE($B153,"!O18"))) ->  | P153: =IF(ISERROR(INDIRECT(CONCATENATE($B153,"!O19"))),"",INDIRECT(CONCATENATE($B153,"!O19"))) ->  | Q153: =IF(ISERROR(INDIRECT(CONCATENATE($B153,"!O20"))),"",INDIRECT(CONCATENATE($B153,"!O20"))) ->  | R153: =IF(ISERROR(INDIRECT(CONCATENATE($B153,"!O21"))),"",INDIRECT(CONCATENATE($B153,"!O21"))) ->  | T153: =IF(ISERROR(INDIRECT(CONCATENATE($B153,"!P18"))),"",INDIRECT(CONCATENATE($B153,"!P18"))) ->  | U153: =IF(ISERROR(INDIRECT(CONCATENATE($B153,"!P19"))),"",INDIRECT(CONCATENATE($B153,"!P19"))) ->  | V153: =IF(ISERROR(INDIRECT(CONCATENATE($B153,"!P20"))),"",INDIRECT(CONCATENATE($B153,"!P20"))) ->  | W153: =IF(ISERROR(INDIRECT(CONCATENATE($B153,"!P21"))),"",INDIRECT(CONCATENATE($B153,"!P21"))) ->  | Y153: =IF(ISERROR(INDIRECT(CONCATENATE($B153,"!Q18"))),"",INDIRECT(CONCATENATE($B153,"!Q18"))) ->  | Z153: =IF(ISERROR(INDIRECT(CONCATENATE($B153,"!Q19"))),"",INDIRECT(CONCATENATE($B153,"!Q19"))) ->  | AA153: =IF(ISERROR(INDIRECT(CONCATENATE($B153,"!Q20"))),"",INDIRECT(CONCATENATE($B153,"!Q20"))) ->  | AB153: =IF(ISERROR(INDIRECT(CONCATENATE($B153,"!Q21"))),"",INDIRECT(CONCATENATE($B153,"!Q1"))) -> 
A197: URBAN | D197: Poorest | I197: Poor | N197: Middle | S197: Rich | X197: Richest
D198: Improved | E198: Basic | F198: Limited | G198: Unimproved | H198: Surface water | I198: Improved | J198: Basic | K198: Limited | L198: Unimproved | M198: Surface water | N198: Improved | O198: Basic | P198: Limited | Q198: Unimproved | R198: Surface water | S198: Improved | T198: Basic | U198: Limited | V198: Unimproved | W198: Surface water | X198: Improved | Y198: Basic | Z198: Limited | AA198: Unimproved | AB198: Surface water
A199: Forecast period: | C199: =MinBase(C205:C216) -> 2000 | D199: =IF((D201+H201)>100,D201*100/(D201+H201),D201) -> 98.88161007 | E199: =D199*AVERAGEIF(E205:E216,">0")/100 -> 98.74058462 | F199: =D199*(100-AVERAGEIF(E205:E216,">0"))/100 -> 0.141025452 | G199: =100-(E199+F199+H199) -> 1.118389926 | H199: =IF((D201+H201)>100,H201*100/(D201+H201),H201) -> 0 | I199: =IF((I201+M201)>100,I201*100/(I201+M201),I201) -> 100 | J199: =I199*AVERAGEIF(J205:J216,">0")/100 -> 99.98717583 | K199: =I199*(100-AVERAGEIF(J205:J216,">0"))/100 -> 0.01282416746 | L199: =100-(J199+K199+M199) -> 0 | M199: =IF((I201+M201)>100,M201*100/(I201+M201),M201) -> 0 | N199: =IF((N201+R201)>100,N201*100/(N201+R201),N201) -> 100 | O199: =N199*AVERAGEIF(O205:O216,">0")/100 -> 99.94510328 | P199: =N199*(100-AVERAGEIF(O205:O216,">0"))/100 -> 0.05489672257 | Q199: =100-(O199+P199+R199) -> 0 | R199: =IF((N201+R201)>100,R201*100/(N201+R201),R201) -> 0 | S199: =IF((S201+W201)>100,S201*100/(S201+W201),S201) -> 100 | T199: =S199*AVERAGEIF(T205:T216,">0")/100 -> 100 | U199: =S199*(100-AVERAGEIF(T205:T216,">0"))/100 -> 0 | V199: =100-(T199+U199+W199) -> 0 | W199: =IF((S201+W201)>100,W201*100/(S201+W201),W201) -> 0 | X199: =IF((X201+AB201)>100,X201*100/(X201+AB201),X201) -> 99.98608635 | Y199: =X199*AVERAGEIF(Y205:Y216,">0")/100 -> 99.95370352 | Z199: =X199*(100-AVERAGEIF(Y205:Y216,">0"))/100 -> 0.03238283089 | AA199: =100-(Y199+Z199+AB199) -> 0.01391364975 | AB199: =IF((X201+AB201)>100,AB201*100/(X201+AB201),AB201) -> 0
C200: =MaxTarget(C205:C216) -> 2018 | D200: =IF((D202+H202)>100,D202*100/(D202+H202),D202) -> 99.99924634 | E200: =D200*AVERAGEIF(E205:E216,">0")/100 -> 99.85662691 | F200: =D200*(100-AVERAGEIF(E205:E216,">0"))/100 -> 0.1426194305 | G200: =100-(E200+F200+H200) -> 0.0007536568666 | H200: =IF((D202+H202)>100,H202*100/(D202+H202),H202) -> 0 | I200: =IF((I202+M202)>100,I202*100/(I202+M202),I202) -> 99.61573056 | J200: =I200*AVERAGEIF(J205:J216,">0")/100 -> 99.60295567 | K200: =I200*(100-AVERAGEIF(J205:J216,">0"))/100 -> 0.01277488811 | L200: =100-(J200+K200+M200) -> 0.3842694436 | M200: =IF((I202+M202)>100,M202*100/(I202+M202),M202) -> 0 | N200: =IF((N202+R202)>100,N202*100/(N202+R202),N202) -> 100 | O200: =N200*AVERAGEIF(O205:O216,">0")/100 -> 99.94510328 | P200: =N200*(100-AVERAGEIF(O205:O216,">0"))/100 -> 0.05489672257 | Q200: =100-(O200+P200+R200) -> 0 | R200: =IF((N202+R202)>100,R202*100/(N202+R202),R202) -> 0 | S200: =IF((S202+W202)>100,S202*100/(S202+W202),S202) -> 99.75969778 | T200: =S200*AVERAGEIF(T205:T216,">0")/100 -> 99.75969778 | U200: =S200*(100-AVERAGEIF(T205:T216,">0"))/100 -> 0 | V200: =100-(T200+U200+W200) -> 0.2403022214 | W200: =IF((S202+W202)>100,W202*100/(S202+W202),W202) -> 0 | X200: =IF((X202+AB202)>100,X202*100/(X202+AB202),X202) -> 99.82808189 | Y200: =X200*AVERAGEIF(Y205:Y216,">0")/100 -> 99.79575023 | Z200: =X200*(100-AVERAGEIF(Y205:Y216,">0"))/100 -> 0.03233165746 | AA200: =100-(Y200+Z200+AB200) -> 0.1719181086 | AB200: =IF((X202+AB202)>100,AB202*100/(X202+AB202),AB202) -> 0
A201: Regression period: | C201: =MinRegYear(C199,C205:C216) -> 2003 | D201: =IF(MAX(C205:C216)-MIN(C205:C216)<5,AVERAGEIF(C205:C216,">0",D205:D216), IF(FORECAST($C201,D$205:D$216,$C$205:$C$216)<0,0, IF(FORECAST($C201,D$205:D$216,$C$205:$C$216)>100,100, FORECAST($C201,D$205:D$216,$C$205:$C$216)))) -> 98.88161007 | H201: =IF(MAX(C205:C216)-MIN(C205:C216)<5,AVERAGEIF(C205:C216,">0",H205:H216), IF(FORECAST($C201,H$205:H$216,$C$205:$C$216)<0,0, IF(FORECAST($C201,H$205:H$216,$C$205:$C$216)>100,100, FORECAST($C201,H$205:H$216,$C$205:$C$216)))) -> 0 | I201: =IF(MAX(C205:C216)-MIN(C205:C216)<5,AVERAGEIF(C205:C216,">0",I205:I216), IF(FORECAST($C201,I$205:I$216,$C$205:$C$216)<0,0, IF(FORECAST($C201,I$205:I$216,$C$205:$C$216)>100,100, FORECAST($C201,I$205:I$216,$C$205:$C$216)))) -> 100 | M201: =IF(MAX(C205:C216)-MIN(C205:C216)<5,AVERAGEIF(C205:C216,">0",M205:M216), IF(FORECAST($C201,M$205:M$216,$C$205:$C$216)<0,0, IF(FORECAST($C201,M$205:M$216,$C$205:$C$216)>100,100, FORECAST($C201,M$205:M$216,$C$205:$C$216)))) -> 0 | N201: =IF(MAX(C205:C216)-MIN(C205:C216)<5,AVERAGEIF(C205:C216,">0",N205:N216), IF(FORECAST($C201,N$205:N$216,$C$205:$C$216)<0,0, IF(FORECAST($C201,N$205:N$216,$C$205:$C$216)>100,100, FORECAST($C201,N$205:N$216,$C$205:$C$216)))) -> 100 | R201: =IF(MAX(C205:C216)-MIN(C205:C216)<5,AVERAGEIF(C205:C216,">0",R205:R216), IF(FORECAST($C201,R$205:R$216,$C$205:$C$216)<0,0, IF(FORECAST($C201,R$205:R$216,$C$205:$C$216)>100,100, FORECAST($C201,R$205:R$216,$C$205:$C$216)))) -> 0 | S201: =IF(MAX(C205:C216)-MIN(C205:C216)<5,AVERAGEIF(C205:C216,">0",S205:S216), IF(FORECAST($C201,S$205:S$216,$C$205:$C$216)<0,0, IF(FORECAST($C201,S$205:S$216,$C$205:$C$216)>100,100, FORECAST($C201,S$205:S$216,$C$205:$C$216)))) -> 100 | W201: =IF(MAX(C205:C216)-MIN(C205:C216)<5,AVERAGEIF(C205:C216,">0",W205:W216), IF(FORECAST($C201,W$205:W$216,$C$205:$C$216)<0,0, IF(FORECAST($C201,W$205:W$216,$C$205:$C$216)>100,100, FORECAST($C201,W$205:W$216,$C$205:$C$216)))) -> 0 | X201: =IF(MAX(C205:C216)-MIN(C205:C216)<5,AVERAGEIF(C205:C216,">0",X205:X216), IF(FORECAST($C201,X$205:X$216,$C$205:$C$216)<0,0, IF(FORECAST($C201,X$205:X$216,$C$205:$C$216)>100,100, FORECAST($C201,X$205:X$216,$C$205:$C$216)))) -> 99.98608635 | AB201: =IF(MAX(C205:C216)-MIN(C205:C216)<5,AVERAGEIF(C205:C216,">0",AB205:AB216), IF(FORECAST($C201,AB$205:AB$216,$C$205:$C$216)<0,0, IF(FORECAST($C201,AB$205:AB$216,$C$205:$C$216)>100,100, FORECAST($C201,AB$205:AB$216,$C$205:$C$216)))) -> 0
C202: =MaxRegYear(C200,C205:C216) -> 2014 | D202: =IF(MAX(C205:C216)-MIN(C205:C216)<5,AVERAGEIF(C205:C216,">0",D205:D216), IF(FORECAST($C202,D$205:D$216,$C$205:$C$216)<0,0, IF(FORECAST($C202,D$205:D$216,$C$205:$C$216)>100,100, FORECAST($C202,D$205:D$216,$C$205:$C$216)))) -> 99.99924634 | H202: =IF(MAX(C205:C216)-MIN(C205:C216)<5,AVERAGEIF(C205:C216,">0",H205:H216), IF(FORECAST($C202,H$205:H$216,$C$205:$C$216)<0,0, IF(FORECAST($C202,H$205:H$216,$C$205:$C$216)>100,100, FORECAST($C202,H$205:H$216,$C$205:$C$216)))) -> 0 | I202: =IF(MAX(C205:C216)-MIN(C205:C216)<5,AVERAGEIF(C205:C216,">0",I205:I216), IF(FORECAST($C202,I$205:I$216,$C$205:$C$216)<0,0, IF(FORECAST($C202,I$205:I$216,$C$205:$C$216)>100,100, FORECAST($C202,I$205:I$216,$C$205:$C$216)))) -> 99.61573056 | M202: =IF(MAX(C205:C216)-MIN(C205:C216)<5,AVERAGEIF(C205:C216,">0",M205:M216), IF(FORECAST($C202,M$205:M$216,$C$205:$C$216)<0,0, IF(FORECAST($C202,M$205:M$216,$C$205:$C$216)>100,100, FORECAST($C202,M$205:M$216,$C$205:$C$216)))) -> 0 | N202: =IF(MAX(C205:C216)-MIN(C205:C216)<5,AVERAGEIF(C205:C216,">0",N205:N216), IF(FORECAST($C202,N$205:N$216,$C$205:$C$216)<0,0, IF(FORECAST($C202,N$205:N$216,$C$205:$C$216)>100,100, FORECAST($C202,N$205:N$216,$C$205:$C$216)))) -> 100 | R202: =IF(MAX(C205:C216)-MIN(C205:C216)<5,AVERAGEIF(C205:C216,">0",R205:R216), IF(FORECAST($C202,R$205:R$216,$C$205:$C$216)<0,0, IF(FORECAST($C202,R$205:R$216,$C$205:$C$216)>100,100, FORECAST($C202,R$205:R$216,$C$205:$C$216)))) -> 0 | S202: =IF(MAX(C205:C216)-MIN(C205:C216)<5,AVERAGEIF(C205:C216,">0",S205:S216), IF(FORECAST($C202,S$205:S$216,$C$205:$C$216)<0,0, IF(FORECAST($C202,S$205:S$216,$C$205:$C$216)>100,100, FORECAST($C202,S$205:S$216,$C$205:$C$216)))) -> 99.75969778 | W202: =IF(MAX(C205:C216)-MIN(C205:C216)<5,AVERAGEIF(C205:C216,">0",W205:W216), IF(FORECAST($C202,W$205:W$216,$C$205:$C$216)<0,0, IF(FORECAST($C202,W$205:W$216,$C$205:$C$216)>100,100, FORECAST($C202,W$205:W$216,$C$205:$C$216)))) -> 0 | X202: =IF(MAX(C205:C216)-MIN(C205:C216)<5,AVERAGEIF(C205:C216,">0",X205:X216), IF(FORECAST($C202,X$205:X$216,$C$205:$C$216)<0,0, IF(FORECAST($C202,X$205:X$216,$C$205:$C$216)>100,100, FORECAST($C202,X$205:X$216,$C$205:$C$216)))) -> 99.82808189 | AB202: =IF(MAX(C205:C216)-MIN(C205:C216)<5,AVERAGEIF(C205:C216,">0",AB205:AB216), IF(FORECAST($C202,AB$205:AB$216,$C$205:$C$216)<0,0, IF(FORECAST($C202,AB$205:AB$216,$C$205:$C$216)>100,100, FORECAST($C202,AB$205:AB$216,$C$205:$C$216)))) -> 0
B204: Survey | C204: Year | D204: Improved | E204: % Improved < = 30min | H204: Surface water | I204: Improved | J204: % Improved < = 30min | M204: Surface water | N204: Improved | O204: % Improved < = 30min | R204: Surface water | S204: Improved | T204: % Improved < = 30min | W204: Surface water | X204: Improved | Y204: % Improved < = 30min | AB204: Surface water
B205: MICS05 | C205: 2005 | D205: =IF(ISERROR(INDIRECT(CONCATENATE($B205,"!H16"))),"",INDIRECT(CONCATENATE($B205,"!H16"))) -> 99.08481667 | E205: =IF(ISERROR(INDIRECT(CONCATENATE($B205,"!H23"))),"",INDIRECT(CONCATENATE($B205,"!H23"))) -> 99.79390465 | H205: =IF(ISERROR(INDIRECT(CONCATENATE($B205,"!H21"))),"",INDIRECT(CONCATENATE($B205,"!H21"))) -> 0 | I205: =IF(ISERROR(INDIRECT(CONCATENATE($B205,"!I16"))),"",INDIRECT(CONCATENATE($B205,"!I16"))) -> 99.94285144 | J205: =IF(ISERROR(INDIRECT(CONCATENATE($B205,"!I23"))),"",INDIRECT(CONCATENATE($B205,"!I23"))) -> 100 | M205: =IF(ISERROR(INDIRECT(CONCATENATE($B205,"!I21"))),"",INDIRECT(CONCATENATE($B205,"!I21"))) -> 0 | N205: =IF(ISERROR(INDIRECT(CONCATENATE($B205,"!J16"))),"",INDIRECT(CONCATENATE($B205,"!J16"))) -> 100 | O205: =IF(ISERROR(INDIRECT(CONCATENATE($B205,"!J23"))),"",INDIRECT(CONCATENATE($B205,"!J23"))) -> 99.92450384 | R205: =IF(ISERROR(INDIRECT(CONCATENATE($B205,"!J21"))),"",INDIRECT(CONCATENATE($B205,"!J21"))) -> 0 | S205: =IF(ISERROR(INDIRECT(CONCATENATE($B205,"!K16"))),"",INDIRECT(CONCATENATE($B205,"!K16"))) -> 100 | T205: =IF(ISERROR(INDIRECT(CONCATENATE($B205,"!K23"))),"",INDIRECT(CONCATENATE($B205,"!K23"))) -> 100 | W205: =IF(ISERROR(INDIRECT(CONCATENATE($B205,"!K21"))),"",INDIRECT(CONCATENATE($B205,"!K21"))) -> 0 | X205: =IF(ISERROR(INDIRECT(CONCATENATE($B205,"!L16"))),"",INDIRECT(CONCATENATE($B205,"!L16"))) -> 99.95735827 | Y205: =IF(ISERROR(INDIRECT(CONCATENATE($B205,"!L23"))),"",INDIRECT(CONCATENATE($B205,"!L23"))) -> 99.93522533 | AB205: =IF(ISERROR(INDIRECT(CONCATENATE($B205,"!L221"))),"",INDIRECT(CONCATENATE($B205,"!L21"))) -> 0
B206: MICS12 | C206: 2012 | D206: 99.79603975 | E206: 99.92085434 | H206: 0 | I206: 99.68842409 | J206: 99.97435167 | M206: 0 | N206: 100 | O206: 99.96570271 | R206: 0 | S206: 99.81309827 | T206: 100 | W206: 0 | X206: 99.85680997 | Y206: 100 | AB206: 0
B218: =CONCATENATE("Urban use of drinking water sources, ",C199,"–",C200) -> Urban use of drinking water sources, 2000–2018 | S218: Data points used for regression
E253: =IF(ISERROR(INDIRECT(CONCATENATE($B253,"!M18"))),"",INDIRECT(CONCATENATE($B253,"!M18"))) ->  | F253: =IF(ISERROR(INDIRECT(CONCATENATE($B253,"!M19"))),"",INDIRECT(CONCATENATE($B253,"!M19"))) ->  | G253: =IF(ISERROR(INDIRECT(CONCATENATE($B253,"!M20"))),"",INDIRECT(CONCATENATE($B253,"!M20"))) ->  | H253: =IF(ISERROR(INDIRECT(CONCATENATE($B253,"!M21"))),"",INDIRECT(CONCATENATE($B253,"!M21"))) ->  | J253: =IF(ISERROR(INDIRECT(CONCATENATE($B253,"!N18"))),"",INDIRECT(CONCATENATE($B253,"!N18"))) ->  | K253: =IF(ISERROR(INDIRECT(CONCATENATE($B253,"!N19"))),"",INDIRECT(CONCATENATE($B253,"!N19"))) ->  | L253: =IF(ISERROR(INDIRECT(CONCATENATE($B253,"!N20"))),"",INDIRECT(CONCATENATE($B253,"!N20"))) ->  | M253: =IF(ISERROR(INDIRECT(CONCATENATE($B253,"!N21"))),"",INDIRECT(CONCATENATE($B253,"!N21"))) ->  | O253: =IF(ISERROR(INDIRECT(CONCATENATE($B253,"!O18"))),"",INDIRECT(CONCATENATE($B253,"!O18"))) ->  | P253: =IF(ISERROR(INDIRECT(CONCATENATE($B253,"!O19"))),"",INDIRECT(CONCATENATE($B253,"!O19"))) ->  | Q253: =IF(ISERROR(INDIRECT(CONCATENATE($B253,"!O20"))),"",INDIRECT(CONCATENATE($B253,"!O20"))) ->  | R253: =IF(ISERROR(INDIRECT(CONCATENATE($B253,"!O21"))),"",INDIRECT(CONCATENATE($B253,"!O21"))) ->  | T253: =IF(ISERROR(INDIRECT(CONCATENATE($B253,"!P18"))),"",INDIRECT(CONCATENATE($B253,"!P18"))) ->  | U253: =IF(ISERROR(INDIRECT(CONCATENATE($B253,"!P19"))),"",INDIRECT(CONCATENATE($B253,"!P19"))) ->  | V253: =IF(ISERROR(INDIRECT(CONCATENATE($B253,"!P20"))),"",INDIRECT(CONCATENATE($B253,"!P20"))) ->  | W253: =IF(ISERROR(INDIRECT(CONCATENATE($B253,"!P21"))),"",INDIRECT(CONCATENATE($B253,"!P21"))) ->  | Y253: =IF(ISERROR(INDIRECT(CONCATENATE($B253,"!Q18"))),"",INDIRECT(CONCATENATE($B253,"!Q18"))) ->  | Z253: =IF(ISERROR(INDIRECT(CONCATENATE($B253,"!Q19"))),"",INDIRECT(CONCATENATE($B253,"!Q19"))) ->  | AA253: =IF(ISERROR(INDIRECT(CONCATENATE($B253,"!Q20"))),"",INDIRECT(CONCATENATE($B253,"!Q20"))) ->  | AB253: =IF(ISERROR(INDIRECT(CONCATENATE($B253,"!Q21"))),"",INDIRECT(CONCATENATE($B253,"!Q1"))) -> 
E254: =IF(ISERROR(INDIRECT(CONCATENATE($B254,"!M18"))),"",INDIRECT(CONCATENATE($B254,"!M18"))) ->  | F254: =IF(ISERROR(INDIRECT(CONCATENATE($B254,"!M19"))),"",INDIRECT(CONCATENATE($B254,"!M19"))) ->  | G254: =IF(ISERROR(INDIRECT(CONCATENATE($B254,"!M20"))),"",INDIRECT(CONCATENATE($B254,"!M20"))) ->  | H254: =IF(ISERROR(INDIRECT(CONCATENATE($B254,"!M21"))),"",INDIRECT(CONCATENATE($B254,"!M21"))) ->  | J254: =IF(ISERROR(INDIRECT(CONCATENATE($B254,"!N18"))),"",INDIRECT(CONCATENATE($B254,"!N18"))) ->  | K254: =IF(ISERROR(INDIRECT(CONCATENATE($B254,"!N19"))),"",INDIRECT(CONCATENATE($B254,"!N19"))) ->  | L254: =IF(ISERROR(INDIRECT(CONCATENATE($B254,"!N20"))),"",INDIRECT(CONCATENATE($B254,"!N20"))) ->  | M254: =IF(ISERROR(INDIRECT(CONCATENATE($B254,"!N21"))),"",INDIRECT(CONCATENATE($B254,"!N21"))) ->  | O254: =IF(ISERROR(INDIRECT(CONCATENATE($B254,"!O18"))),"",INDIRECT(CONCATENATE($B254,"!O18"))) ->  | P254: =IF(ISERROR(INDIRECT(CONCATENATE($B254,"!O19"))),"",INDIRECT(CONCATENATE($B254,"!O19"))) ->  | Q254: =IF(ISERROR(INDIRECT(CONCATENATE($B254,"!O20"))),"",INDIRECT(CONCATENATE($B254,"!O20"))) ->  | R254: =IF(ISERROR(INDIRECT(CONCATENATE($B254,"!O21"))),"",INDIRECT(CONCATENATE($B254,"!O21"))) ->  | T254: =IF(ISERROR(INDIRECT(CONCATENATE($B254,"!P18"))),"",INDIRECT(CONCATENATE($B254,"!P18"))) ->  | U254: =IF(ISERROR(INDIRECT(CONCATENATE($B254,"!P19"))),"",INDIRECT(CONCATENATE($B254,"!P19"))) ->  | V254: =IF(ISERROR(INDIRECT(CONCATENATE($B254,"!P20"))),"",INDIRECT(CONCATENATE($B254,"!P20"))) ->  | W254: =IF(ISERROR(INDIRECT(CONCATENATE($B254,"!P21"))),"",INDIRECT(CONCATENATE($B254,"!P21"))) ->  | Y254: =IF(ISERROR(INDIRECT(CONCATENATE($B254,"!Q18"))),"",INDIRECT(CONCATENATE($B254,"!Q18"))) ->  | Z254: =IF(ISERROR(INDIRECT(CONCATENATE($B254,"!Q19"))),"",INDIRECT(CONCATENATE($B254,"!Q19"))) ->  | AA254: =IF(ISERROR(INDIRECT(CONCATENATE($B254,"!Q20"))),"",INDIRECT(CONCATENATE($B254,"!Q20"))) ->  | AB254: =IF(ISERROR(INDIRECT(CONCATENATE($B254,"!Q21"))),"",INDIRECT(CONCATENATE($B254,"!Q1"))) -> 
E255: =IF(ISERROR(INDIRECT(CONCATENATE($B255,"!M18"))),"",INDIRECT(CONCATENATE($B255,"!M18"))) ->  | F255: =IF(ISERROR(INDIRECT(CONCATENATE($B255,"!M19"))),"",INDIRECT(CONCATENATE($B255,"!M19"))) ->  | G255: =IF(ISERROR(INDIRECT(CONCATENATE($B255,"!M20"))),"",INDIRECT(CONCATENATE($B255,"!M20"))) ->  | H255: =IF(ISERROR(INDIRECT(CONCATENATE($B255,"!M21"))),"",INDIRECT(CONCATENATE($B255,"!M21"))) ->  | J255: =IF(ISERROR(INDIRECT(CONCATENATE($B255,"!N18"))),"",INDIRECT(CONCATENATE($B255,"!N18"))) ->  | K255: =IF(ISERROR(INDIRECT(CONCATENATE($B255,"!N19"))),"",INDIRECT(CONCATENATE($B255,"!N19"))) ->  | L255: =IF(ISERROR(INDIRECT(CONCATENATE($B255,"!N20"))),"",INDIRECT(CONCATENATE($B255,"!N20"))) ->  | M255: =IF(ISERROR(INDIRECT(CONCATENATE($B255,"!N21"))),"",INDIRECT(CONCATENATE($B255,"!N21"))) ->  | O255: =IF(ISERROR(INDIRECT(CONCATENATE($B255,"!O18"))),"",INDIRECT(CONCATENATE($B255,"!O18"))) ->  | P255: =IF(ISERROR(INDIRECT(CONCATENATE($B255,"!O19"))),"",INDIRECT(CONCATENATE($B255,"!O19"))) ->  | Q255: =IF(ISERROR(INDIRECT(CONCATENATE($B255,"!O20"))),"",INDIRECT(CONCATENATE($B255,"!O20"))) ->  | R255: =IF(ISERROR(INDIRECT(CONCATENATE($B255,"!O21"))),"",INDIRECT(CONCATENATE($B255,"!O21"))) ->  | T255: =IF(ISERROR(INDIRECT(CONCATENATE($B255,"!P18"))),"",INDIRECT(CONCATENATE($B255,"!P18"))) ->  | U255: =IF(ISERROR(INDIRECT(CONCATENATE($B255,"!P19"))),"",INDIRECT(CONCATENATE($B255,"!P19"))) ->  | V255: =IF(ISERROR(INDIRECT(CONCATENATE($B255,"!P20"))),"",INDIRECT(CONCATENATE($B255,"!P20"))) ->  | W255: =IF(ISERROR(INDIRECT(CONCATENATE($B255,"!P21"))),"",INDIRECT(CONCATENATE($B255,"!P21"))) ->  | Y255: =IF(ISERROR(INDIRECT(CONCATENATE($B255,"!Q18"))),"",INDIRECT(CONCATENATE($B255,"!Q18"))) ->  | Z255: =IF(ISERROR(INDIRECT(CONCATENATE($B255,"!Q19"))),"",INDIRECT(CONCATENATE($B255,"!Q19"))) ->  | AA255: =IF(ISERROR(INDIRECT(CONCATENATE($B255,"!Q20"))),"",INDIRECT(CONCATENATE($B255,"!Q20"))) ->  | AB255: =IF(ISERROR(INDIRECT(CONCATENATE($B255,"!Q21"))),"",INDIRECT(CONCATENATE($B255,"!Q1"))) -> 
E256: =IF(ISERROR(INDIRECT(CONCATENATE($B256,"!M18"))),"",INDIRECT(CONCATENATE($B256,"!M18"))) ->  | F256: =IF(ISERROR(INDIRECT(CONCATENATE($B256,"!M19"))),"",INDIRECT(CONCATENATE($B256,"!M19"))) ->  | G256: =IF(ISERROR(INDIRECT(CONCATENATE($B256,"!M20"))),"",INDIRECT(CONCATENATE($B256,"!M20"))) ->  | H256: =IF(ISERROR(INDIRECT(CONCATENATE($B256,"!M21"))),"",INDIRECT(CONCATENATE($B256,"!M21"))) ->  | J256: =IF(ISERROR(INDIRECT(CONCATENATE($B256,"!N18"))),"",INDIRECT(CONCATENATE($B256,"!N18"))) ->  | K256: =IF(ISERROR(INDIRECT(CONCATENATE($B256,"!N19"))),"",INDIRECT(CONCATENATE($B256,"!N19"))) ->  | L256: =IF(ISERROR(INDIRECT(CONCATENATE($B256,"!N20"))),"",INDIRECT(CONCATENATE($B256,"!N20"))) ->  | M256: =IF(ISERROR(INDIRECT(CONCATENATE($B256,"!N21"))),"",INDIRECT(CONCATENATE($B256,"!N21"))) ->  | O256: =IF(ISERROR(INDIRECT(CONCATENATE($B256,"!O18"))),"",INDIRECT(CONCATENATE($B256,"!O18"))) ->  | P256: =IF(ISERROR(INDIRECT(CONCATENATE($B256,"!O19"))),"",INDIRECT(CONCATENATE($B256,"!O19"))) ->  | Q256: =IF(ISERROR(INDIRECT(CONCATENATE($B256,"!O20"))),"",INDIRECT(CONCATENATE($B256,"!O20"))) ->  | R256: =IF(ISERROR(INDIRECT(CONCATENATE($B256,"!O21"))),"",INDIRECT(CONCATENATE($B256,"!O21"))) ->  | T256: =IF(ISERROR(INDIRECT(CONCATENATE($B256,"!P18"))),"",INDIRECT(CONCATENATE($B256,"!P18"))) ->  | U256: =IF(ISERROR(INDIRECT(CONCATENATE($B256,"!P19"))),"",INDIRECT(CONCATENATE($B256,"!P19"))) ->  | V256: =IF(ISERROR(INDIRECT(CONCATENATE($B256,"!P20"))),"",INDIRECT(CONCATENATE($B256,"!P20"))) ->  | W256: =IF(ISERROR(INDIRECT(CONCATENATE($B256,"!P21"))),"",INDIRECT(CONCATENATE($B256,"!P21"))) ->  | Y256: =IF(ISERROR(INDIRECT(CONCATENATE($B256,"!Q18"))),"",INDIRECT(CONCATENATE($B256,"!Q18"))) ->  | Z256: =IF(ISERROR(INDIRECT(CONCATENATE($B256,"!Q19"))),"",INDIRECT(CONCATENATE($B256,"!Q19"))) ->  | AA256: =IF(ISERROR(INDIRECT(CONCATENATE($B256,"!Q20"))),"",INDIRECT(CONCATENATE($B256,"!Q20"))) ->  | AB256: =IF(ISERROR(INDIRECT(CONCATENATE($B256,"!Q21"))),"",INDIRECT(CONCATENATE($B256,"!Q1"))) -> 
E257: =IF(ISERROR(INDIRECT(CONCATENATE($B257,"!M18"))),"",INDIRECT(CONCATENATE($B257,"!M18"))) ->  | F257: =IF(ISERROR(INDIRECT(CONCATENATE($B257,"!M19"))),"",INDIRECT(CONCATENATE($B257,"!M19"))) ->  | G257: =IF(ISERROR(INDIRECT(CONCATENATE($B257,"!M20"))),"",INDIRECT(CONCATENATE($B257,"!M20"))) ->  | H257: =IF(ISERROR(INDIRECT(CONCATENATE($B257,"!M21"))),"",INDIRECT(CONCATENATE($B257,"!M21"))) ->  | J257: =IF(ISERROR(INDIRECT(CONCATENATE($B257,"!N18"))),"",INDIRECT(CONCATENATE($B257,"!N18"))) ->  | K257: =IF(ISERROR(INDIRECT(CONCATENATE($B257,"!N19"))),"",INDIRECT(CONCATENATE($B257,"!N19"))) ->  | L257: =IF(ISERROR(INDIRECT(CONCATENATE($B257,"!N20"))),"",INDIRECT(CONCATENATE($B257,"!N20"))) ->  | M257: =IF(ISERROR(INDIRECT(CONCATENATE($B257,"!N21"))),"",INDIRECT(CONCATENATE($B257,"!N21"))) ->  | O257: =IF(ISERROR(INDIRECT(CONCATENATE($B257,"!O18"))),"",INDIRECT(CONCATENATE($B257,"!O18"))) ->  | P257: =IF(ISERROR(INDIRECT(CONCATENATE($B257,"!O19"))),"",INDIRECT(CONCATENATE($B257,"!O19"))) ->  | Q257: =IF(ISERROR(INDIRECT(CONCATENATE($B257,"!O20"))),"",INDIRECT(CONCATENATE($B257,"!O20"))) ->  | R257: =IF(ISERROR(INDIRECT(CONCATENATE($B257,"!O21"))),"",INDIRECT(CONCATENATE($B257,"!O21"))) ->  | T257: =IF(ISERROR(INDIRECT(CONCATENATE($B257,"!P18"))),"",INDIRECT(CONCATENATE($B257,"!P18"))) ->  | U257: =IF(ISERROR(INDIRECT(CONCATENATE($B257,"!P19"))),"",INDIRECT(CONCATENATE($B257,"!P19"))) ->  | V257: =IF(ISERROR(INDIRECT(CONCATENATE($B257,"!P20"))),"",INDIRECT(CONCATENATE($B257,"!P20"))) ->  | W257: =IF(ISERROR(INDIRECT(CONCATENATE($B257,"!P21"))),"",INDIRECT(CONCATENATE($B257,"!P21"))) ->  | Y257: =IF(ISERROR(INDIRECT(CONCATENATE($B257,"!Q18"))),"",INDIRECT(CONCATENATE($B257,"!Q18"))) ->  | Z257: =IF(ISERROR(INDIRECT(CONCATENATE($B257,"!Q19"))),"",INDIRECT(CONCATENATE($B257,"!Q19"))) ->  | AA257: =IF(ISERROR(INDIRECT(CONCATENATE($B257,"!Q20"))),"",INDIRECT(CONCATENATE($B257,"!Q20"))) ->  | AB257: =IF(ISERROR(INDIRECT(CONCATENATE($B257,"!Q21"))),"",INDIRECT(CONCATENATE($B257,"!Q1"))) -> 
A297: RURAL | D297: Poorest | I297: Poor | N297: Middle | S297: Rich | X297: Richest
D298: Improved | E298: Basic | F298: Limited | G298: Unimproved | H298: Surface water | I298: Improved | J298: Basic | K298: Limited | L298: Unimproved | M298: Surface water | N298: Improved | O298: Basic | P298: Limited | Q298: Unimproved | R298: Surface water | S298: Improved | T298: Basic | U298: Limited | V298: Unimproved | W298: Surface water | X298: Improved | Y298: Basic | Z298: Limited | AA298: Unimproved | AB298: Surface water
A299: Forecast period: | C299: 2018 | D299: =IF((D301+H301)>100,D301*100/(D301+H301),D301) -> 98.05080719 | E299: =D299*AVERAGEIF(E305:E316,">0")/100 -> 97.91511336 | F299: =D299*(100-AVERAGEIF(E305:E316,">0"))/100 -> 0.1356938351 | G299: =100-(E299+F299+H299) -> 1.94919281 | H299: =IF((D301+H301)>100,H301*100/(D301+H301),H301) -> 0 | I299: =IF((I301+M301)>100,I301*100/(I301+M301),I301) -> 98.69960624 | J299: =I299*AVERAGEIF(J305:J316,">0")/100 -> 98.34301376 | K299: =I299*(100-AVERAGEIF(J305:J316,">0"))/100 -> 0.3565924841 | L299: =100-(J299+K299+M299) -> 1.30039376 | M299: =IF((I301+M301)>100,M301*100/(I301+M301),M301) -> 0 | N299: =IF((N301+R301)>100,N301*100/(N301+R301),N301) -> 98.89594834 | O299: =N299*AVERAGEIF(O305:O316,">0")/100 -> 98.89594834 | P299: =N299*(100-AVERAGEIF(O305:O316,">0"))/100 -> 0 | Q299: =100-(O299+P299+R299) -> 1.10405166 | R299: =IF((N301+R301)>100,R301*100/(N301+R301),R301) -> 0 | S299: =IF((S301+W301)>100,S301*100/(S301+W301),S301) -> 99.93294377 | T299: =S299*AVERAGEIF(T305:T316,">0")/100 -> 99.93294377 | U299: =S299*(100-AVERAGEIF(T305:T316,">0"))/100 -> 0 | V299: =100-(T299+U299+W299) -> 0.06705622933 | W299: =IF((S301+W301)>100,W301*100/(S301+W301),W301) -> 0 | X299: =IF((X301+AB301)>100,X301*100/(X301+AB301),X301) -> 99.42208182 | Y299: =X299*AVERAGEIF(Y305:Y316,">0")/100 -> 99.42208182 | Z299: =X299*(100-AVERAGEIF(Y305:Y316,">0"))/100 -> 0 | AA299: =100-(Y299+Z299+AB299) -> 0.5779181841 | AB299: =IF((X301+AB301)>100,AB301*100/(X301+AB301),AB301) -> 0
C300: 2020 | D300: =IF((D302+H302)>100,D302*100/(D302+H302),D302) -> 98.05080719 | E300: =D300*AVERAGEIF(E305:E316,">0")/100 -> 97.91511336 | F300: =D300*(100-AVERAGEIF(E305:E316,">0"))/100 -> 0.1356938351 | G300: =100-(E300+F300+H300) -> 1.94919281 | H300: =IF((D302+H302)>100,H302*100/(D302+H302),H302) -> 0 | I300: =IF((I302+M302)>100,I302*100/(I302+M302),I302) -> 98.69960624 | J300: =I300*AVERAGEIF(J305:J316,">0")/100 -> 98.34301376 | K300: =I300*(100-AVERAGEIF(J305:J316,">0"))/100 -> 0.3565924841 | L300: =100-(J300+K300+M300) -> 1.30039376 | M300: =IF((I302+M302)>100,M302*100/(I302+M302),M302) -> 0 | N300: =IF((N302+R302)>100,N302*100/(N302+R302),N302) -> 98.89594834 | O300: =N300*AVERAGEIF(O305:O316,">0")/100 -> 98.89594834 | P300: =N300*(100-AVERAGEIF(O305:O316,">0"))/100 -> 0 | Q300: =100-(O300+P300+R300) -> 1.10405166 | R300: =IF((N302+R302)>100,R302*100/(N302+R302),R302) -> 0 | S300: =IF((S302+W302)>100,S302*100/(S302+W302),S302) -> 99.93294377 | T300: =S300*AVERAGEIF(T305:T316,">0")/100 -> 99.93294377 | U300: =S300*(100-AVERAGEIF(T305:T316,">0"))/100 -> 0 | V300: =100-(T300+U300+W300) -> 0.06705622933 | W300: =IF((S302+W302)>100,W302*100/(S302+W302),W302) -> 0 | X300: =IF((X302+AB302)>100,X302*100/(X302+AB302),X302) -> 99.42208182 | Y300: =X300*AVERAGEIF(Y305:Y316,">0")/100 -> 99.42208182 | Z300: =X300*(100-AVERAGEIF(Y305:Y316,">0"))/100 -> 0 | AA300: =100-(Y300+Z300+AB300) -> 0.5779181841 | AB300: =IF((X302+AB302)>100,AB302*100/(X302+AB302),AB302) -> 0
A301: Regression period: | C301: =MinRegYear(C299,C305:C316) -> 2014 | D301: =IF(MAX(C305:C316)-MIN(C305:C316)<5,AVERAGEIF(C305:C316,">0",D305:D316), IF(FORECAST($C301,D$305:D$316,$C$305:$C$316)<0,0, IF(FORECAST($C301,D$305:D$316,$C$305:$C$316)>100,100, FORECAST($C301,D$305:D$316,$C$305:$C$316)))) -> 98.05080719 | H301: =IF(MAX(C305:C316)-MIN(C305:C316)<5,AVERAGEIF(C305:C316,">0",H305:H316), IF(FORECAST($C301,H$305:H$316,$C$305:$C$316)<0,0, IF(FORECAST($C301,H$305:H$316,$C$305:$C$316)>100,100, FORECAST($C301,H$305:H$316,$C$305:$C$316)))) -> 0 | I301: =IF(MAX(C305:C316)-MIN(C305:C316)<5,AVERAGEIF(C305:C316,">0",I305:I316), IF(FORECAST($C301,I$305:I$316,$C$305:$C$316)<0,0, IF(FORECAST($C301,I$305:I$316,$C$305:$C$316)>100,100, FORECAST($C301,I$305:I$316,$C$305:$C$316)))) -> 98.69960624 | M301: =IF(MAX(C305:C316)-MIN(C305:C316)<5,AVERAGEIF(C305:C316,">0",M305:M316), IF(FORECAST($C301,M$305:M$316,$C$305:$C$316)<0,0, IF(FORECAST($C301,M$305:M$316,$C$305:$C$316)>100,100, FORECAST($C301,M$305:M$316,$C$305:$C$316)))) -> 0 | N301: =IF(MAX(C305:C316)-MIN(C305:C316)<5,AVERAGEIF(C305:C316,">0",N305:N316), IF(FORECAST($C301,N$305:N$316,$C$305:$C$316)<0,0, IF(FORECAST($C301,N$305:N$316,$C$305:$C$316)>100,100, FORECAST($C301,N$305:N$316,$C$305:$C$316)))) -> 98.89594834 | R301: =IF(MAX(C305:C316)-MIN(C305:C316)<5,AVERAGEIF(C305:C316,">0",R305:R316), IF(FORECAST($C301,R$305:R$316,$C$305:$C$316)<0,0, IF(FORECAST($C301,R$305:R$316,$C$305:$C$316)>100,100, FORECAST($C301,R$305:R$316,$C$305:$C$316)))) -> 0 | S301: =IF(MAX(C305:C316)-MIN(C305:C316)<5,AVERAGEIF(C305:C316,">0",S305:S316), IF(FORECAST($C301,S$305:S$316,$C$305:$C$316)<0,0, IF(FORECAST($C301,S$305:S$316,$C$305:$C$316)>100,100, FORECAST($C301,S$305:S$316,$C$305:$C$316)))) -> 99.93294377 | W301: =IF(MAX(C305:C316)-MIN(C305:C316)<5,AVERAGEIF(C305:C316,">0",W305:W316), IF(FORECAST($C301,W$305:W$316,$C$305:$C$316)<0,0, IF(FORECAST($C301,W$305:W$316,$C$305:$C$316)>100,100, FORECAST($C301,W$305:W$316,$C$305:$C$316)))) -> 0 | X301: =IF(MAX(C305:C316)-MIN(C305:C316)<5,AVERAGEIF(C305:C316,">0",X305:X316), IF(FORECAST($C301,X$305:X$316,$C$305:$C$316)<0,0, IF(FORECAST($C301,X$305:X$316,$C$305:$C$316)>100,100, FORECAST($C301,X$305:X$316,$C$305:$C$316)))) -> 99.42208182 | AB301: =IF(MAX(C305:C316)-MIN(C305:C316)<5,AVERAGEIF(C305:C316,">0",AB305:AB316), IF(FORECAST($C301,AB$305:AB$316,$C$305:$C$316)<0,0, IF(FORECAST($C301,AB$305:AB$316,$C$305:$C$316)>100,100, FORECAST($C301,AB$305:AB$316,$C$305:$C$316)))) -> 0
C302: =MaxRegYear(C300,C305:C316) -> 2014 | D302: =IF(MAX(C305:C316)-MIN(C305:C316)<5,AVERAGEIF(C305:C316,">0",D305:D316), IF(FORECAST($C302,D$305:D$316,$C$305:$C$316)<0,0, IF(FORECAST($C302,D$305:D$316,$C$305:$C$316)>100,100, FORECAST($C302,D$305:D$316,$C$305:$C$316)))) -> 98.05080719 | H302: =IF(MAX(C305:C316)-MIN(C305:C316)<5,AVERAGEIF(C305:C316,">0",H305:H316), IF(FORECAST($C302,H$305:H$316,$C$305:$C$316)<0,0, IF(FORECAST($C302,H$305:H$316,$C$305:$C$316)>100,100, FORECAST($C302,H$305:H$316,$C$305:$C$316)))) -> 0 | I302: =IF(MAX(C305:C316)-MIN(C305:C316)<5,AVERAGEIF(C305:C316,">0",I305:I316), IF(FORECAST($C302,I$305:I$316,$C$305:$C$316)<0,0, IF(FORECAST($C302,I$305:I$316,$C$305:$C$316)>100,100, FORECAST($C302,I$305:I$316,$C$305:$C$316)))) -> 98.69960624 | M302: =IF(MAX(C305:C316)-MIN(C305:C316)<5,AVERAGEIF(C305:C316,">0",M305:M316), IF(FORECAST($C302,M$305:M$316,$C$305:$C$316)<0,0, IF(FORECAST($C302,M$305:M$316,$C$305:$C$316)>100,100, FORECAST($C302,M$305:M$316,$C$305:$C$316)))) -> 0 | N302: =IF(MAX(C305:C316)-MIN(C305:C316)<5,AVERAGEIF(C305:C316,">0",N305:N316), IF(FORECAST($C302,N$305:N$316,$C$305:$C$316)<0,0, IF(FORECAST($C302,N$305:N$316,$C$305:$C$316)>100,100, FORECAST($C302,N$305:N$316,$C$305:$C$316)))) -> 98.89594834 | R302: =IF(MAX(C305:C316)-MIN(C305:C316)<5,AVERAGEIF(C305:C316,">0",R305:R316), IF(FORECAST($C302,R$305:R$316,$C$305:$C$316)<0,0, IF(FORECAST($C302,R$305:R$316,$C$305:$C$316)>100,100, FORECAST($C302,R$305:R$316,$C$305:$C$316)))) -> 0 | S302: =IF(MAX(C305:C316)-MIN(C305:C316)<5,AVERAGEIF(C305:C316,">0",S305:S316), IF(FORECAST($C302,S$305:S$316,$C$305:$C$316)<0,0, IF(FORECAST($C302,S$305:S$316,$C$305:$C$316)>100,100, FORECAST($C302,S$305:S$316,$C$305:$C$316)))) -> 99.93294377 | W302: =IF(MAX(C305:C316)-MIN(C305:C316)<5,AVERAGEIF(C305:C316,">0",W305:W316), IF(FORECAST($C302,W$305:W$316,$C$305:$C$316)<0,0, IF(FORECAST($C302,W$305:W$316,$C$305:$C$316)>100,100, FORECAST($C302,W$305:W$316,$C$305:$C$316)))) -> 0 | X302: =IF(MAX(C305:C316)-MIN(C305:C316)<5,AVERAGEIF(C305:C316,">0",X305:X316), IF(FORECAST($C302,X$305:X$316,$C$305:$C$316)<0,0, IF(FORECAST($C302,X$305:X$316,$C$305:$C$316)>100,100, FORECAST($C302,X$305:X$316,$C$305:$C$316)))) -> 99.42208182 | AB302: =IF(MAX(C305:C316)-MIN(C305:C316)<5,AVERAGEIF(C305:C316,">0",AB305:AB316), IF(FORECAST($C302,AB$305:AB$316,$C$305:$C$316)<0,0, IF(FORECAST($C302,AB$305:AB$316,$C$305:$C$316)>100,100, FORECAST($C302,AB$305:AB$316,$C$305:$C$316)))) -> 0
B304: Survey | C304: Year | D304: Improved | E304: % Improved < = 30min | H304: Surface water | I304: Improved | J304: % Improved < = 30min | M304: Surface water | N304: Improved | O304: % Improved < = 30min | R304: Surface water | S304: Improved | T304: % Improved < = 30min | W304: Surface water | X304: Improved | Y304: % Improved < = 30min | AB304: Surface water
B305: MICS05 | C305: 2005 | D305: =IF(ISERROR(INDIRECT(CONCATENATE($B305,"!M16"))),"",INDIRECT(CONCATENATE($B305,"!M16"))) -> 98.29789539 | E305: =IF(ISERROR(INDIRECT(CONCATENATE($B305,"!M23"))),"",INDIRECT(CONCATENATE($B305,"!M23"))) -> 100 | H305: =IF(ISERROR(INDIRECT(CONCATENATE($B305,"!M21"))),"",INDIRECT(CONCATENATE($B305,"!M21"))) -> 0 | I305: =IF(ISERROR(INDIRECT(CONCATENATE($B305,"!N16"))),"",INDIRECT(CONCATENATE($B305,"!N16"))) -> 98.6755999 | J305: =IF(ISERROR(INDIRECT(CONCATENATE($B305,"!N23"))),"",INDIRECT(CONCATENATE($B305,"!N23"))) -> 100 | M305: =IF(ISERROR(INDIRECT(CONCATENATE($B305,"!N21"))),"",INDIRECT(CONCATENATE($B305,"!N21"))) -> 0 | N305: =IF(ISERROR(INDIRECT(CONCATENATE($B305,"!O16"))),"",INDIRECT(CONCATENATE($B305,"!O16"))) -> 99.40110912 | O305: =IF(ISERROR(INDIRECT(CONCATENATE($B305,"!O23"))),"",INDIRECT(CONCATENATE($B305,"!O23"))) -> 100 | R305: =IF(ISERROR(INDIRECT(CONCATENATE($B305,"!O21"))),"",INDIRECT(CONCATENATE($B305,"!O21"))) -> 0 | S305: =IF(ISERROR(INDIRECT(CONCATENATE($B305,"!P16"))),"",INDIRECT(CONCATENATE($B305,"!P16"))) -> 100 | T305: =IF(ISERROR(INDIRECT(CONCATENATE($B305,"!P23"))),"",INDIRECT(CONCATENATE($B305,"!P23"))) -> 100 | W305: =IF(ISERROR(INDIRECT(CONCATENATE($B305,"!P21"))),"",INDIRECT(CONCATENATE($B305,"!P21"))) -> 0 | X305: =IF(ISERROR(INDIRECT(CONCATENATE($B305,"!Q16"))),"",INDIRECT(CONCATENATE($B305,"!Q16"))) -> 100 | Y305: =IF(ISERROR(INDIRECT(CONCATENATE($B305,"!Q23"))),"",INDIRECT(CONCATENATE($B305,"!Q23"))) -> 100 | AB305: =IF(ISERROR(INDIRECT(CONCATENATE($B305,"!Q221"))),"",INDIRECT(CONCATENATE($B305,"!Q21"))) -> 0
B306: MICS12 | C306: 2012 | D306: 98.10571568 | E306: 99.7232173 | H306: 0 | I306: 98.6942715 | J306: 99.27741863 | M306: 0 | N306: 99.00820629 | O306: 100 | R306: 0 | S306: 99.94784515 | T306: 100 | W306: 0 | X306: 99.55050808 | Y306: 100 | AB306: 0
B318: =CONCATENATE("Rural use of drinking water sources, ",C299,"–",C300) -> Rural use of drinking water sources, 2018–2020 | S318: Data points used for regression

Sheet Sanitation
B4: Summary of trends in use of sanitation facilities by wealth quintile (%)
B5: =IF(ISERROR(INDIRECT(CONCATENATE($B105,"!A2"))),"",INDIRECT(CONCATENATE($B105,"!A2"))) -> Belarus
B7: =B118 -> National use of sanitation facilities, 2000–2018 | J7: =B218 -> Urban use of sanitation facilities, 2000–2018 | R7: =B318 -> Rural use of sanitation facilities, 2000–2018
B31: =IF(ISERROR(INDIRECT(CONCATENATE($B105,"!A2"))),"",INDIRECT(CONCATENATE($B105,"!A2"))) -> Belarus | F31: Poorest | J31: Poor | N31: Middle | R31: Rich | V31: Richest
F32: Basic | G32: Limited | H32: Unimproved | I32: Open defecation | J32: Basic | K32: Limited | L32: Unimproved | M32: Open defecation | N32: Basic | O32: Limited | P32: Unimproved | Q32: Open defecation | R32: Basic | S32: Limited | T32: Unimproved | U32: Open defecation | V32: Basic | W32: Limited | X32: Unimproved | Y32: Open defecation
B33: NATIONAL | D33: Estimate | E33: =C99 -> 2000 | F33: =E99 -> 94.53847687 | G33: =F99 -> 4.795695024 | H33: 0.6658281075 | I33: 0 | J33: =J99 -> 94.7669355 | K33: =K99 -> 4.042544694 | L33: 1.190519803 | M33: 0 | N33: =O99 -> 93.69668158 | O33: =P99 -> 6.162965607 | P33: 0.1403528163 | Q33: 0 | R33: =T99 -> 96.01473894 | S33: =U99 -> 3.985261063 | T33: 0 | U33: 0 | V33: =Y99 -> 96.25152018 | W33: =Z99 -> 3.748479817 | X33: 0 | Y33: 0
E34: =C100 -> 2018 | F34: =E100 -> 88.81034253 | G34: 4.505121427 | H34: 6.684536039 | I34: 0 | J34: =J100 -> 93.9323248 | K34: 4.006942075 | L34: 2.060733127 | M34: 0 | N34: =O100 -> 93.39829 | O34: 6.14333869 | P34: 0.4583713132 | Q34: 0 | R34: =T100 -> 96.01473894 | S34: 3.985261063 | T34: 0 | U34: 0 | V34: =Y100 -> 96.25152018 | W34: 3.748479817 | X34: 0 | Y34: 0
B36: URBAN | D36: Estimate | E36: =C199 -> 2000 | F36: =E199 -> 90.19058053 | G36: =F199 -> 7.726711888 | H36: 2.082707579 | I36: 0 | J36: =J199 -> 91.65236595 | K36: =K199 -> 8.347634049 | L36: 0 | M36: 0 | N36: =O199 -> 95.68676511 | O36: =P199 -> 4.313234894 | P36: 0 | Q36: 0 | R36: =T199 -> 95.48631801 | S36: =U199 -> 4.513681989 | T36: 0 | U36: 0 | V36: =Y199 -> 96.40881852 | W36: =Z199 -> 3.591181476 | X36: 0 | Y36: 0
E37: =C200 -> 2018 | F37: =E200 -> 89.77063956 | G37: 7.690735149 | H37: 2.538625296 | I37: 0 | J37: =J200 -> 90.92233669 | K37: 8.281143489 | L37: 0.7965198199 | M37: 0 | N37: =O200 -> 95.68676511 | O37: 4.313234894 | P37: 0 | Q37: 0 | R37: =T200 -> 95.48631801 | S37: 4.513681989 | T37: 0 | U37: 0 | V37: =Y200 -> 96.40881852 | W37: 3.591181476 | X37: 0 | Y37: 0
B39: RURAL | D39: Estimate | E39: =C299 -> 2000 | F39: =E299 -> 97.69495055 | G39: =F299 -> 2.305049449 | H39: 0 | I39: 0 | J39: =J299 -> 96.13533121 | K39: =K299 -> 2.902756784 | L39: 0.9619120031 | M39: 0 | N39: =O299 -> 97.48987026 | O39: =P299 -> 2.510129741 | P39: 0 | Q39: 0 | R39: =T299 -> 96.88210014 | S39: =U299 -> 2.305397287 | T39: 0.8125025724 | U39: 0 | V39: =Y299 -> 98.85955533 | W39: =Z299 -> 0.7643072916 | X39: 0.3761373738 | Y39: 0
E40: =C300 -> 2018 | F40: =E300 -> 87.69819983 | G40: 2.069182553 | H40: 10.23261762 | I40: 0 | J40: =J300 -> 90.52576912 | K40: 2.733378947 | L40: 6.74085193 | M40: 0 | N40: =O300 -> 92.37009752 | O40: 2.378307904 | P40: 5.251594572 | Q40: 0 | R40: =T300 -> 95.31063253 | S40: 2.268002793 | T40: 2.421364676 | U40: 0 | V40: =Y300 -> 99.0551894 | W40: 0.7658197862 | X40: 0.1789908117 | Y40: 0
A97: NATIONAL | D97: Poorest | I97: Poor | N97: Middle | S97: Rich | X97: Richest
D98: Improved | E98: Basic | F98: Limited | G98: Unimproved | H98: Open defecation | I98: Improved | J98: Basic | K98: Limited | L98: Unimproved | M98: Open defecation | N98: Improved | O98: Basic | P98: Limited | Q98: Unimproved | R98: Open defecation | S98: Improved | T98: Basic | U98: Limited | V98: Unimproved | W98: Open defecation | X98: Improved | Y98: Basic | Z98: Limited | AA98: Unimproved | AB98: Open defecation
A99: Forecast period: | C99: =MinBase(C105:C116) -> 2000 | D99: =IF((D101+H101)>100,D101*100/(D101+H101),D101) -> 99.33417189 | E99: =D99*AVERAGEIF(E105:E116,">0")/100 -> 94.53847687 | F99: =D99*(100-AVERAGEIF(E105:E116,">0"))/100 -> 4.795695024 | G99: =100-(E99+F99+H99) -> 0.6658281075 | H99: =IF((D101+H101)>100,H101*100/(D101+H101),H101) -> 0 | I99: =IF((I101+M101)>100,I101*100/(I101+M101),I101) -> 98.8094802 | J99: =I99*AVERAGEIF(J105:J116,">0")/100 -> 94.7669355 | K99: =I99*(100-AVERAGEIF(J105:J116,">0"))/100 -> 4.042544694 | L99: =100-(J99+K99+M99) -> 1.190519803 | M99: =IF((I101+M101)>100,M101*100/(I101+M101),M101) -> 0 | N99: =IF((N101+R101)>100,N101*100/(N101+R101),N101) -> 99.85964718 | O99: =N99*AVERAGEIF(O105:O116,">0")/100 -> 93.69668158 | P99: =N99*(100-AVERAGEIF(O105:O116,">0"))/100 -> 6.162965607 | Q99: =100-(O99+P99+R99) -> 0.1403528163 | R99: =IF((N101+R101)>100,R101*100/(N101+R101),R101) -> 0 | S99: =IF((S101+W101)>100,S101*100/(S101+W101),S101) -> 100 | T99: =S99*AVERAGEIF(T105:T116,">0")/100 -> 96.01473894 | U99: =S99*(100-AVERAGEIF(T105:T116,">0"))/100 -> 3.985261063 | V99: =100-(T99+U99+W99) -> 0 | W99: =IF((S101+W101)>100,W101*100/(S101+W101),W101) -> 0 | X99: =IF((X101+AB101)>100,X101*100/(X101+AB101),X101) -> 100 | Y99: =X99*AVERAGEIF(Y105:Y116,">0")/100 -> 96.25152018 | Z99: =X99*(100-AVERAGEIF(Y105:Y116,">0"))/100 -> 3.748479817 | AA99: =100-(Y99+Z99+AB99) -> 0 | AB99: =IF((X101+AB101)>100,AB101*100/(X101+AB101),AB101) -> 0
C100: =MaxTarget(C105:C116) -> 2018 | D100: =IF((D102+H102)>100,D102*100/(D102+H102),D102) -> 93.31546396 | E100: =D100*AVERAGEIF(E105:E116,">0")/100 -> 88.81034253 | F100: =D100*(100-AVERAGEIF(E105:E116,">0"))/100 -> 4.505121427 | G100: =100-(E100+F100+H100) -> 6.684536039 | H100: =IF((D102+H102)>100,H102*100/(D102+H102),H102) -> 0 | I100: =IF((I102+M102)>100,I102*100/(I102+M102),I102) -> 97.93926687 | J100: =I100*AVERAGEIF(J105:J116,">0")/100 -> 93.9323248 | K100: =I100*(100-AVERAGEIF(J105:J116,">0"))/100 -> 4.006942075 | L100: =100-(J100+K100+M100) -> 2.060733127 | M100: =IF((I102+M102)>100,M102*100/(I102+M102),M102) -> 0 | N100: =IF((N102+R102)>100,N102*100/(N102+R102),N102) -> 99.54162869 | O100: =N100*AVERAGEIF(O105:O116,">0")/100 -> 93.39829 | P100: =N100*(100-AVERAGEIF(O105:O116,">0"))/100 -> 6.14333869 | Q100: =100-(O100+P100+R100) -> 0.4583713132 | R100: =IF((N102+R102)>100,R102*100/(N102+R102),R102) -> 0 | S100: =IF((S102+W102)>100,S102*100/(S102+W102),S102) -> 100 | T100: =S100*AVERAGEIF(T105:T116,">0")/100 -> 96.01473894 | U100: =S100*(100-AVERAGEIF(T105:T116,">0"))/100 -> 3.985261063 | V100: =100-(T100+U100+W100) -> 0 | W100: =IF((S102+W102)>100,W102*100/(S102+W102),W102) -> 0 | X100: =IF((X102+AB102)>100,X102*100/(X102+AB102),X102) -> 100 | Y100: =X100*AVERAGEIF(Y105:Y116,">0")/100 -> 96.25152018 | Z100: =X100*(100-AVERAGEIF(Y105:Y116,">0"))/100 -> 3.748479817 | AA100: =100-(Y100+Z100+AB100) -> 0 | AB100: =IF((X102+AB102)>100,AB102*100/(X102+AB102),AB102) -> 0
A101: Regression period: | C101: =MinRegYear(C99,C105:C116) -> 2003 | D101: =IF(MAX(C105:C116)-MIN(C105:C116)<5,AVERAGEIF(C105:C116,">0",D105:D116), IF(FORECAST($C101,D$105:D$116,$C$105:$C$116)<0,0, IF(FORECAST($C101,D$105:D$116,$C$105:$C$116)>100,100, FORECAST($C101,D$105:D$116,$C$105:$C$116)))) -> 99.33417189 | H101: =IF(MAX(C105:C116)-MIN(C105:C116)<5,AVERAGEIF(C105:C116,">0",H105:H116), IF(FORECAST($C101,H$105:H$116,$C$105:$C$116)<0,0, IF(FORECAST($C101,H$105:H$116,$C$105:$C$116)>100,100, FORECAST($C101,H$105:H$116,$C$105:$C$116)))) -> 0 | I101: =IF(MAX(C105:C116)-MIN(C105:C116)<5,AVERAGEIF(C105:C116,">0",I105:I116), IF(FORECAST($C101,I$105:I$116,$C$105:$C$116)<0,0, IF(FORECAST($C101,I$105:I$116,$C$105:$C$116)>100,100, FORECAST($C101,I$105:I$116,$C$105:$C$116)))) -> 98.8094802 | M101: =IF(MAX(C105:C116)-MIN(C105:C116)<5,AVERAGEIF(C105:C116,">0",M105:M116), IF(FORECAST($C101,M$105:M$116,$C$105:$C$116)<0,0, IF(FORECAST($C101,M$105:M$116,$C$105:$C$116)>100,100, FORECAST($C101,M$105:M$116,$C$105:$C$116)))) -> 0 | N101: =IF(MAX(C105:C116)-MIN(C105:C116)<5,AVERAGEIF(C105:C116,">0",N105:N116), IF(FORECAST($C101,N$105:N$116,$C$105:$C$116)<0,0, IF(FORECAST($C101,N$105:N$116,$C$105:$C$116)>100,100, FORECAST($C101,N$105:N$116,$C$105:$C$116)))) -> 99.85964718 | R101: =IF(MAX(C105:C116)-MIN(C105:C116)<5,AVERAGEIF(C105:C116,">0",R105:R116), IF(FORECAST($C101,R$105:R$116,$C$105:$C$116)<0,0, IF(FORECAST($C101,R$105:R$116,$C$105:$C$116)>100,100, FORECAST($C101,R$105:R$116,$C$105:$C$116)))) -> 0 | S101: =IF(MAX(C105:C116)-MIN(C105:C116)<5,AVERAGEIF(C105:C116,">0",S105:S116), IF(FORECAST($C101,S$105:S$116,$C$105:$C$116)<0,0, IF(FORECAST($C101,S$105:S$116,$C$105:$C$116)>100,100, FORECAST($C101,S$105:S$116,$C$105:$C$116)))) -> 100 | W101: =IF(MAX(C105:C116)-MIN(C105:C116)<5,AVERAGEIF(C105:C116,">0",W105:W116), IF(FORECAST($C101,W$105:W$116,$C$105:$C$116)<0,0, IF(FORECAST($C101,W$105:W$116,$C$105:$C$116)>100,100, FORECAST($C101,W$105:W$116,$C$105:$C$116)))) -> 0 | X101: =IF(MAX(C105:C116)-MIN(C105:C116)<5,AVERAGEIF(C105:C116,">0",X105:X116), IF(FORECAST($C101,X$105:X$116,$C$105:$C$116)<0,0, IF(FORECAST($C101,X$105:X$116,$C$105:$C$116)>100,100, FORECAST($C101,X$105:X$116,$C$105:$C$116)))) -> 100 | AB101: =IF(MAX(C105:C116)-MIN(C105:C116)<5,AVERAGEIF(C105:C116,">0",AB105:AB116), IF(FORECAST($C101,AB$105:AB$116,$C$105:$C$116)<0,0, IF(FORECAST($C101,AB$105:AB$116,$C$105:$C$116)>100,100, FORECAST($C101,AB$105:AB$116,$C$105:$C$116)))) -> 0
C102: =MaxRegYear(C100,C105:C116) -> 2014 | D102: =IF(MAX(C105:C116)-MIN(C105:C116)<5,AVERAGEIF(C105:C116,">0",D105:D116), IF(FORECAST($C102,D$105:D$116,$C$105:$C$116)<0,0, IF(FORECAST($C102,D$105:D$116,$C$105:$C$116)>100,100, FORECAST($C102,D$105:D$116,$C$105:$C$116)))) -> 93.31546396 | H102: =IF(MAX(C105:C116)-MIN(C105:C116)<5,AVERAGEIF(C105:C116,">0",H105:H116), IF(FORECAST($C102,H$105:H$116,$C$105:$C$116)<0,0, IF(FORECAST($C102,H$105:H$116,$C$105:$C$116)>100,100, FORECAST($C102,H$105:H$116,$C$105:$C$116)))) -> 0 | I102: =IF(MAX(C105:C116)-MIN(C105:C116)<5,AVERAGEIF(C105:C116,">0",I105:I116), IF(FORECAST($C102,I$105:I$116,$C$105:$C$116)<0,0, IF(FORECAST($C102,I$105:I$116,$C$105:$C$116)>100,100, FORECAST($C102,I$105:I$116,$C$105:$C$116)))) -> 97.93926687 | M102: =IF(MAX(C105:C116)-MIN(C105:C116)<5,AVERAGEIF(C105:C116,">0",M105:M116), IF(FORECAST($C102,M$105:M$116,$C$105:$C$116)<0,0, IF(FORECAST($C102,M$105:M$116,$C$105:$C$116)>100,100, FORECAST($C102,M$105:M$116,$C$105:$C$116)))) -> 0 | N102: =IF(MAX(C105:C116)-MIN(C105:C116)<5,AVERAGEIF(C105:C116,">0",N105:N116), IF(FORECAST($C102,N$105:N$116,$C$105:$C$116)<0,0, IF(FORECAST($C102,N$105:N$116,$C$105:$C$116)>100,100, FORECAST($C102,N$105:N$116,$C$105:$C$116)))) -> 99.54162869 | R102: =IF(MAX(C105:C116)-MIN(C105:C116)<5,AVERAGEIF(C105:C116,">0",R105:R116), IF(FORECAST($C102,R$105:R$116,$C$105:$C$116)<0,0, IF(FORECAST($C102,R$105:R$116,$C$105:$C$116)>100,100, FORECAST($C102,R$105:R$116,$C$105:$C$116)))) -> 0 | S102: =IF(MAX(C105:C116)-MIN(C105:C116)<5,AVERAGEIF(C105:C116,">0",S105:S116), IF(FORECAST($C102,S$105:S$116,$C$105:$C$116)<0,0, IF(FORECAST($C102,S$105:S$116,$C$105:$C$116)>100,100, FORECAST($C102,S$105:S$116,$C$105:$C$116)))) -> 100 | W102: =IF(MAX(C105:C116)-MIN(C105:C116)<5,AVERAGEIF(C105:C116,">0",W105:W116), IF(FORECAST($C102,W$105:W$116,$C$105:$C$116)<0,0, IF(FORECAST($C102,W$105:W$116,$C$105:$C$116)>100,100, FORECAST($C102,W$105:W$116,$C$105:$C$116)))) -> 0 | X102: =IF(MAX(C105:C116)-MIN(C105:C116)<5,AVERAGEIF(C105:C116,">0",X105:X116), IF(FORECAST($C102,X$105:X$116,$C$105:$C$116)<0,0, IF(FORECAST($C102,X$105:X$116,$C$105:$C$116)>100,100, FORECAST($C102,X$105:X$116,$C$105:$C$116)))) -> 100 | AB102: =IF(MAX(C105:C116)-MIN(C105:C116)<5,AVERAGEIF(C105:C116,">0",AB105:AB116), IF(FORECAST($C102,AB$105:AB$116,$C$105:$C$116)<0,0, IF(FORECAST($C102,AB$105:AB$116,$C$105:$C$116)>100,100, FORECAST($C102,AB$105:AB$116,$C$105:$C$116)))) -> 0
B104: Survey | C104: Year | D104: Improved | E104: Not shared | H104: Open defecation | I104: Improved | J104: Not shared | M104: Open defecation | N104: Improved | O104: Not shared | R104: Open defecation | S104: Improved | T104: Not shared | W104: Open defecation | X104: Improved | Y104: Not shared | AB104: Open defecation
B105: MICS05 | C105: 2005 | D105: =IF(ISERROR(INDIRECT(CONCATENATE($B105,"!C122"))),"",INDIRECT(CONCATENATE($B105,"!C122"))) -> 98.23986136 | E105: =IF(ISERROR(INDIRECT(CONCATENATE($B105,"!C129"))),"",INDIRECT(CONCATENATE($B105,"!C129"))) -> 94.06485067 | H105: =IF(ISERROR(INDIRECT(CONCATENATE($B105,"!C127"))),"",INDIRECT(CONCATENATE($B105,"!C127"))) -> 0 | I105: =IF(ISERROR(INDIRECT(CONCATENATE($B105,"!D122"))),"",INDIRECT(CONCATENATE($B105,"!D122"))) -> 98.65125959 | J105: =IF(ISERROR(INDIRECT(CONCATENATE($B105,"!D129"))),"",INDIRECT(CONCATENATE($B105,"!D129"))) -> 95.30279892 | M105: =IF(ISERROR(INDIRECT(CONCATENATE($B105,"!D127"))),"",INDIRECT(CONCATENATE($B105,"!D127"))) -> 0 | N105: =IF(ISERROR(INDIRECT(CONCATENATE($B105,"!E122"))),"",INDIRECT(CONCATENATE($B105,"!E122"))) -> 99.80182564 | O105: =IF(ISERROR(INDIRECT(CONCATENATE($B105,"!E129"))),"",INDIRECT(CONCATENATE($B105,"!E129"))) -> 91.26561315 | R105: =IF(ISERROR(INDIRECT(CONCATENATE($B105,"!E127"))),"",INDIRECT(CONCATENATE($B105,"!E127"))) -> 0 | S105: =IF(ISERROR(INDIRECT(CONCATENATE($B105,"!F122"))),"",INDIRECT(CONCATENATE($B105,"!F122"))) -> 100 | T105: =IF(ISERROR(INDIRECT(CONCATENATE($B105,"!F129"))),"",INDIRECT(CONCATENATE($B105,"!F129"))) -> 94.12108548 | W105: =IF(ISERROR(INDIRECT(CONCATENATE($B105,"!F127"))),"",INDIRECT(CONCATENATE($B105,"!F127"))) -> 0 | X105: =IF(ISERROR(INDIRECT(CONCATENATE($B105,"!G122"))),"",INDIRECT(CONCATENATE($B105,"!G122"))) -> 100 | Y105: =IF(ISERROR(INDIRECT(CONCATENATE($B105,"!G129"))),"",INDIRECT(CONCATENATE($B105,"!G129"))) -> 93.44143185 | AB105: =IF(ISERROR(INDIRECT(CONCATENATE($B105,"!G2127"))),"",INDIRECT(CONCATENATE($B105,"!G127"))) -> 0
B106: MICS12 | C106: 2012 | D106: 94.40977449 | E106: 96.27946905 | H106: 0 | I106: 98.09748748 | J106: 96.51469736 | M106: 0 | N106: 99.59945023 | O106: 96.39113153 | R106: 0 | S106: 100 | T106: 97.9083924 | W106: 0 | X106: 100 | Y106: 99.06160851 | AB106: 0
B118: =CONCATENATE("National use of sanitation facilities, ",C99,"–",C100) -> National use of sanitation facilities, 2000–2018 | S118: Data points used for regression
A197: URBAN | D197: Poorest | I197: Poor | N197: Middle | S197: Rich | X197: Richest
D198: Improved | E198: Basic | F198: Limited | G198: Unimproved | H198: Open defecation | I198: Improved | J198: Basic | K198: Limited | L198: Unimproved | M198: Open defecation | N198: Improved | O198: Basic | P198: Limited | Q198: Unimproved | R198: Open defecation | S198: Improved | T198: Basic | U198: Limited | V198: Unimproved | W198: Open defecation | X198: Improved | Y198: Basic | Z198: Limited | AA198: Unimproved | AB198: Open defecation
A199: Forecast period: | C199: =MinBase(C205:C216) -> 2000 | D199: =IF((D201+H201)>100,D201*100/(D201+H201),D201) -> 97.91729242 | E199: =D199*AVERAGEIF(E205:E216,">0")/100 -> 90.19058053 | F199: =D199*(100-AVERAGEIF(E205:E216,">0"))/100 -> 7.726711888 | G199: =100-(E199+F199+H199) -> 2.082707579 | H199: =IF((D201+H201)>100,H201*100/(D201+H201),H201) -> 0 | I199: =IF((I201+M201)>100,I201*100/(I201+M201),I201) -> 100 | J199: =I199*AVERAGEIF(J205:J216,">0")/100 -> 91.65236595 | K199: =I199*(100-AVERAGEIF(J205:J216,">0"))/100 -> 8.347634049 | L199: =100-(J199+K199+M199) -> 0 | M199: =IF((I201+M201)>100,M201*100/(I201+M201),M201) -> 0 | N199: =IF((N201+R201)>100,N201*100/(N201+R201),N201) -> 100 | O199: =N199*AVERAGEIF(O205:O216,">0")/100 -> 95.68676511 | P199: =N199*(100-AVERAGEIF(O205:O216,">0"))/100 -> 4.313234894 | Q199: =100-(O199+P199+R199) -> 0 | R199: =IF((N201+R201)>100,R201*100/(N201+R201),R201) -> 0 | S199: =IF((S201+W201)>100,S201*100/(S201+W201),S201) -> 100 | T199: =S199*AVERAGEIF(T205:T216,">0")/100 -> 95.48631801 | U199: =S199*(100-AVERAGEIF(T205:T216,">0"))/100 -> 4.513681989 | V199: =100-(T199+U199+W199) -> 0 | W199: =IF((S201+W201)>100,W201*100/(S201+W201),W201) -> 0 | X199: =IF((X201+AB201)>100,X201*100/(X201+AB201),X201) -> 100 | Y199: =X199*AVERAGEIF(Y205:Y216,">0")/100 -> 96.40881852 | Z199: =X199*(100-AVERAGEIF(Y205:Y216,">0"))/100 -> 3.591181476 | AA199: =100-(Y199+Z199+AB199) -> 0 | AB199: =IF((X201+AB201)>100,AB201*100/(X201+AB201),AB201) -> 0
C200: =MaxTarget(C205:C216) -> 2018 | D200: =IF((D202+H202)>100,D202*100/(D202+H202),D202) -> 97.4613747 | E200: =D200*AVERAGEIF(E205:E216,">0")/100 -> 89.77063956 | F200: =D200*(100-AVERAGEIF(E205:E216,">0"))/100 -> 7.690735149 | G200: =100-(E200+F200+H200) -> 2.538625296 | H200: =IF((D202+H202)>100,H202*100/(D202+H202),H202) -> 0 | I200: =IF((I202+M202)>100,I202*100/(I202+M202),I202) -> 99.20348018 | J200: =I200*AVERAGEIF(J205:J216,">0")/100 -> 90.92233669 | K200: =I200*(100-AVERAGEIF(J205:J216,">0"))/100 -> 8.281143489 | L200: =100-(J200+K200+M200) -> 0.7965198199 | M200: =IF((I202+M202)>100,M202*100/(I202+M202),M202) -> 0 | N200: =IF((N202+R202)>100,N202*100/(N202+R202),N202) -> 100 | O200: =N200*AVERAGEIF(O205:O216,">0")/100 -> 95.68676511 | P200: =N200*(100-AVERAGEIF(O205:O216,">0"))/100 -> 4.313234894 | Q200: =100-(O200+P200+R200) -> 0 | R200: =IF((N202+R202)>100,R202*100/(N202+R202),R202) -> 0 | S200: =IF((S202+W202)>100,S202*100/(S202+W202),S202) -> 100 | T200: =S200*AVERAGEIF(T205:T216,">0")/100 -> 95.48631801 | U200: =S200*(100-AVERAGEIF(T205:T216,">0"))/100 -> 4.513681989 | V200: =100-(T200+U200+W200) -> 0 | W200: =IF((S202+W202)>100,W202*100/(S202+W202),W202) -> 0 | X200: =IF((X202+AB202)>100,X202*100/(X202+AB202),X202) -> 100 | Y200: =X200*AVERAGEIF(Y205:Y216,">0")/100 -> 96.40881852 | Z200: =X200*(100-AVERAGEIF(Y205:Y216,">0"))/100 -> 3.591181476 | AA200: =100-(Y200+Z200+AB200) -> 0 | AB200: =IF((X202+AB202)>100,AB202*100/(X202+AB202),AB202) -> 0
A201: Regression period: | C201: =MinRegYear(C199,C205:C216) -> 2003 | D201: =IF(MAX(C205:C216)-MIN(C205:C216)<5,AVERAGEIF(C205:C216,">0",D205:D216), IF(FORECAST($C201,D$205:D$216,$C$205:$C$216)<0,0, IF(FORECAST($C201,D$205:D$216,$C$205:$C$216)>100,100, FORECAST($C201,D$205:D$216,$C$205:$C$216)))) -> 97.91729242 | H201: =IF(MAX(C205:C216)-MIN(C205:C216)<5,AVERAGEIF(C205:C216,">0",H205:H216), IF(FORECAST($C201,H$205:H$216,$C$205:$C$216)<0,0, IF(FORECAST($C201,H$205:H$216,$C$205:$C$216)>100,100, FORECAST($C201,H$205:H$216,$C$205:$C$216)))) -> 0 | I201: =IF(MAX(C205:C216)-MIN(C205:C216)<5,AVERAGEIF(C205:C216,">0",I205:I216), IF(FORECAST($C201,I$205:I$216,$C$205:$C$216)<0,0, IF(FORECAST($C201,I$205:I$216,$C$205:$C$216)>100,100, FORECAST($C201,I$205:I$216,$C$205:$C$216)))) -> 100 | M201: =IF(MAX(C205:C216)-MIN(C205:C216)<5,AVERAGEIF(C205:C216,">0",M205:M216), IF(FORECAST($C201,M$205:M$216,$C$205:$C$216)<0,0, IF(FORECAST($C201,M$205:M$216,$C$205:$C$216)>100,100, FORECAST($C201,M$205:M$216,$C$205:$C$216)))) -> 0 | N201: =IF(MAX(C205:C216)-MIN(C205:C216)<5,AVERAGEIF(C205:C216,">0",N205:N216), IF(FORECAST($C201,N$205:N$216,$C$205:$C$216)<0,0, IF(FORECAST($C201,N$205:N$216,$C$205:$C$216)>100,100, FORECAST($C201,N$205:N$216,$C$205:$C$216)))) -> 100 | R201: =IF(MAX(C205:C216)-MIN(C205:C216)<5,AVERAGEIF(C205:C216,">0",R205:R216), IF(FORECAST($C201,R$205:R$216,$C$205:$C$216)<0,0, IF(FORECAST($C201,R$205:R$216,$C$205:$C$216)>100,100, FORECAST($C201,R$205:R$216,$C$205:$C$216)))) -> 0 | S201: =IF(MAX(C205:C216)-MIN(C205:C216)<5,AVERAGEIF(C205:C216,">0",S205:S216), IF(FORECAST($C201,S$205:S$216,$C$205:$C$216)<0,0, IF(FORECAST($C201,S$205:S$216,$C$205:$C$216)>100,100, FORECAST($C201,S$205:S$216,$C$205:$C$216)))) -> 100 | W201: =IF(MAX(C205:C216)-MIN(C205:C216)<5,AVERAGEIF(C205:C216,">0",W205:W216), IF(FORECAST($C201,W$205:W$216,$C$205:$C$216)<0,0, IF(FORECAST($C201,W$205:W$216,$C$205:$C$216)>100,100, FORECAST($C201,W$205:W$216,$C$205:$C$216)))) -> 0 | X201: =IF(MAX(C205:C216)-MIN(C205:C216)<5,AVERAGEIF(C205:C216,">0",X205:X216), IF(FORECAST($C201,X$205:X$216,$C$205:$C$216)<0,0, IF(FORECAST($C201,X$205:X$216,$C$205:$C$216)>100,100, FORECAST($C201,X$205:X$216,$C$205:$C$216)))) -> 100 | AB201: =IF(MAX(C205:C216)-MIN(C205:C216)<5,AVERAGEIF(C205:C216,">0",AB205:AB216), IF(FORECAST($C201,AB$205:AB$216,$C$205:$C$216)<0,0, IF(FORECAST($C201,AB$205:AB$216,$C$205:$C$216)>100,100, FORECAST($C201,AB$205:AB$216,$C$205:$C$216)))) -> 0
C202: =MaxRegYear(C200,C205:C216) -> 2014 | D202: =IF(MAX(C205:C216)-MIN(C205:C216)<5,AVERAGEIF(C205:C216,">0",D205:D216), IF(FORECAST($C202,D$205:D$216,$C$205:$C$216)<0,0, IF(FORECAST($C202,D$205:D$216,$C$205:$C$216)>100,100, FORECAST($C202,D$205:D$216,$C$205:$C$216)))) -> 97.4613747 | H202: =IF(MAX(C205:C216)-MIN(C205:C216)<5,AVERAGEIF(C205:C216,">0",H205:H216), IF(FORECAST($C202,H$205:H$216,$C$205:$C$216)<0,0, IF(FORECAST($C202,H$205:H$216,$C$205:$C$216)>100,100, FORECAST($C202,H$205:H$216,$C$205:$C$216)))) -> 0 | I202: =IF(MAX(C205:C216)-MIN(C205:C216)<5,AVERAGEIF(C205:C216,">0",I205:I216), IF(FORECAST($C202,I$205:I$216,$C$205:$C$216)<0,0, IF(FORECAST($C202,I$205:I$216,$C$205:$C$216)>100,100, FORECAST($C202,I$205:I$216,$C$205:$C$216)))) -> 99.20348018 | M202: =IF(MAX(C205:C216)-MIN(C205:C216)<5,AVERAGEIF(C205:C216,">0",M205:M216), IF(FORECAST($C202,M$205:M$216,$C$205:$C$216)<0,0, IF(FORECAST($C202,M$205:M$216,$C$205:$C$216)>100,100, FORECAST($C202,M$205:M$216,$C$205:$C$216)))) -> 0 | N202: =IF(MAX(C205:C216)-MIN(C205:C216)<5,AVERAGEIF(C205:C216,">0",N205:N216), IF(FORECAST($C202,N$205:N$216,$C$205:$C$216)<0,0, IF(FORECAST($C202,N$205:N$216,$C$205:$C$216)>100,100, FORECAST($C202,N$205:N$216,$C$205:$C$216)))) -> 100 | R202: =IF(MAX(C205:C216)-MIN(C205:C216)<5,AVERAGEIF(C205:C216,">0",R205:R216), IF(FORECAST($C202,R$205:R$216,$C$205:$C$216)<0,0, IF(FORECAST($C202,R$205:R$216,$C$205:$C$216)>100,100, FORECAST($C202,R$205:R$216,$C$205:$C$216)))) -> 0 | S202: =IF(MAX(C205:C216)-MIN(C205:C216)<5,AVERAGEIF(C205:C216,">0",S205:S216), IF(FORECAST($C202,S$205:S$216,$C$205:$C$216)<0,0, IF(FORECAST($C202,S$205:S$216,$C$205:$C$216)>100,100, FORECAST($C202,S$205:S$216,$C$205:$C$216)))) -> 100 | W202: =IF(MAX(C205:C216)-MIN(C205:C216)<5,AVERAGEIF(C205:C216,">0",W205:W216), IF(FORECAST($C202,W$205:W$216,$C$205:$C$216)<0,0, IF(FORECAST($C202,W$205:W$216,$C$205:$C$216)>100,100, FORECAST($C202,W$205:W$216,$C$205:$C$216)))) -> 0 | X202: =IF(MAX(C205:C216)-MIN(C205:C216)<5,AVERAGEIF(C205:C216,">0",X205:X216), IF(FORECAST($C202,X$205:X$216,$C$205:$C$216)<0,0, IF(FORECAST($C202,X$205:X$216,$C$205:$C$216)>100,100, FORECAST($C202,X$205:X$216,$C$205:$C$216)))) -> 100 | AB202: =IF(MAX(C205:C216)-MIN(C205:C216)<5,AVERAGEIF(C205:C216,">0",AB205:AB216), IF(FORECAST($C202,AB$205:AB$216,$C$205:$C$216)<0,0, IF(FORECAST($C202,AB$205:AB$216,$C$205:$C$216)>100,100, FORECAST($C202,AB$205:AB$216,$C$205:$C$216)))) -> 0
B204: Survey | C204: Year | D204: Improved | E204: Not shared | H204: Open defecation | I204: Improved | J204: Not shared | M204: Open defecation | N204: Improved | O204: Not shared | R204: Open defecation | S204: Improved | T204: Not shared | W204: Open defecation | X204: Improved | Y204: Not shared | AB204: Open defecation
B205: MICS05 | C205: 2005 | D205: =IF(ISERROR(INDIRECT(CONCATENATE($B205,"!H122"))),"",INDIRECT(CONCATENATE($B205,"!H122"))) -> 97.83439829 | E205: =IF(ISERROR(INDIRECT(CONCATENATE($B205,"!H129"))),"",INDIRECT(CONCATENATE($B205,"!H129"))) -> 89.64042247 | H205: =IF(ISERROR(INDIRECT(CONCATENATE($B205,"!H127"))),"",INDIRECT(CONCATENATE($B205,"!H127"))) -> 0 | I205: =IF(ISERROR(INDIRECT(CONCATENATE($B205,"!I122"))),"",INDIRECT(CONCATENATE($B205,"!I122"))) -> 99.87449966 | J205: =IF(ISERROR(INDIRECT(CONCATENATE($B205,"!I129"))),"",INDIRECT(CONCATENATE($B205,"!I129"))) -> 87.79184282 | M205: =IF(ISERROR(INDIRECT(CONCATENATE($B205,"!I127"))),"",INDIRECT(CONCATENATE($B205,"!I127"))) -> 0 | N205: =IF(ISERROR(INDIRECT(CONCATENATE($B205,"!J122"))),"",INDIRECT(CONCATENATE($B205,"!J122"))) -> 100 | O205: =IF(ISERROR(INDIRECT(CONCATENATE($B205,"!J129"))),"",INDIRECT(CONCATENATE($B205,"!J129"))) -> 94.39008253 | R205: =IF(ISERROR(INDIRECT(CONCATENATE($B205,"!J127"))),"",INDIRECT(CONCATENATE($B205,"!J127"))) -> 0 | S205: =IF(ISERROR(INDIRECT(CONCATENATE($B205,"!K122"))),"",INDIRECT(CONCATENATE($B205,"!K122"))) -> 100 | T205: =IF(ISERROR(INDIRECT(CONCATENATE($B205,"!K129"))),"",INDIRECT(CONCATENATE($B205,"!K129"))) -> 92.62110607 | W205: =IF(ISERROR(INDIRECT(CONCATENATE($B205,"!K127"))),"",INDIRECT(CONCATENATE($B205,"!K127"))) -> 0 | X205: =IF(ISERROR(INDIRECT(CONCATENATE($B205,"!L122"))),"",INDIRECT(CONCATENATE($B205,"!L122"))) -> 100 | Y205: =IF(ISERROR(INDIRECT(CONCATENATE($B205,"!L129"))),"",INDIRECT(CONCATENATE($B205,"!L129"))) -> 93.70260033 | AB205: =IF(ISERROR(INDIRECT(CONCATENATE($B205,"!L2127"))),"",INDIRECT(CONCATENATE($B205,"!L127"))) -> 0
B206: MICS12 | C206: 2012 | D206: 97.54426883 | E206: 94.57745836 | H206: 0 | I206: 99.35259562 | J206: 95.51288908 | M206: 0 | N206: 100 | O206: 96.98344768 | R206: 0 | S206: 100 | T206: 98.35152995 | W206: 0 | X206: 100 | Y206: 99.11503672 | AB206: 0
B218: =CONCATENATE("Urban use of sanitation facilities, ",C199,"–",C200) -> Urban use of sanitation facilities, 2000–2018 | S218: Data points used for regression
A297: RURAL | D297: Poorest | I297: Poor | N297: Middle | S297: Rich | X297: Richest
D298: Improved | E298: Basic | F298: Limited | G298: Unimproved | H298: Open defecation | I298: Improved | J298: Basic | K298: Limited | L298: Unimproved | M298: Open defecation | N298: Improved | O298: Basic | P298: Limited | Q298: Unimproved | R298: Open defecation | S298: Improved | T298: Basic | U298: Limited | V298: Unimproved | W298: Open defecation | X298: Improved | Y298: Basic | Z298: Limited | AA298: Unimproved | AB298: Open defecation
A299: Forecast period: | C299: =MinBase(C305:C316) -> 2000 | D299: =IF((D301+H301)>100,D301*100/(D301+H301),D301) -> 100 | E299: =D299*AVERAGEIF(E305:E316,">0")/100 -> 97.69495055 | F299: =D299*(100-AVERAGEIF(E305:E316,">0"))/100 -> 2.305049449 | G299: =100-(E299+F299+H299) -> 0 | H299: =IF((D301+H301)>100,H301*100/(D301+H301),H301) -> 0 | I299: =IF((I301+M301)>100,I301*100/(I301+M301),I301) -> 99.038088 | J299: =I299*AVERAGEIF(J305:J316,">0")/100 -> 96.13533121 | K299: =I299*(100-AVERAGEIF(J305:J316,">0"))/100 -> 2.902756784 | L299: =100-(J299+K299+M299) -> 0.9619120031 | M299: =IF((I301+M301)>100,M301*100/(I301+M301),M301) -> 0 | N299: =IF((N301+R301)>100,N301*100/(N301+R301),N301) -> 100 | O299: =N299*AVERAGEIF(O305:O316,">0")/100 -> 97.48987026 | P299: =N299*(100-AVERAGEIF(O305:O316,">0"))/100 -> 2.510129741 | Q299: =100-(O299+P299+R299) -> 0 | R299: =IF((N301+R301)>100,R301*100/(N301+R301),R301) -> 0 | S299: =IF((S301+W301)>100,S301*100/(S301+W301),S301) -> 99.18749743 | T299: =S299*AVERAGEIF(T305:T316,">0")/100 -> 96.88210014 | U299: =S299*(100-AVERAGEIF(T305:T316,">0"))/100 -> 2.305397287 | V299: =100-(T299+U299+W299) -> 0.8125025724 | W299: =IF((S301+W301)>100,W301*100/(S301+W301),W301) -> 0 | X299: =IF((X301+AB301)>100,X301*100/(X301+AB301),X301) -> 99.62386263 | Y299: =X299*AVERAGEIF(Y305:Y316,">0")/100 -> 98.85955533 | Z299: =X299*(100-AVERAGEIF(Y305:Y316,">0"))/100 -> 0.7643072916 | AA299: =100-(Y299+Z299+AB299) -> 0.3761373738 | AB299: =IF((X301+AB301)>100,AB301*100/(X301+AB301),AB301) -> 0
C300: =MaxTarget(C305:C316) -> 2018 | D300: =IF((D302+H302)>100,D302*100/(D302+H302),D302) -> 89.76738238 | E300: =D300*AVERAGEIF(E305:E316,">0")/100 -> 87.69819983 | F300: =D300*(100-AVERAGEIF(E305:E316,">0"))/100 -> 2.069182553 | G300: =100-(E300+F300+H300) -> 10.23261762 | H300: =IF((D302+H302)>100,H302*100/(D302+H302),H302) -> 0 | I300: =IF((I302+M302)>100,I302*100/(I302+M302),I302) -> 93.25914807 | J300: =I300*AVERAGEIF(J305:J316,">0")/100 -> 90.52576912 | K300: =I300*(100-AVERAGEIF(J305:J316,">0"))/100 -> 2.733378947 | L300: =100-(J300+K300+M300) -> 6.74085193 | M300: =IF((I302+M302)>100,M302*100/(I302+M302),M302) -> 0 | N300: =IF((N302+R302)>100,N302*100/(N302+R302),N302) -> 94.74840543 | O300: =N300*AVERAGEIF(O305:O316,">0")/100 -> 92.37009752 | P300: =N300*(100-AVERAGEIF(O305:O316,">0"))/100 -> 2.378307904 | Q300: =100-(O300+P300+R300) -> 5.251594572 | R300: =IF((N302+R302)>100,R302*100/(N302+R302),R302) -> 0 | S300: =IF((S302+W302)>100,S302*100/(S302+W302),S302) -> 97.57863532 | T300: =S300*AVERAGEIF(T305:T316,">0")/100 -> 95.31063253 | U300: =S300*(100-AVERAGEIF(T305:T316,">0"))/100 -> 2.268002793 | V300: =100-(T300+U300+W300) -> 2.421364676 | W300: =IF((S302+W302)>100,W302*100/(S302+W302),W302) -> 0 | X300: =IF((X302+AB302)>100,X302*100/(X302+AB302),X302) -> 99.82100919 | Y300: =X300*AVERAGEIF(Y305:Y316,">0")/100 -> 99.0551894 | Z300: =X300*(100-AVERAGEIF(Y305:Y316,">0"))/100 -> 0.7658197862 | AA300: =100-(Y300+Z300+AB300) -> 0.1789908117 | AB300: =IF((X302+AB302)>100,AB302*100/(X302+AB302),AB302) -> 0
A301: Regression period: | C301: =MinRegYear(C299,C305:C316) -> 2003 | D301: =IF(MAX(C305:C316)-MIN(C305:C316)<5,AVERAGEIF(C305:C316,">0",D305:D316), IF(FORECAST($C301,D$305:D$316,$C$305:$C$316)<0,0, IF(FORECAST($C301,D$305:D$316,$C$305:$C$316)>100,100, FORECAST($C301,D$305:D$316,$C$305:$C$316)))) -> 100 | H301: =IF(MAX(C305:C316)-MIN(C305:C316)<5,AVERAGEIF(C305:C316,">0",H305:H316), IF(FORECAST($C301,H$305:H$316,$C$305:$C$316)<0,0, IF(FORECAST($C301,H$305:H$316,$C$305:$C$316)>100,100, FORECAST($C301,H$305:H$316,$C$305:$C$316)))) -> 0 | I301: =IF(MAX(C305:C316)-MIN(C305:C316)<5,AVERAGEIF(C305:C316,">0",I305:I316), IF(FORECAST($C301,I$305:I$316,$C$305:$C$316)<0,0, IF(FORECAST($C301,I$305:I$316,$C$305:$C$316)>100,100, FORECAST($C301,I$305:I$316,$C$305:$C$316)))) -> 99.038088 | M301: =IF(MAX(C305:C316)-MIN(C305:C316)<5,AVERAGEIF(C305:C316,">0",M305:M316), IF(FORECAST($C301,M$305:M$316,$C$305:$C$316)<0,0, IF(FORECAST($C301,M$305:M$316,$C$305:$C$316)>100,100, FORECAST($C301,M$305:M$316,$C$305:$C$316)))) -> 0 | N301: =IF(MAX(C305:C316)-MIN(C305:C316)<5,AVERAGEIF(C305:C316,">0",N305:N316), IF(FORECAST($C301,N$305:N$316,$C$305:$C$316)<0,0, IF(FORECAST($C301,N$305:N$316,$C$305:$C$316)>100,100, FORECAST($C301,N$305:N$316,$C$305:$C$316)))) -> 100 | R301: =IF(MAX(C305:C316)-MIN(C305:C316)<5,AVERAGEIF(C305:C316,">0",R305:R316), IF(FORECAST($C301,R$305:R$316,$C$305:$C$316)<0,0, IF(FORECAST($C301,R$305:R$316,$C$305:$C$316)>100,100, FORECAST($C301,R$305:R$316,$C$305:$C$316)))) -> 0 | S301: =IF(MAX(C305:C316)-MIN(C305:C316)<5,AVERAGEIF(C305:C316,">0",S305:S316), IF(FORECAST($C301,S$305:S$316,$C$305:$C$316)<0,0, IF(FORECAST($C301,S$305:S$316,$C$305:$C$316)>100,100, FORECAST($C301,S$305:S$316,$C$305:$C$316)))) -> 99.18749743 | W301: =IF(MAX(C305:C316)-MIN(C305:C316)<5,AVERAGEIF(C305:C316,">0",W305:W316), IF(FORECAST($C301,W$305:W$316,$C$305:$C$316)<0,0, IF(FORECAST($C301,W$305:W$316,$C$305:$C$316)>100,100, FORECAST($C301,W$305:W$316,$C$305:$C$316)))) -> 0 | X301: =IF(MAX(C305:C316)-MIN(C305:C316)<5,AVERAGEIF(C305:C316,">0",X305:X316), IF(FORECAST($C301,X$305:X$316,$C$305:$C$316)<0,0, IF(FORECAST($C301,X$305:X$316,$C$305:$C$316)>100,100, FORECAST($C301,X$305:X$316,$C$305:$C$316)))) -> 99.62386263 | AB301: =IF(MAX(C305:C316)-MIN(C305:C316)<5,AVERAGEIF(C305:C316,">0",AB305:AB316), IF(FORECAST($C301,AB$305:AB$316,$C$305:$C$316)<0,0, IF(FORECAST($C301,AB$305:AB$316,$C$305:$C$316)>100,100, FORECAST($C301,AB$305:AB$316,$C$305:$C$316)))) -> 0
C302: =MaxRegYear(C300,C305:C316) -> 2014 | D302: =IF(MAX(C305:C316)-MIN(C305:C316)<5,AVERAGEIF(C305:C316,">0",D305:D316), IF(FORECAST($C302,D$305:D$316,$C$305:$C$316)<0,0, IF(FORECAST($C302,D$305:D$316,$C$305:$C$316)>100,100, FORECAST($C302,D$305:D$316,$C$305:$C$316)))) -> 89.76738238 | H302: =IF(MAX(C305:C316)-MIN(C305:C316)<5,AVERAGEIF(C305:C316,">0",H305:H316), IF(FORECAST($C302,H$305:H$316,$C$305:$C$316)<0,0, IF(FORECAST($C302,H$305:H$316,$C$305:$C$316)>100,100, FORECAST($C302,H$305:H$316,$C$305:$C$316)))) -> 0 | I302: =IF(MAX(C305:C316)-MIN(C305:C316)<5,AVERAGEIF(C305:C316,">0",I305:I316), IF(FORECAST($C302,I$305:I$316,$C$305:$C$316)<0,0, IF(FORECAST($C302,I$305:I$316,$C$305:$C$316)>100,100, FORECAST($C302,I$305:I$316,$C$305:$C$316)))) -> 93.25914807 | M302: =IF(MAX(C305:C316)-MIN(C305:C316)<5,AVERAGEIF(C305:C316,">0",M305:M316), IF(FORECAST($C302,M$305:M$316,$C$305:$C$316)<0,0, IF(FORECAST($C302,M$305:M$316,$C$305:$C$316)>100,100, FORECAST($C302,M$305:M$316,$C$305:$C$316)))) -> 0 | N302: =IF(MAX(C305:C316)-MIN(C305:C316)<5,AVERAGEIF(C305:C316,">0",N305:N316), IF(FORECAST($C302,N$305:N$316,$C$305:$C$316)<0,0, IF(FORECAST($C302,N$305:N$316,$C$305:$C$316)>100,100, FORECAST($C302,N$305:N$316,$C$305:$C$316)))) -> 94.74840543 | R302: =IF(MAX(C305:C316)-MIN(C305:C316)<5,AVERAGEIF(C305:C316,">0",R305:R316), IF(FORECAST($C302,R$305:R$316,$C$305:$C$316)<0,0, IF(FORECAST($C302,R$305:R$316,$C$305:$C$316)>100,100, FORECAST($C302,R$305:R$316,$C$305:$C$316)))) -> 0 | S302: =IF(MAX(C305:C316)-MIN(C305:C316)<5,AVERAGEIF(C305:C316,">0",S305:S316), IF(FORECAST($C302,S$305:S$316,$C$305:$C$316)<0,0, IF(FORECAST($C302,S$305:S$316,$C$305:$C$316)>100,100, FORECAST($C302,S$305:S$316,$C$305:$C$316)))) -> 97.57863532 | W302: =IF(MAX(C305:C316)-MIN(C305:C316)<5,AVERAGEIF(C305:C316,">0",W305:W316), IF(FORECAST($C302,W$305:W$316,$C$305:$C$316)<0,0, IF(FORECAST($C302,W$305:W$316,$C$305:$C$316)>100,100, FORECAST($C302,W$305:W$316,$C$305:$C$316)))) -> 0 | X302: =IF(MAX(C305:C316)-MIN(C305:C316)<5,AVERAGEIF(C305:C316,">0",X305:X316), IF(FORECAST($C302,X$305:X$316,$C$305:$C$316)<0,0, IF(FORECAST($C302,X$305:X$316,$C$305:$C$316)>100,100, FORECAST($C302,X$305:X$316,$C$305:$C$316)))) -> 99.82100919 | AB302: =IF(MAX(C305:C316)-MIN(C305:C316)<5,AVERAGEIF(C305:C316,">0",AB305:AB316), IF(FORECAST($C302,AB$305:AB$316,$C$305:$C$316)<0,0, IF(FORECAST($C302,AB$305:AB$316,$C$305:$C$316)>100,100, FORECAST($C302,AB$305:AB$316,$C$305:$C$316)))) -> 0
B304: Survey | C304: Year | D304: Improved | E304: Not shared | H304: Open defecation | I304: Improved | J304: Not shared | M304: Open defecation | N304: Improved | O304: Not shared | R304: Open defecation | S304: Improved | T304: Not shared | W304: Open defecation | X304: Improved | Y304: Not shared | AB304: Open defecation
B305: MICS05 | C305: 2005 | D305: =IF(ISERROR(INDIRECT(CONCATENATE($B305,"!M122"))),"",INDIRECT(CONCATENATE($B305,"!M122"))) -> 98.51284883 | E305: =IF(ISERROR(INDIRECT(CONCATENATE($B305,"!M129"))),"",INDIRECT(CONCATENATE($B305,"!M129"))) -> 98.3331654 | H305: =IF(ISERROR(INDIRECT(CONCATENATE($B305,"!M127"))),"",INDIRECT(CONCATENATE($B305,"!M127"))) -> 0 | I305: =IF(ISERROR(INDIRECT(CONCATENATE($B305,"!N122"))),"",INDIRECT(CONCATENATE($B305,"!N122"))) -> 97.98737165 | J305: =IF(ISERROR(INDIRECT(CONCATENATE($B305,"!N129"))),"",INDIRECT(CONCATENATE($B305,"!N129"))) -> 96.26094802 | M305: =IF(ISERROR(INDIRECT(CONCATENATE($B305,"!N127"))),"",INDIRECT(CONCATENATE($B305,"!N127"))) -> 0 | N305: =IF(ISERROR(INDIRECT(CONCATENATE($B305,"!O122"))),"",INDIRECT(CONCATENATE($B305,"!O122"))) -> 99.65333579 | O305: =IF(ISERROR(INDIRECT(CONCATENATE($B305,"!O129"))),"",INDIRECT(CONCATENATE($B305,"!O129"))) -> 97.08304241 | R305: =IF(ISERROR(INDIRECT(CONCATENATE($B305,"!O127"))),"",INDIRECT(CONCATENATE($B305,"!O127"))) -> 0 | S305: =IF(ISERROR(INDIRECT(CONCATENATE($B305,"!P122"))),"",INDIRECT(CONCATENATE($B305,"!P122"))) -> 98.89497705 | T305: =IF(ISERROR(INDIRECT(CONCATENATE($B305,"!P129"))),"",INDIRECT(CONCATENATE($B305,"!P129"))) -> 97.22317556 | W305: =IF(ISERROR(INDIRECT(CONCATENATE($B305,"!P127"))),"",INDIRECT(CONCATENATE($B305,"!P127"))) -> 0 | X305: =IF(ISERROR(INDIRECT(CONCATENATE($B305,"!Q122"))),"",INDIRECT(CONCATENATE($B305,"!Q122"))) -> 99.65970746 | Y305: =IF(ISERROR(INDIRECT(CONCATENATE($B305,"!Q129"))),"",INDIRECT(CONCATENATE($B305,"!Q129"))) -> 98.89144379 | AB305: =IF(ISERROR(INDIRECT(CONCATENATE($B305,"!Q2127"))),"",INDIRECT(CONCATENATE($B305,"!Q127"))) -> 0
B306: MICS12 | C306: 2012 | D306: 91.71081937 | E306: 97.05673571 | H306: 0 | I306: 94.30986442 | J306: 97.87715209 | M306: 0 | N306: 95.83838995 | O306: 97.89669811 | R306: 0 | S306: 97.87115571 | T306: 98.12826016 | W306: 0 | X306: 99.78516436 | Y306: 99.57417022 | AB306: 0
B318: =CONCATENATE("Rural use of sanitation facilities, ",C299,"–",C300) -> Rural use of sanitation facilities, 2000–2018 | S318: Data points used for regression

Sheet Hygiene
B4: Access to hygiene facilities by wealth quintile (%)
B5: =IF(ISERROR(INDIRECT(CONCATENATE($E$32,"!A2"))),"",INDIRECT(CONCATENATE($E$32,"!A2"))) -> Belarus
B7: =CONCATENATE("National ",IF(ISERROR(INDIRECT(CONCATENATE($E$32,"!A2"))),"",INDIRECT(CONCATENATE($E$32,"!A210")))) -> National Access to hygiene facilities | K7: =CONCATENATE("Urban ",IF(ISERROR(INDIRECT(CONCATENATE($E$32,"!A2"))),"",INDIRECT(CONCATENATE($E$32,"!A210")))) -> Urban Access to hygiene facilities | S7: =CONCATENATE("Rural ",IF(ISERROR(INDIRECT(CONCATENATE($E$32,"!A2"))),"",INDIRECT(CONCATENATE($E$32,"!A210")))) -> Rural Access to hygiene facilities
E32: =INDEX(B88:B100,A88) -> MICS12 | G32: =IF(ISERROR(INDIRECT(CONCATENATE($E$32,"!A2"))),"",INDIRECT(CONCATENATE($E$32,"!A2"))) -> Belarus | K32: Poorest | N32: Poor | Q32: Middle | T32: Rich | W32: Richest
K33: Basic | L33: Limited | M33: No facility | N33: Basic | O33: Limited | P33: No facility | Q33: Basic | R33: Limited | S33: No facility | T33: Basic | U33: Limited | V33: No facility | W33: Basic | X33: Limited | Y33: No facility
B34: >>> Select Survey : | G34: NATIONAL | J34: =IF(ISERROR(INDIRECT(CONCATENATE(#REF!,"!A2"))),"",INDIRECT(CONCATENATE(#REF!,"!A210"))) ->  | K34: =IF(ISERROR(INDIRECT(CONCATENATE($E$32,"!C222"))),"",INDIRECT(CONCATENATE($E$32,"!C222"))) -> N/A | L34: =IF(ISERROR(INDIRECT(CONCATENATE($E$32,"!C223"))),"",INDIRECT(CONCATENATE($E$32,"!C223"))) -> N/A | M34: =IF(ISERROR(INDIRECT(CONCATENATE($E$32,"!C224"))),"",INDIRECT(CONCATENATE($E$32,"!C224"))) -> N/A | N34: =IF(ISERROR(INDIRECT(CONCATENATE($E$32,"!D222"))),"",INDIRECT(CONCATENATE($E$32,"!D222"))) -> N/A | O34: =IF(ISERROR(INDIRECT(CONCATENATE($E$32,"!D223"))),"",INDIRECT(CONCATENATE($E$32,"!D223"))) -> N/A | P34: =IF(ISERROR(INDIRECT(CONCATENATE($E$32,"!D224"))),"",INDIRECT(CONCATENATE($E$32,"!D224"))) -> N/A | Q34: =IF(ISERROR(INDIRECT(CONCATENATE($E$32,"!E222"))),"",INDIRECT(CONCATENATE($E$32,"!E222"))) -> N/A | R34: =IF(ISERROR(INDIRECT(CONCATENATE($E$32,"!E223"))),"",INDIRECT(CONCATENATE($E$32,"!E223"))) -> N/A | S34: =IF(ISERROR(INDIRECT(CONCATENATE($E$32,"!E224"))),"",INDIRECT(CONCATENATE($E$32,"!E224"))) -> N/A | T34: =IF(ISERROR(INDIRECT(CONCATENATE($E$32,"!F222"))),"",INDIRECT(CONCATENATE($E$32,"!F222"))) -> N/A | U34: =IF(ISERROR(INDIRECT(CONCATENATE($E$32,"!F223"))),"",INDIRECT(CONCATENATE($E$32,"!F223"))) -> N/A | V34: =IF(ISERROR(INDIRECT(CONCATENATE($E$32,"!F224"))),"",INDIRECT(CONCATENATE($E$32,"!F224"))) -> N/A | W34: =IF(ISERROR(INDIRECT(CONCATENATE($E$32,"!G222"))),"",INDIRECT(CONCATENATE($E$32,"!G222"))) -> N/A | X34: =IF(ISERROR(INDIRECT(CONCATENATE($E$32,"!G223"))),"",INDIRECT(CONCATENATE($E$32,"!G223"))) -> N/A | Y34: =IF(ISERROR(INDIRECT(CONCATENATE($E$32,"!G224"))),"",INDIRECT(CONCATENATE($E$32,"!G224"))) -> N/A
G37: URBAN | J37: =IF(ISERROR(INDIRECT(CONCATENATE(#REF!,"!A2"))),"",INDIRECT(CONCATENATE(#REF!,"!A210"))) ->  | K37: =IF(ISERROR(INDIRECT(CONCATENATE($E$32,"!H222"))),"",INDIRECT(CONCATENATE($E$32,"!H222"))) -> N/A | L37: =IF(ISERROR(INDIRECT(CONCATENATE($E$32,"!H223"))),"",INDIRECT(CONCATENATE($E$32,"!H223"))) -> N/A | M37: =IF(ISERROR(INDIRECT(CONCATENATE($E$32,"!H224"))),"",INDIRECT(CONCATENATE($E$32,"!H224"))) -> N/A | N37: =IF(ISERROR(INDIRECT(CONCATENATE($E$32,"!I222"))),"",INDIRECT(CONCATENATE($E$32,"!I222"))) -> N/A | O37: =IF(ISERROR(INDIRECT(CONCATENATE($E$32,"!I223"))),"",INDIRECT(CONCATENATE($E$32,"!I223"))) -> N/A | P37: =IF(ISERROR(INDIRECT(CONCATENATE($E$32,"!I224"))),"",INDIRECT(CONCATENATE($E$32,"!I224"))) -> N/A | Q37: =IF(ISERROR(INDIRECT(CONCATENATE($E$32,"!J222"))),"",INDIRECT(CONCATENATE($E$32,"!J222"))) -> N/A | R37: =IF(ISERROR(INDIRECT(CONCATENATE($E$32,"!J223"))),"",INDIRECT(CONCATENATE($E$32,"!J223"))) -> N/A | S37: =IF(ISERROR(INDIRECT(CONCATENATE($E$32,"!J224"))),"",INDIRECT(CONCATENATE($E$32,"!J224"))) -> N/A | T37: =IF(ISERROR(INDIRECT(CONCATENATE($E$32,"!K222"))),"",INDIRECT(CONCATENATE($E$32,"!K222"))) -> N/A | U37: =IF(ISERROR(INDIRECT(CONCATENATE($E$32,"!K223"))),"",INDIRECT(CONCATENATE($E$32,"!K223"))) -> N/A | V37: =IF(ISERROR(INDIRECT(CONCATENATE($E$32,"!K224"))),"",INDIRECT(CONCATENATE($E$32,"!K224"))) -> N/A | W37: =IF(ISERROR(INDIRECT(CONCATENATE($E$32,"!L222"))),"",INDIRECT(CONCATENATE($E$32,"!L222"))) -> N/A | X37: =IF(ISERROR(INDIRECT(CONCATENATE($E$32,"!L223"))),"",INDIRECT(CONCATENATE($E$32,"!L223"))) -> N/A | Y37: =IF(ISERROR(INDIRECT(CONCATENATE($E$32,"!L224"))),"",INDIRECT(CONCATENATE($E$32,"!L224"))) -> N/A
G40: RURAL | J40: =IF(ISERROR(INDIRECT(CONCATENATE(#REF!,"!A2"))),"",INDIRECT(CONCATENATE(#REF!,"!A210"))) ->  | K40: =IF(ISERROR(INDIRECT(CONCATENATE($E$32,"!M222"))),"",INDIRECT(CONCATENATE($E$32,"!M222"))) -> N/A | L40: =IF(ISERROR(INDIRECT(CONCATENATE($E$32,"!M223"))),"",INDIRECT(CONCATENATE($E$32,"!M223"))) -> N/A | M40: =IF(ISERROR(INDIRECT(CONCATENATE($E$32,"!M224"))),"",INDIRECT(CONCATENATE($E$32,"!M224"))) -> N/A | N40: =IF(ISERROR(INDIRECT(CONCATENATE($E$32,"!N222"))),"",INDIRECT(CONCATENATE($E$32,"!N222"))) -> N/A | O40: =IF(ISERROR(INDIRECT(CONCATENATE($E$32,"!N223"))),"",INDIRECT(CONCATENATE($E$32,"!N223"))) -> N/A | P40: =IF(ISERROR(INDIRECT(CONCATENATE($E$32,"!N224"))),"",INDIRECT(CONCATENATE($E$32,"!N224"))) -> N/A | Q40: =IF(ISERROR(INDIRECT(CONCATENATE($E$32,"!O222"))),"",INDIRECT(CONCATENATE($E$32,"!O222"))) -> N/A | R40: =IF(ISERROR(INDIRECT(CONCATENATE($E$32,"!O223"))),"",INDIRECT(CONCATENATE($E$32,"!O223"))) -> N/A | S40: =IF(ISERROR(INDIRECT(CONCATENATE($E$32,"!O224"))),"",INDIRECT(CONCATENATE($E$32,"!O224"))) -> N/A | T40: =IF(ISERROR(INDIRECT(CONCATENATE($E$32,"!P222"))),"",INDIRECT(CONCATENATE($E$32,"!P222"))) -> N/A | U40: =IF(ISERROR(INDIRECT(CONCATENATE($E$32,"!P223"))),"",INDIRECT(CONCATENATE($E$32,"!P223"))) -> N/A | V40: =IF(ISERROR(INDIRECT(CONCATENATE($E$32,"!P224"))),"",INDIRECT(CONCATENATE($E$32,"!P224"))) -> N/A | W40: =IF(ISERROR(INDIRECT(CONCATENATE($E$32,"!Q222"))),"",INDIRECT(CONCATENATE($E$32,"!Q222"))) -> N/A | X40: =IF(ISERROR(INDIRECT(CONCATENATE($E$32,"!Q223"))),"",INDIRECT(CONCATENATE($E$32,"!Q223"))) -> N/A | Y40: =IF(ISERROR(INDIRECT(CONCATENATE($E$32,"!Q224"))),"",INDIRECT(CONCATENATE($E$32,"!Q224"))) -> N/A
A88: 2 | B88: MICS05
B89: MICS12
B90: Template

Sheet MICS05
A2: =A1026 -> Belarus
A3: =A1034 -> 2005
A4: Use of drinking water sources
A5: by wealth quintile and sub-national region
A6: Notes:
A7: WHO/UNICEF JMP customised wealth index excludes water,
A8: sanitation and hygiene assets.
A9: Survey used for analysis: | B9: =A1025 -> MICS05
A10: =B1028 -> 
A11: =B1027 -> 
A14: Use of drinking water sources | C14: NATIONAL wealth index quintile | H14: URBAN wealth index quintile | M14: RURAL wealth index quintile | R14: SUB-REGIONS: | BA14: Raw numbers of respondents: | BB14: Use of drinking water sources | BC14: NATIONAL wealth index quintile | BH14: URBAN wealth index quintile | BM14: RURAL wealth index quintile | BR14: SUB-REGIONS:
A15: Weighted percentage (used in graphs) | C15: Poorest | D15: Poor | E15: Middle | F15: Rich | G15: Richest | H15: Poorest | I15: Poor | J15: Middle | K15: Rich | L15: Richest | M15: Poorest | N15: Poor | O15: Middle | P15: Rich | Q15: Richest | R15: Brest | S15: Gomel | T15: Grodno | U15: Minsk | V15: Minsk city | W15: Mogilev | X15: Vitebsk | BA15: Water data, raw numbers (weighted) | BC15: Poorest | BD15: Poor | BE15: Middle | BF15: Rich | BG15: Richest | BH15: Poorest | BI15: Poor | BJ15: Middle | BK15: Rich | BL15: Richest | BM15: Poorest | BN15: Poor | BO15: Middle | BP15: Rich | BQ15: Richest | BR15: Brest | BS15: Gomel | BT15: Grodno | BU15: Minsk | BV15: Minsk city | BW15: Mogilev | BX15: Vitebsk
A16: Water | B16: Improved | C16: 98.70756425 | D16: 99.4590794 | E16: 99.96217489 | F16: 100 | G16: 99.97181845 | H16: 99.08481667 | I16: 99.94285144 | J16: 100 | K16: 100 | L16: 99.95735827 | M16: 98.29789539 | N16: 98.6755999 | O16: 99.40110912 | P16: 100 | Q16: 100 | R16: 100 | S16: 99.77329509 | T16: 98.34785422 | U16: 99.41350049 | V16: 100 | W16: 99.81150674 | X16: 99.82586472 | BA16: Water | BB16: Improved | BC16: N/A | BD16: N/A | BE16: N/A | BF16: N/A | BG16: N/A | BH16: N/A | BI16: N/A | BJ16: N/A | BK16: N/A | BL16: N/A | BM16: N/A | BN16: N/A | BO16: N/A | BP16: N/A | BQ16: N/A | BR16: N/A | BS16: N/A | BT16: N/A | BU16: N/A | BV16: N/A | BW16: N/A | BX16: N/A
B17: Not Improved | C17: 1.292435748 | D17: 0.5409205972 | E17: 0.03782511358 | F17: 0 | G17: 0.02818155179 | H17: 0.915183332 | I17: 0.05714856343 | J17: 0 | K17: 0 | L17: 0.04264173317 | M17: 1.702104614 | N17: 1.324400102 | O17: 0.5988908827 | P17: 0 | Q17: 0 | R17: 0 | S17: 0.2267049082 | T17: 1.652145783 | U17: 0.5864995144 | V17: 0 | W17: 0.1884932645 | X17: 0.1741352789 | BB17: Not Improved | BC17: N/A | BD17: N/A | BE17: N/A | BF17: N/A | BG17: N/A | BH17: N/A | BI17: N/A | BJ17: N/A | BK17: N/A | BL17: N/A | BM17: N/A | BN17: N/A | BO17: N/A | BP17: N/A | BQ17: N/A | BR17: N/A | BS17: N/A | BT17: N/A | BU17: N/A | BV17: N/A | BW17: N/A | BX17: N/A
A18: Water ladder | B18: Basic | C18: =C16*C23/100 -> 98.57276988 | D18: =D16*D23/100 -> 99.4590794 | E18: =E16*E23/100 -> 99.96217489 | F18: 99.95026522 | G18: 99.92905367 | H18: 98.88060746 | I18: 99.94285144 | J18: 99.92450384 | K18: 100 | L18: 99.89261121 | M18: 98.29789539 | N18: 98.6755999 | O18: 99.40110912 | P18: 100 | Q18: 100 | R18: 100 | S18: 99.77329509 | T18: 98.27934597 | U18: 99.41350049 | V18: 100 | W18: 99.81150674 | X18: 99.55835075 | BA18: Water ladder | BB18: Basic | BC18: N/A | BD18: N/A | BE18: N/A | BF18: N/A | BG18: N/A | BH18: N/A | BI18: N/A | BJ18: N/A | BK18: N/A | BL18: N/A | BM18: N/A | BN18: N/A | BO18: N/A | BP18: N/A | BQ18: N/A | BR18: N/A | BS18: N/A | BT18: N/A | BU18: N/A | BV18: N/A | BW18: N/A | BX18: N/A
B19: Limited | C19: =C16*C22/100 -> 0.1347943721 | D19: =D16*D22/100 -> 0 | E19: =E16*E22/100 -> 0 | F19: 0.0497347806 | G19: 0.0427647784 | H19: 0.2042092031 | I19: 0 | J19: 0.07549615901 | K19: 0 | L19: 0.06474705326 | M19: 0 | N19: 0 | O19: 0 | P19: 0 | Q19: 0 | R19: 0 | S19: 0 | T19: 0.06850824193 | U19: 0 | V19: 0 | W19: 0 | X19: 0.2675139735 | BB19: Limited | BC19: N/A | BD19: N/A | BE19: N/A | BF19: N/A | BG19: N/A | BH19: N/A | BI19: N/A | BJ19: N/A | BK19: N/A | BL19: N/A | BM19: N/A | BN19: N/A | BO19: N/A | BP19: N/A | BQ19: N/A | BR19: N/A | BS19: N/A | BT19: N/A | BU19: N/A | BV19: N/A | BW19: N/A | BX19: N/A
B20: Unimproved | C20: =100-C18-C19-C21 -> 1.292435748 | D20: =100-D18-D19-D21 -> 0.5409205972 | E20: =100-E18-E19-E21 -> 0.03782511358 | F20: 1.090100232e-14 | G20: 0.02818155179 | H20: 0.915183332 | I20: 0.05714856343 | J20: 7.258083023e-15 | K20: 0 | L20: 0.04264173317 | M20: 1.702104614 | N20: 1.324400102 | O20: 0.5988908827 | P20: 0 | Q20: 0 | R20: 0 | S20: 0.2267049082 | T20: 1.652145783 | U20: 0.5864995144 | V20: 0 | W20: 0.1884932645 | X20: 0.1741352789 | BB20: Unimproved | BC20: N/A | BD20: N/A | BE20: N/A | BF20: N/A | BG20: N/A | BH20: N/A | BI20: N/A | BJ20: N/A | BK20: N/A | BL20: N/A | BM20: N/A | BN20: N/A | BO20: N/A | BP20: N/A | BQ20: N/A | BR20: N/A | BS20: N/A | BT20: N/A | BU20: N/A | BV20: N/A | BW20: N/A | BX20: N/A
B21: Surface water | C21: 0 | D21: 0 | E21: 0 | F21: 0 | G21: 0 | H21: 0 | I21: 0 | J21: 0 | K21: 0 | L21: 0 | M21: 0 | N21: 0 | O21: 0 | P21: 0 | Q21: 0 | R21: 0 | S21: 0 | T21: 0 | U21: 0 | V21: 0 | W21: 0 | X21: 0 | BB21: Surface water | BC21: N/A | BD21: N/A | BE21: N/A | BF21: N/A | BG21: N/A | BH21: N/A | BI21: N/A | BJ21: N/A | BK21: N/A | BL21: N/A | BM21: N/A | BN21: N/A | BO21: N/A | BP21: N/A | BQ21: N/A | BR21: N/A | BS21: N/A | BT21: N/A | BU21: N/A | BV21: N/A | BW21: N/A | BX21: N/A
A22: Improved water point at more than 30 minutes | B22: Yes | C22: 0.1365593134 | D22: 0 | E22: 0 | F22: 0.0497347806 | G22: 0.04277683358 | H22: 0.2060953534 | I22: 0 | J22: 0.07549615901 | K22: 0 | L22: 0.06477467431 | M22: 0 | N22: 0 | O22: 0 | P22: 0 | Q22: 0 | R22: 0 | S22: 0 | T22: 0.06965911202 | U22: 0 | V22: 0 | W22: 0 | X22: 0.2679806223 | BA22: Improved water point at more than 30 minutes | BB22: Yes | BC22: N/A | BD22: N/A | BE22: N/A | BF22: N/A | BG22: N/A | BH22: N/A | BI22: N/A | BJ22: N/A | BK22: N/A | BL22: N/A | BM22: N/A | BN22: N/A | BO22: N/A | BP22: N/A | BQ22: N/A | BR22: N/A | BS22: N/A | BT22: N/A | BU22: N/A | BV22: N/A | BW22: N/A | BX22: N/A
B23: No | C23: 99.86344069 | D23: 100 | E23: 100 | F23: 99.95026522 | G23: 99.95722317 | H23: 99.79390465 | I23: 100 | J23: 99.92450384 | K23: 100 | L23: 99.93522533 | M23: 100 | N23: 100 | O23: 100 | P23: 100 | Q23: 100 | R23: 100 | S23: 100 | T23: 99.93034089 | U23: 100 | V23: 100 | W23: 100 | X23: 99.73201938 | BB23: No | BC23: N/A | BD23: N/A | BE23: N/A | BF23: N/A | BG23: N/A | BH23: N/A | BI23: N/A | BJ23: N/A | BK23: N/A | BL23: N/A | BM23: N/A | BN23: N/A | BO23: N/A | BP23: N/A | BQ23: N/A | BR23: N/A | BS23: N/A | BT23: N/A | BU23: N/A | BV23: N/A | BW23: N/A | BX23: N/A
A24: Manually calculated ratios | B24: Improved wells
B25: Improved springs
B26: Other
C27: NATIONAL wealth index quintile | H27: URBAN wealth index quintile | M27: RURAL wealth index quintile | R27: SUB-REGIONS: | BA27: Raw numbers of respondents: | BB27: Use of drinking water sources | BC27: NATIONAL wealth index quintile | BH27: URBAN wealth index quintile | BM27: RURAL wealth index quintile | BR27: SUB-REGIONS:
A28: Percentage based on weighted population | C28: Poorest | D28: Poor | E28: Middle | F28: Rich | G28: Richest | H28: Poorest | I28: Poor | J28: Middle | K28: Rich | L28: Richest | M28: Poorest | N28: Poor | O28: Middle | P28: Rich | Q28: Richest | R28: Brest | S28: Gomel | T28: Grodno | U28: Minsk | V28: Minsk city | W28: Mogilev | X28: Vitebsk | BA28: Water data, raw numbers (weighted) | BC28: Poorest | BD28: Poor | BE28: Middle | BF28: Rich | BG28: Richest | BH28: Poorest | BI28: Poor | BJ28: Middle | BK28: Rich | BL28: Richest | BM28: Poorest | BN28: Poor | BO28: Middle | BP28: Rich | BQ28: Richest | BR28: Brest | BS28: Gomel | BT28: Grodno | BU28: Minsk | BV28: Minsk city | BW28: Mogilev | BX28: Vitebsk
A29: Piped water | B29: Yes | C29: 52.64169094 | D29: 87.72137286 | E29: 98.30898312 | F29: 99.37392564 | G29: 99.07229968 | H29: 86.32994973 | I29: 99.3844276 | J29: 99.86159038 | K29: 99.84395117 | L29: 99.82993905 | M29: 36.63268127 | N29: 50.36719547 | O29: 72.62710414 | P29: 90.97666878 | Q29: 92.52331849 | R29: 85.18586609 | S29: 90.96166691 | T29: 78.72452658 | U29: 82.176022 | V29: 100 | W29: 92.37391406 | X29: 81.00043411 | BA29: Piped water | BB29: Yes | BC29: N/A | BD29: N/A | BE29: N/A | BF29: N/A | BG29: N/A | BH29: N/A | BI29: N/A | BJ29: N/A | BK29: N/A | BL29: N/A | BM29: N/A | BN29: N/A | BO29: N/A | BP29: N/A | BQ29: N/A | BR29: N/A | BS29: N/A | BT29: N/A | BU29: N/A | BV29: N/A | BW29: N/A | BX29: N/A
B30: No | C30: 47.35830906 | D30: 12.27862714 | E30: 1.69101688 | F30: 0.6260743618 | G30: 0.9277003247 | H30: 13.67005027 | I30: 0.6155724027 | J30: 0.1384096249 | K30: 0.1560488314 | L30: 0.1700609471 | M30: 63.36731873 | N30: 49.63280453 | O30: 27.37289586 | P30: 9.02333122 | Q30: 7.47668151 | R30: 14.81413391 | S30: 9.038333088 | T30: 21.27547342 | U30: 17.823978 | V30: 0 | W30: 7.626085939 | X30: 18.99956589 | BB30: No | BC30: N/A | BD30: N/A | BE30: N/A | BF30: N/A | BG30: N/A | BH30: N/A | BI30: N/A | BJ30: N/A | BK30: N/A | BL30: N/A | BM30: N/A | BN30: N/A | BO30: N/A | BP30: N/A | BQ30: N/A | BR30: N/A | BS30: N/A | BT30: N/A | BU30: N/A | BV30: N/A | BW30: N/A | BX30: N/A
A31: Piped water on premises | B31: Yes | C31: 35.48986333 | D31: 81.50092702 | E31: 98.10836423 | F31: 99.33273895 | G31: 98.89779857 | H31: 69.14784742 | I31: 99.21416642 | J31: 99.86159038 | K31: 99.6971155 | L31: 99.65118349 | M31: 21.28902978 | N31: 39.75488307 | O31: 64.73878364 | P31: 89.24875343 | Q31: 92.39335003 | R31: 83.12170289 | S31: 85.82726179 | T31: 77.6279667 | U31: 76.77726805 | V31: 99.35808335 | W31: 80.3642321 | X31: 72.8213745 | BA31: Piped water on premises | BB31: Yes | BC31: N/A | BD31: N/A | BE31: N/A | BF31: N/A | BG31: N/A | BH31: N/A | BI31: N/A | BJ31: N/A | BK31: N/A | BL31: N/A | BM31: N/A | BN31: N/A | BO31: N/A | BP31: N/A | BQ31: N/A | BR31: N/A | BS31: N/A | BT31: N/A | BU31: N/A | BV31: N/A | BW31: N/A | BX31: N/A
B32: No | C32: 64.51013667 | D32: 18.49907298 | E32: 1.891635767 | F32: 0.6672610481 | G32: 1.10220143 | H32: 30.85215258 | I32: 0.7858335843 | J32: 0.1384096249 | K32: 0.3028844968 | L32: 0.3488165098 | M32: 78.71097022 | N32: 60.24511693 | O32: 35.26121636 | P32: 10.75124657 | Q32: 7.606649972 | R32: 16.87829711 | S32: 14.17273821 | T32: 22.3720333 | U32: 23.22273195 | V32: 0.6419166458 | W32: 19.6357679 | X32: 27.1786255 | BB32: No | BC32: N/A | BD32: N/A | BE32: N/A | BF32: N/A | BG32: N/A | BH32: N/A | BI32: N/A | BJ32: N/A | BK32: N/A | BL32: N/A | BM32: N/A | BN32: N/A | BO32: N/A | BP32: N/A | BQ32: N/A | BR32: N/A | BS32: N/A | BT32: N/A | BU32: N/A | BV32: N/A | BW32: N/A | BX32: N/A
A33: Piped water into dwelling | B33: Yes | C33: N/A | D33: N/A | E33: N/A | F33: N/A | G33: N/A | H33: N/A | I33: N/A | J33: N/A | K33: N/A | L33: N/A | M33: N/A | N33: N/A | O33: N/A | P33: N/A | Q33: N/A | R33: N/A | S33: N/A | T33: N/A | U33: N/A | V33: N/A | W33: N/A | X33: N/A | BA33: Piped water into dwelling | BB33: Yes | BC33: N/A | BD33: N/A | BE33: N/A | BF33: N/A | BG33: N/A | BH33: N/A | BI33: N/A | BJ33: N/A | BK33: N/A | BL33: N/A | BM33: N/A | BN33: N/A | BO33: N/A | BP33: N/A | BQ33: N/A | BR33: N/A | BS33: N/A | BT33: N/A | BU33: N/A | BV33: N/A | BW33: N/A | BX33: N/A
B34: No | C34: N/A | D34: N/A | E34: N/A | F34: N/A | G34: N/A | H34: N/A | I34: N/A | J34: N/A | K34: N/A | L34: N/A | M34: N/A | N34: N/A | O34: N/A | P34: N/A | Q34: N/A | R34: N/A | S34: N/A | T34: N/A | U34: N/A | V34: N/A | W34: N/A | X34: N/A | BB34: No | BC34: N/A | BD34: N/A | BE34: N/A | BF34: N/A | BG34: N/A | BH34: N/A | BI34: N/A | BJ34: N/A | BK34: N/A | BL34: N/A | BM34: N/A | BN34: N/A | BO34: N/A | BP34: N/A | BQ34: N/A | BR34: N/A | BS34: N/A | BT34: N/A | BU34: N/A | BV34: N/A | BW34: N/A | BX34: N/A
A35: Water source on premises | B35: Yes | C35: 35.48986333 | D35: 81.50092702 | E35: 98.10836423 | F35: 99.33273895 | G35: 98.89779857 | H35: 69.14784742 | I35: 99.21416642 | J35: 99.86159038 | K35: 99.6971155 | L35: 99.65118349 | M35: 21.28902978 | N35: 39.75488307 | O35: 64.73878364 | P35: 89.24875343 | Q35: 92.39335003 | R35: 83.12170289 | S35: 85.82726179 | T35: 77.6279667 | U35: 76.77726805 | V35: 99.35808335 | W35: 80.3642321 | X35: 72.8213745 | BA35: Water source on premises | BB35: Yes | BC35: N/A | BD35: N/A | BE35: N/A | BF35: N/A | BG35: N/A | BH35: N/A | BI35: N/A | BJ35: N/A | BK35: N/A | BL35: N/A | BM35: N/A | BN35: N/A | BO35: N/A | BP35: N/A | BQ35: N/A | BR35: N/A | BS35: N/A | BT35: N/A | BU35: N/A | BV35: N/A | BW35: N/A | BX35: N/A
B36: No | C36: 64.51013667 | D36: 18.49907298 | E36: 1.891635767 | F36: 0.6672610481 | G36: 1.10220143 | H36: 30.85215258 | I36: 0.7858335843 | J36: 0.1384096249 | K36: 0.3028844968 | L36: 0.3488165098 | M36: 78.71097022 | N36: 60.24511693 | O36: 35.26121636 | P36: 10.75124657 | Q36: 7.606649972 | R36: 16.87829711 | S36: 14.17273821 | T36: 22.3720333 | U36: 23.22273195 | V36: 0.6419166458 | W36: 19.6357679 | X36: 27.1786255 | BB36: No | BC36: N/A | BD36: N/A | BE36: N/A | BF36: N/A | BG36: N/A | BH36: N/A | BI36: N/A | BJ36: N/A | BK36: N/A | BL36: N/A | BM36: N/A | BN36: N/A | BO36: N/A | BP36: N/A | BQ36: N/A | BR36: N/A | BS36: N/A | BT36: N/A | BU36: N/A | BV36: N/A | BW36: N/A | BX36: N/A
A37: Improved Water source on premises | B37: Yes | C37: 35.95455283 | D37: 81.94417997 | E37: 98.14548788 | F37: 99.33273895 | G37: 98.92567736 | H37: 69.78652204 | I37: 99.27089831 | J37: 99.86159038 | K37: 99.6971155 | L37: 99.69369461 | M37: 21.65766591 | N37: 40.28846352 | O37: 65.12883429 | P37: 89.24875343 | Q37: 92.39335003 | R37: 83.12170289 | S37: 86.02227852 | T37: 78.93203905 | U37: 77.23022293 | V37: 99.35808335 | W37: 80.51599934 | X37: 72.94840341 | BA37: Improved water source on premises | BB37: Yes | BC37: N/A | BD37: N/A | BE37: N/A | BF37: N/A | BG37: N/A | BH37: N/A | BI37: N/A | BJ37: N/A | BK37: N/A | BL37: N/A | BM37: N/A | BN37: N/A | BO37: N/A | BP37: N/A | BQ37: N/A | BR37: N/A | BS37: N/A | BT37: N/A | BU37: N/A | BV37: N/A | BW37: N/A | BX37: N/A
B38: No | C38: 64.04544717 | D38: 18.05582003 | E38: 1.854512125 | F38: 0.6672610481 | G38: 1.074322639 | H38: 30.21347796 | I38: 0.729101692 | J38: 0.1384096249 | K38: 0.3028844968 | L38: 0.3063053905 | M38: 78.34233409 | N38: 59.71153648 | O38: 34.87116571 | P38: 10.75124657 | Q38: 7.606649972 | R38: 16.87829711 | S38: 13.97772148 | T38: 21.06796095 | U38: 22.76977707 | V38: 0.6419166458 | W38: 19.48400066 | X38: 27.05159659 | BB38: No | BC38: N/A | BD38: N/A | BE38: N/A | BF38: N/A | BG38: N/A | BH38: N/A | BI38: N/A | BJ38: N/A | BK38: N/A | BL38: N/A | BM38: N/A | BN38: N/A | BO38: N/A | BP38: N/A | BQ38: N/A | BR38: N/A | BS38: N/A | BT38: N/A | BU38: N/A | BV38: N/A | BW38: N/A | BX38: N/A
A39: Piped water on premises available when needed | B39: Yes | C39: N/A | D39: N/A | E39: N/A | F39: N/A | G39: N/A | H39: N/A | I39: N/A | J39: N/A | K39: N/A | L39: N/A | M39: N/A | N39: N/A | O39: N/A | P39: N/A | Q39: N/A | R39: N/A | S39: N/A | T39: N/A | U39: N/A | V39: N/A | W39: N/A | X39: N/A | BA39: Piped water on premises available when needed | BB39: Yes | BC39: N/A | BD39: N/A | BE39: N/A | BF39: N/A | BG39: N/A | BH39: N/A | BI39: N/A | BJ39: N/A | BK39: N/A | BL39: N/A | BM39: N/A | BN39: N/A | BO39: N/A | BP39: N/A | BQ39: N/A | BR39: N/A | BS39: N/A | BT39: N/A | BU39: N/A | BV39: N/A | BW39: N/A | BX39: N/A
B40: No | C40: N/A | D40: N/A | E40: N/A | F40: N/A | G40: N/A | H40: N/A | I40: N/A | J40: N/A | K40: N/A | L40: N/A | M40: N/A | N40: N/A | O40: N/A | P40: N/A | Q40: N/A | R40: N/A | S40: N/A | T40: N/A | U40: N/A | V40: N/A | W40: N/A | X40: N/A | BB40: No | BC40: N/A | BD40: N/A | BE40: N/A | BF40: N/A | BG40: N/A | BH40: N/A | BI40: N/A | BJ40: N/A | BK40: N/A | BL40: N/A | BM40: N/A | BN40: N/A | BO40: N/A | BP40: N/A | BQ40: N/A | BR40: N/A | BS40: N/A | BT40: N/A | BU40: N/A | BV40: N/A | BW40: N/A | BX40: N/A
A41: Water point at more than 30 minutes | B41: Yes | C41: 0.174147898 | D41: 0 | E41: 0 | F41: 0.0497347806 | G41: 0.07097964844 | H41: 0.263822737 | I41: 0 | J41: 0.07549615901 | K41: 0 | L41: 0.1074650979 | M41: 0 | N41: 0 | O41: 0 | P41: 0 | Q41: 0 | R41: 0 | S41: 0.03730260087 | T41: 0.06850824193 | U41: 0 | V41: 0 | W41: 0.06528140783 | X41: 0.2675139735 | BA41: Water point at more than 30 minutes | BB41: Yes | BC41: N/A | BD41: N/A | BE41: N/A | BF41: N/A | BG41: N/A | BH41: N/A | BI41: N/A | BJ41: N/A | BK41: N/A | BL41: N/A | BM41: N/A | BN41: N/A | BO41: N/A | BP41: N/A | BQ41: N/A | BR41: N/A | BS41: N/A | BT41: N/A | BU41: N/A | BV41: N/A | BW41: N/A | BX41: N/A
B42: No | C42: 99.8258521 | D42: 100 | E42: 100 | F42: 99.95026522 | G42: 99.92902035 | H42: 99.73617726 | I42: 100 | J42: 99.92450384 | K42: 100 | L42: 99.8925349 | M42: 100 | N42: 100 | O42: 100 | P42: 100 | Q42: 100 | R42: 100 | S42: 99.9626974 | T42: 99.93149176 | U42: 100 | V42: 100 | W42: 99.93471859 | X42: 99.73248603 | BB42: No | BC42: N/A | BD42: N/A | BE42: N/A | BF42: N/A | BG42: N/A | BH42: N/A | BI42: N/A | BJ42: N/A | BK42: N/A | BL42: N/A | BM42: N/A | BN42: N/A | BO42: N/A | BP42: N/A | BQ42: N/A | BR42: N/A | BS42: N/A | BT42: N/A | BU42: N/A | BV42: N/A | BW42: N/A | BX42: N/A
A43: Water source available when needed | B43: Yes | C43: N/A | D43: N/A | E43: N/A | F43: N/A | G43: N/A | H43: N/A | I43: N/A | J43: N/A | K43: N/A | L43: N/A | M43: N/A | N43: N/A | O43: N/A | P43: N/A | Q43: N/A | R43: N/A | S43: N/A | T43: N/A | U43: N/A | V43: N/A | W43: N/A | X43: N/A | BA43: Water source available when needed | BB43: Yes | BC43: N/A | BD43: N/A | BE43: N/A | BF43: N/A | BG43: N/A | BH43: N/A | BI43: N/A | BJ43: N/A | BK43: N/A | BL43: N/A | BM43: N/A | BN43: N/A | BO43: N/A | BP43: N/A | BQ43: N/A | BR43: N/A | BS43: N/A | BT43: N/A | BU43: N/A | BV43: N/A | BW43: N/A | BX43: N/A
B44: No | C44: N/A | D44: N/A | E44: N/A | F44: N/A | G44: N/A | H44: N/A | I44: N/A | J44: N/A | K44: N/A | L44: N/A | M44: N/A | N44: N/A | O44: N/A | P44: N/A | Q44: N/A | R44: N/A | S44: N/A | T44: N/A | U44: N/A | V44: N/A | W44: N/A | X44: N/A | BB44: No | BC44: N/A | BD44: N/A | BE44: N/A | BF44: N/A | BG44: N/A | BH44: N/A | BI44: N/A | BJ44: N/A | BK44: N/A | BL44: N/A | BM44: N/A | BN44: N/A | BO44: N/A | BP44: N/A | BQ44: N/A | BR44: N/A | BS44: N/A | BT44: N/A | BU44: N/A | BV44: N/A | BW44: N/A | BX44: N/A
A45: Improved water source available when needed | B45: Yes | C45: N/A | D45: N/A | E45: N/A | F45: N/A | G45: N/A | H45: N/A | I45: N/A | J45: N/A | K45: N/A | L45: N/A | M45: N/A | N45: N/A | O45: N/A | P45: N/A | Q45: N/A | R45: N/A | S45: N/A | T45: N/A | U45: N/A | V45: N/A | W45: N/A | X45: N/A | BA45: Improved water source available when needed | BB45: Yes | BC45: N/A | BD45: N/A | BE45: N/A | BF45: N/A | BG45: N/A | BH45: N/A | BI45: N/A | BJ45: N/A | BK45: N/A | BL45: N/A | BM45: N/A | BN45: N/A | BO45: N/A | BP45: N/A | BQ45: N/A | BR45: N/A | BS45: N/A | BT45: N/A | BU45: N/A | BV45: N/A | BW45: N/A | BX45: N/A
B46: No | C46: N/A | D46: N/A | E46: N/A | F46: N/A | G46: N/A | H46: N/A | I46: N/A | J46: N/A | K46: N/A | L46: N/A | M46: N/A | N46: N/A | O46: N/A | P46: N/A | Q46: N/A | R46: N/A | S46: N/A | T46: N/A | U46: N/A | V46: N/A | W46: N/A | X46: N/A | BB46: No | BC46: N/A | BD46: N/A | BE46: N/A | BF46: N/A | BG46: N/A | BH46: N/A | BI46: N/A | BJ46: N/A | BK46: N/A | BL46: N/A | BM46: N/A | BN46: N/A | BO46: N/A | BP46: N/A | BQ46: N/A | BR46: N/A | BS46: N/A | BT46: N/A | BU46: N/A | BV46: N/A | BW46: N/A | BX46: N/A
A47: Microbiological quality at point of collection | B47: Not contaminated (No E. coli in 100 mL) | C47: N/A | D47: N/A | E47: N/A | F47: N/A | G47: N/A | H47: N/A | I47: N/A | J47: N/A | K47: N/A | L47: N/A | M47: N/A | N47: N/A | O47: N/A | P47: N/A | Q47: N/A | R47: N/A | S47: N/A | T47: N/A | U47: N/A | V47: N/A | W47: N/A | X47: N/A | BA47: Microbiological quality at point of collection | BB47: Not contaminated (No E. coli in 100 mL) | BC47: N/A | BD47: N/A | BE47: N/A | BF47: N/A | BG47: N/A | BH47: N/A | BI47: N/A | BJ47: N/A | BK47: N/A | BL47: N/A | BM47: N/A | BN47: N/A | BO47: N/A | BP47: N/A | BQ47: N/A | BR47: N/A | BS47: N/A | BT47: N/A | BU47: N/A | BV47: N/A | BW47: N/A | BX47: N/A
B48: Contaminated (E. coli detected in 100 mL) | C48: N/A | D48: N/A | E48: N/A | F48: N/A | G48: N/A | H48: N/A | I48: N/A | J48: N/A | K48: N/A | L48: N/A | M48: N/A | N48: N/A | O48: N/A | P48: N/A | Q48: N/A | R48: N/A | S48: N/A | T48: N/A | U48: N/A | V48: N/A | W48: N/A | X48: N/A | BB48: Contaminated (E. coli detected in 100 mL) | BC48: N/A | BD48: N/A | BE48: N/A | BF48: N/A | BG48: N/A | BH48: N/A | BI48: N/A | BJ48: N/A | BK48: N/A | BL48: N/A | BM48: N/A | BN48: N/A | BO48: N/A | BP48: N/A | BQ48: N/A | BR48: N/A | BS48: N/A | BT48: N/A | BU48: N/A | BV48: N/A | BW48: N/A | BX48: N/A
B49: Highly contaminated (>100 CFU/100 mL) | C49: N/A | D49: N/A | E49: N/A | F49: N/A | G49: N/A | H49: N/A | I49: N/A | J49: N/A | K49: N/A | L49: N/A | M49: N/A | N49: N/A | O49: N/A | P49: N/A | Q49: N/A | R49: N/A | S49: N/A | T49: N/A | U49: N/A | V49: N/A | W49: N/A | X49: N/A | BB49: Highly contaminated (>100 CFU/100 mL) | BC49: N/A | BD49: N/A | BE49: N/A | BF49: N/A | BG49: N/A | BH49: N/A | BI49: N/A | BJ49: N/A | BK49: N/A | BL49: N/A | BM49: N/A | BN49: N/A | BO49: N/A | BP49: N/A | BQ49: N/A | BR49: N/A | BS49: N/A | BT49: N/A | BU49: N/A | BV49: N/A | BW49: N/A | BX49: N/A
A50: Microbiological quality of improved water sources at point of collection | B50: Not contaminated (No E. coli in 100 mL) | C50: N/A | D50: N/A | E50: N/A | F50: N/A | G50: N/A | H50: N/A | I50: N/A | J50: N/A | K50: N/A | L50: N/A | M50: N/A | N50: N/A | O50: N/A | P50: N/A | Q50: N/A | R50: N/A | S50: N/A | T50: N/A | U50: N/A | V50: N/A | W50: N/A | X50: N/A | BA50: Microbiological quality of improved water sources at point of collection | BB50: Not contaminated (No E. coli in 100 mL) | BC50: N/A | BD50: N/A | BE50: N/A | BF50: N/A | BG50: N/A | BH50: N/A | BI50: N/A | BJ50: N/A | BK50: N/A | BL50: N/A | BM50: N/A | BN50: N/A | BO50: N/A | BP50: N/A | BQ50: N/A | BR50: N/A | BS50: N/A | BT50: N/A | BU50: N/A | BV50: N/A | BW50: N/A | BX50: N/A
B51: Contaminated (E. coli detected in 100 mL) | C51: N/A | D51: N/A | E51: N/A | F51: N/A | G51: N/A | H51: N/A | I51: N/A | J51: N/A | K51: N/A | L51: N/A | M51: N/A | N51: N/A | O51: N/A | P51: N/A | Q51: N/A | R51: N/A | S51: N/A | T51: N/A | U51: N/A | V51: N/A | W51: N/A | X51: N/A | BB51: Contaminated (E. coli detected in 100 mL) | BC51: N/A | BD51: N/A | BE51: N/A | BF51: N/A | BG51: N/A | BH51: N/A | BI51: N/A | BJ51: N/A | BK51: N/A | BL51: N/A | BM51: N/A | BN51: N/A | BO51: N/A | BP51: N/A | BQ51: N/A | BR51: N/A | BS51: N/A | BT51: N/A | BU51: N/A | BV51: N/A | BW51: N/A | BX51: N/A
B52: Highly contaminated (>100 CFU/100 mL) | C52: N/A | D52: N/A | E52: N/A | F52: N/A | G52: N/A | H52: N/A | I52: N/A | J52: N/A | K52: N/A | L52: N/A | M52: N/A | N52: N/A | O52: N/A | P52: N/A | Q52: N/A | R52: N/A | S52: N/A | T52: N/A | U52: N/A | V52: N/A | W52: N/A | X52: N/A | BB52: Highly contaminated (>100 CFU/100 mL) | BC52: N/A | BD52: N/A | BE52: N/A | BF52: N/A | BG52: N/A | BH52: N/A | BI52: N/A | BJ52: N/A | BK52: N/A | BL52: N/A | BM52: N/A | BN52: N/A | BO52: N/A | BP52: N/A | BQ52: N/A | BR52: N/A | BS52: N/A | BT52: N/A | BU52: N/A | BV52: N/A | BW52: N/A | BX52: N/A
A53: Microbiological quality of piped on premises at point of collection | B53: Not contaminated (No E. coli in 100 mL) | C53: N/A | D53: N/A | E53: N/A | F53: N/A | G53: N/A | H53: N/A | I53: N/A | J53: N/A | K53: N/A | L53: N/A | M53: N/A | N53: N/A | O53: N/A | P53: N/A | Q53: N/A | R53: N/A | S53: N/A | T53: N/A | U53: N/A | V53: N/A | W53: N/A | X53: N/A | BA53: Microbiological quality of piped on premises at point of collection | BB53: Not contaminated (No E. coli in 100 mL) | BC53: N/A | BD53: N/A | BE53: N/A | BF53: N/A | BG53: N/A | BH53: N/A | BI53: N/A | BJ53: N/A | BK53: N/A | BL53: N/A | BM53: N/A | BN53: N/A | BO53: N/A | BP53: N/A | BQ53: N/A | BR53: N/A | BS53: N/A | BT53: N/A | BU53: N/A | BV53: N/A | BW53: N/A | BX53: N/A
B54: Contaminated (E. coli detected in 100 mL) | C54: N/A | D54: N/A | E54: N/A | F54: N/A | G54: N/A | H54: N/A | I54: N/A | J54: N/A | K54: N/A | L54: N/A | M54: N/A | N54: N/A | O54: N/A | P54: N/A | Q54: N/A | R54: N/A | S54: N/A | T54: N/A | U54: N/A | V54: N/A | W54: N/A | X54: N/A | BB54: Contaminated (E. coli detected in 100 mL) | BC54: N/A | BD54: N/A | BE54: N/A | BF54: N/A | BG54: N/A | BH54: N/A | BI54: N/A | BJ54: N/A | BK54: N/A | BL54: N/A | BM54: N/A | BN54: N/A | BO54: N/A | BP54: N/A | BQ54: N/A | BR54: N/A | BS54: N/A | BT54: N/A | BU54: N/A | BV54: N/A | BW54: N/A | BX54: N/A
B55: Highly contaminated (>100 CFU/100 mL) | C55: N/A | D55: N/A | E55: N/A | F55: N/A | G55: N/A | H55: N/A | I55: N/A | J55: N/A | K55: N/A | L55: N/A | M55: N/A | N55: N/A | O55: N/A | P55: N/A | Q55: N/A | R55: N/A | S55: N/A | T55: N/A | U55: N/A | V55: N/A | W55: N/A | X55: N/A | BB55: Highly contaminated (>100 CFU/100 mL) | BC55: N/A | BD55: N/A | BE55: N/A | BF55: N/A | BG55: N/A | BH55: N/A | BI55: N/A | BJ55: N/A | BK55: N/A | BL55: N/A | BM55: N/A | BN55: N/A | BO55: N/A | BP55: N/A | BQ55: N/A | BR55: N/A | BS55: N/A | BT55: N/A | BU55: N/A | BV55: N/A | BW55: N/A | BX55: N/A
C56: NATIONAL wealth index quintile | H56: URBAN wealth index quintile | M56: RURAL wealth index quintile | R56: SUB-REGIONS: | BA56: Raw numbers of respondents: | BB56: Use of drinking water sources | BC56: NATIONAL wealth index quintile | BH56: URBAN wealth index quintile | BM56: RURAL wealth index quintile | BR56: SUB-REGIONS:
A57: Percentage based on weighted population | C57: Poorest | D57: Poor | E57: Middle | F57: Rich | G57: Richest | H57: Poorest | I57: Poor | J57: Middle | K57: Rich | L57: Richest | M57: Poorest | N57: Poor | O57: Middle | P57: Rich | Q57: Richest | R57: Brest | S57: Gomel | T57: Grodno | U57: Minsk | V57: Minsk city | W57: Mogilev | X57: Vitebsk | BA57: Water data, raw numbers (weighted) | BC57: Poorest | BD57: Poor | BE57: Middle | BF57: Rich | BG57: Richest | BH57: Poorest | BI57: Poor | BJ57: Middle | BK57: Rich | BL57: Richest | BM57: Poorest | BN57: Poor | BO57: Middle | BP57: Rich | BQ57: Richest | BR57: Brest | BS57: Gomel | BT57: Grodno | BU57: Minsk | BV57: Minsk city | BW57: Mogilev | BX57: Vitebsk
A58: Main source of drinking water | B58: Piped into dwelling | C58: 28.12322888 | D58: 78.08284482 | E58: 97.28076331 | F58: 98.74688471 | G58: 97.08358737 | H58: 66.00847381 | I58: 98.44182906 | J58: 99.23607013 | K58: 97.97243798 | L58: 98.14672282 | M58: 12.60524745 | N58: 31.93676287 | O58: 58.64372312 | P58: 86.13133145 | Q58: 91.90806948 | R58: 78.11965863 | S58: 82.07033523 | T58: 75.53278844 | U58: 75.12116476 | V58: 96.54162351 | W58: 77.49580744 | X58: 71.54413512
B59: Piped into yard or plot | C59: 7.366634454 | D59: 3.332962308 | E59: 0.04728139198 | F59: 0.0324921092 | G59: 0.0943263255 | H59: 3.139373611 | I59: 0.07143570429 | J59: 0 | K59: 0 | L59: 0.1427259234 | M59: 8.683782331 | N59: 7.818120198 | O59: 6.011362038 | P59: 2.949578728 | Q59: 0.09604734932 | R59: 5.002044261 | S59: 3.573155095 | T59: 2.008514274 | U59: 1.370088398 | V59: 0 | W59: 2.568580134 | X59: 0.8453116068
B60: Public tap/standpipe | C60: 17.15182761 | D60: 6.184616602 | E60: 0.2006188865 | F60: 0.04118668624 | G60: 0.1745011053 | H60: 17.18210231 | I60: 0.1702611816 | J60: 0 | K60: 0.1468356654 | L60: 0.1787555627 | M60: 15.34365148 | N60: 10.61231241 | O60: 7.782627721 | P60: 1.727915348 | Q60: 0.129968462 | R60: 2.064163204 | S60: 5.086949826 | T60: 1.096559885 | U60: 5.398753952 | V60: 0.6419166458 | W60: 12.00968196 | X60: 8.179059607
B61: Protected well | C61: 46.06587331 | D61: 11.73770654 | E61: 1.653191767 | F61: 0.6260743618 | G61: 0.8995187729 | H61: 12.75486694 | I61: 0.5584238392 | J61: 0.1384096249 | K61: 0.1560488314 | L61: 0.1274192139 | M61: 61.66521412 | N61: 48.30840442 | O61: 26.77400498 | P61: 9.02333122 | Q61: 7.47668151 | R61: 14.81413391 | S61: 8.81162818 | T61: 19.62332764 | U61: 17.23747848 | V61: 0 | W61: 7.437592674 | X61: 18.82543061
B62: Unprotected well | C62: 1.020504544 | D62: 0.5409205972 | E62: 0 | F62: 0 | G62: 0 | H62: 0.7414764337 | I62: 0 | J62: 0 | K62: 0 | L62: 0 | M62: 1.577021713 | N62: 0.9856576604 | O62: 0.5988908827 | P62: 0 | Q62: 0 | R62: 0 | S62: 0.1894023073 | T62: 1.591400395 | U62: 0.3871246276 | V62: 0 | W62: 0.05353293797 | X62: 0.1273121569
B63: Bottled water | C63: 0 | D63: 0.1209491246 | E63: 0.7803195329 | F63: 0.5533621291 | G63: 1.719884873 | H63: 0 | I63: 0.7009016547 | J63: 0.6255202403 | K63: 1.724677527 | L63: 1.361734745 | M63: 0 | N63: 0 | O63: 0.1893912548 | P63: 0.1678432519 | Q63: 0.3892331979 | R63: 0 | S63: 0.2312267612 | T63: 0.08666398655 | U63: 0.2860148985 | V63: 2.816459848 | W63: 0.299844529 | X63: 0.4319277726
B64: Other | C64: 0.271931204 | D64: 0 | E64: 0.03782511358 | F64: 0 | G64: 0.02818155179 | H64: 0.1737068983 | I64: 0.05714856343 | J64: 0 | K64: 0 | L64: 0.04264173317 | M64: 0.125082901 | N64: 0.3387424411 | O64: 0 | P64: 0 | Q64: 0 | R64: 0 | S64: 0.03730260087 | T64: 0.06074538851 | U64: 0.1993748868 | V64: 0 | W64: 0.1349603266 | X64: 0.04682312195
A108: =A1026 -> Belarus
A109: =A1034 -> 2005
A110: Use of sanitation facilities
A111: by wealth quintile and sub-national region
A112: Notes:
A113: WHO/UNICEF JMP customised wealth index excludes water,
A114: sanitation and hygiene assets.
A115: Survey used for analysis: | B115: =A1025 -> MICS05
A116: =B1030 -> 
A117: =B1029 -> 
A120: Use of sanitation facilities | C120: NATIONAL wealth index quintile | H120: URBAN wealth index quintile | M120: RURAL wealth index quintile | R120: SUB-REGIONS: | BA120: Raw numbers of respondents: | BB120: Use of sanitation facilities | BC120: NATIONAL wealth index quintile | BH120: URBAN wealth index quintile | BM120: RURAL wealth index quintile | BR120: SUB-REGIONS:
A121: Weighted percentage (used in graphs) | C121: Poorest | D121: Poor | E121: Middle | F121: Rich | G121: Richest | H121: Poorest | I121: Poor | J121: Middle | K121: Rich | L121: Richest | M121: Poorest | N121: Poor | O121: Middle | P121: Rich | Q121: Richest | R121: Brest | S121: Gomel | T121: Grodno | U121: Minsk | V121: Minsk city | W121: Mogilev | X121: Vitebsk | BA121: Sanitation data, raw numbers (weighted) | BC121: Poorest | BD121: Poor | BE121: Middle | BF121: Rich | BG121: Richest | BH121: Poorest | BI121: Poor | BJ121: Middle | BK121: Rich | BL121: Richest | BM121: Poorest | BN121: Poor | BO121: Middle | BP121: Rich | BQ121: Richest | BR121: Brest | BS121: Gomel | BT121: Grodno | BU121: Minsk | BV121: Minsk city | BW121: Mogilev | BX121: Vitebsk
A122: Sanitation | B122: Improved | C122: 98.23986136 | D122: 98.65125959 | E122: 99.80182564 | F122: 100 | G122: 100 | H122: 97.83439829 | I122: 99.87449966 | J122: 100 | K122: 100 | L122: 100 | M122: 98.51284883 | N122: 97.98737165 | O122: 99.65333579 | P122: 98.89497705 | Q122: 99.65970746 | R122: 99.94607568 | S122: 99.90323732 | T122: 99.00922043 | U122: 99.8545611 | V122: 100 | W122: 99.93002412 | X122: 96.49324513 | BA122: Sanitation | BB122: Improved | BC122: 3519.891898 | BD122: 3534.536188 | BE122: 3578.148134 | BF122: 3584.959556 | BG122: 3580.608752 | BH122: 2319.389126 | BI122: 2370.005589 | BJ122: 2361.672161 | BK122: 2379.985989 | BL122: 2366.393284 | BM122: 1195.801483 | BN122: 1187.946984 | BO122: 1210.358076 | BP122: 1197.953434 | BQ122: 1208.638402 | BR122: 2649.373356 | BS122: 2702.478333 | BT122: 2210.356872 | BU122: 2833.456412 | BV122: 2849.030406 | BW122: 2168.262155 | BX122: 2385.186993
B123: Not Improved | C123: 1.760138641 | D123: 1.348740407 | E123: 0.1981743612 | F123: 0 | G123: 0 | H123: 2.165601709 | I123: 0.1255003369 | J123: 0 | K123: 0 | L123: 0 | M123: 1.487151174 | N123: 2.012628354 | O123: 0.3466642066 | P123: 1.105022955 | Q123: 0.3402925444 | R123: 0.05392431894 | S123: 0.09676267536 | T123: 0.9907795652 | U123: 0.1454389015 | V123: 0 | W123: 0.06997587808 | X123: 3.506754866 | BB123: Not Improved | BC123: 63.06500899 | BD123: 48.32347602 | BE123: 7.105052598 | BF123: 0 | BG123: 0 | BH123: 51.34056267 | BI123: 2.978102526 | BJ123: 0 | BK123: 0 | BL123: 0 | BM123: 18.05183385 | BN123: 24.40003995 | BO123: 4.210474429 | BP123: 13.3855741 | BQ123: 4.126950073 | BR123: 1.429427348 | BS123: 2.617523121 | BT123: 22.11891389 | BU123: 4.126950073 | BV123: 0 | BW123: 1.518322942 | BX123: 86.68240023
A124: Sanitation ladder | B124: Basic | C124: =C122*C129/100 -> 92.40917889 | D124: =D122*D129/100 -> 94.01741157 | E124: =E122*E129/100 -> 91.08474811 | F124: 94.12108548 | G124: 93.44143185 | H124: 87.69916795 | I124: 87.68166376 | J124: 94.39008253 | K124: 92.62110607 | L124: 93.70260033 | M124: 96.87080257 | N124: 94.32357289 | O124: 96.74649025 | P124: 96.14883715 | Q124: 98.55492358 | R124: 93.27663951 | S124: 97.09768172 | T124: 91.80537382 | U124: 93.67745082 | V124: 88.41186958 | W124: 95.34738681 | X124: 91.85368352 | BA124: Sanitation ladder | BB124: Basic | BC124: 3310.981057 | BD124: 3368.511916 | BE124: 3265.618834 | BF124: 3374.202848 | BG124: 3345.772087 | BH124: 2079.110212 | BI124: 2080.671581 | BJ124: 2229.184302 | BK124: 2204.369347 | BL124: 2217.372041 | BM124: 1175.86945 | BN124: 1143.529029 | BO124: 1175.052444 | BP124: 1164.688371 | BQ124: 1195.239966 | BR124: 2472.579757 | BS124: 2626.585364 | BT124: 2049.532741 | BU124: 2658.175759 | BV124: 2518.881047 | BW124: 2068.828985 | BX124: 2270.50309
B125: Limited | C125: =C122*C128/100 -> 5.830682474 | D125: =D122*D128/100 -> 4.633848028 | E125: =E122*E128/100 -> 8.717077532 | F125: 5.878914525 | G125: 6.558568147 | H125: 10.13523034 | I125: 12.1928359 | J125: 5.609917467 | K125: 7.378893927 | L125: 6.297399675 | M125: 1.642046253 | N125: 3.66379876 | O125: 2.906845541 | P125: 2.746139893 | Q125: 1.104783873 | R125: 6.669436173 | S125: 2.805555603 | T125: 7.203846616 | U125: 6.17711028 | V125: 11.58813042 | W125: 4.582637307 | X125: 4.639561616 | BB125: Limited | BC125: 208.9108404 | BD125: 166.0242719 | BE125: 312.5293 | BF125: 210.7567081 | BG125: 234.8366651 | BH125: 240.2789148 | BI125: 289.3340074 | BJ125: 132.4878591 | BK125: 175.6166416 | BL125: 149.021243 | BM125: 19.93203291 | BN125: 44.41795523 | BO125: 35.30563175 | BP125: 33.26506374 | BQ125: 13.39843602 | BR125: 176.7935997 | BS125: 75.89296834 | BT125: 160.8241314 | BU125: 175.2806536 | BV125: 330.1493592 | BW125: 99.43316966 | BX125: 114.6839036
B126: Unimproved | C126: =100-C124-C125-C127 -> 1.760138641 | D126: =100-D124-D125-D127 -> 1.348740407 | E126: =100-E124-E125-E127 -> 0.1981743612 | F126: -1.083577672e-13 | G126: -1.314504061e-13 | H126: 2.165601709 | I126: 0.1255003369 | J126: 3.907985047e-14 | K126: -1.119104809e-13 | L126: 1.456612608e-13 | M126: 1.487151174 | N126: 2.012628354 | O126: 0.3466642066 | P126: 1.105022955 | Q126: 0.3402925444 | R126: 0.05392431894 | S126: 0.09676267536 | T126: 0.9907795652 | U126: 0.1454389015 | V126: -2.078337502e-13 | W126: 0.06997587808 | X126: 3.506754866 | BB126: Unimproved | BC126: 63.06500899 | BD126: 48.32347602 | BE126: 7.105052598 | BF126: 0 | BG126: 0 | BH126: 51.34056267 | BI126: 2.978102526 | BJ126: 0 | BK126: 0 | BL126: 0 | BM126: 18.05183385 | BN126: 24.40003995 | BO126: 4.210474429 | BP126: 13.3855741 | BQ126: 4.126950073 | BR126: 1.429427348 | BS126: 2.617523121 | BT126: 22.11891389 | BU126: 4.126950073 | BV126: 0 | BW126: 1.518322942 | BX126: 86.68240023
B127: Open defecation | C127: 0 | D127: 0 | E127: 0 | F127: 0 | G127: 0 | H127: 0 | I127: 0 | J127: 0 | K127: 0 | L127: 0 | M127: 0 | N127: 0 | O127: 0 | P127: 0 | Q127: 0 | R127: 0 | S127: 0 | T127: 0 | U127: 0 | V127: 0 | W127: 0 | X127: 0 | BB127: Open defecation | BC127: 192.2672582 | BD127: 1747.720965 | BE127: 3394.619218 | BF127: 3546.892191 | BG127: 3580.608752 | BH127: 794.0613131 | BI127: 2274.220688 | BJ127: 2344.758282 | BK127: 2367.04597 | BL127: 2366.393284 | BM127: 2.392839425 | BN127: 75.72453785 | BO127: 311.8678143 | BP127: 788.6744588 | BQ127: 1136.969196 | BR127: 1706.148853 | BS127: 1778.591045 | BT127: 1410.610717 | BU127: 1719.537242 | BV127: 2822.162501 | BW127: 1360.363649 | BX127: 1664.694377
A128: Shared among Improved Sanitation | B128: Yes | C128: 5.935149331 | D128: 4.697201076 | E128: 8.734386848 | F128: 5.878914525 | G128: 6.558568147 | H128: 10.35957753 | I128: 12.20815718 | J128: 5.609917467 | K128: 7.378893927 | L128: 6.297399675 | M128: 1.666834604 | N128: 3.73905198 | O128: 2.916957589 | P128: 2.77682444 | Q128: 1.108556207 | R128: 6.673034562 | S128: 2.808272963 | T128: 7.275935094 | U128: 6.186107286 | V128: 11.58813042 | W128: 4.585846294 | X128: 4.808172437 | BA128: Shared among improved sanitation facilities | BB128: Yes | BC128: N/A | BD128: N/A | BE128: N/A | BF128: N/A | BG128: N/A | BH128: N/A | BI128: N/A | BJ128: N/A | BK128: N/A | BL128: N/A | BM128: N/A | BN128: N/A | BO128: N/A | BP128: N/A | BQ128: N/A | BR128: N/A | BS128: N/A | BT128: N/A | BU128: N/A | BV128: N/A | BW128: N/A | BX128: N/A
B129: No | C129: 94.06485067 | D129: 95.30279892 | E129: 91.26561315 | F129: 94.12108548 | G129: 93.44143185 | H129: 89.64042247 | I129: 87.79184282 | J129: 94.39008253 | K129: 92.62110607 | L129: 93.70260033 | M129: 98.3331654 | N129: 96.26094802 | O129: 97.08304241 | P129: 97.22317556 | Q129: 98.89144379 | R129: 93.32696544 | S129: 97.19172704 | T129: 92.72406491 | U129: 93.81389271 | V129: 88.41186958 | W129: 95.41415371 | X129: 95.19182756 | BB129: No | BC129: N/A | BD129: N/A | BE129: N/A | BF129: N/A | BG129: N/A | BH129: N/A | BI129: N/A | BJ129: N/A | BK129: N/A | BL129: N/A | BM129: N/A | BN129: N/A | BO129: N/A | BP129: N/A | BQ129: N/A | BR129: N/A | BS129: N/A | BT129: N/A | BU129: N/A | BV129: N/A | BW129: N/A | BX129: N/A
A130: Manually calculated ratios | B130: Improved latrines
B131: Other
B132: Other
C133: NATIONAL wealth index quintile | H133: URBAN wealth index quintile | M133: RURAL wealth index quintile | R133: SUB-REGIONS: | BA133: Raw numbers of respondents: | BB133: Use of sanitation facilities | BC133: NATIONAL wealth index quintile | BH133: URBAN wealth index quintile | BM133: RURAL wealth index quintile | BR133: SUB-REGIONS:
A134: Percentage based on weighted population | C134: Poorest | D134: Poor | E134: Middle | F134: Rich | G134: Richest | H134: Poorest | I134: Poor | J134: Middle | K134: Rich | L134: Richest | M134: Poorest | N134: Poor | O134: Middle | P134: Rich | Q134: Richest | R134: Brest | S134: Gomel | T134: Grodno | U134: Minsk | V134: Minsk city | W134: Mogilev | X134: Vitebsk | BA134: Sanitation data, raw numbers (weighted) | BC134: Poorest | BD134: Poor | BE134: Middle | BF134: Rich | BG134: Richest | BH134: Poorest | BI134: Poor | BJ134: Middle | BK134: Rich | BL134: Richest | BM134: Poorest | BN134: Poor | BO134: Middle | BP134: Rich | BQ134: Richest | BR134: Brest | BS134: Gomel | BT134: Grodno | BU134: Minsk | BV134: Minsk city | BW134: Mogilev | BX134: Vitebsk
A135: Sanitation type | B135: Sewer connection | C135: 5.366161615 | D135: 48.78005639 | E135: 94.68283108 | F135: 98.93813683 | G135: 100 | H135: 33.49438432 | I135: 95.83802435 | J135: 99.28381768 | K135: 99.45629853 | L135: 100 | M135: 0.19712756 | N135: 6.246110755 | O135: 25.67725092 | P135: 65.107658 | Q135: 93.75013846 | R135: 64.36347749 | S135: 65.74964956 | T135: 63.1859358 | U135: 60.59865112 | V135: 99.05694566 | W135: 62.69591152 | X135: 67.3455637 | BA135: Sanitation type | BB135: Sewer connection | BC135: N/A | BD135: N/A | BE135: N/A | BF135: N/A | BG135: N/A | BH135: N/A | BI135: N/A | BJ135: N/A | BK135: N/A | BL135: N/A | BM135: N/A | BN135: N/A | BO135: N/A | BP135: N/A | BQ135: N/A | BR135: N/A | BS135: N/A | BT135: N/A | BU135: N/A | BV135: N/A | BW135: N/A | BX135: N/A
B136: Septic tank connection | C136: 2.957675611 | D136: 8.189292351 | E136: 2.25826513 | F136: 1.024054264 | G136: 0 | H136: 5.936527459 | I136: 1.309578095 | J136: 0.7161823191 | K136: 0.5437014688 | L136: 0 | M136: 0.4496677964 | N136: 2.963802989 | O136: 10.67776863 | P136: 8.260089082 | Q136: 3.649030062 | R136: 5.256179764 | S136: 0.9915171109 | T136: 1.984646749 | U136: 4.952301614 | V136: 0 | W136: 4.422370672 | X136: 2.836675791 | BB136: Septic tank connection | BC136: N/A | BD136: N/A | BE136: N/A | BF136: N/A | BG136: N/A | BH136: N/A | BI136: N/A | BJ136: N/A | BK136: N/A | BL136: N/A | BM136: N/A | BN136: N/A | BO136: N/A | BP136: N/A | BQ136: N/A | BR136: N/A | BS136: N/A | BT136: N/A | BU136: N/A | BV136: N/A | BW136: N/A | BX136: N/A
B137: Improved latrines | C137: 89.91602413 | D137: 41.68191085 | E137: 2.86072943 | F137: 0.03780890228 | G137: 0 | H137: 58.40348652 | I137: 2.726897221 | J137: 0 | K137: 0 | L137: 0 | M137: 97.86605347 | N137: 88.7774579 | O137: 63.29831625 | P137: 25.52722996 | Q137: 2.260538939 | R137: 30.32641842 | S137: 33.16207065 | T137: 33.83863789 | U137: 34.30360837 | V137: 0.9430543357 | W137: 32.81174193 | X137: 26.31100564 | BB137: Improved latrines | BC137: N/A | BD137: N/A | BE137: N/A | BF137: N/A | BG137: N/A | BH137: N/A | BI137: N/A | BJ137: N/A | BK137: N/A | BL137: N/A | BM137: N/A | BN137: N/A | BO137: N/A | BP137: N/A | BQ137: N/A | BR137: N/A | BS137: N/A | BT137: N/A | BU137: N/A | BV137: N/A | BW137: N/A | BX137: N/A
B138: Unimproved facilities | C138: 1.760138641 | D138: 1.348740407 | E138: 0.1981743612 | F138: 0 | G138: 0 | H138: 2.165601709 | I138: 0.1255003369 | J138: 0 | K138: 0 | L138: 0 | M138: 1.487151174 | N138: 2.012628354 | O138: 0.3466642066 | P138: 1.105022955 | Q138: 0.3402925444 | R138: 0.05392431894 | S138: 0.09676267536 | T138: 0.9907795652 | U138: 0.1454389015 | V138: 0 | W138: 0.06997587808 | X138: 3.506754866 | BB138: Unimproved facilities | BC138: N/A | BD138: N/A | BE138: N/A | BF138: N/A | BG138: N/A | BH138: N/A | BI138: N/A | BJ138: N/A | BK138: N/A | BL138: N/A | BM138: N/A | BN138: N/A | BO138: N/A | BP138: N/A | BQ138: N/A | BR138: N/A | BS138: N/A | BT138: N/A | BU138: N/A | BV138: N/A | BW138: N/A | BX138: N/A
B139: Open defecation | C139: 0 | D139: 0 | E139: 0 | F139: 0 | G139: 0 | H139: 0 | I139: 0 | J139: 0 | K139: 0 | L139: 0 | M139: 0 | N139: 0 | O139: 0 | P139: 0 | Q139: 0 | R139: 0 | S139: 0 | T139: 0 | U139: 0 | V139: 0 | W139: 0 | X139: 0 | BB139: Open defecation | BC139: N/A | BD139: N/A | BE139: N/A | BF139: N/A | BG139: N/A | BH139: N/A | BI139: N/A | BJ139: N/A | BK139: N/A | BL139: N/A | BM139: N/A | BN139: N/A | BO139: N/A | BP139: N/A | BQ139: N/A | BR139: N/A | BS139: N/A | BT139: N/A | BU139: N/A | BV139: N/A | BW139: N/A | BX139: N/A
A140: Septic tank emptying practices | B140: Not emptied/treated and disposed in situ | C140: N/A | D140: N/A | E140: N/A | F140: N/A | G140: N/A | H140: N/A | I140: N/A | J140: N/A | K140: N/A | L140: N/A | M140: N/A | N140: N/A | O140: N/A | P140: N/A | Q140: N/A | R140: N/A | S140: N/A | T140: N/A | U140: N/A | V140: N/A | W140: N/A | X140: N/A | BA140: Septic tank emptying practices | BB140: Not emptied/treated and disposed in situ | BC140: N/A | BD140: N/A | BE140: N/A | BF140: N/A | BG140: N/A | BH140: N/A | BI140: N/A | BJ140: N/A | BK140: N/A | BL140: N/A | BM140: N/A | BN140: N/A | BO140: N/A | BP140: N/A | BQ140: N/A | BR140: N/A | BS140: N/A | BT140: N/A | BU140: N/A | BV140: N/A | BW140: N/A | BX140: N/A
B141: Emptied and buried on site | C141: N/A | D141: N/A | E141: N/A | F141: N/A | G141: N/A | H141: N/A | I141: N/A | J141: N/A | K141: N/A | L141: N/A | M141: N/A | N141: N/A | O141: N/A | P141: N/A | Q141: N/A | R141: N/A | S141: N/A | T141: N/A | U141: N/A | V141: N/A | W141: N/A | X141: N/A | BB141: Emptied and buried on site | BC141: N/A | BD141: N/A | BE141: N/A | BF141: N/A | BG141: N/A | BH141: N/A | BI141: N/A | BJ141: N/A | BK141: N/A | BL141: N/A | BM141: N/A | BN141: N/A | BO141: N/A | BP141: N/A | BQ141: N/A | BR141: N/A | BS141: N/A | BT141: N/A | BU141: N/A | BV141: N/A | BW141: N/A | BX141: N/A
B142: Emptied and discharged locally | C142: N/A | D142: N/A | E142: N/A | F142: N/A | G142: N/A | H142: N/A | I142: N/A | J142: N/A | K142: N/A | L142: N/A | M142: N/A | N142: N/A | O142: N/A | P142: N/A | Q142: N/A | R142: N/A | S142: N/A | T142: N/A | U142: N/A | V142: N/A | W142: N/A | X142: N/A | BB142: Emptied and discharged locally | BC142: N/A | BD142: N/A | BE142: N/A | BF142: N/A | BG142: N/A | BH142: N/A | BI142: N/A | BJ142: N/A | BK142: N/A | BL142: N/A | BM142: N/A | BN142: N/A | BO142: N/A | BP142: N/A | BQ142: N/A | BR142: N/A | BS142: N/A | BT142: N/A | BU142: N/A | BV142: N/A | BW142: N/A | BX142: N/A
B143: Emptied and removed offsite | C143: N/A | D143: N/A | E143: N/A | F143: N/A | G143: N/A | H143: N/A | I143: N/A | J143: N/A | K143: N/A | L143: N/A | M143: N/A | N143: N/A | O143: N/A | P143: N/A | Q143: N/A | R143: N/A | S143: N/A | T143: N/A | U143: N/A | V143: N/A | W143: N/A | X143: N/A | BB143: Emptied and removed offsite | BC143: N/A | BD143: N/A | BE143: N/A | BF143: N/A | BG143: N/A | BH143: N/A | BI143: N/A | BJ143: N/A | BK143: N/A | BL143: N/A | BM143: N/A | BN143: N/A | BO143: N/A | BP143: N/A | BQ143: N/A | BR143: N/A | BS143: N/A | BT143: N/A | BU143: N/A | BV143: N/A | BW143: N/A | BX143: N/A
A144: Latrine emptying practices | B144: Not emptied/treated and disposed in situ | C144: N/A | D144: N/A | E144: N/A | F144: N/A | G144: N/A | H144: N/A | I144: N/A | J144: N/A | K144: N/A | L144: N/A | M144: N/A | N144: N/A | O144: N/A | P144: N/A | Q144: N/A | R144: N/A | S144: N/A | T144: N/A | U144: N/A | V144: N/A | W144: N/A | X144: N/A | BA144: Latrine emptying practices | BB144: Not emptied/treated and disposed in situ | BC144: N/A | BD144: N/A | BE144: N/A | BF144: N/A | BG144: N/A | BH144: N/A | BI144: N/A | BJ144: N/A | BK144: N/A | BL144: N/A | BM144: N/A | BN144: N/A | BO144: N/A | BP144: N/A | BQ144: N/A | BR144: N/A | BS144: N/A | BT144: N/A | BU144: N/A | BV144: N/A | BW144: N/A | BX144: N/A
B145: Emptied and buried on site | C145: N/A | D145: N/A | E145: N/A | F145: N/A | G145: N/A | H145: N/A | I145: N/A | J145: N/A | K145: N/A | L145: N/A | M145: N/A | N145: N/A | O145: N/A | P145: N/A | Q145: N/A | R145: N/A | S145: N/A | T145: N/A | U145: N/A | V145: N/A | W145: N/A | X145: N/A | BB145: Emptied and buried on site | BC145: N/A | BD145: N/A | BE145: N/A | BF145: N/A | BG145: N/A | BH145: N/A | BI145: N/A | BJ145: N/A | BK145: N/A | BL145: N/A | BM145: N/A | BN145: N/A | BO145: N/A | BP145: N/A | BQ145: N/A | BR145: N/A | BS145: N/A | BT145: N/A | BU145: N/A | BV145: N/A | BW145: N/A | BX145: N/A
B146: Emptied and discharged locally | C146: N/A | D146: N/A | E146: N/A | F146: N/A | G146: N/A | H146: N/A | I146: N/A | J146: N/A | K146: N/A | L146: N/A | M146: N/A | N146: N/A | O146: N/A | P146: N/A | Q146: N/A | R146: N/A | S146: N/A | T146: N/A | U146: N/A | V146: N/A | W146: N/A | X146: N/A | BB146: Emptied and discharged locally | BC146: N/A | BD146: N/A | BE146: N/A | BF146: N/A | BG146: N/A | BH146: N/A | BI146: N/A | BJ146: N/A | BK146: N/A | BL146: N/A | BM146: N/A | BN146: N/A | BO146: N/A | BP146: N/A | BQ146: N/A | BR146: N/A | BS146: N/A | BT146: N/A | BU146: N/A | BV146: N/A | BW146: N/A | BX146: N/A
B147: Emptied and removed offsite | C147: N/A | D147: N/A | E147: N/A | F147: N/A | G147: N/A | H147: N/A | I147: N/A | J147: N/A | K147: N/A | L147: N/A | M147: N/A | N147: N/A | O147: N/A | P147: N/A | Q147: N/A | R147: N/A | S147: N/A | T147: N/A | U147: N/A | V147: N/A | W147: N/A | X147: N/A | BB147: Emptied and removed offsite | BC147: N/A | BD147: N/A | BE147: N/A | BF147: N/A | BG147: N/A | BH147: N/A | BI147: N/A | BJ147: N/A | BK147: N/A | BL147: N/A | BM147: N/A | BN147: N/A | BO147: N/A | BP147: N/A | BQ147: N/A | BR147: N/A | BS147: N/A | BT147: N/A | BU147: N/A | BV147: N/A | BW147: N/A | BX147: N/A
A148: Shared among improved sanitation facilities | B148: Yes | C148: 5.830682474 | D148: 4.633848028 | E148: 8.717077532 | F148: 5.878914525 | G148: 6.558568147 | H148: 10.13523034 | I148: 12.1928359 | J148: 5.609917467 | K148: 7.378893927 | L148: 6.297399675 | M148: 1.642046253 | N148: 3.66379876 | O148: 2.906845541 | P148: 2.746139893 | Q148: 1.104783873 | R148: 6.669436173 | S148: 2.805555603 | T148: 7.203846616 | U148: 6.17711028 | V148: 11.58813042 | W148: 4.582637307 | X148: 4.639561616 | BA148: Shared among improved sanitation facilities | BB148: Yes | BC148: N/A | BD148: N/A | BE148: N/A | BF148: N/A | BG148: N/A | BH148: N/A | BI148: N/A | BJ148: N/A | BK148: N/A | BL148: N/A | BM148: N/A | BN148: N/A | BO148: N/A | BP148: N/A | BQ148: N/A | BR148: N/A | BS148: N/A | BT148: N/A | BU148: N/A | BV148: N/A | BW148: N/A | BX148: N/A
B149: No | C149: 92.40917889 | D149: 94.01741157 | E149: 91.08474811 | F149: 94.12108548 | G149: 93.44143185 | H149: 87.69916795 | I149: 87.68166376 | J149: 94.39008253 | K149: 92.62110607 | L149: 93.70260033 | M149: 96.87080257 | N149: 94.32357289 | O149: 96.74649025 | P149: 96.14883715 | Q149: 98.55492358 | R149: 93.27663951 | S149: 97.09768172 | T149: 91.80537382 | U149: 93.67745082 | V149: 88.41186958 | W149: 95.34738681 | X149: 91.85368352 | BB149: No | BC149: N/A | BD149: N/A | BE149: N/A | BF149: N/A | BG149: N/A | BH149: N/A | BI149: N/A | BJ149: N/A | BK149: N/A | BL149: N/A | BM149: N/A | BN149: N/A | BO149: N/A | BP149: N/A | BQ149: N/A | BR149: N/A | BS149: N/A | BT149: N/A | BU149: N/A | BV149: N/A | BW149: N/A | BX149: N/A
B150: DK/missing | C150: 1.760138641 | D150: 1.348740407 | E150: 0.1981743612 | F150: 0 | G150: 0 | H150: 2.165601709 | I150: 0.1255003369 | J150: 0 | K150: 0 | L150: 0 | M150: 1.487151174 | N150: 2.012628354 | O150: 0.3466642066 | P150: 1.105022955 | Q150: 0.3402925444 | R150: 0.05392431894 | S150: 0.09676267536 | T150: 0.9907795652 | U150: 0.1454389015 | V150: 0 | W150: 0.06997587808 | X150: 3.506754866 | BB150: DK/missing | BC150: N/A | BD150: N/A | BE150: N/A | BF150: N/A | BG150: N/A | BH150: N/A | BI150: N/A | BJ150: N/A | BK150: N/A | BL150: N/A | BM150: N/A | BN150: N/A | BO150: N/A | BP150: N/A | BQ150: N/A | BR150: N/A | BS150: N/A | BT150: N/A | BU150: N/A | BV150: N/A | BW150: N/A | BX150: N/A
A151: Shared among all sanitation facilities | B151: Yes | C151: 6.037506562 | D151: 4.759656261 | E151: 8.717077532 | F151: 5.878914525 | G151: 6.558568147 | H151: 10.43882738 | I151: 12.1928359 | J151: 5.609917467 | K151: 7.378893927 | L151: 6.297399675 | M151: 1.901302475 | N151: 3.793587928 | O151: 2.906845541 | P151: 2.746139893 | Q151: 1.104783873 | R151: 6.669436173 | S151: 2.805555603 | T151: 7.392845866 | U151: 6.17711028 | V151: 11.58813042 | W151: 4.582637307 | X151: 4.95100962 | BA151: Shared among all sanitation facilities | BB151: Yes | BC151: N/A | BD151: N/A | BE151: N/A | BF151: N/A | BG151: N/A | BH151: N/A | BI151: N/A | BJ151: N/A | BK151: N/A | BL151: N/A | BM151: N/A | BN151: N/A | BO151: N/A | BP151: N/A | BQ151: N/A | BR151: N/A | BS151: N/A | BT151: N/A | BU151: N/A | BV151: N/A | BW151: N/A | BX151: N/A
B152: No | C152: 93.96249344 | D152: 95.24034374 | E152: 91.28292247 | F152: 94.12108548 | G152: 93.44143185 | H152: 89.56117262 | I152: 87.8071641 | J152: 94.39008253 | K152: 92.62110607 | L152: 93.70260033 | M152: 98.09869753 | N152: 96.20641207 | O152: 97.09315446 | P152: 97.25386011 | Q152: 98.89521613 | R152: 93.33056383 | S152: 97.1944444 | T152: 92.60715413 | U152: 93.82288972 | V152: 88.41186958 | W152: 95.41736269 | X152: 95.04899038 | BB152: No | BC152: N/A | BD152: N/A | BE152: N/A | BF152: N/A | BG152: N/A | BH152: N/A | BI152: N/A | BJ152: N/A | BK152: N/A | BL152: N/A | BM152: N/A | BN152: N/A | BO152: N/A | BP152: N/A | BQ152: N/A | BR152: N/A | BS152: N/A | BT152: N/A | BU152: N/A | BV152: N/A | BW152: N/A | BX152: N/A
A153: Kind of toilet facility | B153: Flush to piped sewer system | C153: 5.366161615 | D153: 48.78005639 | E153: 94.68283108 | F153: 98.93813683 | G153: 100 | H153: 33.49438432 | I153: 95.83802435 | J153: 99.28381768 | K153: 99.45629853 | L153: 100 | M153: 0.19712756 | N153: 6.246110755 | O153: 25.67725092 | P153: 65.107658 | Q153: 93.75013846 | R153: 64.36347749 | S153: 65.74964956 | T153: 63.1859358 | U153: 60.59865112 | V153: 99.05694566 | W153: 62.69591152 | X153: 67.3455637 | BA153: Kind of toilet facility | BB153: Flush to piped sewer system | BC153: 192.2672582 | BD153: 1747.720965 | BE153: 3394.619218 | BF153: 3546.892191 | BG153: 3580.608752 | BH153: 794.0613131 | BI153: 2274.220688 | BJ153: 2344.758282 | BK153: 2367.04597 | BL153: 2366.393284 | BM153: 2.392839425 | BN153: 75.72453785 | BO153: 311.8678143 | BP153: 788.6744588 | BQ153: 1136.969196 | BR153: 1706.148853 | BS153: 1778.591045 | BT153: 1410.610717 | BU153: 1719.537242 | BV153: 2822.162501 | BW153: 1360.363649 | BX153: 1664.694377
B154: Flush to septic tank | C154: 2.957675611 | D154: 8.189292351 | E154: 2.25826513 | F154: 1.024054264 | G154: 0 | H154: 5.936527459 | I154: 1.309578095 | J154: 0.7161823191 | K154: 0.5437014688 | L154: 0 | M154: 0.4496677964 | N154: 2.963802989 | O154: 10.67776863 | P154: 8.260089082 | Q154: 3.649030062 | R154: 5.256179764 | S154: 0.9915171109 | T154: 1.984646749 | U154: 4.952301614 | V154: 0 | W154: 4.422370672 | X154: 2.836675791 | BB154: Flush to septic tank | BC154: 105.9722426 | BD154: 293.4108524 | BE154: 80.96452252 | BF154: 36.71193118 | BG154: 0 | BH154: 140.739019 | BI154: 31.07607463 | BJ154: 16.91387845 | BK154: 12.94001878 | BL154: 0 | BM154: 5.45830746 | BN154: 35.93157733 | BO154: 129.6888196 | BP154: 100.0576812 | BQ154: 44.25417226 | BR154: 139.3309595 | BS154: 26.82148828 | BT154: 44.30675811 | BU154: 140.5256866 | BV154: 0 | BW154: 95.95573549 | BX154: 70.11892068
B155: Flush to pit (latrine) | C155: 1.726756265 | D155: 4.285275939 | E155: 0.458905887 | F155: 0 | G155: 0 | H155: 7.554353583 | I155: 0.6564472473 | J155: 0 | K155: 0 | L155: 0 | M155: 0 | N155: 0.4115647255 | O155: 0.855577352 | P155: 1.576319311 | Q155: 0.2235278 | R155: 0 | S155: 4.6340868 | T155: 1.138265137 | U155: 1.556909575 | V155: 0.8816358606 | W155: 0.204431546 | X155: 0.2976255051 | BB155: Flush to pit (latrine) | BC155: 61.86893286 | BD155: 153.5354231 | BE155: 16.45293794 | BF155: 0 | BG155: 0 | BH155: 179.0933032 | BI155: 15.57738612 | BJ155: 0 | BK155: 0 | BL155: 0 | BM155: 0 | BN155: 4.989592701 | BO155: 10.39157344 | BP155: 19.09457071 | BQ155: 2.71086771 | BR155: 0 | BS155: 125.35649 | BT155: 25.41149358 | BU155: 44.17860706 | BV155: 25.11807374 | BW155: 4.435715775 | BX155: 7.356913768
B156: Ventilated Improved Pit latrine (VIP) | C156: 0.7241831503 | D156: 1.12509506 | E156: 0.09581969626 | F156: 0 | G156: 0 | H156: 2.012368593 | I156: 0.1079551028 | J156: 0 | K156: 0 | L156: 0 | M156: 0.2266583623 | N156: 0.228885772 | O156: 0.8609077886 | P156: 0.211949127 | Q156: 0.07203551199 | R156: 0 | S156: 0.4163166524 | T156: 0.3498737317 | U156: 0.09695926769 | V156: 0 | W156: 0.06498444849 | X156: 1.879516585 | BB156: Ventilated Improved Pit latrine (VIP) | BC156: 25.9471702 | BD156: 40.31057708 | BE156: 3.435378713 | BF156: 0 | BG156: 0 | BH156: 47.70781969 | BI156: 2.561756983 | BJ156: 0 | BK156: 0 | BL156: 0 | BM156: 2.751300048 | BN156: 2.774889845 | BO156: 10.45631525 | BP156: 2.567422453 | BQ156: 0.8736217304 | BR156: 0 | BS156: 11.26176451 | BT156: 7.810846342 | BU156: 2.751300048 | BV156: 0 | BW156: 1.410019877 | BX156: 46.45919522
B157: Pit latrine with slab | C157: 87.34990192 | D157: 36.27153985 | E157: 2.306003847 | F157: 0.03780890228 | G157: 0 | H157: 48.83676434 | I157: 1.962494871 | J157: 0 | K157: 0 | L157: 0 | M157: 97.63939511 | N157: 87.79659744 | O157: 61.5818311 | P157: 23.73896153 | Q157: 1.964975627 | R157: 30.32641842 | S157: 28.1116672 | T157: 32.35049902 | U157: 32.50430062 | V157: 0.06141847511 | W157: 32.54232593 | X157: 24.13386355 | BB157: Pit latrine with slab | BC157: 3129.709344 | BD157: 1299.558371 | BE157: 82.67607638 | BF157: 1.355433855 | BG157: 0 | BH157: 1157.787671 | BI157: 46.56968322 | BJ157: 0 | BK157: 0 | BL157: 0 | BM157: 1185.199036 | BN157: 1064.399436 | BO157: 747.9535534 | BP157: 287.5593011 | BQ157: 23.83054357 | BR157: 803.8935438 | BS157: 760.4475444 | BT157: 722.2170574 | BU157: 922.3366265 | BV157: 1.749831031 | BW157: 706.0970351 | BX157: 596.5575866
B158: Pit latrine without slab/open pit | C158: 1.638097079 | D158: 1.348740407 | E158: 0.1981743612 | F158: 0 | G158: 0 | H158: 2.111572838 | I158: 0.1255003369 | J158: 0 | K158: 0 | L158: 0 | M158: 1.362068273 | N158: 1.882839185 | O158: 0.3466642066 | P158: 1.105022955 | Q158: 0.3402925444 | R158: 0.05392431894 | S158: 0.04941209853 | T158: 0.9907795652 | U158: 0.1454389015 | V158: 0 | W158: 0 | X158: 3.443098787 | BB158: Pit latrine without slab/open pit | BC158: 58.69231243 | BD158: 48.32347602 | BE158: 7.105052598 | BF158: 0 | BG158: 0 | BH158: 50.05968418 | BI158: 2.978102526 | BJ158: 0 | BK158: 0 | BL158: 0 | BM158: 16.53351091 | BN158: 22.82654483 | BO158: 4.210474429 | BP158: 13.3855741 | BQ158: 4.126950073 | BR158: 1.429427348 | BS158: 1.33664463 | BT158: 22.11891389 | BU158: 4.126950073 | BV158: 0 | BW158: 0 | BX158: 85.10890511
B159: Composting toilet | C159: 0.1151827996 | D159: 0 | E159: 0 | F159: 0 | G159: 0 | H159: 0 | I159: 0 | J159: 0 | K159: 0 | L159: 0 | M159: 0 | N159: 0.3404099644 | O159: 0 | P159: 0 | Q159: 0 | R159: 0 | S159: 0 | T159: 0 | U159: 0.1454389015 | V159: 0 | W159: 0 | X159: 0 | BB159: Composting toilet | BC159: 4.126950073 | BD159: 0 | BE159: 0 | BF159: 0 | BG159: 0 | BH159: 0 | BI159: 0 | BJ159: 0 | BK159: 0 | BL159: 0 | BM159: 0 | BN159: 4.126950073 | BO159: 0 | BP159: 0 | BQ159: 0 | BR159: 0 | BS159: 0 | BT159: 0 | BU159: 4.126950073 | BV159: 0 | BW159: 0 | BX159: 0
B160: Bucket | C160: 0.1220415614 | D160: 0 | E160: 0 | F160: 0 | G160: 0 | H160: 0.05402887125 | I160: 0 | J160: 0 | K160: 0 | L160: 0 | M160: 0.125082901 | N160: 0.1297891684 | O160: 0 | P160: 0 | Q160: 0 | R160: 0 | S160: 0.04735057682 | T160: 0 | U160: 0 | V160: 0 | W160: 0.06997587808 | X160: 0.06365607845 | BB160: Bucket | BC160: 4.372696553 | BD160: 0 | BE160: 0 | BF160: 0 | BG160: 0 | BH160: 1.280878491 | BI160: 0 | BJ160: 0 | BK160: 0 | BL160: 0 | BM160: 1.518322942 | BN160: 1.57349512 | BO160: 0 | BP160: 0 | BQ160: 0 | BR160: 0 | BS160: 1.280878491 | BT160: 0 | BU160: 0 | BV160: 0 | BW160: 1.518322942 | BX160: 1.57349512
BB161: Total | BC161: 3582.956907 | BD161: 3582.859664 | BE161: 3585.253186 | BF161: 3584.959556 | BG161: 3580.608752 | BH161: 2370.729689 | BI161: 2372.983691 | BJ161: 2361.672161 | BK161: 2379.985989 | BL161: 2366.393284 | BM161: 1213.853317 | BN161: 1212.347024 | BO161: 1214.56855 | BP161: 1211.339008 | BQ161: 1212.765352 | BR161: 2650.802784 | BS161: 2705.095856 | BT161: 2232.475786 | BU161: 2837.583362 | BV161: 2849.030406 | BW161: 2169.780478 | BX161: 2471.869393
A208: =A1026 -> Belarus
A209: =A1034 -> 2005
A210: Access to hygiene facilities
A211: by wealth quintile and sub-national region
A212: Notes:
A213: WHO/UNICEF JMP customised wealth index excludes water,
A214: sanitation and hygiene assets.
A215: Survey used for analysis: | B215: =A1025 -> MICS05
A220: Access to handwashing | C220: NATIONAL wealth index quintile | H220: URBAN wealth index quintile | M220: RURAL wealth index quintile | R220: SUB-REGIONS: | BA220: Raw numbers of respondents: | BB220: Access to handwashing | BC220: NATIONAL wealth index quintile | BH220: URBAN wealth index quintile | BM220: RURAL wealth index quintile | BR220: SUB-REGIONS:
A221: Weighted percentage (used in graphs) | C221: Poorest | D221: Poor | E221: Middle | F221: Rich | G221: Richest | H221: Poorest | I221: Poor | J221: Middle | K221: Rich | L221: Richest | M221: Poorest | N221: Poor | O221: Middle | P221: Rich | Q221: Richest | R221: Brest | S221: Gomel | T221: Grodno | U221: Minsk | V221: Minsk city | W221: Mogilev | X221: Vitebsk | BA221: Hygiene data, raw numbers (weighted) | BC221: Poorest | BD221: Poor | BE221: Middle | BF221: Rich | BG221: Richest | BH221: Poorest | BI221: Poor | BJ221: Middle | BK221: Rich | BL221: Richest | BM221: Poorest | BN221: Poor | BO221: Middle | BP221: Rich | BQ221: Richest | BR221: Brest | BS221: Gomel | BT221: Grodno | BU221: Minsk | BV221: Minsk city | BW221: Mogilev | BX221: Vitebsk
A222: Hygiene ladder | B222: Basic | C222: N/A | D222: N/A | E222: N/A | F222: N/A | G222: N/A | H222: N/A | I222: N/A | J222: N/A | K222: N/A | L222: N/A | M222: N/A | N222: N/A | O222: N/A | P222: N/A | Q222: N/A | R222: N/A | S222: N/A | T222: N/A | U222: N/A | V222: N/A | W222: N/A | X222: N/A | BA222: Hygiene ladder | BB222: Basic | BC222: N/A | BD222: N/A | BE222: N/A | BF222: N/A | BG222: N/A | BH222: N/A | BI222: N/A | BJ222: N/A | BK222: N/A | BL222: N/A | BM222: N/A | BN222: N/A | BO222: N/A | BP222: N/A | BQ222: N/A | BR222: N/A | BS222: N/A | BT222: N/A | BU222: N/A | BV222: N/A | BW222: N/A | BX222: N/A
B223: Limited | C223: N/A | D223: N/A | E223: N/A | F223: N/A | G223: N/A | H223: N/A | I223: N/A | J223: N/A | K223: N/A | L223: N/A | M223: N/A | N223: N/A | O223: N/A | P223: N/A | Q223: N/A | R223: N/A | S223: N/A | T223: N/A | U223: N/A | V223: N/A | W223: N/A | X223: N/A | BB223: Limited | BC223: N/A | BD223: N/A | BE223: N/A | BF223: N/A | BG223: N/A | BH223: N/A | BI223: N/A | BJ223: N/A | BK223: N/A | BL223: N/A | BM223: N/A | BN223: N/A | BO223: N/A | BP223: N/A | BQ223: N/A | BR223: N/A | BS223: N/A | BT223: N/A | BU223: N/A | BV223: N/A | BW223: N/A | BX223: N/A
B224: No facility | C224: N/A | D224: N/A | E224: N/A | F224: N/A | G224: N/A | H224: N/A | I224: N/A | J224: N/A | K224: N/A | L224: N/A | M224: N/A | N224: N/A | O224: N/A | P224: N/A | Q224: N/A | R224: N/A | S224: N/A | T224: N/A | U224: N/A | V224: N/A | W224: N/A | X224: N/A | BB224: No facility | BC224: N/A | BD224: N/A | BE224: N/A | BF224: N/A | BG224: N/A | BH224: N/A | BI224: N/A | BJ224: N/A | BK224: N/A | BL224: N/A | BM224: N/A | BN224: N/A | BO224: N/A | BP224: N/A | BQ224: N/A | BR224: N/A | BS224: N/A | BT224: N/A | BU224: N/A | BV224: N/A | BW224: N/A | BX224: N/A
BA225: Observed handwashing place | BB225: Fixed | BC225: N/A | BD225: N/A | BE225: N/A | BF225: N/A | BG225: N/A | BH225: N/A | BI225: N/A | BJ225: N/A | BK225: N/A | BL225: N/A | BM225: N/A | BN225: N/A | BO225: N/A | BP225: N/A | BQ225: N/A | BR225: N/A | BS225: N/A | BT225: N/A | BU225: N/A | BV225: N/A | BW225: N/A | BX225: N/A
BB226: Mobile | BC226: N/A | BD226: N/A | BE226: N/A | BF226: N/A | BG226: N/A | BH226: N/A | BI226: N/A | BJ226: N/A | BK226: N/A | BL226: N/A | BM226: N/A | BN226: N/A | BO226: N/A | BP226: N/A | BQ226: N/A | BR226: N/A | BS226: N/A | BT226: N/A | BU226: N/A | BV226: N/A | BW226: N/A | BX226: N/A
BA227: Water / Soap | BB227: Water and soap | BC227: N/A | BD227: N/A | BE227: N/A | BF227: N/A | BG227: N/A | BH227: N/A | BI227: N/A | BJ227: N/A | BK227: N/A | BL227: N/A | BM227: N/A | BN227: N/A | BO227: N/A | BP227: N/A | BQ227: N/A | BR227: N/A | BS227: N/A | BT227: N/A | BU227: N/A | BV227: N/A | BW227: N/A | BX227: N/A
BB228: Water only | BC228: N/A | BD228: N/A | BE228: N/A | BF228: N/A | BG228: N/A | BH228: N/A | BI228: N/A | BJ228: N/A | BK228: N/A | BL228: N/A | BM228: N/A | BN228: N/A | BO228: N/A | BP228: N/A | BQ228: N/A | BR228: N/A | BS228: N/A | BT228: N/A | BU228: N/A | BV228: N/A | BW228: N/A | BX228: N/A
BB229: Soap only | BC229: N/A | BD229: N/A | BE229: N/A | BF229: N/A | BG229: N/A | BH229: N/A | BI229: N/A | BJ229: N/A | BK229: N/A | BL229: N/A | BM229: N/A | BN229: N/A | BO229: N/A | BP229: N/A | BQ229: N/A | BR229: N/A | BS229: N/A | BT229: N/A | BU229: N/A | BV229: N/A | BW229: N/A | BX229: N/A
BB230: Neither | BC230: N/A | BD230: N/A | BE230: N/A | BF230: N/A | BG230: N/A | BH230: N/A | BI230: N/A | BJ230: N/A | BK230: N/A | BL230: N/A | BM230: N/A | BN230: N/A | BO230: N/A | BP230: N/A | BQ230: N/A | BR230: N/A | BS230: N/A | BT230: N/A | BU230: N/A | BV230: N/A | BW230: N/A | BX230: N/A
BA259: Raw numbers of respondents: | BB259: Menstrual health and hygiene | BC259: NATIONAL wealth index quintile | BH259: URBAN wealth index quintile | BM259: RURAL wealth index quintile | BR259: SUB-REGIONS:
BA260: MHH data, raw numbers (weighted) | BC260: Poorest | BD260: Poor | BE260: Middle | BF260: Rich | BG260: Richest | BH260: Poorest | BI260: Poor | BJ260: Middle | BK260: Rich | BL260: Richest | BM260: Poorest | BN260: Poor | BO260: Middle | BP260: Rich | BQ260: Richest | BR260: Brest | BS260: Gomel | BT260: Grodno | BU260: Minsk | BV260: Minsk city | BW260: Mogilev | BX260: Vitebsk
BA261: Private place to wash and change | BB261: Yes | BC261: N/A | BD261: N/A | BE261: N/A | BF261: N/A | BG261: N/A | BH261: N/A | BI261: N/A | BJ261: N/A | BK261: N/A | BL261: N/A | BM261: N/A | BN261: N/A | BO261: N/A | BP261: N/A | BQ261: N/A | BR261: N/A | BS261: N/A | BT261: N/A | BU261: N/A | BV261: N/A | BW261: N/A | BX261: N/A
BB262: No | BC262: N/A | BD262: N/A | BE262: N/A | BF262: N/A | BG262: N/A | BH262: N/A | BI262: N/A | BJ262: N/A | BK262: N/A | BL262: N/A | BM262: N/A | BN262: N/A | BO262: N/A | BP262: N/A | BQ262: N/A | BR262: N/A | BS262: N/A | BT262: N/A | BU262: N/A | BV262: N/A | BW262: N/A | BX262: N/A
BB263: DK/not sure/missing | BC263: N/A | BD263: N/A | BE263: N/A | BF263: N/A | BG263: N/A | BH263: N/A | BI263: N/A | BJ263: N/A | BK263: N/A | BL263: N/A | BM263: N/A | BN263: N/A | BO263: N/A | BP263: N/A | BQ263: N/A | BR263: N/A | BS263: N/A | BT263: N/A | BU263: N/A | BV263: N/A | BW263: N/A | BX263: N/A
BA264: Use of menstrual materials | BB264: Materials reusable | BC264: N/A | BD264: N/A | BE264: N/A | BF264: N/A | BG264: N/A | BH264: N/A | BI264: N/A | BJ264: N/A | BK264: N/A | BL264: N/A | BM264: N/A | BN264: N/A | BO264: N/A | BP264: N/A | BQ264: N/A | BR264: N/A | BS264: N/A | BT264: N/A | BU264: N/A | BV264: N/A | BW264: N/A | BX264: N/A
BB265: Materials not reusable | BC265: N/A | BD265: N/A | BE265: N/A | BF265: N/A | BG265: N/A | BH265: N/A | BI265: N/A | BJ265: N/A | BK265: N/A | BL265: N/A | BM265: N/A | BN265: N/A | BO265: N/A | BP265: N/A | BQ265: N/A | BR265: N/A | BS265: N/A | BT265: N/A | BU265: N/A | BV265: N/A | BW265: N/A | BX265: N/A
BB266: No materials used | BC266: N/A | BD266: N/A | BE266: N/A | BF266: N/A | BG266: N/A | BH266: N/A | BI266: N/A | BJ266: N/A | BK266: N/A | BL266: N/A | BM266: N/A | BN266: N/A | BO266: N/A | BP266: N/A | BQ266: N/A | BR266: N/A | BS266: N/A | BT266: N/A | BU266: N/A | BV266: N/A | BW266: N/A | BX266: N/A
BB267: DK/not sure/missing | BC267: N/A | BD267: N/A | BE267: N/A | BF267: N/A | BG267: N/A | BH267: N/A | BI267: N/A | BJ267: N/A | BK267: N/A | BL267: N/A | BM267: N/A | BN267: N/A | BO267: N/A | BP267: N/A | BQ267: N/A | BR267: N/A | BS267: N/A | BT267: N/A | BU267: N/A | BV267: N/A | BW267: N/A | BX267: N/A
BA268: Use of menstrual materials with private place to wash and change | BB268: Materials reusable | BC268: N/A | BD268: N/A | BE268: N/A | BF268: N/A | BG268: N/A | BH268: N/A | BI268: N/A | BJ268: N/A | BK268: N/A | BL268: N/A | BM268: N/A | BN268: N/A | BO268: N/A | BP268: N/A | BQ268: N/A | BR268: N/A | BS268: N/A | BT268: N/A | BU268: N/A | BV268: N/A | BW268: N/A | BX268: N/A
BB269: Materials not reusable | BC269: N/A | BD269: N/A | BE269: N/A | BF269: N/A | BG269: N/A | BH269: N/A | BI269: N/A | BJ269: N/A | BK269: N/A | BL269: N/A | BM269: N/A | BN269: N/A | BO269: N/A | BP269: N/A | BQ269: N/A | BR269: N/A | BS269: N/A | BT269: N/A | BU269: N/A | BV269: N/A | BW269: N/A | BX269: N/A
BB270: No materials used | BC270: N/A | BD270: N/A | BE270: N/A | BF270: N/A | BG270: N/A | BH270: N/A | BI270: N/A | BJ270: N/A | BK270: N/A | BL270: N/A | BM270: N/A | BN270: N/A | BO270: N/A | BP270: N/A | BQ270: N/A | BR270: N/A | BS270: N/A | BT270: N/A | BU270: N/A | BV270: N/A | BW270: N/A | BX270: N/A
BA271: Awareness of menstruation before menarche | BB271: Yes | BC271: N/A | BD271: N/A | BE271: N/A | BF271: N/A | BG271: N/A | BH271: N/A | BI271: N/A | BJ271: N/A | BK271: N/A | BL271: N/A | BM271: N/A | BN271: N/A | BO271: N/A | BP271: N/A | BQ271: N/A | BR271: N/A | BS271: N/A | BT271: N/A | BU271: N/A | BV271: N/A | BW271: N/A | BX271: N/A
BB272: No | BC272: N/A | BD272: N/A | BE272: N/A | BF272: N/A | BG272: N/A | BH272: N/A | BI272: N/A | BJ272: N/A | BK272: N/A | BL272: N/A | BM272: N/A | BN272: N/A | BO272: N/A | BP272: N/A | BQ272: N/A | BR272: N/A | BS272: N/A | BT272: N/A | BU272: N/A | BV272: N/A | BW272: N/A | BX272: N/A
BB273: DK/not sure/missing | BC273: N/A | BD273: N/A | BE273: N/A | BF273: N/A | BG273: N/A | BH273: N/A | BI273: N/A | BJ273: N/A | BK273: N/A | BL273: N/A | BM273: N/A | BN273: N/A | BO273: N/A | BP273: N/A | BQ273: N/A | BR273: N/A | BS273: N/A | BT273: N/A | BU273: N/A | BV273: N/A | BW273: N/A | BX273: N/A
BA274: Participation in (all) activities during menstruation | BB274: Yes | BC274: N/A | BD274: N/A | BE274: N/A | BF274: N/A | BG274: N/A | BH274: N/A | BI274: N/A | BJ274: N/A | BK274: N/A | BL274: N/A | BM274: N/A | BN274: N/A | BO274: N/A | BP274: N/A | BQ274: N/A | BR274: N/A | BS274: N/A | BT274: N/A | BU274: N/A | BV274: N/A | BW274: N/A | BX274: N/A
BB275: No | BC275: N/A | BD275: N/A | BE275: N/A | BF275: N/A | BG275: N/A | BH275: N/A | BI275: N/A | BJ275: N/A | BK275: N/A | BL275: N/A | BM275: N/A | BN275: N/A | BO275: N/A | BP275: N/A | BQ275: N/A | BR275: N/A | BS275: N/A | BT275: N/A | BU275: N/A | BV275: N/A | BW275: N/A | BX275: N/A
BB276: DK/not sure/missing/no such activity | BC276: N/A | BD276: N/A | BE276: N/A | BF276: N/A | BG276: N/A | BH276: N/A | BI276: N/A | BJ276: N/A | BK276: N/A | BL276: N/A | BM276: N/A | BN276: N/A | BO276: N/A | BP276: N/A | BQ276: N/A | BR276: N/A | BS276: N/A | BT276: N/A | BU276: N/A | BV276: N/A | BW276: N/A | BX276: N/A
BA277: Participation in specific activities during menstruation | BB277: Did not go to school (amongst those usually attending school) | BC277: N/A | BD277: N/A | BE277: N/A | BF277: N/A | BG277: N/A | BH277: N/A | BI277: N/A | BJ277: N/A | BK277: N/A | BL277: N/A | BM277: N/A | BN277: N/A | BO277: N/A | BP277: N/A | BQ277: N/A | BR277: N/A | BS277: N/A | BT277: N/A | BU277: N/A | BV277: N/A | BW277: N/A | BX277: N/A
BB278: Did not go to work (amongst those who usually work) | BC278: N/A | BD278: N/A | BE278: N/A | BF278: N/A | BG278: N/A | BH278: N/A | BI278: N/A | BJ278: N/A | BK278: N/A | BL278: N/A | BM278: N/A | BN278: N/A | BO278: N/A | BP278: N/A | BQ278: N/A | BR278: N/A | BS278: N/A | BT278: N/A | BU278: N/A | BV278: N/A | BW278: N/A | BX278: N/A
BB279: Did not participate in social activities | BC279: N/A | BD279: N/A | BE279: N/A | BF279: N/A | BG279: N/A | BH279: N/A | BI279: N/A | BJ279: N/A | BK279: N/A | BL279: N/A | BM279: N/A | BN279: N/A | BO279: N/A | BP279: N/A | BQ279: N/A | BR279: N/A | BS279: N/A | BT279: N/A | BU279: N/A | BV279: N/A | BW279: N/A | BX279: N/A
BB280: Did not cook food | BC280: N/A | BD280: N/A | BE280: N/A | BF280: N/A | BG280: N/A | BH280: N/A | BI280: N/A | BJ280: N/A | BK280: N/A | BL280: N/A | BM280: N/A | BN280: N/A | BO280: N/A | BP280: N/A | BQ280: N/A | BR280: N/A | BS280: N/A | BT280: N/A | BU280: N/A | BV280: N/A | BW280: N/A | BX280: N/A
BB281: Did not eat with others | BC281: N/A | BD281: N/A | BE281: N/A | BF281: N/A | BG281: N/A | BH281: N/A | BI281: N/A | BJ281: N/A | BK281: N/A | BL281: N/A | BM281: N/A | BN281: N/A | BO281: N/A | BP281: N/A | BQ281: N/A | BR281: N/A | BS281: N/A | BT281: N/A | BU281: N/A | BV281: N/A | BW281: N/A | BX281: N/A
BB282: Did not bathe in regular place | BC282: N/A | BD282: N/A | BE282: N/A | BF282: N/A | BG282: N/A | BH282: N/A | BI282: N/A | BJ282: N/A | BK282: N/A | BL282: N/A | BM282: N/A | BN282: N/A | BO282: N/A | BP282: N/A | BQ282: N/A | BR282: N/A | BS282: N/A | BT282: N/A | BU282: N/A | BV282: N/A | BW282: N/A | BX282: N/A
BB283: Did not participate in other activities | BC283: N/A | BD283: N/A | BE283: N/A | BF283: N/A | BG283: N/A | BH283: N/A | BI283: N/A | BJ283: N/A | BK283: N/A | BL283: N/A | BM283: N/A | BN283: N/A | BO283: N/A | BP283: N/A | BQ283: N/A | BR283: N/A | BS283: N/A | BT283: N/A | BU283: N/A | BV283: N/A | BW283: N/A | BX283: N/A
BB284: DK/not sure/missing/no such activity | BC284: N/A | BD284: N/A | BE284: N/A | BF284: N/A | BG284: N/A | BH284: N/A | BI284: N/A | BJ284: N/A | BK284: N/A | BL284: N/A | BM284: N/A | BN284: N/A | BO284: N/A | BP284: N/A | BQ284: N/A | BR284: N/A | BS284: N/A | BT284: N/A | BU284: N/A | BV284: N/A | BW284: N/A | BX284: N/A
BA339: Raw numbers of respondents: | BB339: Basic water, sanitation and hygiene | BC339: NATIONAL wealth index quintile | BH339: URBAN wealth index quintile | BM339: RURAL wealth index quintile | BR339: SUB-REGIONS:
BA340: WatSan data, raw numbers (weighted) | BC340: Poorest | BD340: Poor | BE340: Middle | BF340: Rich | BG340: Richest | BH340: Poorest | BI340: Poor | BJ340: Middle | BK340: Rich | BL340: Richest | BM340: Poorest | BN340: Poor | BO340: Middle | BP340: Rich | BQ340: Richest | BR340: Brest | BS340: Gomel | BT340: Grodno | BU340: Minsk | BV340: Minsk city | BW340: Mogilev | BX340: Vitebsk
BA341: Use of Basic Water Sanitation and Hygiene | BB341: Yes | BC341: N/A | BD341: N/A | BE341: N/A | BF341: N/A | BG341: N/A | BH341: N/A | BI341: N/A | BJ341: N/A | BK341: N/A | BL341: N/A | BM341: N/A | BN341: N/A | BO341: N/A | BP341: N/A | BQ341: N/A | BR341: N/A | BS341: N/A | BT341: N/A | BU341: N/A | BV341: N/A | BW341: N/A | BX341: N/A
BB342: No | BC342: N/A | BD342: N/A | BE342: N/A | BF342: N/A | BG342: N/A | BH342: N/A | BI342: N/A | BJ342: N/A | BK342: N/A | BL342: N/A | BM342: N/A | BN342: N/A | BO342: N/A | BP342: N/A | BQ342: N/A | BR342: N/A | BS342: N/A | BT342: N/A | BU342: N/A | BV342: N/A | BW342: N/A | BX342: N/A
BA343: Use of Basic Water and Sanitation | BB343: Yes | BC343: N/A | BD343: N/A | BE343: N/A | BF343: N/A | BG343: N/A | BH343: N/A | BI343: N/A | BJ343: N/A | BK343: N/A | BL343: N/A | BM343: N/A | BN343: N/A | BO343: N/A | BP343: N/A | BQ343: N/A | BR343: N/A | BS343: N/A | BT343: N/A | BU343: N/A | BV343: N/A | BW343: N/A | BX343: N/A
BB344: No | BC344: N/A | BD344: N/A | BE344: N/A | BF344: N/A | BG344: N/A | BH344: N/A | BI344: N/A | BJ344: N/A | BK344: N/A | BL344: N/A | BM344: N/A | BN344: N/A | BO344: N/A | BP344: N/A | BQ344: N/A | BR344: N/A | BS344: N/A | BT344: N/A | BU344: N/A | BV344: N/A | BW344: N/A | BX344: N/A
BA345: Use of Basic Water and Hygiene | BB345: Yes | BC345: N/A | BD345: N/A | BE345: N/A | BF345: N/A | BG345: N/A | BH345: N/A | BI345: N/A | BJ345: N/A | BK345: N/A | BL345: N/A | BM345: N/A | BN345: N/A | BO345: N/A | BP345: N/A | BQ345: N/A | BR345: N/A | BS345: N/A | BT345: N/A | BU345: N/A | BV345: N/A | BW345: N/A | BX345: N/A
BB346: No | BC346: N/A | BD346: N/A | BE346: N/A | BF346: N/A | BG346: N/A | BH346: N/A | BI346: N/A | BJ346: N/A | BK346: N/A | BL346: N/A | BM346: N/A | BN346: N/A | BO346: N/A | BP346: N/A | BQ346: N/A | BR346: N/A | BS346: N/A | BT346: N/A | BU346: N/A | BV346: N/A | BW346: N/A | BX346: N/A
BA347: Use of Basic Sanitation and Hygiene | BB347: Yes | BC347: N/A | BD347: N/A | BE347: N/A | BF347: N/A | BG347: N/A | BH347: N/A | BI347: N/A | BJ347: N/A | BK347: N/A | BL347: N/A | BM347: N/A | BN347: N/A | BO347: N/A | BP347: N/A | BQ347: N/A | BR347: N/A | BS347: N/A | BT347: N/A | BU347: N/A | BV347: N/A | BW347: N/A | BX347: N/A
BB348: No | BC348: N/A | BD348: N/A | BE348: N/A | BF348: N/A | BG348: N/A | BH348: N/A | BI348: N/A | BJ348: N/A | BK348: N/A | BL348: N/A | BM348: N/A | BN348: N/A | BO348: N/A | BP348: N/A | BQ348: N/A | BR348: N/A | BS348: N/A | BT348: N/A | BU348: N/A | BV348: N/A | BW348: N/A | BX348: N/A
BA349: Use of Basic Water | BB349: Yes | BC349: N/A | BD349: N/A | BE349: N/A | BF349: N/A | BG349: N/A | BH349: N/A | BI349: N/A | BJ349: N/A | BK349: N/A | BL349: N/A | BM349: N/A | BN349: N/A | BO349: N/A | BP349: N/A | BQ349: N/A | BR349: N/A | BS349: N/A | BT349: N/A | BU349: N/A | BV349: N/A | BW349: N/A | BX349: N/A
BB350: No | BC350: N/A | BD350: N/A | BE350: N/A | BF350: N/A | BG350: N/A | BH350: N/A | BI350: N/A | BJ350: N/A | BK350: N/A | BL350: N/A | BM350: N/A | BN350: N/A | BO350: N/A | BP350: N/A | BQ350: N/A | BR350: N/A | BS350: N/A | BT350: N/A | BU350: N/A | BV350: N/A | BW350: N/A | BX350: N/A
BA351: Use of Basic Sanitation | BB351: Yes | BC351: N/A | BD351: N/A | BE351: N/A | BF351: N/A | BG351: N/A | BH351: N/A | BI351: N/A | BJ351: N/A | BK351: N/A | BL351: N/A | BM351: N/A | BN351: N/A | BO351: N/A | BP351: N/A | BQ351: N/A | BR351: N/A | BS351: N/A | BT351: N/A | BU351: N/A | BV351: N/A | BW351: N/A | BX351: N/A
BB352: No | BC352: N/A | BD352: N/A | BE352: N/A | BF352: N/A | BG352: N/A | BH352: N/A | BI352: N/A | BJ352: N/A | BK352: N/A | BL352: N/A | BM352: N/A | BN352: N/A | BO352: N/A | BP352: N/A | BQ352: N/A | BR352: N/A | BS352: N/A | BT352: N/A | BU352: N/A | BV352: N/A | BW352: N/A | BX352: N/A
BA353: Access to Basic Hygiene | BB353: Yes | BC353: N/A | BD353: N/A | BE353: N/A | BF353: N/A | BG353: N/A | BH353: N/A | BI353: N/A | BJ353: N/A | BK353: N/A | BL353: N/A | BM353: N/A | BN353: N/A | BO353: N/A | BP353: N/A | BQ353: N/A | BR353: N/A | BS353: N/A | BT353: N/A | BU353: N/A | BV353: N/A | BW353: N/A | BX353: N/A
BB354: No | BC354: N/A | BD354: N/A | BE354: N/A | BF354: N/A | BG354: N/A | BH354: N/A | BI354: N/A | BJ354: N/A | BK354: N/A | BL354: N/A | BM354: N/A | BN354: N/A | BO354: N/A | BP354: N/A | BQ354: N/A | BR354: N/A | BS354: N/A | BT354: N/A | BU354: N/A | BV354: N/A | BW354: N/A | BX354: N/A
C399: INITIAL (national) Wealth Index | H399: URBAN Wealth Index | M399: RURAL Wealth Index
C400: Component Matrix | H400: Component Matrix | M400: Component Matrix
E401: Component | J401: Component | O401: Component
B402: Note: The INITIAL (national) Wealth Index is based on the first component of the Principal Component Analysis (PCA) which has been obtained at national level. The final national-level (NATIONAL) Wealth Index is based on the URBAN and RURAL specific wealth indexes. Regression procedures are used to establish the relationships between the two sets of scores (urban and rural) and the initial (national) wealth factors. This allows best use of the available information for each area and a better precision of the FINAL (NATIONAL) Wealth Index. For dependency reasons, all WASH variables (contained in the generic MICS and DHS scripts) have been excluded from the sets of asset variables used in the PCAs. The PCA can extracts as many components as there are asset variables in the input. Only the first of the components is used to represent the Wealth Index. The scores represent the weights of the asset variables on the Wealth Index (correlations between the variables and the component). The communalities are the proportion of each variable's variance that can be explained by the component. Proportion of explained variance is the part of the model's total variance that is explained by the component. For more information on the procedure used: The DHS Wealth Index, DHS Comparative Reports No. 6, Shea Oscar Rutstein, Kiersten Johnson, ORC Macro International Inc., 2004. The DHS Wealth Index: Approaches for Rural and Urban Areas, Shea O. Rutstein, ORC Macro International Inc., 2008. MICS Methodological Paper No. 4, Review of options for reporting water, sanitation and hygiene coverage by wealth quintile, UNICEF, 2016. | E402: 1 | J402: 1 | O402: 1
C403: Has ruberoid roof | E403: 0.8119097831 | H403: Has ruberoid roof | J403: 0.826024641 | M403: Has wood wall | O403: -0.6669306354
C404: Has slate roof | E404: -0.8083749239 | H404: Has slate roof | J404: -0.8176067081 | M404: Has ruberoid roof | O404: 0.6646910158
C405: Has wood wall | E405: -0.6865973769 | H405: Has wood wall | J405: -0.6480760539 | M405: Has slate roof | O405: -0.657343237
C406: Household fuel type: LPG | E406: -0.6781028472 | H406: Has plastic wall | J406: 0.6375809468 | M406: Household fuel type: natural gas | O406: 0.6396785652
C407: Has wood floor | E407: -0.6529359635 | H407: Household fuel type: LPG | J407: -0.6269602999 | M407: Has wood floor | O407: -0.5647993947
C408: Household fuel type: natural gas | E408: 0.5981943465 | H408: Has wood floor | J408: -0.5933596744 | M408: Household has: fan | O408: 0.525315184
C409: Has plastic wall | E409: 0.5939178458 | H409: Has linoleum floor | J409: 0.3966820813 | M409: Has plastic wall | O409: 0.5097859212
C410: Household has: fan | E410: 0.5297832798 | H410: Household has: fan | J410: 0.3299894942 | M410: Household has: mobile telephone | O410: 0.4550557975
C411: Household has: mobile telephone | E411: 0.4669848265 | H411: Household fuel type: natural gas | J411: 0.3067648166 | M411: Household fuel type: LPG | O411: -0.4357462785
C412: Household has: non-mobile phone | E412: 0.4579972119 | H412: Household has: mobile telephone | J412: 0.2996653506 | M412: Has other floor | O412: 0.4248869306
C413: Has linoleum floor | E413: 0.4083553386 | H413: Household has: non-mobile phone | J413: 0.2559135983 | M413: Household has: non-mobile phone | O413: 0.406313525
C414: Household fuel type: wood | E414: -0.3657784846 | H414: Has brick wall | J414: -0.2499242136 | M414: Household fuel type: wood | O414: -0.3753126415
C415: Household has: AC | E415: 0.3275047003 | H415: Household has: AC | J415: 0.2463349814 | M415: Household member owns: car/truck | O415: 0.3651457102
C416: Household member owns: animal drawn cart | E416: -0.3022972408 | H416: Household fuel type: wood | J416: -0.2391779536 | M416: Household has: AC | O416: 0.3094205278
C417: Household member owns: bicycle | E417: -0.2918366356 | H417: Household cooks on closed owen | J417: -0.2032040966 | M417: Has brick wall | O417: 0.2811631041
C418: Household cooks on open owen | E418: -0.2764342228 | H418: Household member owns: bicycle | J418: -0.196400782 | M418: Household cooks on open owen | O418: -0.2739137378
C419: Has other floor | E419: 0.2610850766 | H419: Household has: radio | J419: 0.1905929433 | M419: Household has: refrigerator | O419: 0.2580440135
C420: Household has: refrigerator | E420: 0.2565476171 | H420: Has other floor | J420: 0.1713145795 | M420: Household cooks on closed owen | O420: -0.2463857874
C421: Household member owns: car/truck | E421: 0.2453903922 | H421: Household has: refrigerator | J421: 0.1630684113 | M421: Has linoleum floor | O421: 0.2450128765
C422: Household cooks on closed owen | E422: -0.2354308108 | H422: Household fuel type: electricity | J422: 0.1608676234 | M422: Household member owns: animal drawn cart | O422: -0.2249270607
C423: Has parquet/polished wood floor | E423: 0.2138679313 | H423: Household member owns: car/truck | J423: 0.1546536882 | M423: Has parquet/polished wood floor | O423: 0.2152594283
C424: Household fuel type: electricity | E424: 0.2131784239 | H424: Has parquet/polished wood floor | J424: 0.1450137483 | M424: Household has: radio | O424: -0.2025810625
... 170 more rows

Sheet MICS12
A2: =A1026 -> Belarus
A3: =A1034 -> 2012
A4: Use of drinking water sources
A5: by wealth quintile and sub-national region
A6: Notes:
A7: WHO/UNICEF JMP customised wealth index excludes water,
A8: sanitation and hygiene assets.
A9: Survey used for analysis: | B9: =A1025 -> MICS12
A10: =B1028 -> 
A11: =B1027 -> 
A14: Use of drinking water sources | C14: NATIONAL wealth index quintile | H14: URBAN wealth index quintile | M14: RURAL wealth index quintile | R14: SUB-REGIONS: | BA14: Raw numbers of respondents: | BB14: Use of drinking water sources | BC14: NATIONAL wealth index quintile | BH14: URBAN wealth index quintile | BM14: RURAL wealth index quintile | BR14: SUB-REGIONS:
A15: Weighted percentage (used in graphs) | C15: Poorest | D15: Poor | E15: Middle | F15: Rich | G15: Richest | H15: Poorest | I15: Poor | J15: Middle | K15: Rich | L15: Richest | M15: Poorest | N15: Poor | O15: Middle | P15: Rich | Q15: Richest | R15: Brest region | S15: Gomel region | T15: Grodno region | U15: Minsk city | V15: Minsk region | W15: Mogilev region | X15: Vitebsk region | BA15: Water data, raw numbers (weighted) | BC15: Poorest | BD15: Poor | BE15: Middle | BF15: Rich | BG15: Richest | BH15: Poorest | BI15: Poor | BJ15: Middle | BK15: Rich | BL15: Richest | BM15: Poorest | BN15: Poor | BO15: Middle | BP15: Rich | BQ15: Richest | BR15: Brest region | BS15: Gomel region | BT15: Grodno region | BU15: Minsk city | BV15: Minsk region | BW15: Mogilev region | BX15: Vitebsk region
A16: Water | B16: Improved | C16: 98.94111039 | D16: 99.57749579 | E16: 99.81490815 | F16: 99.86451667 | G16: 99.89631582 | H16: 99.79603975 | I16: 99.68842409 | J16: 100 | K16: 99.81309827 | L16: 99.85680997 | M16: 98.10571568 | N16: 98.6942715 | O16: 99.00820629 | P16: 99.94784515 | Q16: 99.55050808 | R16: 99.50143819 | S16: 99.92350446 | T16: 99.58699187 | U16: 99.88627365 | V16: 99.39425664 | W16: 99.5570617 | X16: 99.38299524 | BA16: Water | BB16: Improved | BC16: N/A | BD16: N/A | BE16: N/A | BF16: N/A | BG16: N/A | BH16: N/A | BI16: N/A | BJ16: N/A | BK16: N/A | BL16: N/A | BM16: N/A | BN16: N/A | BO16: N/A | BP16: N/A | BQ16: N/A | BR16: N/A | BS16: N/A | BT16: N/A | BU16: N/A | BV16: N/A | BW16: N/A | BX16: N/A
B17: Not Improved | C17: 1.05888961 | D17: 0.4225042098 | E17: 0.1850918454 | F17: 0.1354833275 | G17: 0.1036841835 | H17: 0.2039602513 | I17: 0.3115759147 | J17: 0 | K17: 0.1869017278 | L17: 0.1431900251 | M17: 1.894284322 | N17: 1.305728502 | O17: 0.9917937097 | P17: 0.05215484504 | Q17: 0.449491921 | R17: 0.4985618086 | S17: 0.076495543 | T17: 0.4130081275 | U17: 0.1137263491 | V17: 0.6057433552 | W17: 0.4429383008 | X17: 0.6170047644 | BB17: Not Improved | BC17: N/A | BD17: N/A | BE17: N/A | BF17: N/A | BG17: N/A | BH17: N/A | BI17: N/A | BJ17: N/A | BK17: N/A | BL17: N/A | BM17: N/A | BN17: N/A | BO17: N/A | BP17: N/A | BQ17: N/A | BR17: N/A | BS17: N/A | BT17: N/A | BU17: N/A | BV17: N/A | BW17: N/A | BX17: N/A
A18: Water ladder | B18: Basic | C18: =C16*C23/100 -> 98.66967584 | D18: =D16*D23/100 -> 99.50174122 | E18: =E16*E23/100 -> 99.81490815 | F18: 99.83965799 | G18: 99.89631582 | H18: 99.71705552 | I18: 99.66285566 | J18: 99.96570271 | K18: 99.81309827 | L18: 99.85680997 | M18: 97.83417603 | N18: 97.98112508 | O18: 99.00820629 | P18: 99.94784515 | Q18: 99.55050808 | R18: 99.42657703 | S18: 99.68171244 | T18: 99.58699187 | U18: 99.88627365 | V18: 99.39425664 | W18: 99.37105429 | X18: 99.34556012 | BA18: Water ladder | BB18: Basic | BC18: N/A | BD18: N/A | BE18: N/A | BF18: N/A | BG18: N/A | BH18: N/A | BI18: N/A | BJ18: N/A | BK18: N/A | BL18: N/A | BM18: N/A | BN18: N/A | BO18: N/A | BP18: N/A | BQ18: N/A | BR18: N/A | BS18: N/A | BT18: N/A | BU18: N/A | BV18: N/A | BW18: N/A | BX18: N/A
B19: Limited | C19: =C16*C22/100 -> 0.271434551 | D19: =D16*D22/100 -> 0.07575456871 | E19: =E16*E22/100 -> 0 | F19: 0.02485868572 | G19: 0 | H19: 0.07898423163 | I19: 0.02556842089 | J19: 0.03429728613 | K19: 0 | L19: 0 | M19: 0.2715396474 | N19: 0.7131464204 | O19: 0 | P19: 0 | Q19: 0 | R19: 0.07486115793 | S19: 0.2417920152 | T19: 0 | U19: 0 | V19: 0 | W19: 0.1860074128 | X19: 0.03743511884 | BB19: Limited | BC19: N/A | BD19: N/A | BE19: N/A | BF19: N/A | BG19: N/A | BH19: N/A | BI19: N/A | BJ19: N/A | BK19: N/A | BL19: N/A | BM19: N/A | BN19: N/A | BO19: N/A | BP19: N/A | BQ19: N/A | BR19: N/A | BS19: N/A | BT19: N/A | BU19: N/A | BV19: N/A | BW19: N/A | BX19: N/A
B20: Unimproved | C20: =100-C18-C19-C21 -> 1.05888961 | D20: =100-D18-D19-D21 -> 0.4225042098 | E20: =100-E18-E19-E21 -> 0.1850918454 | F20: 0.1354833275 | G20: 0.1036841835 | H20: 0.2039602513 | I20: 0.3115759147 | J20: -5.211109322e-15 | K20: 0.1869017278 | L20: 0.1431900251 | M20: 1.894284322 | N20: 1.305728502 | O20: 0.9917937097 | P20: 0.05215484504 | Q20: 0.449491921 | R20: 0.4985618086 | S20: 0.076495543 | T20: 0.4130081275 | U20: 0.1137263491 | V20: 0.6057433552 | W20: 0.4429383008 | X20: 0.6170047644 | BB20: Unimproved | BC20: N/A | BD20: N/A | BE20: N/A | BF20: N/A | BG20: N/A | BH20: N/A | BI20: N/A | BJ20: N/A | BK20: N/A | BL20: N/A | BM20: N/A | BN20: N/A | BO20: N/A | BP20: N/A | BQ20: N/A | BR20: N/A | BS20: N/A | BT20: N/A | BU20: N/A | BV20: N/A | BW20: N/A | BX20: N/A
B21: Surface water | C21: 0 | D21: 0 | E21: 0 | F21: 0 | G21: 0 | H21: 0 | I21: 0 | J21: 0 | K21: 0 | L21: 0 | M21: 0 | N21: 0 | O21: 0 | P21: 0 | Q21: 0 | R21: 0 | S21: 0 | T21: 0 | U21: 0 | V21: 0 | W21: 0 | X21: 0 | BB21: Surface water | BC21: N/A | BD21: N/A | BE21: N/A | BF21: N/A | BG21: N/A | BH21: N/A | BI21: N/A | BJ21: N/A | BK21: N/A | BL21: N/A | BM21: N/A | BN21: N/A | BO21: N/A | BP21: N/A | BQ21: N/A | BR21: N/A | BS21: N/A | BT21: N/A | BU21: N/A | BV21: N/A | BW21: N/A | BX21: N/A
A22: Improved water point at more than 30 minutes | B22: Yes | C22: 0.2743395035 | D22: 0.07607599298 | E22: 0 | F22: 0.02489241079 | G22: 0 | H22: 0.07914565731 | I22: 0.02564833493 | J22: 0.03429728613 | K22: 0 | L22: 0 | M22: 0.2767826987 | N22: 0.7225813713 | O22: 0 | P22: 0 | Q22: 0 | R22: 0.07523625717 | S22: 0.2419771169 | T22: 0 | U22: 0 | V22: 0 | W22: 0.1868349765 | X22: 0.03766752929 | BA22: Improved water point at more than 30 minutes | BB22: Yes | BC22: N/A | BD22: N/A | BE22: N/A | BF22: N/A | BG22: N/A | BH22: N/A | BI22: N/A | BJ22: N/A | BK22: N/A | BL22: N/A | BM22: N/A | BN22: N/A | BO22: N/A | BP22: N/A | BQ22: N/A | BR22: N/A | BS22: N/A | BT22: N/A | BU22: N/A | BV22: N/A | BW22: N/A | BX22: N/A
B23: No | C23: 99.7256605 | D23: 99.92392401 | E23: 100 | F23: 99.97510759 | G23: 100 | H23: 99.92085434 | I23: 99.97435167 | J23: 99.96570271 | K23: 100 | L23: 100 | M23: 99.7232173 | N23: 99.27741863 | O23: 100 | P23: 100 | Q23: 100 | R23: 99.92476374 | S23: 99.75802288 | T23: 100 | U23: 100 | V23: 100 | W23: 99.81316502 | X23: 99.96233247 | BB23: No | BC23: N/A | BD23: N/A | BE23: N/A | BF23: N/A | BG23: N/A | BH23: N/A | BI23: N/A | BJ23: N/A | BK23: N/A | BL23: N/A | BM23: N/A | BN23: N/A | BO23: N/A | BP23: N/A | BQ23: N/A | BR23: N/A | BS23: N/A | BT23: N/A | BU23: N/A | BV23: N/A | BW23: N/A | BX23: N/A
A24: Manually calculated ratios | B24: Improved wells
B25: Improved springs
B26: Other
C27: NATIONAL wealth index quintile | H27: URBAN wealth index quintile | M27: RURAL wealth index quintile | R27: SUB-REGIONS: | BA27: Raw numbers of respondents: | BB27: Use of drinking water sources | BC27: NATIONAL wealth index quintile | BH27: URBAN wealth index quintile | BM27: RURAL wealth index quintile | BR27: SUB-REGIONS:
A28: Percentage based on weighted population | C28: Poorest | D28: Poor | E28: Middle | F28: Rich | G28: Richest | H28: Poorest | I28: Poor | J28: Middle | K28: Rich | L28: Richest | M28: Poorest | N28: Poor | O28: Middle | P28: Rich | Q28: Richest | R28: Brest region | S28: Gomel region | T28: Grodno region | U28: Minsk city | V28: Minsk region | W28: Mogilev region | X28: Vitebsk region | BA28: Water data, raw numbers (weighted) | BC28: Poorest | BD28: Poor | BE28: Middle | BF28: Rich | BG28: Richest | BH28: Poorest | BI28: Poor | BJ28: Middle | BK28: Rich | BL28: Richest | BM28: Poorest | BN28: Poor | BO28: Middle | BP28: Rich | BQ28: Richest | BR28: Brest region | BS28: Gomel region | BT28: Grodno region | BU28: Minsk city | BV28: Minsk region | BW28: Mogilev region | BX28: Vitebsk region
A29: Piped water | B29: Yes | C29: 60.1771623 | D29: 87.57213643 | E29: 96.6942809 | F29: 99.39179881 | G29: 99.72084306 | H29: 87.99452829 | I29: 98.43178901 | J29: 99.83231431 | K29: 99.60231726 | L29: 99.85680997 | M29: 32.84461194 | N29: 56.54549147 | O29: 69.51086687 | P29: 84.14928206 | Q29: 89.66282991 | R29: 78.51296028 | S29: 85.9563877 | T29: 85.75145482 | U29: 99.88627365 | V29: 85.39207207 | W29: 93.65443783 | X29: 90.26980723 | BA29: Piped water | BB29: Yes | BC29: N/A | BD29: N/A | BE29: N/A | BF29: N/A | BG29: N/A | BH29: N/A | BI29: N/A | BJ29: N/A | BK29: N/A | BL29: N/A | BM29: N/A | BN29: N/A | BO29: N/A | BP29: N/A | BQ29: N/A | BR29: N/A | BS29: N/A | BT29: N/A | BU29: N/A | BV29: N/A | BW29: N/A | BX29: N/A
B30: No | C30: 39.8228377 | D30: 12.42786357 | E30: 3.305719096 | F30: 0.6082011938 | G30: 0.2791569443 | H30: 12.00547171 | I30: 1.568210991 | J30: 0.1676856856 | K30: 0.3976827418 | L30: 0.1431900251 | M30: 67.15538806 | N30: 43.45450853 | O30: 30.48913313 | P30: 15.85071794 | Q30: 10.33717009 | R30: 21.48703972 | S30: 14.0436123 | T30: 14.24854518 | U30: 0.1137263491 | V30: 14.60792793 | W30: 6.345562167 | X30: 9.730192767 | BB30: No | BC30: N/A | BD30: N/A | BE30: N/A | BF30: N/A | BG30: N/A | BH30: N/A | BI30: N/A | BJ30: N/A | BK30: N/A | BL30: N/A | BM30: N/A | BN30: N/A | BO30: N/A | BP30: N/A | BQ30: N/A | BR30: N/A | BS30: N/A | BT30: N/A | BU30: N/A | BV30: N/A | BW30: N/A | BX30: N/A
A31: Piped water on premises | B31: Yes | C31: 47.45101052 | D31: 84.8231902 | E31: 96.53153467 | F31: 99.25305011 | G31: 99.72084306 | H31: 78.52436229 | I31: 97.82738267 | J31: 99.64088409 | K31: 99.60231726 | L31: 99.85680997 | M31: 18.16658564 | N31: 47.20095411 | O31: 65.71771907 | P31: 82.12001273 | Q31: 89.26028175 | R31: 77.37267828 | S31: 82.62751579 | T31: 84.8374756 | U31: 99.88627365 | V31: 82.5142084 | W31: 84.39837531 | X31: 83.76628793 | BA31: Piped water on premises | BB31: Yes | BC31: N/A | BD31: N/A | BE31: N/A | BF31: N/A | BG31: N/A | BH31: N/A | BI31: N/A | BJ31: N/A | BK31: N/A | BL31: N/A | BM31: N/A | BN31: N/A | BO31: N/A | BP31: N/A | BQ31: N/A | BR31: N/A | BS31: N/A | BT31: N/A | BU31: N/A | BV31: N/A | BW31: N/A | BX31: N/A
B32: No | C32: 52.54898948 | D32: 15.1768098 | E32: 3.468465328 | F32: 0.7469498927 | G32: 0.2791569443 | H32: 21.47563771 | I32: 2.172617329 | J32: 0.3591159116 | K32: 0.3976827418 | L32: 0.1431900251 | M32: 81.83341436 | N32: 52.79904589 | O32: 34.28228093 | P32: 17.87998727 | Q32: 10.73971825 | R32: 22.62732172 | S32: 17.37248421 | T32: 15.1625244 | U32: 0.1137263491 | V32: 17.4857916 | W32: 15.60162469 | X32: 16.23371207 | BB32: No | BC32: N/A | BD32: N/A | BE32: N/A | BF32: N/A | BG32: N/A | BH32: N/A | BI32: N/A | BJ32: N/A | BK32: N/A | BL32: N/A | BM32: N/A | BN32: N/A | BO32: N/A | BP32: N/A | BQ32: N/A | BR32: N/A | BS32: N/A | BT32: N/A | BU32: N/A | BV32: N/A | BW32: N/A | BX32: N/A
A33: Piped water into dwelling | B33: Yes | C33: N/A | D33: N/A | E33: N/A | F33: N/A | G33: N/A | H33: N/A | I33: N/A | J33: N/A | K33: N/A | L33: N/A | M33: N/A | N33: N/A | O33: N/A | P33: N/A | Q33: N/A | R33: N/A | S33: N/A | T33: N/A | U33: N/A | V33: N/A | W33: N/A | X33: N/A | BA33: Piped water into dwelling | BB33: Yes | BC33: N/A | BD33: N/A | BE33: N/A | BF33: N/A | BG33: N/A | BH33: N/A | BI33: N/A | BJ33: N/A | BK33: N/A | BL33: N/A | BM33: N/A | BN33: N/A | BO33: N/A | BP33: N/A | BQ33: N/A | BR33: N/A | BS33: N/A | BT33: N/A | BU33: N/A | BV33: N/A | BW33: N/A | BX33: N/A
B34: No | C34: N/A | D34: N/A | E34: N/A | F34: N/A | G34: N/A | H34: N/A | I34: N/A | J34: N/A | K34: N/A | L34: N/A | M34: N/A | N34: N/A | O34: N/A | P34: N/A | Q34: N/A | R34: N/A | S34: N/A | T34: N/A | U34: N/A | V34: N/A | W34: N/A | X34: N/A | BB34: No | BC34: N/A | BD34: N/A | BE34: N/A | BF34: N/A | BG34: N/A | BH34: N/A | BI34: N/A | BJ34: N/A | BK34: N/A | BL34: N/A | BM34: N/A | BN34: N/A | BO34: N/A | BP34: N/A | BQ34: N/A | BR34: N/A | BS34: N/A | BT34: N/A | BU34: N/A | BV34: N/A | BW34: N/A | BX34: N/A
A35: Water source on premises | B35: Yes | C35: 78.81523459 | D35: 95.88684117 | E35: 99.18437111 | F35: 99.66029362 | G35: 99.74358728 | H35: 89.21009417 | I35: 98.73766703 | J35: 99.77427249 | K35: 99.60231726 | L35: 99.85680997 | M35: 66.96892542 | N35: 82.39712404 | O35: 93.19597911 | P35: 96.07328698 | Q35: 98.14462102 | R35: 97.99877635 | S35: 91.89241003 | T35: 97.69062644 | U35: 99.88627365 | V35: 94.19535983 | W35: 87.34429438 | X35: 91.12814999 | BA35: Water source on premises | BB35: Yes | BC35: N/A | BD35: N/A | BE35: N/A | BF35: N/A | BG35: N/A | BH35: N/A | BI35: N/A | BJ35: N/A | BK35: N/A | BL35: N/A | BM35: N/A | BN35: N/A | BO35: N/A | BP35: N/A | BQ35: N/A | BR35: N/A | BS35: N/A | BT35: N/A | BU35: N/A | BV35: N/A | BW35: N/A | BX35: N/A
B36: No | C36: 21.18476541 | D36: 4.11315883 | E36: 0.8156288879 | F36: 0.3397063789 | G36: 0.2564127166 | H36: 10.78990583 | I36: 1.26233297 | J36: 0.2257275121 | K36: 0.3976827418 | L36: 0.1431900251 | M36: 33.03107458 | N36: 17.60287596 | O36: 6.804020891 | P36: 3.926713017 | Q36: 1.85537898 | R36: 2.001223652 | S36: 8.107589966 | T36: 2.309373555 | U36: 0.1137263491 | V36: 5.804640166 | W36: 12.65570562 | X36: 8.871850015 | BB36: No | BC36: N/A | BD36: N/A | BE36: N/A | BF36: N/A | BG36: N/A | BH36: N/A | BI36: N/A | BJ36: N/A | BK36: N/A | BL36: N/A | BM36: N/A | BN36: N/A | BO36: N/A | BP36: N/A | BQ36: N/A | BR36: N/A | BS36: N/A | BT36: N/A | BU36: N/A | BV36: N/A | BW36: N/A | BX36: N/A
A37: Improved Water source on premises | B37: Yes | C37: 79.2 | D37: 96 | E37: 99.4 | F37: 99.8 | G37: 99.8 | H37: 89.3 | I37: 99 | J37: 99.8 | K37: 99.8 | L37: 100 | M37: 67.3 | N37: 83.2 | O37: 93.2 | P37: 96.1 | Q37: 98.6 | R37: 98.3 | S37: 91.9 | T37: 97.9 | U37: 100 | V37: 94.7 | W37: 87.7 | X37: 91.1 | BA37: Improved water source on premises | BB37: Yes | BC37: N/A | BD37: N/A | BE37: N/A | BF37: N/A | BG37: N/A | BH37: N/A | BI37: N/A | BJ37: N/A | BK37: N/A | BL37: N/A | BM37: N/A | BN37: N/A | BO37: N/A | BP37: N/A | BQ37: N/A | BR37: N/A | BS37: N/A | BT37: N/A | BU37: N/A | BV37: N/A | BW37: N/A | BX37: N/A
B38: No | C38: 20.8 | D38: 4 | E38: 0.6 | F38: 0.2 | G38: 0.2 | H38: 10.7 | I38: 1 | J38: 0.2 | K38: 0.2 | L38: 0 | M38: 32.7 | N38: 16.8 | O38: 6.8 | P38: 3.9 | Q38: 1.4 | R38: 1.7 | S38: 8.1 | T38: 2.1 | U38: 0 | V38: 5.3 | W38: 12.3 | X38: 8.9 | BB38: No | BC38: N/A | BD38: N/A | BE38: N/A | BF38: N/A | BG38: N/A | BH38: N/A | BI38: N/A | BJ38: N/A | BK38: N/A | BL38: N/A | BM38: N/A | BN38: N/A | BO38: N/A | BP38: N/A | BQ38: N/A | BR38: N/A | BS38: N/A | BT38: N/A | BU38: N/A | BV38: N/A | BW38: N/A | BX38: N/A
A39: Piped water on premises available when needed | B39: Yes | C39: N/A | D39: N/A | E39: N/A | F39: N/A | G39: N/A | H39: N/A | I39: N/A | J39: N/A | K39: N/A | L39: N/A | M39: N/A | N39: N/A | O39: N/A | P39: N/A | Q39: N/A | R39: N/A | S39: N/A | T39: N/A | U39: N/A | V39: N/A | W39: N/A | X39: N/A | BA39: Piped water on premises available when needed | BB39: Yes | BC39: N/A | BD39: N/A | BE39: N/A | BF39: N/A | BG39: N/A | BH39: N/A | BI39: N/A | BJ39: N/A | BK39: N/A | BL39: N/A | BM39: N/A | BN39: N/A | BO39: N/A | BP39: N/A | BQ39: N/A | BR39: N/A | BS39: N/A | BT39: N/A | BU39: N/A | BV39: N/A | BW39: N/A | BX39: N/A
B40: No | C40: N/A | D40: N/A | E40: N/A | F40: N/A | G40: N/A | H40: N/A | I40: N/A | J40: N/A | K40: N/A | L40: N/A | M40: N/A | N40: N/A | O40: N/A | P40: N/A | Q40: N/A | R40: N/A | S40: N/A | T40: N/A | U40: N/A | V40: N/A | W40: N/A | X40: N/A | BB40: No | BC40: N/A | BD40: N/A | BE40: N/A | BF40: N/A | BG40: N/A | BH40: N/A | BI40: N/A | BJ40: N/A | BK40: N/A | BL40: N/A | BM40: N/A | BN40: N/A | BO40: N/A | BP40: N/A | BQ40: N/A | BR40: N/A | BS40: N/A | BT40: N/A | BU40: N/A | BV40: N/A | BW40: N/A | BX40: N/A
A41: Water point at more than 30 minutes | B41: Yes | C41: 0.4525963174 | D41: 0.09996730556 | E41: 0.03711361845 | F41: 0.02485868572 | G41: 0 | H41: 0.07898415533 | I41: 0.1103140037 | J41: 0.03429728613 | K41: 0 | L41: 0 | M41: 0.2714919997 | N41: 1.368564524 | O41: 0 | P41: 0 | Q41: 0 | R41: 0.1550589732 | S41: 0.241791732 | T41: 0 | U41: 0 | V41: 0 | W41: 0.4991792488 | X41: 0.03743466332 | BA41: Water point at more than 30 minutes | BB41: Yes | BC41: N/A | BD41: N/A | BE41: N/A | BF41: N/A | BG41: N/A | BH41: N/A | BI41: N/A | BJ41: N/A | BK41: N/A | BL41: N/A | BM41: N/A | BN41: N/A | BO41: N/A | BP41: N/A | BQ41: N/A | BR41: N/A | BS41: N/A | BT41: N/A | BU41: N/A | BV41: N/A | BW41: N/A | BX41: N/A
B42: No | C42: 99.54740368 | D42: 99.90003269 | E42: 99.96288638 | F42: 99.97514131 | G42: 100 | H42: 99.92101584 | I42: 99.889686 | J42: 99.96570271 | K42: 100 | L42: 100 | M42: 99.728508 | N42: 98.63143548 | O42: 100 | P42: 100 | Q42: 100 | R42: 99.84494103 | S42: 99.75820827 | T42: 100 | U42: 100 | V42: 100 | W42: 99.50082075 | X42: 99.96256534 | BB42: No | BC42: N/A | BD42: N/A | BE42: N/A | BF42: N/A | BG42: N/A | BH42: N/A | BI42: N/A | BJ42: N/A | BK42: N/A | BL42: N/A | BM42: N/A | BN42: N/A | BO42: N/A | BP42: N/A | BQ42: N/A | BR42: N/A | BS42: N/A | BT42: N/A | BU42: N/A | BV42: N/A | BW42: N/A | BX42: N/A
A43: Water source available when needed | B43: Yes | C43: N/A | D43: N/A | E43: N/A | F43: N/A | G43: N/A | H43: N/A | I43: N/A | J43: N/A | K43: N/A | L43: N/A | M43: N/A | N43: N/A | O43: N/A | P43: N/A | Q43: N/A | R43: N/A | S43: N/A | T43: N/A | U43: N/A | V43: N/A | W43: N/A | X43: N/A | BA43: Water source available when needed | BB43: Yes | BC43: N/A | BD43: N/A | BE43: N/A | BF43: N/A | BG43: N/A | BH43: N/A | BI43: N/A | BJ43: N/A | BK43: N/A | BL43: N/A | BM43: N/A | BN43: N/A | BO43: N/A | BP43: N/A | BQ43: N/A | BR43: N/A | BS43: N/A | BT43: N/A | BU43: N/A | BV43: N/A | BW43: N/A | BX43: N/A
B44: No | C44: N/A | D44: N/A | E44: N/A | F44: N/A | G44: N/A | H44: N/A | I44: N/A | J44: N/A | K44: N/A | L44: N/A | M44: N/A | N44: N/A | O44: N/A | P44: N/A | Q44: N/A | R44: N/A | S44: N/A | T44: N/A | U44: N/A | V44: N/A | W44: N/A | X44: N/A | BB44: No | BC44: N/A | BD44: N/A | BE44: N/A | BF44: N/A | BG44: N/A | BH44: N/A | BI44: N/A | BJ44: N/A | BK44: N/A | BL44: N/A | BM44: N/A | BN44: N/A | BO44: N/A | BP44: N/A | BQ44: N/A | BR44: N/A | BS44: N/A | BT44: N/A | BU44: N/A | BV44: N/A | BW44: N/A | BX44: N/A
A45: Improved water source available when needed | B45: Yes | C45: N/A | D45: N/A | E45: N/A | F45: N/A | G45: N/A | H45: N/A | I45: N/A | J45: N/A | K45: N/A | L45: N/A | M45: N/A | N45: N/A | O45: N/A | P45: N/A | Q45: N/A | R45: N/A | S45: N/A | T45: N/A | U45: N/A | V45: N/A | W45: N/A | X45: N/A | BA45: Improved water source available when needed | BB45: Yes | BC45: N/A | BD45: N/A | BE45: N/A | BF45: N/A | BG45: N/A | BH45: N/A | BI45: N/A | BJ45: N/A | BK45: N/A | BL45: N/A | BM45: N/A | BN45: N/A | BO45: N/A | BP45: N/A | BQ45: N/A | BR45: N/A | BS45: N/A | BT45: N/A | BU45: N/A | BV45: N/A | BW45: N/A | BX45: N/A
B46: No | C46: N/A | D46: N/A | E46: N/A | F46: N/A | G46: N/A | H46: N/A | I46: N/A | J46: N/A | K46: N/A | L46: N/A | M46: N/A | N46: N/A | O46: N/A | P46: N/A | Q46: N/A | R46: N/A | S46: N/A | T46: N/A | U46: N/A | V46: N/A | W46: N/A | X46: N/A | BB46: No | BC46: N/A | BD46: N/A | BE46: N/A | BF46: N/A | BG46: N/A | BH46: N/A | BI46: N/A | BJ46: N/A | BK46: N/A | BL46: N/A | BM46: N/A | BN46: N/A | BO46: N/A | BP46: N/A | BQ46: N/A | BR46: N/A | BS46: N/A | BT46: N/A | BU46: N/A | BV46: N/A | BW46: N/A | BX46: N/A
A47: Microbiological quality at point of collection | B47: Not contaminated (No E. coli in 100 mL) | C47: N/A | D47: N/A | E47: N/A | F47: N/A | G47: N/A | H47: N/A | I47: N/A | J47: N/A | K47: N/A | L47: N/A | M47: N/A | N47: N/A | O47: N/A | P47: N/A | Q47: N/A | R47: N/A | S47: N/A | T47: N/A | U47: N/A | V47: N/A | W47: N/A | X47: N/A | BA47: Microbiological quality at point of collection | BB47: Not contaminated (No E. coli in 100 mL) | BC47: N/A | BD47: N/A | BE47: N/A | BF47: N/A | BG47: N/A | BH47: N/A | BI47: N/A | BJ47: N/A | BK47: N/A | BL47: N/A | BM47: N/A | BN47: N/A | BO47: N/A | BP47: N/A | BQ47: N/A | BR47: N/A | BS47: N/A | BT47: N/A | BU47: N/A | BV47: N/A | BW47: N/A | BX47: N/A
B48: Contaminated (E. coli detected in 100 mL) | C48: N/A | D48: N/A | E48: N/A | F48: N/A | G48: N/A | H48: N/A | I48: N/A | J48: N/A | K48: N/A | L48: N/A | M48: N/A | N48: N/A | O48: N/A | P48: N/A | Q48: N/A | R48: N/A | S48: N/A | T48: N/A | U48: N/A | V48: N/A | W48: N/A | X48: N/A | BB48: Contaminated (E. coli detected in 100 mL) | BC48: N/A | BD48: N/A | BE48: N/A | BF48: N/A | BG48: N/A | BH48: N/A | BI48: N/A | BJ48: N/A | BK48: N/A | BL48: N/A | BM48: N/A | BN48: N/A | BO48: N/A | BP48: N/A | BQ48: N/A | BR48: N/A | BS48: N/A | BT48: N/A | BU48: N/A | BV48: N/A | BW48: N/A | BX48: N/A
B49: Highly contaminated (>100 CFU/100 mL) | C49: N/A | D49: N/A | E49: N/A | F49: N/A | G49: N/A | H49: N/A | I49: N/A | J49: N/A | K49: N/A | L49: N/A | M49: N/A | N49: N/A | O49: N/A | P49: N/A | Q49: N/A | R49: N/A | S49: N/A | T49: N/A | U49: N/A | V49: N/A | W49: N/A | X49: N/A | BB49: Highly contaminated (>100 CFU/100 mL) | BC49: N/A | BD49: N/A | BE49: N/A | BF49: N/A | BG49: N/A | BH49: N/A | BI49: N/A | BJ49: N/A | BK49: N/A | BL49: N/A | BM49: N/A | BN49: N/A | BO49: N/A | BP49: N/A | BQ49: N/A | BR49: N/A | BS49: N/A | BT49: N/A | BU49: N/A | BV49: N/A | BW49: N/A | BX49: N/A
A50: Microbiological quality of improved water sources at point of collection | B50: Not contaminated (No E. coli in 100 mL) | C50: N/A | D50: N/A | E50: N/A | F50: N/A | G50: N/A | H50: N/A | I50: N/A | J50: N/A | K50: N/A | L50: N/A | M50: N/A | N50: N/A | O50: N/A | P50: N/A | Q50: N/A | R50: N/A | S50: N/A | T50: N/A | U50: N/A | V50: N/A | W50: N/A | X50: N/A | BA50: Microbiological quality of improved water sources at point of collection | BB50: Not contaminated (No E. coli in 100 mL) | BC50: N/A | BD50: N/A | BE50: N/A | BF50: N/A | BG50: N/A | BH50: N/A | BI50: N/A | BJ50: N/A | BK50: N/A | BL50: N/A | BM50: N/A | BN50: N/A | BO50: N/A | BP50: N/A | BQ50: N/A | BR50: N/A | BS50: N/A | BT50: N/A | BU50: N/A | BV50: N/A | BW50: N/A | BX50: N/A
B51: Contaminated (E. coli detected in 100 mL) | C51: N/A | D51: N/A | E51: N/A | F51: N/A | G51: N/A | H51: N/A | I51: N/A | J51: N/A | K51: N/A | L51: N/A | M51: N/A | N51: N/A | O51: N/A | P51: N/A | Q51: N/A | R51: N/A | S51: N/A | T51: N/A | U51: N/A | V51: N/A | W51: N/A | X51: N/A | BB51: Contaminated (E. coli detected in 100 mL) | BC51: N/A | BD51: N/A | BE51: N/A | BF51: N/A | BG51: N/A | BH51: N/A | BI51: N/A | BJ51: N/A | BK51: N/A | BL51: N/A | BM51: N/A | BN51: N/A | BO51: N/A | BP51: N/A | BQ51: N/A | BR51: N/A | BS51: N/A | BT51: N/A | BU51: N/A | BV51: N/A | BW51: N/A | BX51: N/A
B52: Highly contaminated (>100 CFU/100 mL) | C52: N/A | D52: N/A | E52: N/A | F52: N/A | G52: N/A | H52: N/A | I52: N/A | J52: N/A | K52: N/A | L52: N/A | M52: N/A | N52: N/A | O52: N/A | P52: N/A | Q52: N/A | R52: N/A | S52: N/A | T52: N/A | U52: N/A | V52: N/A | W52: N/A | X52: N/A | BB52: Highly contaminated (>100 CFU/100 mL) | BC52: N/A | BD52: N/A | BE52: N/A | BF52: N/A | BG52: N/A | BH52: N/A | BI52: N/A | BJ52: N/A | BK52: N/A | BL52: N/A | BM52: N/A | BN52: N/A | BO52: N/A | BP52: N/A | BQ52: N/A | BR52: N/A | BS52: N/A | BT52: N/A | BU52: N/A | BV52: N/A | BW52: N/A | BX52: N/A
A53: Microbiological quality of piped on premises at point of collection | B53: Not contaminated (No E. coli in 100 mL) | C53: N/A | D53: N/A | E53: N/A | F53: N/A | G53: N/A | H53: N/A | I53: N/A | J53: N/A | K53: N/A | L53: N/A | M53: N/A | N53: N/A | O53: N/A | P53: N/A | Q53: N/A | R53: N/A | S53: N/A | T53: N/A | U53: N/A | V53: N/A | W53: N/A | X53: N/A | BA53: Microbiological quality of piped on premises at point of collection | BB53: Not contaminated (No E. coli in 100 mL) | BC53: N/A | BD53: N/A | BE53: N/A | BF53: N/A | BG53: N/A | BH53: N/A | BI53: N/A | BJ53: N/A | BK53: N/A | BL53: N/A | BM53: N/A | BN53: N/A | BO53: N/A | BP53: N/A | BQ53: N/A | BR53: N/A | BS53: N/A | BT53: N/A | BU53: N/A | BV53: N/A | BW53: N/A | BX53: N/A
B54: Contaminated (E. coli detected in 100 mL) | C54: N/A | D54: N/A | E54: N/A | F54: N/A | G54: N/A | H54: N/A | I54: N/A | J54: N/A | K54: N/A | L54: N/A | M54: N/A | N54: N/A | O54: N/A | P54: N/A | Q54: N/A | R54: N/A | S54: N/A | T54: N/A | U54: N/A | V54: N/A | W54: N/A | X54: N/A | BB54: Contaminated (E. coli detected in 100 mL) | BC54: N/A | BD54: N/A | BE54: N/A | BF54: N/A | BG54: N/A | BH54: N/A | BI54: N/A | BJ54: N/A | BK54: N/A | BL54: N/A | BM54: N/A | BN54: N/A | BO54: N/A | BP54: N/A | BQ54: N/A | BR54: N/A | BS54: N/A | BT54: N/A | BU54: N/A | BV54: N/A | BW54: N/A | BX54: N/A
B55: Highly contaminated (>100 CFU/100 mL) | C55: N/A | D55: N/A | E55: N/A | F55: N/A | G55: N/A | H55: N/A | I55: N/A | J55: N/A | K55: N/A | L55: N/A | M55: N/A | N55: N/A | O55: N/A | P55: N/A | Q55: N/A | R55: N/A | S55: N/A | T55: N/A | U55: N/A | V55: N/A | W55: N/A | X55: N/A | BB55: Highly contaminated (>100 CFU/100 mL) | BC55: N/A | BD55: N/A | BE55: N/A | BF55: N/A | BG55: N/A | BH55: N/A | BI55: N/A | BJ55: N/A | BK55: N/A | BL55: N/A | BM55: N/A | BN55: N/A | BO55: N/A | BP55: N/A | BQ55: N/A | BR55: N/A | BS55: N/A | BT55: N/A | BU55: N/A | BV55: N/A | BW55: N/A | BX55: N/A
C56: NATIONAL wealth index quintile | H56: URBAN wealth index quintile | M56: RURAL wealth index quintile | R56: SUB-REGIONS: | BA56: Raw numbers of respondents: | BB56: Use of drinking water sources | BC56: NATIONAL wealth index quintile | BH56: URBAN wealth index quintile | BM56: RURAL wealth index quintile | BR56: SUB-REGIONS:
A57: Percentage based on weighted population | C57: Poorest | D57: Poor | E57: Middle | F57: Rich | G57: Richest | H57: Poorest | I57: Poor | J57: Middle | K57: Rich | L57: Richest | M57: Poorest | N57: Poor | O57: Middle | P57: Rich | Q57: Richest | R57: Brest region | S57: Gomel region | T57: Grodno region | U57: Minsk city | V57: Minsk region | W57: Mogilev region | X57: Vitebsk region | BA57: Water data, raw numbers (weighted) | BC57: Poorest | BD57: Poor | BE57: Middle | BF57: Rich | BG57: Richest | BH57: Poorest | BI57: Poor | BJ57: Middle | BK57: Rich | BL57: Richest | BM57: Poorest | BN57: Poor | BO57: Middle | BP57: Rich | BQ57: Richest | BR57: Brest region | BS57: Gomel region | BT57: Grodno region | BU57: Minsk city | BV57: Minsk region | BW57: Mogilev region | BX57: Vitebsk region
A58: Main source of drinking water | B58: Piped into dwelling | C58: 45.32807923 | D58: 82.06055562 | E58: 94.60497596 | F58: 95.74710044 | G58: 94.24463081 | H58: 75.88433572 | I58: 95.17330405 | J58: 96.48745051 | K58: 96.26480372 | L58: 93.54898059 | M58: 16.24273227 | N58: 44.98824112 | O58: 63.02060158 | P58: 80.42398912 | Q58: 88.03744192 | R58: 74.83864911 | S58: 77.78900802 | T58: 84.22143144 | U58: 92.93670195 | V58: 80.7107725 | W58: 81.88149323 | X58: 82.73140869
B59: Piped into compound, yard or plot | C59: 2.088469855 | D59: 0.8339021233 | E59: 0.02278218624 | F59: 0.01702665508 | G59: 0 | H59: 1.44994683 | I59: 0.03148396398 | J59: 0 | K59: 0 | L59: 0 | M59: 1.923853372 | N59: 2.212712987 | O59: 1.647771315 | P59: 1.005375066 | Q59: 0.06181721306 | R59: 0.305395 | S59: 0.6078661281 | T59: 0.1205874389 | U59: 0 | V59: 0.6359087289 | W59: 1.990356502 | X59: 0.8483582854
B60: Public tap / standpipe | C60: 12.70418514 | D60: 2.748946234 | E60: 0.1627462316 | F60: 0.1387486989 | G60: 0 | H60: 9.43987194 | I60: 0.6044063378 | J60: 0.191430226 | K60: 0 | L60: 0 | M60: 14.6780263 | N60: 9.344537364 | O60: 3.793147802 | P60: 2.029269334 | Q60: 0.402548154 | R60: 1.140281993 | S60: 3.328871902 | T60: 0.9139792231 | U60: 0 | V60: 2.849375104 | W60: 9.256062525 | X60: 6.503519302
B61: Tube well, Borehole | C61: 5.527634821 | D61: 3.995202789 | E61: 1.098934047 | F61: 0.4727178664 | G61: 0.02274422773 | H61: 2.637921611 | I61: 0.2152553145 | J61: 0.1676856856 | K61: 0 | L61: 0 | M61: 5.240957154 | N61: 6.775761798 | O61: 9.749267537 | P61: 5.992330956 | Q61: 4.638713966 | R61: 7.537727532 | S61: 3.178026 | T61: 0.04087294441 | U61: 0 | V61: 1.450517568 | W61: 2.58158443 | X61: 0.4922805961
B62: Protected well | C62: 33.23631327 | D62: 8.01015657 | E62: 1.882255867 | F62: 0 | G62: 0.1527285331 | H62: 9.163589844 | I62: 1.041379762 | J62: 0 | K62: 0.210781014 | L62: 0 | M62: 60.02014658 | N62: 35.37301823 | O62: 19.74807188 | P62: 9.806232139 | Q62: 4.742569137 | R62: 13.45075038 | S62: 10.78909076 | T62: 13.5441165 | U62: 0 | V62: 12.55166701 | W62: 3.321039436 | X62: 8.620907407
B63: Unprotected well | C63: 0.7027184857 | D63: 0.0690907819 | E63: 0 | F63: 0 | G63: 0 | H63: 0.07545670907 | I63: 0 | J63: 0 | K63: 0 | L63: 0 | M63: 1.595302507 | N63: 0.650310399 | O63: 0.3052987463 | P63: 0.05215484504 | Q63: 0 | R63: 0.1536020225 | S63: 0.03424035537 | T63: 0.4130081275 | U63: 0 | V63: 0.2301970025 | W63: 0 | X63: 0.3325208409
B64: Bottled water | C64: 0.05642807217 | D64: 1.928732454 | E64: 2.043213866 | F64: 3.488923013 | G64: 5.476212243 | H64: 1.220373801 | I64: 2.622594658 | J64: 3.153433581 | K64: 3.337513538 | L64: 6.307829388 | M64: 0 | N64: 0 | O64: 1.049346173 | P64: 0.6906485449 | Q64: 1.667417692 | R64: 2.228634173 | S64: 4.230641647 | T64: 0.7460043285 | U64: 6.949571696 | V64: 1.196015737 | W64: 0.5265255788 | X64: 0.1865209581
B65: Other | C65: 0.3561711244 | D65: 0.3534134279 | E65: 0.1850918454 | F65: 0.1354833275 | G65: 0.1036841835 | H65: 0.1285035423 | I65: 0.3115759147 | J65: 0 | K65: 0.1869017278 | L65: 0.1431900251 | M65: 0.2989818143 | N65: 0.6554181033 | O65: 0.6864949634 | P65: 0 | Q65: 0.449491921 | R65: 0.3449597861 | S65: 0.04225518763 | T65: 0 | U65: 0.1137263491 | V65: 0.3755463527 | W65: 0.4429383008 | X65: 0.2844839235
A108: =A1026 -> Belarus
A109: =A1034 -> 2012
A110: Use of sanitation facilities
A111: by wealth quintile and sub-national region
A112: Notes:
A113: WHO/UNICEF JMP customised wealth index excludes water,
A114: sanitation and hygiene assets.
A115: Survey used for analysis: | B115: =A1025 -> MICS12
A116: =B1030 -> 
A117: =B1029 -> 
A120: Use of sanitation facilities | C120: NATIONAL wealth index quintile | H120: URBAN wealth index quintile | M120: RURAL wealth index quintile | R120: SUB-REGIONS: | BA120: Raw numbers of respondents: | BB120: Use of sanitation facilities | BC120: NATIONAL wealth index quintile | BH120: URBAN wealth index quintile | BM120: RURAL wealth index quintile | BR120: SUB-REGIONS:
A121: Weighted percentage (used in graphs) | C121: Poorest | D121: Poor | E121: Middle | F121: Rich | G121: Richest | H121: Poorest | I121: Poor | J121: Middle | K121: Rich | L121: Richest | M121: Poorest | N121: Poor | O121: Middle | P121: Rich | Q121: Richest | R121: Brest region | S121: Gomel region | T121: Grodno region | U121: Minsk city | V121: Minsk region | W121: Mogilev region | X121: Vitebsk region | BA121: Sanitation data, raw numbers (weighted) | BC121: Poorest | BD121: Poor | BE121: Middle | BF121: Rich | BG121: Richest | BH121: Poorest | BI121: Poor | BJ121: Middle | BK121: Rich | BL121: Richest | BM121: Poorest | BN121: Poor | BO121: Middle | BP121: Rich | BQ121: Richest | BR121: Brest region | BS121: Gomel region | BT121: Grodno region | BU121: Minsk city | BV121: Minsk region | BW121: Mogilev region | BX121: Vitebsk region
A122: Sanitation | B122: Improved | C122: 94.40977449 | D122: 98.09748748 | E122: 99.59945023 | F122: 100 | G122: 100 | H122: 97.54426883 | I122: 99.35259562 | J122: 100 | K122: 100 | L122: 100 | M122: 91.71081937 | N122: 94.30986442 | O122: 95.83838995 | P122: 97.87115571 | Q122: 99.78516436 | R122: 99.77471897 | S122: 94.70425133 | T122: 99.80517833 | U122: 100 | V122: 96.79756776 | W122: 99.97451816 | X122: 98.28742681 | BA122: Sanitation | BB122: Improved | BC122: 3851.646542 | BD122: 4001.752485 | BE122: 4063.593963 | BF122: 4078.712199 | BG122: 4080.439181 | BH122: 2885.608525 | BI122: 2933.179047 | BJ122: 2956.252116 | BK122: 2956.620611 | BL122: 2954.654171 | BM122: 1030.334334 | BN122: 1060.539511 | BO122: 1077.798443 | BP122: 1100.148983 | BQ122: 1121.008629 | BR122: 3112.679481 | BS122: 2910.468111 | BT122: 2266.184448 | BU122: 3720.131777 | BV122: 3044.997506 | BW122: 2354.359897 | BX122: 2667.323151
B123: Not Improved | C123: 5.590225506 | D123: 1.902512522 | E123: 0.4005497683 | F123: 0 | G123: 0 | H123: 2.455731165 | I123: 0.6474043792 | J123: 0 | K123: 0 | L123: 0 | M123: 8.289180632 | N123: 5.69013558 | O123: 4.161610047 | P123: 2.128844294 | Q123: 0.2148356412 | R123: 0.2252810318 | S123: 5.295748669 | T123: 0.1948216679 | U123: 0 | V123: 3.202432237 | W123: 0.02548183881 | X123: 1.71257319 | BB123: Not Improved | BC123: 228.0650797 | BD123: 77.61038951 | BE123: 16.34217475 | BF123: 0 | BG123: 0 | BH123: 72.64679792 | BI123: 19.11326975 | BJ123: 0 | BK123: 0 | BL123: 0 | BM123: 93.12562539 | BN123: 63.98708812 | BO123: 46.80146266 | BP123: 23.92988893 | BQ123: 2.413511157 | BR123: 7.028109447 | BS123: 162.749902 | BT123: 4.42363654 | BU123: 0 | BV123: 100.7401157 | BW123: 0.6000871071 | BX123: 46.47579314
A124: Sanitation ladder | B124: Basic | C124: =C122*C129/100 -> 90.89722961 | D124: =D122*D129/100 -> 94.67849316 | E124: =E122*E129/100 -> 96.00503707 | F124: 97.9083924 | G124: 99.06160851 | H124: 92.25489024 | I124: 94.89453445 | J124: 96.98344768 | K124: 98.35152995 | L124: 99.11503672 | M124: 89.01152757 | N124: 92.30780944 | O124: 93.82261928 | P124: 96.03926229 | Q124: 99.36024942 | R124: 97.75085234 | S124: 93.4172447 | T124: 98.98304172 | U124: 96.37504753 | V124: 94.76320604 | W124: 92.91882346 | X124: 95.83110711 | BA124: Sanitation ladder | BB124: Basic | BC124: 3708.34484 | BD124: 3862.2793 | BE124: 3916.944202 | BF124: 3993.401544 | BG124: 4042.148687 | BH124: 2729.135201 | BI124: 2801.56405 | BJ124: 2867.075224 | BK124: 2907.881605 | BL124: 2928.506567 | BM124: 1000.008872 | BN124: 1038.02587 | BO124: 1055.129088 | BP124: 1079.557056 | BQ124: 1116.23504 | BR124: 3049.54076 | BS124: 2870.915591 | BT124: 2247.516947 | BU124: 3585.278769 | BV124: 2981.001824 | BW124: 2188.20111 | BX124: 2600.663573
B125: Limited | C125: =C122*C128/100 -> 3.512544881 | D125: =D122*D128/100 -> 3.418994319 | E125: =E122*E128/100 -> 3.594413159 | F125: 2.091607602 | G125: 0.9383914871 | H125: 5.289378593 | I125: 4.458061168 | J125: 3.016552321 | K125: 1.648470051 | L125: 0.884963278 | M125: 2.6992918 | N125: 2.002054982 | O125: 2.01577067 | P125: 1.831893412 | Q125: 0.4249149413 | R125: 2.023866627 | S125: 1.287006634 | T125: 0.8221366076 | U125: 3.624952467 | V125: 2.034361724 | W125: 7.055694697 | X125: 2.456319703 | BB125: Limited | BC125: 143.3017017 | BD125: 139.4731849 | BE125: 146.6497614 | BF125: 85.31065441 | BG125: 38.29049391 | BH125: 156.4733238 | BI125: 131.6149973 | BJ125: 89.17689182 | BK125: 48.7390053 | BL125: 26.14760441 | BM125: 30.32546257 | BN125: 22.5136408 | BO125: 22.66935505 | BP125: 20.5919268 | BQ125: 4.773588527 | BR125: 63.13872077 | BS125: 39.5525197 | BT125: 18.66750028 | BU125: 134.8530086 | BV125: 63.9956821 | BW125: 166.1587867 | BX125: 66.65957815
B126: Unimproved | C126: =100-C124-C125-C127 -> 5.590225506 | D126: =100-D124-D125-D127 -> 1.902512522 | E126: =100-E124-E125-E127 -> 0.4005497683 | F126: 1.243449788e-14 | G126: 1.998401444e-14 | H126: 2.455731165 | I126: 0.6474043792 | J126: 1.687538997e-14 | K126: -5.773159728e-15 | L126: 5.773159728e-15 | M126: 8.289180632 | N126: 5.69013558 | O126: 4.161610047 | P126: 2.128844294 | Q126: 0.2148356412 | R126: 0.2252810318 | S126: 5.295748669 | T126: 0.1948216679 | U126: -1.394440119e-13 | V126: 3.202432237 | W126: 0.02548183881 | X126: 1.71257319 | BB126: Unimproved | BC126: 228.0650797 | BD126: 77.61038951 | BE126: 16.34217475 | BF126: 0 | BG126: 0 | BH126: 72.64679792 | BI126: 19.11326975 | BJ126: 0 | BK126: 0 | BL126: 0 | BM126: 93.12562539 | BN126: 63.98708812 | BO126: 46.80146266 | BP126: 23.92988893 | BQ126: 2.413511157 | BR126: 7.028109447 | BS126: 162.749902 | BT126: 4.42363654 | BU126: 0 | BV126: 100.7401157 | BW126: 0.6000871071 | BX126: 46.47579314
B127: Open defecation | C127: 0 | D127: 0 | E127: 0 | F127: 0 | G127: 0 | H127: 0 | I127: 0 | J127: 0 | K127: 0 | L127: 0 | M127: 0 | N127: 0 | O127: 0 | P127: 0 | Q127: 0 | R127: 0 | S127: 0 | T127: 0 | U127: 0 | V127: 0 | W127: 0 | X127: 0 | BB127: Open defecation | BC127: 716.2052001 | BD127: 2112.323326 | BE127: 3645.869743 | BF127: 4017.574208 | BG127: 4070.914675 | BH127: 1215.381272 | BI127: 2676.51407 | BJ127: 2924.124801 | BK127: 2955.846382 | BL127: 2954.654171 | BM127: 55.88711791 | BN127: 179.0041302 | BO127: 307.8280969 | BP127: 485.9248989 | BQ127: 807.722211 | BR127: 1988.871092 | BS127: 1868.513626 | BT127: 1792.836699 | BU127: 3708.954548 | BV127: 1902.364749 | BW127: 1364.743694 | BX127: 1936.602743
A128: Shared among Improved Sanitation | B128: Yes | C128: 3.720530951 | D128: 3.485302638 | E128: 3.608868473 | F128: 2.091607602 | G128: 0.9383914871 | H128: 5.422541638 | I128: 4.48711092 | J128: 3.016552321 | K128: 1.648470051 | L128: 0.884963278 | M128: 2.943264294 | N128: 2.122847906 | O128: 2.103301893 | P128: 1.871739839 | Q128: 0.4258297754 | R128: 2.028436309 | S128: 1.358974508 | T128: 0.8237414344 | U128: 3.624952467 | V128: 2.101666158 | W128: 7.057493076 | X128: 2.499118944 | BA128: Shared among improved sanitation facilities | BB128: Yes | BC128: N/A | BD128: N/A | BE128: N/A | BF128: N/A | BG128: N/A | BH128: N/A | BI128: N/A | BJ128: N/A | BK128: N/A | BL128: N/A | BM128: N/A | BN128: N/A | BO128: N/A | BP128: N/A | BQ128: N/A | BR128: N/A | BS128: N/A | BT128: N/A | BU128: N/A | BV128: N/A | BW128: N/A | BX128: N/A
B129: No | C129: 96.27946905 | D129: 96.51469736 | E129: 96.39113153 | F129: 97.9083924 | G129: 99.06160851 | H129: 94.57745836 | I129: 95.51288908 | J129: 96.98344768 | K129: 98.35152995 | L129: 99.11503672 | M129: 97.05673571 | N129: 97.87715209 | O129: 97.89669811 | P129: 98.12826016 | Q129: 99.57417022 | R129: 97.97156369 | S129: 98.64102549 | T129: 99.17625857 | U129: 96.37504753 | V129: 97.89833384 | W129: 92.94250692 | X129: 97.50088106 | BB129: No | BC129: N/A | BD129: N/A | BE129: N/A | BF129: N/A | BG129: N/A | BH129: N/A | BI129: N/A | BJ129: N/A | BK129: N/A | BL129: N/A | BM129: N/A | BN129: N/A | BO129: N/A | BP129: N/A | BQ129: N/A | BR129: N/A | BS129: N/A | BT129: N/A | BU129: N/A | BV129: N/A | BW129: N/A | BX129: N/A
A130: Manually calculated ratios | B130: Improved latrines
B131: Other
B132: Other
C133: NATIONAL wealth index quintile | H133: URBAN wealth index quintile | M133: RURAL wealth index quintile | R133: SUB-REGIONS: | BA133: Raw numbers of respondents: | BB133: Use of sanitation facilities | BC133: NATIONAL wealth index quintile | BH133: URBAN wealth index quintile | BM133: RURAL wealth index quintile | BR133: SUB-REGIONS:
A134: Percentage based on weighted population | C134: Poorest | D134: Poor | E134: Middle | F134: Rich | G134: Richest | H134: Poorest | I134: Poor | J134: Middle | K134: Rich | L134: Richest | M134: Poorest | N134: Poor | O134: Middle | P134: Rich | Q134: Richest | R134: Brest region | S134: Gomel region | T134: Grodno region | U134: Minsk city | V134: Minsk region | W134: Mogilev region | X134: Vitebsk region | BA134: Sanitation data, raw numbers (weighted) | BC134: Poorest | BD134: Poor | BE134: Middle | BF134: Rich | BG134: Richest | BH134: Poorest | BI134: Poor | BJ134: Middle | BK134: Rich | BL134: Richest | BM134: Poorest | BN134: Poor | BO134: Middle | BP134: Rich | BQ134: Richest | BR134: Brest region | BS134: Gomel region | BT134: Grodno region | BU134: Minsk city | BV134: Minsk region | BW134: Mogilev region | BX134: Vitebsk region
A135: Sanitation type | B135: Sewer connection | C135: 17.55528985 | D135: 51.78071652 | E135: 89.36095124 | F135: 98.50104671 | G135: 99.76658134 | H135: 41.084394 | I135: 90.65884346 | J135: 98.91324172 | K135: 99.97381374 | L135: 100 | M135: 4.974553603 | N135: 15.91817662 | O135: 27.37223214 | P135: 43.22871917 | Q135: 71.89837036 | R135: 63.75184324 | S135: 60.7999048 | T135: 78.958439 | U135: 99.6995475 | V135: 60.47436174 | W135: 57.95188469 | X135: 71.36131978 | BA135: Sanitation type | BB135: Sewer connection | BC135: N/A | BD135: N/A | BE135: N/A | BF135: N/A | BG135: N/A | BH135: N/A | BI135: N/A | BJ135: N/A | BK135: N/A | BL135: N/A | BM135: N/A | BN135: N/A | BO135: N/A | BP135: N/A | BQ135: N/A | BR135: N/A | BS135: N/A | BT135: N/A | BU135: N/A | BV135: N/A | BW135: N/A | BX135: N/A
B136: Septic tank connection | C136: 7.368379411 | D136: 14.21983693 | E136: 3.981508664 | F136: 0.9111515774 | G136: 0.2334186591 | H136: 8.683274118 | I136: 3.856582806 | J136: 0.7985054692 | K136: 0.02618626043 | L136: 0 | M136: 0.9183171912 | N136: 11.35082661 | O136: 16.61574069 | P136: 21.36269998 | Q136: 11.54978804 | R136: 9.920718393 | S136: 3.614383626 | T136: 0.2938600665 | U136: 0.1228011425 | V136: 11.3567984 | W136: 8.273065047 | X136: 3.903002039 | BB136: Septic tank connection | BC136: N/A | BD136: N/A | BE136: N/A | BF136: N/A | BG136: N/A | BH136: N/A | BI136: N/A | BJ136: N/A | BK136: N/A | BL136: N/A | BM136: N/A | BN136: N/A | BO136: N/A | BP136: N/A | BQ136: N/A | BR136: N/A | BS136: N/A | BT136: N/A | BU136: N/A | BV136: N/A | BW136: N/A | BX136: N/A
B137: Improved latrines | C137: 69.48610524 | D137: 32.09693402 | E137: 6.256990329 | F137: 0.587801711 | G137: 0 | H137: 47.77660071 | I137: 4.837169355 | J137: 0.2882528129 | K137: 0 | L137: 0 | M137: 85.81794857 | N137: 67.04086119 | O137: 51.85041712 | P137: 33.27973655 | Q137: 16.33700595 | R137: 26.10215734 | S137: 30.28996291 | T137: 20.55287926 | U137: 0.1776513567 | V137: 24.96640762 | W137: 33.74956843 | X137: 23.02310499 | BB137: Improved latrines | BC137: N/A | BD137: N/A | BE137: N/A | BF137: N/A | BG137: N/A | BH137: N/A | BI137: N/A | BJ137: N/A | BK137: N/A | BL137: N/A | BM137: N/A | BN137: N/A | BO137: N/A | BP137: N/A | BQ137: N/A | BR137: N/A | BS137: N/A | BT137: N/A | BU137: N/A | BV137: N/A | BW137: N/A | BX137: N/A
B138: Unimproved facilities | C138: 5.590225506 | D138: 1.902512522 | E138: 0.4005497683 | F138: 0 | G138: 0 | H138: 2.455731165 | I138: 0.6474043792 | J138: 0 | K138: 0 | L138: 0 | M138: 8.289180632 | N138: 5.69013558 | O138: 4.161610047 | P138: 2.128844294 | Q138: 0.2148356412 | R138: 0.2252810318 | S138: 5.295748669 | T138: 0.1948216679 | U138: 0 | V138: 3.202432237 | W138: 0.02548183881 | X138: 1.71257319 | BB138: Unimproved facilities | BC138: N/A | BD138: N/A | BE138: N/A | BF138: N/A | BG138: N/A | BH138: N/A | BI138: N/A | BJ138: N/A | BK138: N/A | BL138: N/A | BM138: N/A | BN138: N/A | BO138: N/A | BP138: N/A | BQ138: N/A | BR138: N/A | BS138: N/A | BT138: N/A | BU138: N/A | BV138: N/A | BW138: N/A | BX138: N/A
B139: Open defecation | C139: 0 | D139: 0 | E139: 0 | F139: 0 | G139: 0 | H139: 0 | I139: 0 | J139: 0 | K139: 0 | L139: 0 | M139: 0 | N139: 0 | O139: 0 | P139: 0 | Q139: 0 | R139: 0 | S139: 0 | T139: 0 | U139: 0 | V139: 0 | W139: 0 | X139: 0 | BB139: Open defecation | BC139: N/A | BD139: N/A | BE139: N/A | BF139: N/A | BG139: N/A | BH139: N/A | BI139: N/A | BJ139: N/A | BK139: N/A | BL139: N/A | BM139: N/A | BN139: N/A | BO139: N/A | BP139: N/A | BQ139: N/A | BR139: N/A | BS139: N/A | BT139: N/A | BU139: N/A | BV139: N/A | BW139: N/A | BX139: N/A
A140: Septic tank emptying practices | B140: Not emptied/treated and disposed in situ | C140: N/A | D140: N/A | E140: N/A | F140: N/A | G140: N/A | H140: N/A | I140: N/A | J140: N/A | K140: N/A | L140: N/A | M140: N/A | N140: N/A | O140: N/A | P140: N/A | Q140: N/A | R140: N/A | S140: N/A | T140: N/A | U140: N/A | V140: N/A | W140: N/A | X140: N/A | BA140: Septic tank emptying practices | BB140: Not emptied/treated and disposed in situ | BC140: N/A | BD140: N/A | BE140: N/A | BF140: N/A | BG140: N/A | BH140: N/A | BI140: N/A | BJ140: N/A | BK140: N/A | BL140: N/A | BM140: N/A | BN140: N/A | BO140: N/A | BP140: N/A | BQ140: N/A | BR140: N/A | BS140: N/A | BT140: N/A | BU140: N/A | BV140: N/A | BW140: N/A | BX140: N/A
B141: Emptied and buried on site | C141: N/A | D141: N/A | E141: N/A | F141: N/A | G141: N/A | H141: N/A | I141: N/A | J141: N/A | K141: N/A | L141: N/A | M141: N/A | N141: N/A | O141: N/A | P141: N/A | Q141: N/A | R141: N/A | S141: N/A | T141: N/A | U141: N/A | V141: N/A | W141: N/A | X141: N/A | BB141: Emptied and buried on site | BC141: N/A | BD141: N/A | BE141: N/A | BF141: N/A | BG141: N/A | BH141: N/A | BI141: N/A | BJ141: N/A | BK141: N/A | BL141: N/A | BM141: N/A | BN141: N/A | BO141: N/A | BP141: N/A | BQ141: N/A | BR141: N/A | BS141: N/A | BT141: N/A | BU141: N/A | BV141: N/A | BW141: N/A | BX141: N/A
B142: Emptied and discharged locally | C142: N/A | D142: N/A | E142: N/A | F142: N/A | G142: N/A | H142: N/A | I142: N/A | J142: N/A | K142: N/A | L142: N/A | M142: N/A | N142: N/A | O142: N/A | P142: N/A | Q142: N/A | R142: N/A | S142: N/A | T142: N/A | U142: N/A | V142: N/A | W142: N/A | X142: N/A | BB142: Emptied and discharged locally | BC142: N/A | BD142: N/A | BE142: N/A | BF142: N/A | BG142: N/A | BH142: N/A | BI142: N/A | BJ142: N/A | BK142: N/A | BL142: N/A | BM142: N/A | BN142: N/A | BO142: N/A | BP142: N/A | BQ142: N/A | BR142: N/A | BS142: N/A | BT142: N/A | BU142: N/A | BV142: N/A | BW142: N/A | BX142: N/A
B143: Emptied and removed offsite | C143: N/A | D143: N/A | E143: N/A | F143: N/A | G143: N/A | H143: N/A | I143: N/A | J143: N/A | K143: N/A | L143: N/A | M143: N/A | N143: N/A | O143: N/A | P143: N/A | Q143: N/A | R143: N/A | S143: N/A | T143: N/A | U143: N/A | V143: N/A | W143: N/A | X143: N/A | BB143: Emptied and removed offsite | BC143: N/A | BD143: N/A | BE143: N/A | BF143: N/A | BG143: N/A | BH143: N/A | BI143: N/A | BJ143: N/A | BK143: N/A | BL143: N/A | BM143: N/A | BN143: N/A | BO143: N/A | BP143: N/A | BQ143: N/A | BR143: N/A | BS143: N/A | BT143: N/A | BU143: N/A | BV143: N/A | BW143: N/A | BX143: N/A
A144: Latrine emptying practices | B144: Not emptied/treated and disposed in situ | C144: N/A | D144: N/A | E144: N/A | F144: N/A | G144: N/A | H144: N/A | I144: N/A | J144: N/A | K144: N/A | L144: N/A | M144: N/A | N144: N/A | O144: N/A | P144: N/A | Q144: N/A | R144: N/A | S144: N/A | T144: N/A | U144: N/A | V144: N/A | W144: N/A | X144: N/A | BA144: Latrine emptying practices | BB144: Not emptied/treated and disposed in situ | BC144: N/A | BD144: N/A | BE144: N/A | BF144: N/A | BG144: N/A | BH144: N/A | BI144: N/A | BJ144: N/A | BK144: N/A | BL144: N/A | BM144: N/A | BN144: N/A | BO144: N/A | BP144: N/A | BQ144: N/A | BR144: N/A | BS144: N/A | BT144: N/A | BU144: N/A | BV144: N/A | BW144: N/A | BX144: N/A
B145: Emptied and buried on site | C145: N/A | D145: N/A | E145: N/A | F145: N/A | G145: N/A | H145: N/A | I145: N/A | J145: N/A | K145: N/A | L145: N/A | M145: N/A | N145: N/A | O145: N/A | P145: N/A | Q145: N/A | R145: N/A | S145: N/A | T145: N/A | U145: N/A | V145: N/A | W145: N/A | X145: N/A | BB145: Emptied and buried on site | BC145: N/A | BD145: N/A | BE145: N/A | BF145: N/A | BG145: N/A | BH145: N/A | BI145: N/A | BJ145: N/A | BK145: N/A | BL145: N/A | BM145: N/A | BN145: N/A | BO145: N/A | BP145: N/A | BQ145: N/A | BR145: N/A | BS145: N/A | BT145: N/A | BU145: N/A | BV145: N/A | BW145: N/A | BX145: N/A
B146: Emptied and discharged locally | C146: N/A | D146: N/A | E146: N/A | F146: N/A | G146: N/A | H146: N/A | I146: N/A | J146: N/A | K146: N/A | L146: N/A | M146: N/A | N146: N/A | O146: N/A | P146: N/A | Q146: N/A | R146: N/A | S146: N/A | T146: N/A | U146: N/A | V146: N/A | W146: N/A | X146: N/A | BB146: Emptied and discharged locally | BC146: N/A | BD146: N/A | BE146: N/A | BF146: N/A | BG146: N/A | BH146: N/A | BI146: N/A | BJ146: N/A | BK146: N/A | BL146: N/A | BM146: N/A | BN146: N/A | BO146: N/A | BP146: N/A | BQ146: N/A | BR146: N/A | BS146: N/A | BT146: N/A | BU146: N/A | BV146: N/A | BW146: N/A | BX146: N/A
B147: Emptied and removed offsite | C147: N/A | D147: N/A | E147: N/A | F147: N/A | G147: N/A | H147: N/A | I147: N/A | J147: N/A | K147: N/A | L147: N/A | M147: N/A | N147: N/A | O147: N/A | P147: N/A | Q147: N/A | R147: N/A | S147: N/A | T147: N/A | U147: N/A | V147: N/A | W147: N/A | X147: N/A | BB147: Emptied and removed offsite | BC147: N/A | BD147: N/A | BE147: N/A | BF147: N/A | BG147: N/A | BH147: N/A | BI147: N/A | BJ147: N/A | BK147: N/A | BL147: N/A | BM147: N/A | BN147: N/A | BO147: N/A | BP147: N/A | BQ147: N/A | BR147: N/A | BS147: N/A | BT147: N/A | BU147: N/A | BV147: N/A | BW147: N/A | BX147: N/A
A148: Shared among improved sanitation facilities | B148: Yes | C148: 3.512544881 | D148: 3.418994319 | E148: 3.594413159 | F148: 2.091607602 | G148: 0.9383914871 | H148: 5.289378593 | I148: 4.458061168 | J148: 3.016552321 | K148: 1.648470051 | L148: 0.884963278 | M148: 2.6992918 | N148: 2.002054982 | O148: 2.01577067 | P148: 1.831893412 | Q148: 0.4249149413 | R148: 2.023866627 | S148: 1.287006634 | T148: 0.8221366076 | U148: 3.624952467 | V148: 2.034361724 | W148: 7.055694697 | X148: 2.456319703 | BA148: Shared among improved sanitation facilities | BB148: Yes | BC148: N/A | BD148: N/A | BE148: N/A | BF148: N/A | BG148: N/A | BH148: N/A | BI148: N/A | BJ148: N/A | BK148: N/A | BL148: N/A | BM148: N/A | BN148: N/A | BO148: N/A | BP148: N/A | BQ148: N/A | BR148: N/A | BS148: N/A | BT148: N/A | BU148: N/A | BV148: N/A | BW148: N/A | BX148: N/A
B149: No | C149: 90.89722961 | D149: 94.67849316 | E149: 96.00503707 | F149: 97.9083924 | G149: 99.06160851 | H149: 92.25489024 | I149: 94.89453445 | J149: 96.98344768 | K149: 98.35152995 | L149: 99.11503672 | M149: 89.01152757 | N149: 92.30780944 | O149: 93.82261928 | P149: 96.03926229 | Q149: 99.36024942 | R149: 97.75085234 | S149: 93.4172447 | T149: 98.98304172 | U149: 96.37504753 | V149: 94.76320604 | W149: 92.91882346 | X149: 95.83110711 | BB149: No | BC149: N/A | BD149: N/A | BE149: N/A | BF149: N/A | BG149: N/A | BH149: N/A | BI149: N/A | BJ149: N/A | BK149: N/A | BL149: N/A | BM149: N/A | BN149: N/A | BO149: N/A | BP149: N/A | BQ149: N/A | BR149: N/A | BS149: N/A | BT149: N/A | BU149: N/A | BV149: N/A | BW149: N/A | BX149: N/A
B150: DK/missing | C150: 5.590225506 | D150: 1.902512522 | E150: 0.4005497683 | F150: 0 | G150: 0 | H150: 2.455731165 | I150: 0.6474043792 | J150: 0 | K150: 0 | L150: 0 | M150: 8.289180632 | N150: 5.69013558 | O150: 4.161610047 | P150: 2.128844294 | Q150: 0.2148356412 | R150: 0.2252810318 | S150: 5.295748669 | T150: 0.1948216679 | U150: 0 | V150: 3.202432237 | W150: 0.02548183881 | X150: 1.71257319 | BB150: DK/missing | BC150: N/A | BD150: N/A | BE150: N/A | BF150: N/A | BG150: N/A | BH150: N/A | BI150: N/A | BJ150: N/A | BK150: N/A | BL150: N/A | BM150: N/A | BN150: N/A | BO150: N/A | BP150: N/A | BQ150: N/A | BR150: N/A | BS150: N/A | BT150: N/A | BU150: N/A | BV150: N/A | BW150: N/A | BX150: N/A
A151: Shared among all sanitation facilities | B151: Yes | C151: 4.253653426 | D151: 3.670953394 | E151: 3.594413159 | F151: 2.091607602 | G151: 0.9383914871 | H151: 6.067486594 | I151: 4.489028695 | J151: 3.016552321 | K151: 1.648470051 | L151: 0.884963278 | M151: 2.810026429 | N151: 2.957680591 | O151: 2.275407675 | P151: 1.980507734 | Q151: 0.4249149413 | R151: 2.023866627 | S151: 1.563112938 | T151: 0.8221366076 | U151: 3.624952467 | V151: 2.785961874 | W151: 7.055694697 | X151: 2.765285076 | BA151: Shared among all sanitation facilities | BB151: Yes | BC151: N/A | BD151: N/A | BE151: N/A | BF151: N/A | BG151: N/A | BH151: N/A | BI151: N/A | BJ151: N/A | BK151: N/A | BL151: N/A | BM151: N/A | BN151: N/A | BO151: N/A | BP151: N/A | BQ151: N/A | BR151: N/A | BS151: N/A | BT151: N/A | BU151: N/A | BV151: N/A | BW151: N/A | BX151: N/A
B152: No | C152: 95.74634657 | D152: 96.32904661 | E152: 96.40558684 | F152: 97.9083924 | G152: 99.06160851 | H152: 93.93251341 | I152: 95.51097131 | J152: 96.98344768 | K152: 98.35152995 | L152: 99.11503672 | M152: 97.18997357 | N152: 97.04231941 | O152: 97.72459232 | P152: 98.01949227 | Q152: 99.57508506 | R152: 97.97613337 | S152: 98.43688706 | T152: 99.17786339 | U152: 96.37504753 | V152: 97.21403813 | W152: 92.9443053 | X152: 97.23471492 | BB152: No | BC152: N/A | BD152: N/A | BE152: N/A | BF152: N/A | BG152: N/A | BH152: N/A | BI152: N/A | BJ152: N/A | BK152: N/A | BL152: N/A | BM152: N/A | BN152: N/A | BO152: N/A | BP152: N/A | BQ152: N/A | BR152: N/A | BS152: N/A | BT152: N/A | BU152: N/A | BV152: N/A | BW152: N/A | BX152: N/A
A153: Type of toilet facility | B153: Flush to piped sewer system | C153: 17.55528985 | D153: 51.78071652 | E153: 89.36095124 | F153: 98.50104671 | G153: 99.76658134 | H153: 41.084394 | I153: 90.65884346 | J153: 98.91324172 | K153: 99.97381374 | L153: 100 | M153: 4.974553603 | N153: 15.91817662 | O153: 27.37223214 | P153: 43.22871917 | Q153: 71.89837036 | R153: 63.75184324 | S153: 60.7999048 | T153: 78.958439 | U153: 99.6995475 | V153: 60.47436174 | W153: 57.95188469 | X153: 71.36131978 | BA153: Type of toilet facility | BB153: Flush to piped sewer system | BC153: 716.2052001 | BD153: 2112.323326 | BE153: 3645.869743 | BF153: 4017.574208 | BG153: 4070.914675 | BH153: 1215.381272 | BI153: 2676.51407 | BJ153: 2924.124801 | BK153: 2955.846382 | BL153: 2954.654171 | BM153: 55.88711791 | BN153: 179.0041302 | BO153: 307.8280969 | BP153: 485.9248989 | BQ153: 807.722211 | BR153: 1988.871092 | BS153: 1868.513626 | BT153: 1792.836699 | BU153: 3708.954548 | BV153: 1902.364749 | BW153: 1364.743694 | BX153: 1936.602743
B154: Flush to septic tank | C154: 7.368379411 | D154: 14.21983693 | E154: 3.981508664 | F154: 0.9111515774 | G154: 0.2334186591 | H154: 8.683274118 | I154: 3.856582806 | J154: 0.7985054692 | K154: 0.02618626043 | L154: 0 | M154: 0.9183171912 | N154: 11.35082661 | O154: 16.61574069 | P154: 21.36269998 | Q154: 11.54978804 | R154: 9.920718393 | S154: 3.614383626 | T154: 0.2938600665 | U154: 0.1228011425 | V154: 11.3567984 | W154: 8.273065047 | X154: 3.903002039 | BB154: Flush to septic tank | BC154: 300.6086312 | BD154: 580.0787486 | BE154: 162.4430108 | BF154: 37.16325054 | BG154: 9.524506422 | BH154: 256.8734188 | BI154: 113.8575979 | BJ154: 23.60583483 | BK154: 0.7742283729 | BL154: 0 | BM154: 10.31692595 | BN154: 127.6430644 | BO154: 186.8606042 | BP154: 240.133597 | BQ154: 129.752876 | BR154: 309.4974047 | BS154: 111.0778886 | BT154: 6.672410427 | BU154: 4.568364325 | BV154: 357.25508 | BW154: 194.8273713 | BX154: 105.9196281
B155: Flush to pit (latrine) | C155: 4.896125045 | D155: 7.349534776 | E155: 3.360259292 | F155: 0.587801711 | G155: 0 | H155: 7.915098925 | I155: 2.311013585 | J155: 0.2532640653 | K155: 0 | L155: 0 | M155: 2.634702653 | N155: 5.02535596 | O155: 6.378212962 | P155: 8.437683806 | Q155: 8.730682575 | R155: 1.610216234 | S155: 10.02212822 | T155: 1.901096798 | U155: 0.1498470838 | V155: 4.687405781 | W155: 3.517337435 | X155: 0.8611882732 | BB155: Flush to pit (latrine) | BC155: 199.7477825 | BD155: 299.8141931 | BE155: 137.0964332 | BF155: 23.97474009 | BG155: 0 | BH155: 234.1488353 | BI155: 68.22787652 | BJ155: 7.48712429 | BK155: 0 | BL155: 0 | BM155: 29.59982936 | BN155: 56.51146447 | BO155: 71.72937695 | BP155: 94.84622097 | BQ155: 98.08242103 | BR155: 50.23403806 | BS155: 308.0018497 | BT155: 43.16645759 | BU155: 5.574508983 | BV155: 147.4534871 | BW155: 82.8318891 | BX155: 23.37091827
B156: Ventilated Improved Pit latrine (VIP) | C156: 7.262925459 | D156: 4.5058533 | E156: 0.6025666412 | F156: 0 | G156: 0 | H156: 4.476774312 | I156: 0.6440333062 | J156: 0 | K156: 0 | L156: 0 | M156: 10.89672071 | N156: 6.319058099 | O156: 8.402804086 | P156: 4.068716407 | Q156: 1.739275238 | R156: 9.830449012 | S156: 2.153926412 | T156: 0.05088092874 | U156: 0 | V156: 3.332552023 | W156: 0.7433949694 | X156: 0.3069288974 | BB156: Ventilated Improved Pit latrine (VIP) | BC156: 296.306414 | BD156: 183.8101067 | BE156: 24.58433415 | BF156: 0 | BG156: 0 | BH156: 132.4344144 | BI156: 19.01374582 | BJ156: 0 | BK156: 0 | BL156: 0 | BM156: 122.4202941 | BN156: 71.05948914 | BO156: 94.49792683 | BP156: 45.7355815 | BQ156: 19.5394031 | BR156: 306.681264 | BS156: 66.19485448 | BT156: 1.155306481 | BU156: 0 | BV156: 104.8333427 | BW156: 17.50665405 | BX156: 8.329433178
B157: Pit latrine with slab | C157: 57.32705473 | D157: 20.24154595 | E157: 2.294164396 | F157: 0 | G157: 0 | H157: 35.38472748 | I157: 1.882122463 | J157: 0.03498874759 | K157: 0 | L157: 0 | M157: 72.28652521 | N157: 55.69644713 | O157: 37.06940007 | P157: 20.77333634 | Q157: 5.867048139 | R157: 14.66149209 | S157: 18.11390828 | T157: 18.60090153 | U157: 0.02780427289 | V157: 16.94644981 | W157: 29.48883602 | X157: 21.85498782 | BB157: Pit latrine with slab | BC157: 2338.778514 | BD157: 825.7261105 | BE157: 93.60044227 | BF157: 0 | BG157: 0 | BH157: 1046.770584 | BI157: 55.56575688 | BJ157: 1.034355591 | BK157: 0 | BL157: 0 | BM157: 812.110167 | BN157: 626.3213627 | BO157: 416.8824382 | BP157: 233.5086849 | BQ157: 65.91171775 | BR157: 457.3956816 | BS157: 556.6798919 | BT157: 422.353574 | BU157: 1.034355591 | BV157: 533.0908473 | BW157: 694.4502881 | BX157: 593.1004287
B158: Pit latrine without slab / Open pit | C158: 4.849665147 | D158: 1.680321656 | E158: 0.3290060574 | F158: 0 | G158: 0 | H158: 2.117250533 | I158: 0.5485341658 | J158: 0 | K158: 0 | L158: 0 | M158: 7.684392145 | N158: 4.314057819 | O158: 3.53964125 | P158: 2.128844294 | Q158: 0.2148356412 | R158: 0.2252810318 | S158: 5.200768823 | T158: 0.1948216679 | U158: 0 | V158: 3.202432237 | W158: 0.02548183881 | X158: 0.2652773662 | BB158: Pit latrine without slab / Open pit | BC158: 197.8523526 | BD158: 68.5464178 | BE158: 13.42323703 | BF158: 0 | BG158: 0 | BH158: 62.63367658 | BI158: 16.19433203 | BJ158: 0 | BK158: 0 | BL158: 0 | BM158: 86.3310689 | BN158: 48.51272768 | BO158: 39.80680216 | BP158: 23.92988893 | BQ158: 2.413511157 | BR158: 7.028109447 | BS158: 159.8309643 | BT158: 4.42363654 | BU158: 0 | BV158: 100.7401157 | BW158: 0.6000871071 | BX158: 7.199094363
B159: Other | C159: 0.7405603597 | D159: 0.2221908664 | E159: 0.07154371089 | F159: 0 | G159: 0 | H159: 0.3384806328 | I159: 0.09887021345 | J159: 0 | K159: 0 | L159: 0 | M159: 0.604788487 | N159: 1.376077761 | O159: 0.6219687969 | P159: 0 | Q159: 0 | R159: 0 | S159: 0.09497984533 | T159: 0 | U159: 0 | V159: 0 | W159: 0 | X159: 1.447295823 | BB159: Other | BC159: 30.21272706 | BD159: 9.063971715 | BE159: 2.918937715 | BF159: 0 | BG159: 0 | BH159: 10.01312134 | BI159: 2.918937715 | BJ159: 0 | BK159: 0 | BL159: 0 | BM159: 6.794556492 | BN159: 15.47436044 | BO159: 6.994660504 | BP159: 0 | BQ159: 0 | BR159: 0 | BS159: 2.918937715 | BT159: 0 | BU159: 0 | BV159: 0 | BW159: 0 | BX159: 39.27669877
BB160: Total | BC160: 4079.711622 | BD160: 4079.362874 | BE160: 4079.936138 | BF160: 4078.712199 | BG160: 4080.439181 | BH160: 2958.255323 | BI160: 2952.292317 | BJ160: 2956.252116 | BK160: 2956.620611 | BL160: 2954.654171 | BM160: 1123.45996 | BN160: 1124.526599 | BO160: 1124.599906 | BP160: 1124.078872 | BQ160: 1123.42214 | BR160: 3119.70759 | BS160: 3073.218013 | BT160: 2270.608084 | BU160: 3720.131777 | BV160: 3145.737622 | BW160: 2354.959984 | BX160: 2713.798944
A208: =A1026 -> Belarus
A209: =A1034 -> 2012
A210: Access to hygiene facilities
A211: by wealth quintile and sub-national region
A212: Notes:
A213: WHO/UNICEF JMP customised wealth index excludes water,
A214: sanitation and hygiene assets.
A215: Survey used for analysis: | B215: =A1025 -> MICS12
A220: Access to handwashing | C220: NATIONAL wealth index quintile | H220: URBAN wealth index quintile | M220: RURAL wealth index quintile | R220: SUB-REGIONS: | BA220: Raw numbers of respondents: | BB220: Access to handwashing | BC220: NATIONAL wealth index quintile | BH220: URBAN wealth index quintile | BM220: RURAL wealth index quintile | BR220: SUB-REGIONS:
A221: Weighted percentage (used in graphs) | C221: Poorest | D221: Poor | E221: Middle | F221: Rich | G221: Richest | H221: Poorest | I221: Poor | J221: Middle | K221: Rich | L221: Richest | M221: Poorest | N221: Poor | O221: Middle | P221: Rich | Q221: Richest | R221: Brest region | S221: Gomel region | T221: Grodno region | U221: Minsk city | V221: Minsk region | W221: Mogilev region | X221: Vitebsk region | BA221: Hygiene data, raw numbers (weighted) | BC221: Poorest | BD221: Poor | BE221: Middle | BF221: Rich | BG221: Richest | BH221: Poorest | BI221: Poor | BJ221: Middle | BK221: Rich | BL221: Richest | BM221: Poorest | BN221: Poor | BO221: Middle | BP221: Rich | BQ221: Richest | BR221: Brest region | BS221: Gomel region | BT221: Grodno region | BU221: Minsk city | BV221: Minsk region | BW221: Mogilev region | BX221: Vitebsk region
A222: Hygiene ladder | B222: Basic | C222: N/A | D222: N/A | E222: N/A | F222: N/A | G222: N/A | H222: N/A | I222: N/A | J222: N/A | K222: N/A | L222: N/A | M222: N/A | N222: N/A | O222: N/A | P222: N/A | Q222: N/A | R222: N/A | S222: N/A | T222: N/A | U222: N/A | V222: N/A | W222: N/A | X222: N/A | BA222: Hygiene ladder | BB222: Basic | BC222: N/A | BD222: N/A | BE222: N/A | BF222: N/A | BG222: N/A | BH222: N/A | BI222: N/A | BJ222: N/A | BK222: N/A | BL222: N/A | BM222: N/A | BN222: N/A | BO222: N/A | BP222: N/A | BQ222: N/A | BR222: N/A | BS222: N/A | BT222: N/A | BU222: N/A | BV222: N/A | BW222: N/A | BX222: N/A
B223: Limited | C223: N/A | D223: N/A | E223: N/A | F223: N/A | G223: N/A | H223: N/A | I223: N/A | J223: N/A | K223: N/A | L223: N/A | M223: N/A | N223: N/A | O223: N/A | P223: N/A | Q223: N/A | R223: N/A | S223: N/A | T223: N/A | U223: N/A | V223: N/A | W223: N/A | X223: N/A | BB223: Limited | BC223: N/A | BD223: N/A | BE223: N/A | BF223: N/A | BG223: N/A | BH223: N/A | BI223: N/A | BJ223: N/A | BK223: N/A | BL223: N/A | BM223: N/A | BN223: N/A | BO223: N/A | BP223: N/A | BQ223: N/A | BR223: N/A | BS223: N/A | BT223: N/A | BU223: N/A | BV223: N/A | BW223: N/A | BX223: N/A
B224: No facility | C224: N/A | D224: N/A | E224: N/A | F224: N/A | G224: N/A | H224: N/A | I224: N/A | J224: N/A | K224: N/A | L224: N/A | M224: N/A | N224: N/A | O224: N/A | P224: N/A | Q224: N/A | R224: N/A | S224: N/A | T224: N/A | U224: N/A | V224: N/A | W224: N/A | X224: N/A | BB224: No facility | BC224: N/A | BD224: N/A | BE224: N/A | BF224: N/A | BG224: N/A | BH224: N/A | BI224: N/A | BJ224: N/A | BK224: N/A | BL224: N/A | BM224: N/A | BN224: N/A | BO224: N/A | BP224: N/A | BQ224: N/A | BR224: N/A | BS224: N/A | BT224: N/A | BU224: N/A | BV224: N/A | BW224: N/A | BX224: N/A
BA225: Observed handwashing place | BB225: Fixed | BC225: N/A | BD225: N/A | BE225: N/A | BF225: N/A | BG225: N/A | BH225: N/A | BI225: N/A | BJ225: N/A | BK225: N/A | BL225: N/A | BM225: N/A | BN225: N/A | BO225: N/A | BP225: N/A | BQ225: N/A | BR225: N/A | BS225: N/A | BT225: N/A | BU225: N/A | BV225: N/A | BW225: N/A | BX225: N/A
BB226: Mobile | BC226: N/A | BD226: N/A | BE226: N/A | BF226: N/A | BG226: N/A | BH226: N/A | BI226: N/A | BJ226: N/A | BK226: N/A | BL226: N/A | BM226: N/A | BN226: N/A | BO226: N/A | BP226: N/A | BQ226: N/A | BR226: N/A | BS226: N/A | BT226: N/A | BU226: N/A | BV226: N/A | BW226: N/A | BX226: N/A
BA227: Water / Soap | BB227: Water and soap | BC227: N/A | BD227: N/A | BE227: N/A | BF227: N/A | BG227: N/A | BH227: N/A | BI227: N/A | BJ227: N/A | BK227: N/A | BL227: N/A | BM227: N/A | BN227: N/A | BO227: N/A | BP227: N/A | BQ227: N/A | BR227: N/A | BS227: N/A | BT227: N/A | BU227: N/A | BV227: N/A | BW227: N/A | BX227: N/A
BB228: Water only | BC228: N/A | BD228: N/A | BE228: N/A | BF228: N/A | BG228: N/A | BH228: N/A | BI228: N/A | BJ228: N/A | BK228: N/A | BL228: N/A | BM228: N/A | BN228: N/A | BO228: N/A | BP228: N/A | BQ228: N/A | BR228: N/A | BS228: N/A | BT228: N/A | BU228: N/A | BV228: N/A | BW228: N/A | BX228: N/A
BB229: Soap only | BC229: N/A | BD229: N/A | BE229: N/A | BF229: N/A | BG229: N/A | BH229: N/A | BI229: N/A | BJ229: N/A | BK229: N/A | BL229: N/A | BM229: N/A | BN229: N/A | BO229: N/A | BP229: N/A | BQ229: N/A | BR229: N/A | BS229: N/A | BT229: N/A | BU229: N/A | BV229: N/A | BW229: N/A | BX229: N/A
BB230: Neither | BC230: N/A | BD230: N/A | BE230: N/A | BF230: N/A | BG230: N/A | BH230: N/A | BI230: N/A | BJ230: N/A | BK230: N/A | BL230: N/A | BM230: N/A | BN230: N/A | BO230: N/A | BP230: N/A | BQ230: N/A | BR230: N/A | BS230: N/A | BT230: N/A | BU230: N/A | BV230: N/A | BW230: N/A | BX230: N/A
BA259: Raw numbers of respondents: | BB259: Menstrual health and hygiene | BC259: NATIONAL wealth index quintile | BH259: URBAN wealth index quintile | BM259: RURAL wealth index quintile | BR259: SUB-REGIONS:
BA260: MHH data, raw numbers (weighted) | BC260: Poorest | BD260: Poor | BE260: Middle | BF260: Rich | BG260: Richest | BH260: Poorest | BI260: Poor | BJ260: Middle | BK260: Rich | BL260: Richest | BM260: Poorest | BN260: Poor | BO260: Middle | BP260: Rich | BQ260: Richest | BR260: Brest region | BS260: Gomel region | BT260: Grodno region | BU260: Minsk city | BV260: Minsk region | BW260: Mogilev region | BX260: Vitebsk region
BA261: Private place to wash and change | BB261: Yes | BC261: N/A | BD261: N/A | BE261: N/A | BF261: N/A | BG261: N/A | BH261: N/A | BI261: N/A | BJ261: N/A | BK261: N/A | BL261: N/A | BM261: N/A | BN261: N/A | BO261: N/A | BP261: N/A | BQ261: N/A | BR261: N/A | BS261: N/A | BT261: N/A | BU261: N/A | BV261: N/A | BW261: N/A | BX261: N/A
BB262: No | BC262: N/A | BD262: N/A | BE262: N/A | BF262: N/A | BG262: N/A | BH262: N/A | BI262: N/A | BJ262: N/A | BK262: N/A | BL262: N/A | BM262: N/A | BN262: N/A | BO262: N/A | BP262: N/A | BQ262: N/A | BR262: N/A | BS262: N/A | BT262: N/A | BU262: N/A | BV262: N/A | BW262: N/A | BX262: N/A
BB263: DK/not sure/missing | BC263: N/A | BD263: N/A | BE263: N/A | BF263: N/A | BG263: N/A | BH263: N/A | BI263: N/A | BJ263: N/A | BK263: N/A | BL263: N/A | BM263: N/A | BN263: N/A | BO263: N/A | BP263: N/A | BQ263: N/A | BR263: N/A | BS263: N/A | BT263: N/A | BU263: N/A | BV263: N/A | BW263: N/A | BX263: N/A
BA264: Use of menstrual materials | BB264: Materials reusable | BC264: N/A | BD264: N/A | BE264: N/A | BF264: N/A | BG264: N/A | BH264: N/A | BI264: N/A | BJ264: N/A | BK264: N/A | BL264: N/A | BM264: N/A | BN264: N/A | BO264: N/A | BP264: N/A | BQ264: N/A | BR264: N/A | BS264: N/A | BT264: N/A | BU264: N/A | BV264: N/A | BW264: N/A | BX264: N/A
BB265: Materials not reusable | BC265: N/A | BD265: N/A | BE265: N/A | BF265: N/A | BG265: N/A | BH265: N/A | BI265: N/A | BJ265: N/A | BK265: N/A | BL265: N/A | BM265: N/A | BN265: N/A | BO265: N/A | BP265: N/A | BQ265: N/A | BR265: N/A | BS265: N/A | BT265: N/A | BU265: N/A | BV265: N/A | BW265: N/A | BX265: N/A
BB266: No materials used | BC266: N/A | BD266: N/A | BE266: N/A | BF266: N/A | BG266: N/A | BH266: N/A | BI266: N/A | BJ266: N/A | BK266: N/A | BL266: N/A | BM266: N/A | BN266: N/A | BO266: N/A | BP266: N/A | BQ266: N/A | BR266: N/A | BS266: N/A | BT266: N/A | BU266: N/A | BV266: N/A | BW266: N/A | BX266: N/A
BB267: DK/not sure/missing | BC267: N/A | BD267: N/A | BE267: N/A | BF267: N/A | BG267: N/A | BH267: N/A | BI267: N/A | BJ267: N/A | BK267: N/A | BL267: N/A | BM267: N/A | BN267: N/A | BO267: N/A | BP267: N/A | BQ267: N/A | BR267: N/A | BS267: N/A | BT267: N/A | BU267: N/A | BV267: N/A | BW267: N/A | BX267: N/A
BA268: Use of menstrual materials with private place to wash and change | BB268: Materials reusable | BC268: N/A | BD268: N/A | BE268: N/A | BF268: N/A | BG268: N/A | BH268: N/A | BI268: N/A | BJ268: N/A | BK268: N/A | BL268: N/A | BM268: N/A | BN268: N/A | BO268: N/A | BP268: N/A | BQ268: N/A | BR268: N/A | BS268: N/A | BT268: N/A | BU268: N/A | BV268: N/A | BW268: N/A | BX268: N/A
BB269: Materials not reusable | BC269: N/A | BD269: N/A | BE269: N/A | BF269: N/A | BG269: N/A | BH269: N/A | BI269: N/A | BJ269: N/A | BK269: N/A | BL269: N/A | BM269: N/A | BN269: N/A | BO269: N/A | BP269: N/A | BQ269: N/A | BR269: N/A | BS269: N/A | BT269: N/A | BU269: N/A | BV269: N/A | BW269: N/A | BX269: N/A
BB270: No materials used | BC270: N/A | BD270: N/A | BE270: N/A | BF270: N/A | BG270: N/A | BH270: N/A | BI270: N/A | BJ270: N/A | BK270: N/A | BL270: N/A | BM270: N/A | BN270: N/A | BO270: N/A | BP270: N/A | BQ270: N/A | BR270: N/A | BS270: N/A | BT270: N/A | BU270: N/A | BV270: N/A | BW270: N/A | BX270: N/A
BA271: Awareness of menstruation before menarche | BB271: Yes | BC271: N/A | BD271: N/A | BE271: N/A | BF271: N/A | BG271: N/A | BH271: N/A | BI271: N/A | BJ271: N/A | BK271: N/A | BL271: N/A | BM271: N/A | BN271: N/A | BO271: N/A | BP271: N/A | BQ271: N/A | BR271: N/A | BS271: N/A | BT271: N/A | BU271: N/A | BV271: N/A | BW271: N/A | BX271: N/A
BB272: No | BC272: N/A | BD272: N/A | BE272: N/A | BF272: N/A | BG272: N/A | BH272: N/A | BI272: N/A | BJ272: N/A | BK272: N/A | BL272: N/A | BM272: N/A | BN272: N/A | BO272: N/A | BP272: N/A | BQ272: N/A | BR272: N/A | BS272: N/A | BT272: N/A | BU272: N/A | BV272: N/A | BW272: N/A | BX272: N/A
BB273: DK/not sure/missing | BC273: N/A | BD273: N/A | BE273: N/A | BF273: N/A | BG273: N/A | BH273: N/A | BI273: N/A | BJ273: N/A | BK273: N/A | BL273: N/A | BM273: N/A | BN273: N/A | BO273: N/A | BP273: N/A | BQ273: N/A | BR273: N/A | BS273: N/A | BT273: N/A | BU273: N/A | BV273: N/A | BW273: N/A | BX273: N/A
BA274: Participation in (all) activities during menstruation | BB274: Yes | BC274: N/A | BD274: N/A | BE274: N/A | BF274: N/A | BG274: N/A | BH274: N/A | BI274: N/A | BJ274: N/A | BK274: N/A | BL274: N/A | BM274: N/A | BN274: N/A | BO274: N/A | BP274: N/A | BQ274: N/A | BR274: N/A | BS274: N/A | BT274: N/A | BU274: N/A | BV274: N/A | BW274: N/A | BX274: N/A
BB275: No | BC275: N/A | BD275: N/A | BE275: N/A | BF275: N/A | BG275: N/A | BH275: N/A | BI275: N/A | BJ275: N/A | BK275: N/A | BL275: N/A | BM275: N/A | BN275: N/A | BO275: N/A | BP275: N/A | BQ275: N/A | BR275: N/A | BS275: N/A | BT275: N/A | BU275: N/A | BV275: N/A | BW275: N/A | BX275: N/A
BB276: DK/not sure/missing/no such activity | BC276: N/A | BD276: N/A | BE276: N/A | BF276: N/A | BG276: N/A | BH276: N/A | BI276: N/A | BJ276: N/A | BK276: N/A | BL276: N/A | BM276: N/A | BN276: N/A | BO276: N/A | BP276: N/A | BQ276: N/A | BR276: N/A | BS276: N/A | BT276: N/A | BU276: N/A | BV276: N/A | BW276: N/A | BX276: N/A
BA277: Participation in specific activities during menstruation | BB277: Did not go to school (amongst those usually attending school) | BC277: N/A | BD277: N/A | BE277: N/A | BF277: N/A | BG277: N/A | BH277: N/A | BI277: N/A | BJ277: N/A | BK277: N/A | BL277: N/A | BM277: N/A | BN277: N/A | BO277: N/A | BP277: N/A | BQ277: N/A | BR277: N/A | BS277: N/A | BT277: N/A | BU277: N/A | BV277: N/A | BW277: N/A | BX277: N/A
BB278: Did not go to work (amongst those who usually work) | BC278: N/A | BD278: N/A | BE278: N/A | BF278: N/A | BG278: N/A | BH278: N/A | BI278: N/A | BJ278: N/A | BK278: N/A | BL278: N/A | BM278: N/A | BN278: N/A | BO278: N/A | BP278: N/A | BQ278: N/A | BR278: N/A | BS278: N/A | BT278: N/A | BU278: N/A | BV278: N/A | BW278: N/A | BX278: N/A
BB279: Did not participate in social activities | BC279: N/A | BD279: N/A | BE279: N/A | BF279: N/A | BG279: N/A | BH279: N/A | BI279: N/A | BJ279: N/A | BK279: N/A | BL279: N/A | BM279: N/A | BN279: N/A | BO279: N/A | BP279: N/A | BQ279: N/A | BR279: N/A | BS279: N/A | BT279: N/A | BU279: N/A | BV279: N/A | BW279: N/A | BX279: N/A
BB280: Did not cook food | BC280: N/A | BD280: N/A | BE280: N/A | BF280: N/A | BG280: N/A | BH280: N/A | BI280: N/A | BJ280: N/A | BK280: N/A | BL280: N/A | BM280: N/A | BN280: N/A | BO280: N/A | BP280: N/A | BQ280: N/A | BR280: N/A | BS280: N/A | BT280: N/A | BU280: N/A | BV280: N/A | BW280: N/A | BX280: N/A
BB281: Did not eat with others | BC281: N/A | BD281: N/A | BE281: N/A | BF281: N/A | BG281: N/A | BH281: N/A | BI281: N/A | BJ281: N/A | BK281: N/A | BL281: N/A | BM281: N/A | BN281: N/A | BO281: N/A | BP281: N/A | BQ281: N/A | BR281: N/A | BS281: N/A | BT281: N/A | BU281: N/A | BV281: N/A | BW281: N/A | BX281: N/A
BB282: Did not bathe in regular place | BC282: N/A | BD282: N/A | BE282: N/A | BF282: N/A | BG282: N/A | BH282: N/A | BI282: N/A | BJ282: N/A | BK282: N/A | BL282: N/A | BM282: N/A | BN282: N/A | BO282: N/A | BP282: N/A | BQ282: N/A | BR282: N/A | BS282: N/A | BT282: N/A | BU282: N/A | BV282: N/A | BW282: N/A | BX282: N/A
BB283: Did not participate in other activities | BC283: N/A | BD283: N/A | BE283: N/A | BF283: N/A | BG283: N/A | BH283: N/A | BI283: N/A | BJ283: N/A | BK283: N/A | BL283: N/A | BM283: N/A | BN283: N/A | BO283: N/A | BP283: N/A | BQ283: N/A | BR283: N/A | BS283: N/A | BT283: N/A | BU283: N/A | BV283: N/A | BW283: N/A | BX283: N/A
BB284: DK/not sure/missing/no such activity | BC284: N/A | BD284: N/A | BE284: N/A | BF284: N/A | BG284: N/A | BH284: N/A | BI284: N/A | BJ284: N/A | BK284: N/A | BL284: N/A | BM284: N/A | BN284: N/A | BO284: N/A | BP284: N/A | BQ284: N/A | BR284: N/A | BS284: N/A | BT284: N/A | BU284: N/A | BV284: N/A | BW284: N/A | BX284: N/A
BA339: Raw numbers of respondents: | BB339: Basic water, sanitation and hygiene | BC339: NATIONAL wealth index quintile | BH339: URBAN wealth index quintile | BM339: RURAL wealth index quintile | BR339: SUB-REGIONS:
BA340: WatSan data, raw numbers (weighted) | BC340: Poorest | BD340: Poor | BE340: Middle | BF340: Rich | BG340: Richest | BH340: Poorest | BI340: Poor | BJ340: Middle | BK340: Rich | BL340: Richest | BM340: Poorest | BN340: Poor | BO340: Middle | BP340: Rich | BQ340: Richest | BR340: Brest region | BS340: Gomel region | BT340: Grodno region | BU340: Minsk city | BV340: Minsk region | BW340: Mogilev region | BX340: Vitebsk region
BA341: Use of Basic Water Sanitation and Hygiene | BB341: Yes | BC341: N/A | BD341: N/A | BE341: N/A | BF341: N/A | BG341: N/A | BH341: N/A | BI341: N/A | BJ341: N/A | BK341: N/A | BL341: N/A | BM341: N/A | BN341: N/A | BO341: N/A | BP341: N/A | BQ341: N/A | BR341: N/A | BS341: N/A | BT341: N/A | BU341: N/A | BV341: N/A | BW341: N/A | BX341: N/A
BB342: No | BC342: N/A | BD342: N/A | BE342: N/A | BF342: N/A | BG342: N/A | BH342: N/A | BI342: N/A | BJ342: N/A | BK342: N/A | BL342: N/A | BM342: N/A | BN342: N/A | BO342: N/A | BP342: N/A | BQ342: N/A | BR342: N/A | BS342: N/A | BT342: N/A | BU342: N/A | BV342: N/A | BW342: N/A | BX342: N/A
BA343: Use of Basic Water and Sanitation | BB343: Yes | BC343: N/A | BD343: N/A | BE343: N/A | BF343: N/A | BG343: N/A | BH343: N/A | BI343: N/A | BJ343: N/A | BK343: N/A | BL343: N/A | BM343: N/A | BN343: N/A | BO343: N/A | BP343: N/A | BQ343: N/A | BR343: N/A | BS343: N/A | BT343: N/A | BU343: N/A | BV343: N/A | BW343: N/A | BX343: N/A
BB344: No | BC344: N/A | BD344: N/A | BE344: N/A | BF344: N/A | BG344: N/A | BH344: N/A | BI344: N/A | BJ344: N/A | BK344: N/A | BL344: N/A | BM344: N/A | BN344: N/A | BO344: N/A | BP344: N/A | BQ344: N/A | BR344: N/A | BS344: N/A | BT344: N/A | BU344: N/A | BV344: N/A | BW344: N/A | BX344: N/A
BA345: Use of Basic Water and Hygiene | BB345: Yes | BC345: N/A | BD345: N/A | BE345: N/A | BF345: N/A | BG345: N/A | BH345: N/A | BI345: N/A | BJ345: N/A | BK345: N/A | BL345: N/A | BM345: N/A | BN345: N/A | BO345: N/A | BP345: N/A | BQ345: N/A | BR345: N/A | BS345: N/A | BT345: N/A | BU345: N/A | BV345: N/A | BW345: N/A | BX345: N/A
BB346: No | BC346: N/A | BD346: N/A | BE346: N/A | BF346: N/A | BG346: N/A | BH346: N/A | BI346: N/A | BJ346: N/A | BK346: N/A | BL346: N/A | BM346: N/A | BN346: N/A | BO346: N/A | BP346: N/A | BQ346: N/A | BR346: N/A | BS346: N/A | BT346: N/A | BU346: N/A | BV346: N/A | BW346: N/A | BX346: N/A
BA347: Use of Basic Sanitation and Hygiene | BB347: Yes | BC347: N/A | BD347: N/A | BE347: N/A | BF347: N/A | BG347: N/A | BH347: N/A | BI347: N/A | BJ347: N/A | BK347: N/A | BL347: N/A | BM347: N/A | BN347: N/A | BO347: N/A | BP347: N/A | BQ347: N/A | BR347: N/A | BS347: N/A | BT347: N/A | BU347: N/A | BV347: N/A | BW347: N/A | BX347: N/A
BB348: No | BC348: N/A | BD348: N/A | BE348: N/A | BF348: N/A | BG348: N/A | BH348: N/A | BI348: N/A | BJ348: N/A | BK348: N/A | BL348: N/A | BM348: N/A | BN348: N/A | BO348: N/A | BP348: N/A | BQ348: N/A | BR348: N/A | BS348: N/A | BT348: N/A | BU348: N/A | BV348: N/A | BW348: N/A | BX348: N/A
BA349: Use of Basic Water | BB349: Yes | BC349: N/A | BD349: N/A | BE349: N/A | BF349: N/A | BG349: N/A | BH349: N/A | BI349: N/A | BJ349: N/A | BK349: N/A | BL349: N/A | BM349: N/A | BN349: N/A | BO349: N/A | BP349: N/A | BQ349: N/A | BR349: N/A | BS349: N/A | BT349: N/A | BU349: N/A | BV349: N/A | BW349: N/A | BX349: N/A
BB350: No | BC350: N/A | BD350: N/A | BE350: N/A | BF350: N/A | BG350: N/A | BH350: N/A | BI350: N/A | BJ350: N/A | BK350: N/A | BL350: N/A | BM350: N/A | BN350: N/A | BO350: N/A | BP350: N/A | BQ350: N/A | BR350: N/A | BS350: N/A | BT350: N/A | BU350: N/A | BV350: N/A | BW350: N/A | BX350: N/A
BA351: Use of Basic Sanitation | BB351: Yes | BC351: N/A | BD351: N/A | BE351: N/A | BF351: N/A | BG351: N/A | BH351: N/A | BI351: N/A | BJ351: N/A | BK351: N/A | BL351: N/A | BM351: N/A | BN351: N/A | BO351: N/A | BP351: N/A | BQ351: N/A | BR351: N/A | BS351: N/A | BT351: N/A | BU351: N/A | BV351: N/A | BW351: N/A | BX351: N/A
BB352: No | BC352: N/A | BD352: N/A | BE352: N/A | BF352: N/A | BG352: N/A | BH352: N/A | BI352: N/A | BJ352: N/A | BK352: N/A | BL352: N/A | BM352: N/A | BN352: N/A | BO352: N/A | BP352: N/A | BQ352: N/A | BR352: N/A | BS352: N/A | BT352: N/A | BU352: N/A | BV352: N/A | BW352: N/A | BX352: N/A
BA353: Access to Basic Hygiene | BB353: Yes | BC353: N/A | BD353: N/A | BE353: N/A | BF353: N/A | BG353: N/A | BH353: N/A | BI353: N/A | BJ353: N/A | BK353: N/A | BL353: N/A | BM353: N/A | BN353: N/A | BO353: N/A | BP353: N/A | BQ353: N/A | BR353: N/A | BS353: N/A | BT353: N/A | BU353: N/A | BV353: N/A | BW353: N/A | BX353: N/A
BB354: No | BC354: N/A | BD354: N/A | BE354: N/A | BF354: N/A | BG354: N/A | BH354: N/A | BI354: N/A | BJ354: N/A | BK354: N/A | BL354: N/A | BM354: N/A | BN354: N/A | BO354: N/A | BP354: N/A | BQ354: N/A | BR354: N/A | BS354: N/A | BT354: N/A | BU354: N/A | BV354: N/A | BW354: N/A | BX354: N/A
C399: INITIAL (national) Wealth Index | H399: URBAN Wealth Index | M399: RURAL Wealth Index
C400: Component Matrix | H400: Component Matrix | M400: Component Matrix
E401: Component | J401: Component | O401: Component
B402: Note: The INITIAL (national) Wealth Index is based on the first component of the Principal Component Analysis (PCA) which has been obtained at national level. The final national-level (NATIONAL) Wealth Index is based on the URBAN and RURAL specific wealth indexes. Regression procedures are used to establish the relationships between the two sets of scores (urban and rural) and the initial (national) wealth factors. This allows best use of the available information for each area and a better precision of the FINAL (NATIONAL) Wealth Index. For dependency reasons, all WASH variables (contained in the generic MICS and DHS scripts) have been excluded from the sets of asset variables used in the PCAs. The PCA can extracts as many components as there are asset variables in the input. Only the first of the components is used to represent the Wealth Index. The scores represent the weights of the asset variables on the Wealth Index (correlations between the variables and the component). The communalities are the proportion of each variable's variance that can be explained by the component. Proportion of explained variance is the part of the model's total variance that is explained by the component. For more information on the procedure used: The DHS Wealth Index, DHS Comparative Reports No. 6, Shea Oscar Rutstein, Kiersten Johnson, ORC Macro International Inc., 2004. The DHS Wealth Index: Approaches for Rural and Urban Areas, Shea O. Rutstein, ORC Macro International Inc., 2008. MICS Methodological Paper No. 4, Review of options for reporting water, sanitation and hygiene coverage by wealth quintile, UNICEF, 2016. | E402: 1 | J402: 1 | O402: 1
C403: Has slate roof | E403: -0.7087770522 | H403: Has slate roof | J403: -0.744968266 | M403: Household has: vacuum cleaner | O403: 0.671178823
C404: Has ruberoid roof | E404: 0.690612095 | H404: Has ruberoid roof | J404: 0.7283935988 | M404: Household has: personal computer | O404: 0.6260822777
C405: Household fuel type: LPG | E405: -0.6624617854 | H405: Has wood floor | J405: -0.6031403068 | M405: Household has: microwave | O405: 0.6259022596
C406: Has wood floor | E406: -0.6323233468 | H406: Has wood wall | J406: -0.5527962358 | M406: Has wood wall | O406: -0.6190672853
C407: Has wood wall | E407: -0.6158098433 | H407: Has concrete or ferro-concrete wall | J407: 0.5424397447 | M407: Household member owns: mobile phone | O407: 0.6133936664
C408: Household has: microwave | E408: 0.5612071291 | H408: Household fuel type: LPG | J408: -0.5331259959 | M408: Household has: dvd | O408: 0.6001661004
C409: Household has: personal computer | E409: 0.5609711292 | H409: Household has: personal computer | J409: 0.4575162523 | M409: Household has: laundry washer | O409: 0.5796642764
C410: Household has: vacuum cleaner | E410: 0.5542759094 | H410: Household owns chickens | J410: -0.4409102047 | M410: Household member owns: car/truck | O410: 0.5528355126
C411: Has concrete or ferro-concrete wall | E411: 0.5094997377 | H411: Household has: microwave | J411: 0.4409085742 | M411: Household fuel type: natural gas | O411: 0.4904082899
C412: Household member owns: mobile phone | E412: 0.4966924551 | H412: Household member owns: mobile phone | J412: 0.3908828105 | M412: Household has: deep-freezer | O412: 0.4559730139
C413: Household fuel type: natural gas | E413: 0.491615085 | H413: Household has: laundry washer | J413: 0.3759080731 | M413: Has wood floor | O413: -0.4545627415
C414: Household has: laundry washer | E414: 0.4798845416 | H414: Household owns agricultural land | J414: -0.3589769545 | M414: Household fuel type: LPG | O414: -0.4346344772
C415: Household member owns: car/truck | E415: 0.4194707611 | H415: Household has: dvd | J415: 0.3345143268 | M415: Has slate roof | O415: -0.4033269767
C416: Household has: dvd | E416: 0.4077753832 | H416: Has laminat floor | J416: 0.3331194937 | M416: Has ruberoid roof | O416: 0.3487364482
C417: Has laminat floor | E417: 0.3738333934 | H417: Household has: vacuum cleaner | J417: 0.3244105472 | M417: Household has: non-mobile telephone | O417: 0.3386518725
C418: Household has: non-mobile telephone | E418: 0.3456549253 | H418: Household member owns: car/truck | J418: 0.3191965404 | M418: Has laminat floor | O418: 0.3033197904
C419: Has linoleum floor | E419: 0.2916923524 | H419: Has linoleum floor | J419: 0.2733294347 | M419: Persons per sleeping rooms | O419: 0.3033196686
C420: Persons per sleeping rooms | E420: 0.2629017972 | H420: Persons per sleeping rooms | J420: 0.2567574815 | M420: Household has: refrigerator | O420: 0.2982455757
C421: Household has: refrigerator | E421: 0.2274466715 | H421: Household owns pigs | J421: -0.2556101114 | M421: Has brick wall | O421: 0.2982187073
C422: Household fuel type: electricity | E422: 0.20757713 | H422: Household fuel type: electricity | J422: 0.2437334873 | M422: Has linoleum floor | O422: 0.2452518076
C423: Household owns bank account | E423: 0.2060893651 | H423: Has brick wall | J423: -0.2169417691 | M423: Has concrete or ferro-concrete wall | O423: 0.2340891473
C424: Has parquet/polished wood floor | E424: 0.1800550245 | H424: Household fuel type: natural gas | J424: 0.1667422458 | M424: Household has: television | O424: 0.2168864286
... 193 more rows

Sheet data_summary
A1: iso3 | B1: year | C1: data_source | D1: row | E1: var1 | F1: var2 | G1: varname | H1: total_q1 | I1: total_q2 | J1: total_q3 | K1: total_q4 | L1: total_q5 | M1: urban_q1 | N1: urban_q2 | O1: urban_q3 | P1: urban_q4 | Q1: urban_q5 | R1: rural_q1 | S1: rural_q2 | T1: rural_q3 | U1: rural_q4 | V1: rural_q5 | W1: region_1_name | X1: region_2_name | Y1: region_3_name | Z1: region_4_name | AA1: region_5_name | AB1: region_6_name | AC1: region_7_name | AD1: region_1 | AE1: region_2 | AF1: region_3 | AG1: region_4 | AH1: region_5 | AI1: region_6 | AJ1: region_7 | AK1: n_total_q1 | AL1: n_total_q2 | AM1: n_total_q3 | AN1: n_total_q4 | AO1: n_total_q5 | AP1: n_urban_q1 | AQ1: n_urban_q2 | AR1: n_urban_q3 | AS1: n_urban_q4 | AT1: n_urban_q5 | AU1: n_rural_q1 | AV1: n_rural_q2 | AW1: n_rural_q3 | AX1: n_rural_q4 | AY1: n_rural_q5 | AZ1: n_region_1 | BA1: n_region_2 | BB1: n_region_3 | BC1: n_region_4 | BD1: n_region_5 | BE1: n_region_6 | BF1: n_region_7
A2: BLR | B2: 2005 | C2: BLR_2005_MICS | D2: 16 | E2: Water | F2: Improved | G2: w_imp | H2: 98.70756425 | I2: 99.4590794 | J2: 99.96217489 | K2: 100 | L2: 99.97181845 | M2: 99.08481667 | N2: 99.94285144 | O2: 100 | P2: 100 | Q2: 99.95735827 | R2: 98.29789539 | S2: 98.6755999 | T2: 99.40110912 | U2: 100 | V2: 100 | W2: Brest | X2: Gomel | Y2: Grodno | Z2: Minsk | AA2: Minsk city | AB2: Mogilev | AC2: Vitebsk | AD2: 100 | AE2: 99.77329509 | AF2: 98.34785422 | AG2: 99.41350049 | AH2: 100 | AI2: 99.81150674 | AJ2: 99.82586472
A3: BLR | B3: 2005 | C3: BLR_2005_MICS | D3: 17 | E3: Water | F3: Not Improved | H3: 1.292435748 | I3: 0.5409205972 | J3: 0.03782511358 | K3: 0 | L3: 0.02818155179 | M3: 0.915183332 | N3: 0.05714856343 | O3: 0 | P3: 0 | Q3: 0.04264173317 | R3: 1.702104614 | S3: 1.324400102 | T3: 0.5988908827 | U3: 0 | V3: 0 | W3: Brest | X3: Gomel | Y3: Grodno | Z3: Minsk | AA3: Minsk city | AB3: Mogilev | AC3: Vitebsk | AD3: 0 | AE3: 0.2267049082 | AF3: 1.652145783 | AG3: 0.5864995144 | AH3: 0 | AI3: 0.1884932645 | AJ3: 0.1741352789
A4: BLR | B4: 2005 | C4: BLR_2005_MICS | D4: 18 | E4: Water ladder | F4: Basic | G4: w_bas | H4: 98.57276988 | I4: 99.4590794 | J4: 99.96217489 | K4: 99.95026522 | L4: 99.92905367 | M4: 98.88060746 | N4: 99.94285144 | O4: 99.92450384 | P4: 100 | Q4: 99.89261121 | R4: 98.29789539 | S4: 98.6755999 | T4: 99.40110912 | U4: 100 | V4: 100 | W4: Brest | X4: Gomel | Y4: Grodno | Z4: Minsk | AA4: Minsk city | AB4: Mogilev | AC4: Vitebsk | AD4: 100 | AE4: 99.77329509 | AF4: 98.27934597 | AG4: 99.41350049 | AH4: 100 | AI4: 99.81150674 | AJ4: 99.55835075
A5: BLR | B5: 2005 | C5: BLR_2005_MICS | D5: 19 | E5: Water ladder | F5: Limited | G5: w_lim | H5: 0.1347943721 | I5: 0 | J5: 0 | K5: 0.0497347806 | L5: 0.0427647784 | M5: 0.2042092031 | N5: 0 | O5: 0.07549615901 | P5: 0 | Q5: 0.06474705326 | R5: 0 | S5: 0 | T5: 0 | U5: 0 | V5: 0 | W5: Brest | X5: Gomel | Y5: Grodno | Z5: Minsk | AA5: Minsk city | AB5: Mogilev | AC5: Vitebsk | AD5: 0 | AE5: 0 | AF5: 0.06850824193 | AG5: 0 | AH5: 0 | AI5: 0 | AJ5: 0.2675139735
A6: BLR | B6: 2005 | C6: BLR_2005_MICS | D6: 20 | E6: Water ladder | F6: Unimproved | G6: w_unimp | H6: 1.292435748 | I6: 0.5409205972 | J6: 0.03782511358 | K6: 1.090100232e-14 | L6: 0.02818155179 | M6: 0.915183332 | N6: 0.05714856343 | O6: 7.258083023e-15 | P6: 0 | Q6: 0.04264173317 | R6: 1.702104614 | S6: 1.324400102 | T6: 0.5988908827 | U6: 0 | V6: 0 | W6: Brest | X6: Gomel | Y6: Grodno | Z6: Minsk | AA6: Minsk city | AB6: Mogilev | AC6: Vitebsk | AD6: 0 | AE6: 0.2267049082 | AF6: 1.652145783 | AG6: 0.5864995144 | AH6: 0 | AI6: 0.1884932645 | AJ6: 0.1741352789
A7: BLR | B7: 2005 | C7: BLR_2005_MICS | D7: 21 | E7: Water ladder | F7: Surface water | G7: w_sur | H7: 0 | I7: 0 | J7: 0 | K7: 0 | L7: 0 | M7: 0 | N7: 0 | O7: 0 | P7: 0 | Q7: 0 | R7: 0 | S7: 0 | T7: 0 | U7: 0 | V7: 0 | W7: Brest | X7: Gomel | Y7: Grodno | Z7: Minsk | AA7: Minsk city | AB7: Mogilev | AC7: Vitebsk | AD7: 0 | AE7: 0 | AF7: 0 | AG7: 0 | AH7: 0 | AI7: 0 | AJ7: 0
A8: BLR | B8: 2005 | C8: BLR_2005_MICS | D8: 22 | E8: Improved water point at more than 30 minutes | F8: Yes | H8: 0.1365593134 | I8: 0 | J8: 0 | K8: 0.0497347806 | L8: 0.04277683358 | M8: 0.2060953534 | N8: 0 | O8: 0.07549615901 | P8: 0 | Q8: 0.06477467431 | R8: 0 | S8: 0 | T8: 0 | U8: 0 | V8: 0 | W8: Brest | X8: Gomel | Y8: Grodno | Z8: Minsk | AA8: Minsk city | AB8: Mogilev | AC8: Vitebsk | AD8: 0 | AE8: 0 | AF8: 0.06965911202 | AG8: 0 | AH8: 0 | AI8: 0 | AJ8: 0.2679806223
A9: BLR | B9: 2005 | C9: BLR_2005_MICS | D9: 23 | E9: Improved water point at more than 30 minutes | F9: No | H9: 99.86344069 | I9: 100 | J9: 100 | K9: 99.95026522 | L9: 99.95722317 | M9: 99.79390465 | N9: 100 | O9: 99.92450384 | P9: 100 | Q9: 99.93522533 | R9: 100 | S9: 100 | T9: 100 | U9: 100 | V9: 100 | W9: Brest | X9: Gomel | Y9: Grodno | Z9: Minsk | AA9: Minsk city | AB9: Mogilev | AC9: Vitebsk | AD9: 100 | AE9: 100 | AF9: 99.93034089 | AG9: 100 | AH9: 100 | AI9: 100 | AJ9: 99.73201938
A10: BLR | B10: 2005 | C10: BLR_2005_MICS | D10: 29 | E10: Piped water | F10: Yes | G10: w_pip | H10: 52.64169094 | I10: 87.72137286 | J10: 98.30898312 | K10: 99.37392564 | L10: 99.07229968 | M10: 86.32994973 | N10: 99.3844276 | O10: 99.86159038 | P10: 99.84395117 | Q10: 99.82993905 | R10: 36.63268127 | S10: 50.36719547 | T10: 72.62710414 | U10: 90.97666878 | V10: 92.52331849 | W10: Brest | X10: Gomel | Y10: Grodno | Z10: Minsk | AA10: Minsk city | AB10: Mogilev | AC10: Vitebsk | AD10: 85.18586609 | AE10: 90.96166691 | AF10: 78.72452658 | AG10: 82.176022 | AH10: 100 | AI10: 92.37391406 | AJ10: 81.00043411
A11: BLR | B11: 2005 | C11: BLR_2005_MICS | D11: 30 | E11: Piped water | F11: No | H11: 47.35830906 | I11: 12.27862714 | J11: 1.69101688 | K11: 0.6260743618 | L11: 0.9277003247 | M11: 13.67005027 | N11: 0.6155724027 | O11: 0.1384096249 | P11: 0.1560488314 | Q11: 0.1700609471 | R11: 63.36731873 | S11: 49.63280453 | T11: 27.37289586 | U11: 9.02333122 | V11: 7.47668151 | W11: Brest | X11: Gomel | Y11: Grodno | Z11: Minsk | AA11: Minsk city | AB11: Mogilev | AC11: Vitebsk | AD11: 14.81413391 | AE11: 9.038333088 | AF11: 21.27547342 | AG11: 17.823978 | AH11: 0 | AI11: 7.626085939 | AJ11: 18.99956589
A12: BLR | B12: 2005 | C12: BLR_2005_MICS | D12: 31 | E12: Piped water on premises | F12: Yes | G12: w_pop | H12: 35.48986333 | I12: 81.50092702 | J12: 98.10836423 | K12: 99.33273895 | L12: 98.89779857 | M12: 69.14784742 | N12: 99.21416642 | O12: 99.86159038 | P12: 99.6971155 | Q12: 99.65118349 | R12: 21.28902978 | S12: 39.75488307 | T12: 64.73878364 | U12: 89.24875343 | V12: 92.39335003 | W12: Brest | X12: Gomel | Y12: Grodno | Z12: Minsk | AA12: Minsk city | AB12: Mogilev | AC12: Vitebsk | AD12: 83.12170289 | AE12: 85.82726179 | AF12: 77.6279667 | AG12: 76.77726805 | AH12: 99.35808335 | AI12: 80.3642321 | AJ12: 72.8213745
A13: BLR | B13: 2005 | C13: BLR_2005_MICS | D13: 32 | E13: Piped water on premises | F13: No | H13: 64.51013667 | I13: 18.49907298 | J13: 1.891635767 | K13: 0.6672610481 | L13: 1.10220143 | M13: 30.85215258 | N13: 0.7858335843 | O13: 0.1384096249 | P13: 0.3028844968 | Q13: 0.3488165098 | R13: 78.71097022 | S13: 60.24511693 | T13: 35.26121636 | U13: 10.75124657 | V13: 7.606649972 | W13: Brest | X13: Gomel | Y13: Grodno | Z13: Minsk | AA13: Minsk city | AB13: Mogilev | AC13: Vitebsk | AD13: 16.87829711 | AE13: 14.17273821 | AF13: 22.3720333 | AG13: 23.22273195 | AH13: 0.6419166458 | AI13: 19.6357679 | AJ13: 27.1786255
A14: BLR | B14: 2005 | C14: BLR_2005_MICS | D14: 35 | E14: Water source on premises | F14: Yes | H14: 35.48986333 | I14: 81.50092702 | J14: 98.10836423 | K14: 99.33273895 | L14: 98.89779857 | M14: 69.14784742 | N14: 99.21416642 | O14: 99.86159038 | P14: 99.6971155 | Q14: 99.65118349 | R14: 21.28902978 | S14: 39.75488307 | T14: 64.73878364 | U14: 89.24875343 | V14: 92.39335003 | W14: Brest | X14: Gomel | Y14: Grodno | Z14: Minsk | AA14: Minsk city | AB14: Mogilev | AC14: Vitebsk | AD14: 83.12170289 | AE14: 85.82726179 | AF14: 77.6279667 | AG14: 76.77726805 | AH14: 99.35808335 | AI14: 80.3642321 | AJ14: 72.8213745
A15: BLR | B15: 2005 | C15: BLR_2005_MICS | D15: 36 | E15: Water source on premises | F15: No | H15: 64.51013667 | I15: 18.49907298 | J15: 1.891635767 | K15: 0.6672610481 | L15: 1.10220143 | M15: 30.85215258 | N15: 0.7858335843 | O15: 0.1384096249 | P15: 0.3028844968 | Q15: 0.3488165098 | R15: 78.71097022 | S15: 60.24511693 | T15: 35.26121636 | U15: 10.75124657 | V15: 7.606649972 | W15: Brest | X15: Gomel | Y15: Grodno | Z15: Minsk | AA15: Minsk city | AB15: Mogilev | AC15: Vitebsk | AD15: 16.87829711 | AE15: 14.17273821 | AF15: 22.3720333 | AG15: 23.22273195 | AH15: 0.6419166458 | AI15: 19.6357679 | AJ15: 27.1786255
A16: BLR | B16: 2005 | C16: BLR_2005_MICS | D16: 37 | E16: Improved Water source on premises | F16: Yes | G16: w_premises | H16: 35.95455283 | I16: 81.94417997 | J16: 98.14548788 | K16: 99.33273895 | L16: 98.92567736 | M16: 69.78652204 | N16: 99.27089831 | O16: 99.86159038 | P16: 99.6971155 | Q16: 99.69369461 | R16: 21.65766591 | S16: 40.28846352 | T16: 65.12883429 | U16: 89.24875343 | V16: 92.39335003 | W16: Brest | X16: Gomel | Y16: Grodno | Z16: Minsk | AA16: Minsk city | AB16: Mogilev | AC16: Vitebsk | AD16: 83.12170289 | AE16: 86.02227852 | AF16: 78.93203905 | AG16: 77.23022293 | AH16: 99.35808335 | AI16: 80.51599934 | AJ16: 72.94840341
A17: BLR | B17: 2005 | C17: BLR_2005_MICS | D17: 38 | E17: Improved Water source on premises | F17: No | H17: 64.04544717 | I17: 18.05582003 | J17: 1.854512125 | K17: 0.6672610481 | L17: 1.074322639 | M17: 30.21347796 | N17: 0.729101692 | O17: 0.1384096249 | P17: 0.3028844968 | Q17: 0.3063053905 | R17: 78.34233409 | S17: 59.71153648 | T17: 34.87116571 | U17: 10.75124657 | V17: 7.606649972 | W17: Brest | X17: Gomel | Y17: Grodno | Z17: Minsk | AA17: Minsk city | AB17: Mogilev | AC17: Vitebsk | AD17: 16.87829711 | AE17: 13.97772148 | AF17: 21.06796095 | AG17: 22.76977707 | AH17: 0.6419166458 | AI17: 19.48400066 | AJ17: 27.05159659
A18: BLR | B18: 2005 | C18: BLR_2005_MICS | D18: 41 | E18: Water point at more than 30 minutes | F18: Yes | H18: 0.174147898 | I18: 0 | J18: 0 | K18: 0.0497347806 | L18: 0.07097964844 | M18: 0.263822737 | N18: 0 | O18: 0.07549615901 | P18: 0 | Q18: 0.1074650979 | R18: 0 | S18: 0 | T18: 0 | U18: 0 | V18: 0 | W18: Brest | X18: Gomel | Y18: Grodno | Z18: Minsk | AA18: Minsk city | AB18: Mogilev | AC18: Vitebsk | AD18: 0 | AE18: 0.03730260087 | AF18: 0.06850824193 | AG18: 0 | AH18: 0 | AI18: 0.06528140783 | AJ18: 0.2675139735
A19: BLR | B19: 2005 | C19: BLR_2005_MICS | D19: 42 | E19: Water point at more than 30 minutes | F19: No | G19: w_30min | H19: 99.8258521 | I19: 100 | J19: 100 | K19: 99.95026522 | L19: 99.92902035 | M19: 99.73617726 | N19: 100 | O19: 99.92450384 | P19: 100 | Q19: 99.8925349 | R19: 100 | S19: 100 | T19: 100 | U19: 100 | V19: 100 | W19: Brest | X19: Gomel | Y19: Grodno | Z19: Minsk | AA19: Minsk city | AB19: Mogilev | AC19: Vitebsk | AD19: 100 | AE19: 99.9626974 | AF19: 99.93149176 | AG19: 100 | AH19: 100 | AI19: 99.93471859 | AJ19: 99.73248603
A20: BLR | B20: 2005 | C20: BLR_2005_MICS | D20: 58 | E20: Main source of drinking water | F20: Piped into dwelling | H20: 28.12322888 | I20: 78.08284482 | J20: 97.28076331 | K20: 98.74688471 | L20: 97.08358737 | M20: 66.00847381 | N20: 98.44182906 | O20: 99.23607013 | P20: 97.97243798 | Q20: 98.14672282 | R20: 12.60524745 | S20: 31.93676287 | T20: 58.64372312 | U20: 86.13133145 | V20: 91.90806948 | W20: Brest | X20: Gomel | Y20: Grodno | Z20: Minsk | AA20: Minsk city | AB20: Mogilev | AC20: Vitebsk | AD20: 78.11965863 | AE20: 82.07033523 | AF20: 75.53278844 | AG20: 75.12116476 | AH20: 96.54162351 | AI20: 77.49580744 | AJ20: 71.54413512
A21: BLR | B21: 2005 | C21: BLR_2005_MICS | D21: 59 | E21: Main source of drinking water | F21: Piped into yard or plot | H21: 7.366634454 | I21: 3.332962308 | J21: 0.04728139198 | K21: 0.0324921092 | L21: 0.0943263255 | M21: 3.139373611 | N21: 0.07143570429 | O21: 0 | P21: 0 | Q21: 0.1427259234 | R21: 8.683782331 | S21: 7.818120198 | T21: 6.011362038 | U21: 2.949578728 | V21: 0.09604734932 | W21: Brest | X21: Gomel | Y21: Grodno | Z21: Minsk | AA21: Minsk city | AB21: Mogilev | AC21: Vitebsk | AD21: 5.002044261 | AE21: 3.573155095 | AF21: 2.008514274 | AG21: 1.370088398 | AH21: 0 | AI21: 2.568580134 | AJ21: 0.8453116068
A22: BLR | B22: 2005 | C22: BLR_2005_MICS | D22: 60 | E22: Main source of drinking water | F22: Public tap/standpipe | H22: 17.15182761 | I22: 6.184616602 | J22: 0.2006188865 | K22: 0.04118668624 | L22: 0.1745011053 | M22: 17.18210231 | N22: 0.1702611816 | O22: 0 | P22: 0.1468356654 | Q22: 0.1787555627 | R22: 15.34365148 | S22: 10.61231241 | T22: 7.782627721 | U22: 1.727915348 | V22: 0.129968462 | W22: Brest | X22: Gomel | Y22: Grodno | Z22: Minsk | AA22: Minsk city | AB22: Mogilev | AC22: Vitebsk | AD22: 2.064163204 | AE22: 5.086949826 | AF22: 1.096559885 | AG22: 5.398753952 | AH22: 0.6419166458 | AI22: 12.00968196 | AJ22: 8.179059607
A23: BLR | B23: 2005 | C23: BLR_2005_MICS | D23: 61 | E23: Main source of drinking water | F23: Protected well | H23: 46.06587331 | I23: 11.73770654 | J23: 1.653191767 | K23: 0.6260743618 | L23: 0.8995187729 | M23: 12.75486694 | N23: 0.5584238392 | O23: 0.1384096249 | P23: 0.1560488314 | Q23: 0.1274192139 | R23: 61.66521412 | S23: 48.30840442 | T23: 26.77400498 | U23: 9.02333122 | V23: 7.47668151 | W23: Brest | X23: Gomel | Y23: Grodno | Z23: Minsk | AA23: Minsk city | AB23: Mogilev | AC23: Vitebsk | AD23: 14.81413391 | AE23: 8.81162818 | AF23: 19.62332764 | AG23: 17.23747848 | AH23: 0 | AI23: 7.437592674 | AJ23: 18.82543061
A24: BLR | B24: 2005 | C24: BLR_2005_MICS | D24: 62 | E24: Main source of drinking water | F24: Unprotected well | H24: 1.020504544 | I24: 0.5409205972 | J24: 0 | K24: 0 | L24: 0 | M24: 0.7414764337 | N24: 0 | O24: 0 | P24: 0 | Q24: 0 | R24: 1.577021713 | S24: 0.9856576604 | T24: 0.5988908827 | U24: 0 | V24: 0 | W24: Brest | X24: Gomel | Y24: Grodno | Z24: Minsk | AA24: Minsk city | AB24: Mogilev | AC24: Vitebsk | AD24: 0 | AE24: 0.1894023073 | AF24: 1.591400395 | AG24: 0.3871246276 | AH24: 0 | AI24: 0.05353293797 | AJ24: 0.1273121569
A25: BLR | B25: 2005 | C25: BLR_2005_MICS | D25: 63 | E25: Main source of drinking water | F25: Bottled water | H25: 0 | I25: 0.1209491246 | J25: 0.7803195329 | K25: 0.5533621291 | L25: 1.719884873 | M25: 0 | N25: 0.7009016547 | O25: 0.6255202403 | P25: 1.724677527 | Q25: 1.361734745 | R25: 0 | S25: 0 | T25: 0.1893912548 | U25: 0.1678432519 | V25: 0.3892331979 | W25: Brest | X25: Gomel | Y25: Grodno | Z25: Minsk | AA25: Minsk city | AB25: Mogilev | AC25: Vitebsk | AD25: 0 | AE25: 0.2312267612 | AF25: 0.08666398655 | AG25: 0.2860148985 | AH25: 2.816459848 | AI25: 0.299844529 | AJ25: 0.4319277726
A26: BLR | B26: 2005 | C26: BLR_2005_MICS | D26: 64 | E26: Main source of drinking water | F26: Other | H26: 0.271931204 | I26: 0 | J26: 0.03782511358 | K26: 0 | L26: 0.02818155179 | M26: 0.1737068983 | N26: 0.05714856343 | O26: 0 | P26: 0 | Q26: 0.04264173317 | R26: 0.125082901 | S26: 0.3387424411 | T26: 0 | U26: 0 | V26: 0 | W26: Brest | X26: Gomel | Y26: Grodno | Z26: Minsk | AA26: Minsk city | AB26: Mogilev | AC26: Vitebsk | AD26: 0 | AE26: 0.03730260087 | AF26: 0.06074538851 | AG26: 0.1993748868 | AH26: 0 | AI26: 0.1349603266 | AJ26: 0.04682312195
A27: BLR | B27: 2005 | C27: BLR_2005_MICS | D27: 122 | E27: Sanitation | F27: Improved | G27: s_imp | H27: 98.23986136 | I27: 98.65125959 | J27: 99.80182564 | K27: 100 | L27: 100 | M27: 97.83439829 | N27: 99.87449966 | O27: 100 | P27: 100 | Q27: 100 | R27: 98.51284883 | S27: 97.98737165 | T27: 99.65333579 | U27: 98.89497705 | V27: 99.65970746 | W27: Brest | X27: Gomel | Y27: Grodno | Z27: Minsk | AA27: Minsk city | AB27: Mogilev | AC27: Vitebsk | AD27: 99.94607568 | AE27: 99.90323732 | AF27: 99.00922043 | AG27: 99.8545611 | AH27: 100 | AI27: 99.93002412 | AJ27: 96.49324513 | AK27: 3519.891898 | AL27: 3534.536188 | AM27: 3578.148134 | AN27: 3584.959556 | AO27: 3580.608752 | AP27: 2319.389126 | AQ27: 2370.005589 | AR27: 2361.672161 | AS27: 2379.985989 | AT27: 2366.393284 | AU27: 1195.801483 | AV27: 1187.946984 | AW27: 1210.358076 | AX27: 1197.953434 | AY27: 1208.638402 | AZ27: 2649.373356 | BA27: 2702.478333 | BB27: 2210.356872 | BC27: 2833.456412 | BD27: 2849.030406 | BE27: 2168.262155 | BF27: 2385.186993
A28: BLR | B28: 2005 | C28: BLR_2005_MICS | D28: 123 | E28: Sanitation | F28: Not Improved | H28: 1.760138641 | I28: 1.348740407 | J28: 0.1981743612 | K28: 0 | L28: 0 | M28: 2.165601709 | N28: 0.1255003369 | O28: 0 | P28: 0 | Q28: 0 | R28: 1.487151174 | S28: 2.012628354 | T28: 0.3466642066 | U28: 1.105022955 | V28: 0.3402925444 | W28: Brest | X28: Gomel | Y28: Grodno | Z28: Minsk | AA28: Minsk city | AB28: Mogilev | AC28: Vitebsk | AD28: 0.05392431894 | AE28: 0.09676267536 | AF28: 0.9907795652 | AG28: 0.1454389015 | AH28: 0 | AI28: 0.06997587808 | AJ28: 3.506754866 | AK28: 63.06500899 | AL28: 48.32347602 | AM28: 7.105052598 | AN28: 0 | AO28: 0 | AP28: 51.34056267 | AQ28: 2.978102526 | AR28: 0 | AS28: 0 | AT28: 0 | AU28: 18.05183385 | AV28: 24.40003995 | AW28: 4.210474429 | AX28: 13.3855741 | AY28: 4.126950073 | AZ28: 1.429427348 | BA28: 2.617523121 | BB28: 22.11891389 | BC28: 4.126950073 | BD28: 0 | BE28: 1.518322942 | BF28: 86.68240023
A29: BLR | B29: 2005 | C29: BLR_2005_MICS | D29: 124 | E29: Sanitation ladder | F29: Basic | G29: s_bas | H29: 92.40917889 | I29: 94.01741157 | J29: 91.08474811 | K29: 94.12108548 | L29: 93.44143185 | M29: 87.69916795 | N29: 87.68166376 | O29: 94.39008253 | P29: 92.62110607 | Q29: 93.70260033 | R29: 96.87080257 | S29: 94.32357289 | T29: 96.74649025 | U29: 96.14883715 | V29: 98.55492358 | W29: Brest | X29: Gomel | Y29: Grodno | Z29: Minsk | AA29: Minsk city | AB29: Mogilev | AC29: Vitebsk | AD29: 93.27663951 | AE29: 97.09768172 | AF29: 91.80537382 | AG29: 93.67745082 | AH29: 88.41186958 | AI29: 95.34738681 | AJ29: 91.85368352 | AK29: 3310.981057 | AL29: 3368.511916 | AM29: 3265.618834 | AN29: 3374.202848 | AO29: 3345.772087 | AP29: 2079.110212 | AQ29: 2080.671581 | AR29: 2229.184302 | AS29: 2204.369347 | AT29: 2217.372041 | AU29: 1175.86945 | AV29: 1143.529029 | AW29: 1175.052444 | AX29: 1164.688371 | AY29: 1195.239966 | AZ29: 2472.579757 | BA29: 2626.585364 | BB29: 2049.532741 | BC29: 2658.175759 | BD29: 2518.881047 | BE29: 2068.828985 | BF29: 2270.50309
A30: BLR | B30: 2005 | C30: BLR_2005_MICS | D30: 125 | E30: Sanitation ladder | F30: Limited | G30: s_lim | H30: 5.830682474 | I30: 4.633848028 | J30: 8.717077532 | K30: 5.878914525 | L30: 6.558568147 | M30: 10.13523034 | N30: 12.1928359 | O30: 5.609917467 | P30: 7.378893927 | Q30: 6.297399675 | R30: 1.642046253 | S30: 3.66379876 | T30: 2.906845541 | U30: 2.746139893 | V30: 1.104783873 | W30: Brest | X30: Gomel | Y30: Grodno | Z30: Minsk | AA30: Minsk city | AB30: Mogilev | AC30: Vitebsk | AD30: 6.669436173 | AE30: 2.805555603 | AF30: 7.203846616 | AG30: 6.17711028 | AH30: 11.58813042 | AI30: 4.582637307 | AJ30: 4.639561616 | AK30: 208.9108404 | AL30: 166.0242719 | AM30: 312.5293 | AN30: 210.7567081 | AO30: 234.8366651 | AP30: 240.2789148 | AQ30: 289.3340074 | AR30: 132.4878591 | AS30: 175.6166416 | AT30: 149.021243 | AU30: 19.93203291 | AV30: 44.41795523 | AW30: 35.30563175 | AX30: 33.26506374 | AY30: 13.39843602 | AZ30: 176.7935997 | BA30: 75.89296834 | BB30: 160.8241314 | BC30: 175.2806536 | BD30: 330.1493592 | BE30: 99.43316966 | BF30: 114.6839036
A31: BLR | B31: 2005 | C31: BLR_2005_MICS | D31: 126 | E31: Sanitation ladder | F31: Unimproved | G31: s_unimp | H31: 1.760138641 | I31: 1.348740407 | J31: 0.1981743612 | K31: -1.083577672e-13 | L31: -1.314504061e-13 | M31: 2.165601709 | N31: 0.1255003369 | O31: 3.907985047e-14 | P31: -1.119104809e-13 | Q31: 1.456612608e-13 | R31: 1.487151174 | S31: 2.012628354 | T31: 0.3466642066 | U31: 1.105022955 | V31: 0.3402925444 | W31: Brest | X31: Gomel | Y31: Grodno | Z31: Minsk | AA31: Minsk city | AB31: Mogilev | AC31: Vitebsk | AD31: 0.05392431894 | AE31: 0.09676267536 | AF31: 0.9907795652 | AG31: 0.1454389015 | AH31: -2.078337502e-13 | AI31: 0.06997587808 | AJ31: 3.506754866 | AK31: 63.06500899 | AL31: 48.32347602 | AM31: 7.105052598 | AN31: 0 | AO31: 0 | AP31: 51.34056267 | AQ31: 2.978102526 | AR31: 0 | AS31: 0 | AT31: 0 | AU31: 18.05183385 | AV31: 24.40003995 | AW31: 4.210474429 | AX31: 13.3855741 | AY31: 4.126950073 | AZ31: 1.429427348 | BA31: 2.617523121 | BB31: 22.11891389 | BC31: 4.126950073 | BD31: 0 | BE31: 1.518322942 | BF31: 86.68240023
A32: BLR | B32: 2005 | C32: BLR_2005_MICS | D32: 127 | E32: Sanitation ladder | F32: Open defecation | G32: s_od | H32: 0 | I32: 0 | J32: 0 | K32: 0 | L32: 0 | M32: 0 | N32: 0 | O32: 0 | P32: 0 | Q32: 0 | R32: 0 | S32: 0 | T32: 0 | U32: 0 | V32: 0 | W32: Brest | X32: Gomel | Y32: Grodno | Z32: Minsk | AA32: Minsk city | AB32: Mogilev | AC32: Vitebsk | AD32: 0 | AE32: 0 | AF32: 0 | AG32: 0 | AH32: 0 | AI32: 0 | AJ32: 0 | AK32: 192.2672582 | AL32: 1747.720965 | AM32: 3394.619218 | AN32: 3546.892191 | AO32: 3580.608752 | AP32: 794.0613131 | AQ32: 2274.220688 | AR32: 2344.758282 | AS32: 2367.04597 | AT32: 2366.393284 | AU32: 2.392839425 | AV32: 75.72453785 | AW32: 311.8678143 | AX32: 788.6744588 | AY32: 1136.969196 | AZ32: 1706.148853 | BA32: 1778.591045 | BB32: 1410.610717 | BC32: 1719.537242 | BD32: 2822.162501 | BE32: 1360.363649 | BF32: 1664.694377
A33: BLR | B33: 2005 | C33: BLR_2005_MICS | D33: 128 | E33: Shared among Improved Sanitation | F33: Yes | G33: s_shared | H33: 5.935149331 | I33: 4.697201076 | J33: 8.734386848 | K33: 5.878914525 | L33: 6.558568147 | M33: 10.35957753 | N33: 12.20815718 | O33: 5.609917467 | P33: 7.378893927 | Q33: 6.297399675 | R33: 1.666834604 | S33: 3.73905198 | T33: 2.916957589 | U33: 2.77682444 | V33: 1.108556207 | W33: Brest | X33: Gomel | Y33: Grodno | Z33: Minsk | AA33: Minsk city | AB33: Mogilev | AC33: Vitebsk | AD33: 6.673034562 | AE33: 2.808272963 | AF33: 7.275935094 | AG33: 6.186107286 | AH33: 11.58813042 | AI33: 4.585846294 | AJ33: 4.808172437
A34: BLR | B34: 2005 | C34: BLR_2005_MICS | D34: 129 | E34: Shared among Improved Sanitation | F34: No | H34: 94.06485067 | I34: 95.30279892 | J34: 91.26561315 | K34: 94.12108548 | L34: 93.44143185 | M34: 89.64042247 | N34: 87.79184282 | O34: 94.39008253 | P34: 92.62110607 | Q34: 93.70260033 | R34: 98.3331654 | S34: 96.26094802 | T34: 97.08304241 | U34: 97.22317556 | V34: 98.89144379 | W34: Brest | X34: Gomel | Y34: Grodno | Z34: Minsk | AA34: Minsk city | AB34: Mogilev | AC34: Vitebsk | AD34: 93.32696544 | AE34: 97.19172704 | AF34: 92.72406491 | AG34: 93.81389271 | AH34: 88.41186958 | AI34: 95.41415371 | AJ34: 95.19182756
A35: BLR | B35: 2005 | C35: BLR_2005_MICS | D35: 135 | E35: Sanitation type | F35: Sewer connection | G35: s_sew | H35: 5.366161615 | I35: 48.78005639 | J35: 94.68283108 | K35: 98.93813683 | L35: 100 | M35: 33.49438432 | N35: 95.83802435 | O35: 99.28381768 | P35: 99.45629853 | Q35: 100 | R35: 0.19712756 | S35: 6.246110755 | T35: 25.67725092 | U35: 65.107658 | V35: 93.75013846 | W35: Brest | X35: Gomel | Y35: Grodno | Z35: Minsk | AA35: Minsk city | AB35: Mogilev | AC35: Vitebsk | AD35: 64.36347749 | AE35: 65.74964956 | AF35: 63.1859358 | AG35: 60.59865112 | AH35: 99.05694566 | AI35: 62.69591152 | AJ35: 67.3455637
A36: BLR | B36: 2005 | C36: BLR_2005_MICS | D36: 136 | E36: Sanitation type | F36: Septic tank connection | G36: s_sep | H36: 2.957675611 | I36: 8.189292351 | J36: 2.25826513 | K36: 1.024054264 | L36: 0 | M36: 5.936527459 | N36: 1.309578095 | O36: 0.7161823191 | P36: 0.5437014688 | Q36: 0 | R36: 0.4496677964 | S36: 2.963802989 | T36: 10.67776863 | U36: 8.260089082 | V36: 3.649030062 | W36: Brest | X36: Gomel | Y36: Grodno | Z36: Minsk | AA36: Minsk city | AB36: Mogilev | AC36: Vitebsk | AD36: 5.256179764 | AE36: 0.9915171109 | AF36: 1.984646749 | AG36: 4.952301614 | AH36: 0 | AI36: 4.422370672 | AJ36: 2.836675791
A37: BLR | B37: 2005 | C37: BLR_2005_MICS | D37: 137 | E37: Sanitation type | F37: Improved latrines | G37: s_lat | H37: 89.91602413 | I37: 41.68191085 | J37: 2.86072943 | K37: 0.03780890228 | L37: 0 | M37: 58.40348652 | N37: 2.726897221 | O37: 0 | P37: 0 | Q37: 0 | R37: 97.86605347 | S37: 88.7774579 | T37: 63.29831625 | U37: 25.52722996 | V37: 2.260538939 | W37: Brest | X37: Gomel | Y37: Grodno | Z37: Minsk | AA37: Minsk city | AB37: Mogilev | AC37: Vitebsk | AD37: 30.32641842 | AE37: 33.16207065 | AF37: 33.83863789 | AG37: 34.30360837 | AH37: 0.9430543357 | AI37: 32.81174193 | AJ37: 26.31100564
A38: BLR | B38: 2005 | C38: BLR_2005_MICS | D38: 138 | E38: Sanitation type | F38: Unimproved facilities | H38: 1.760138641 | I38: 1.348740407 | J38: 0.1981743612 | K38: 0 | L38: 0 | M38: 2.165601709 | N38: 0.1255003369 | O38: 0 | P38: 0 | Q38: 0 | R38: 1.487151174 | S38: 2.012628354 | T38: 0.3466642066 | U38: 1.105022955 | V38: 0.3402925444 | W38: Brest | X38: Gomel | Y38: Grodno | Z38: Minsk | AA38: Minsk city | AB38: Mogilev | AC38: Vitebsk | AD38: 0.05392431894 | AE38: 0.09676267536 | AF38: 0.9907795652 | AG38: 0.1454389015 | AH38: 0 | AI38: 0.06997587808 | AJ38: 3.506754866
A39: BLR | B39: 2005 | C39: BLR_2005_MICS | D39: 139 | E39: Sanitation type | F39: Open defecation | H39: 0 | I39: 0 | J39: 0 | K39: 0 | L39: 0 | M39: 0 | N39: 0 | O39: 0 | P39: 0 | Q39: 0 | R39: 0 | S39: 0 | T39: 0 | U39: 0 | V39: 0 | W39: Brest | X39: Gomel | Y39: Grodno | Z39: Minsk | AA39: Minsk city | AB39: Mogilev | AC39: Vitebsk | AD39: 0 | AE39: 0 | AF39: 0 | AG39: 0 | AH39: 0 | AI39: 0 | AJ39: 0
A40: BLR | B40: 2005 | C40: BLR_2005_MICS | D40: 148 | E40: Shared among improved sanitation facilities | F40: Yes | H40: 5.830682474 | I40: 4.633848028 | J40: 8.717077532 | K40: 5.878914525 | L40: 6.558568147 | M40: 10.13523034 | N40: 12.1928359 | O40: 5.609917467 | P40: 7.378893927 | Q40: 6.297399675 | R40: 1.642046253 | S40: 3.66379876 | T40: 2.906845541 | U40: 2.746139893 | V40: 1.104783873 | W40: Brest | X40: Gomel | Y40: Grodno | Z40: Minsk | AA40: Minsk city | AB40: Mogilev | AC40: Vitebsk | AD40: 6.669436173 | AE40: 2.805555603 | AF40: 7.203846616 | AG40: 6.17711028 | AH40: 11.58813042 | AI40: 4.582637307 | AJ40: 4.639561616
A41: BLR | B41: 2005 | C41: BLR_2005_MICS | D41: 149 | E41: Shared among improved sanitation facilities | F41: No | H41: 92.40917889 | I41: 94.01741157 | J41: 91.08474811 | K41: 94.12108548 | L41: 93.44143185 | M41: 87.69916795 | N41: 87.68166376 | O41: 94.39008253 | P41: 92.62110607 | Q41: 93.70260033 | R41: 96.87080257 | S41: 94.32357289 | T41: 96.74649025 | U41: 96.14883715 | V41: 98.55492358 | W41: Brest | X41: Gomel | Y41: Grodno | Z41: Minsk | AA41: Minsk city | AB41: Mogilev | AC41: Vitebsk | AD41: 93.27663951 | AE41: 97.09768172 | AF41: 91.80537382 | AG41: 93.67745082 | AH41: 88.41186958 | AI41: 95.34738681 | AJ41: 91.85368352
A42: BLR | B42: 2005 | C42: BLR_2005_MICS | D42: 150 | E42: Shared among improved sanitation facilities | F42: DK/missing | H42: 1.760138641 | I42: 1.348740407 | J42: 0.1981743612 | K42: 0 | L42: 0 | M42: 2.165601709 | N42: 0.1255003369 | O42: 0 | P42: 0 | Q42: 0 | R42: 1.487151174 | S42: 2.012628354 | T42: 0.3466642066 | U42: 1.105022955 | V42: 0.3402925444 | W42: Brest | X42: Gomel | Y42: Grodno | Z42: Minsk | AA42: Minsk city | AB42: Mogilev | AC42: Vitebsk | AD42: 0.05392431894 | AE42: 0.09676267536 | AF42: 0.9907795652 | AG42: 0.1454389015 | AH42: 0 | AI42: 0.06997587808 | AJ42: 3.506754866
A43: BLR | B43: 2005 | C43: BLR_2005_MICS | D43: 151 | E43: Shared among all sanitation facilities | F43: Yes | H43: 6.037506562 | I43: 4.759656261 | J43: 8.717077532 | K43: 5.878914525 | L43: 6.558568147 | M43: 10.43882738 | N43: 12.1928359 | O43: 5.609917467 | P43: 7.378893927 | Q43: 6.297399675 | R43: 1.901302475 | S43: 3.793587928 | T43: 2.906845541 | U43: 2.746139893 | V43: 1.104783873 | W43: Brest | X43: Gomel | Y43: Grodno | Z43: Minsk | AA43: Minsk city | AB43: Mogilev | AC43: Vitebsk | AD43: 6.669436173 | AE43: 2.805555603 | AF43: 7.392845866 | AG43: 6.17711028 | AH43: 11.58813042 | AI43: 4.582637307 | AJ43: 4.95100962
A44: BLR | B44: 2005 | C44: BLR_2005_MICS | D44: 152 | E44: Shared among all sanitation facilities | F44: No | H44: 93.96249344 | I44: 95.24034374 | J44: 91.28292247 | K44: 94.12108548 | L44: 93.44143185 | M44: 89.56117262 | N44: 87.8071641 | O44: 94.39008253 | P44: 92.62110607 | Q44: 93.70260033 | R44: 98.09869753 | S44: 96.20641207 | T44: 97.09315446 | U44: 97.25386011 | V44: 98.89521613 | W44: Brest | X44: Gomel | Y44: Grodno | Z44: Minsk | AA44: Minsk city | AB44: Mogilev | AC44: Vitebsk | AD44: 93.33056383 | AE44: 97.1944444 | AF44: 92.60715413 | AG44: 93.82288972 | AH44: 88.41186958 | AI44: 95.41736269 | AJ44: 95.04899038
A45: BLR | B45: 2005 | C45: BLR_2005_MICS | D45: 153 | E45: Kind of toilet facility | F45: Flush to piped sewer system | H45: 5.366161615 | I45: 48.78005639 | J45: 94.68283108 | K45: 98.93813683 | L45: 100 | M45: 33.49438432 | N45: 95.83802435 | O45: 99.28381768 | P45: 99.45629853 | Q45: 100 | R45: 0.19712756 | S45: 6.246110755 | T45: 25.67725092 | U45: 65.107658 | V45: 93.75013846 | W45: Brest | X45: Gomel | Y45: Grodno | Z45: Minsk | AA45: Minsk city | AB45: Mogilev | AC45: Vitebsk | AD45: 64.36347749 | AE45: 65.74964956 | AF45: 63.1859358 | AG45: 60.59865112 | AH45: 99.05694566 | AI45: 62.69591152 | AJ45: 67.3455637 | AK45: 192.2672582 | AL45: 1747.720965 | AM45: 3394.619218 | AN45: 3546.892191 | AO45: 3580.608752 | AP45: 794.0613131 | AQ45: 2274.220688 | AR45: 2344.758282 | AS45: 2367.04597 | AT45: 2366.393284 | AU45: 2.392839425 | AV45: 75.72453785 | AW45: 311.8678143 | AX45: 788.6744588 | AY45: 1136.969196 | AZ45: 1706.148853 | BA45: 1778.591045 | BB45: 1410.610717 | BC45: 1719.537242 | BD45: 2822.162501 | BE45: 1360.363649 | BF45: 1664.694377
A46: BLR | B46: 2005 | C46: BLR_2005_MICS | D46: 154 | E46: Kind of toilet facility | F46: Flush to septic tank | H46: 2.957675611 | I46: 8.189292351 | J46: 2.25826513 | K46: 1.024054264 | L46: 0 | M46: 5.936527459 | N46: 1.309578095 | O46: 0.7161823191 | P46: 0.5437014688 | Q46: 0 | R46: 0.4496677964 | S46: 2.963802989 | T46: 10.67776863 | U46: 8.260089082 | V46: 3.649030062 | W46: Brest | X46: Gomel | Y46: Grodno | Z46: Minsk | AA46: Minsk city | AB46: Mogilev | AC46: Vitebsk | AD46: 5.256179764 | AE46: 0.9915171109 | AF46: 1.984646749 | AG46: 4.952301614 | AH46: 0 | AI46: 4.422370672 | AJ46: 2.836675791 | AK46: 105.9722426 | AL46: 293.4108524 | AM46: 80.96452252 | AN46: 36.71193118 | AO46: 0 | AP46: 140.739019 | AQ46: 31.07607463 | AR46: 16.91387845 | AS46: 12.94001878 | AT46: 0 | AU46: 5.45830746 | AV46: 35.93157733 | AW46: 129.6888196 | AX46: 100.0576812 | AY46: 44.25417226 | AZ46: 139.3309595 | BA46: 26.82148828 | BB46: 44.30675811 | BC46: 140.5256866 | BD46: 0 | BE46: 95.95573549 | BF46: 70.11892068
A47: BLR | B47: 2005 | C47: BLR_2005_MICS | D47: 155 | E47: Kind of toilet facility | F47: Flush to pit (latrine) | H47: 1.726756265 | I47: 4.285275939 | J47: 0.458905887 | K47: 0 | L47: 0 | M47: 7.554353583 | N47: 0.6564472473 | O47: 0 | P47: 0 | Q47: 0 | R47: 0 | S47: 0.4115647255 | T47: 0.855577352 | U47: 1.576319311 | V47: 0.2235278 | W47: Brest | X47: Gomel | Y47: Grodno | Z47: Minsk | AA47: Minsk city | AB47: Mogilev | AC47: Vitebsk | AD47: 0 | AE47: 4.6340868 | AF47: 1.138265137 | AG47: 1.556909575 | AH47: 0.8816358606 | AI47: 0.204431546 | AJ47: 0.2976255051 | AK47: 61.86893286 | AL47: 153.5354231 | AM47: 16.45293794 | AN47: 0 | AO47: 0 | AP47: 179.0933032 | AQ47: 15.57738612 | AR47: 0 | AS47: 0 | AT47: 0 | AU47: 0 | AV47: 4.989592701 | AW47: 10.39157344 | AX47: 19.09457071 | AY47: 2.71086771 | AZ47: 0 | BA47: 125.35649 | BB47: 25.41149358 | BC47: 44.17860706 | BD47: 25.11807374 | BE47: 4.435715775 | BF47: 7.356913768
A48: BLR | B48: 2005 | C48: BLR_2005_MICS | D48: 156 | E48: Kind of toilet facility | F48: Ventilated Improved Pit latrine (VIP) | H48: 0.7241831503 | I48: 1.12509506 | J48: 0.09581969626 | K48: 0 | L48: 0 | M48: 2.012368593 | N48: 0.1079551028 | O48: 0 | P48: 0 | Q48: 0 | R48: 0.2266583623 | S48: 0.228885772 | T48: 0.8609077886 | U48: 0.211949127 | V48: 0.07203551199 | W48: Brest | X48: Gomel | Y48: Grodno | Z48: Minsk | AA48: Minsk city | AB48: Mogilev | AC48: Vitebsk | AD48: 0 | AE48: 0.4163166524 | AF48: 0.3498737317 | AG48: 0.09695926769 | AH48: 0 | AI48: 0.06498444849 | AJ48: 1.879516585 | AK48: 25.9471702 | AL48: 40.31057708 | AM48: 3.435378713 | AN48: 0 | AO48: 0 | AP48: 47.70781969 | AQ48: 2.561756983 | AR48: 0 | AS48: 0 | AT48: 0 | AU48: 2.751300048 | AV48: 2.774889845 | AW48: 10.45631525 | AX48: 2.567422453 | AY48: 0.8736217304 | AZ48: 0 | BA48: 11.26176451 | BB48: 7.810846342 | BC48: 2.751300048 | BD48: 0 | BE48: 1.410019877 | BF48: 46.45919522
A49: BLR | B49: 2005 | C49: BLR_2005_MICS | D49: 157 | E49: Kind of toilet facility | F49: Pit latrine with slab | H49: 87.34990192 | I49: 36.27153985 | J49: 2.306003847 | K49: 0.03780890228 | L49: 0 | M49: 48.83676434 | N49: 1.962494871 | O49: 0 | P49: 0 | Q49: 0 | R49: 97.63939511 | S49: 87.79659744 | T49: 61.5818311 | U49: 23.73896153 | V49: 1.964975627 | W49: Brest | X49: Gomel | Y49: Grodno | Z49: Minsk | AA49: Minsk city | AB49: Mogilev | AC49: Vitebsk | AD49: 30.32641842 | AE49: 28.1116672 | AF49: 32.35049902 | AG49: 32.50430062 | AH49: 0.06141847511 | AI49: 32.54232593 | AJ49: 24.13386355 | AK49: 3129.709344 | AL49: 1299.558371 | AM49: 82.67607638 | AN49: 1.355433855 | AO49: 0 | AP49: 1157.787671 | AQ49: 46.56968322 | AR49: 0 | AS49: 0 | AT49: 0 | AU49: 1185.199036 | AV49: 1064.399436 | AW49: 747.9535534 | AX49: 287.5593011 | AY49: 23.83054357 | AZ49: 803.8935438 | BA49: 760.4475444 | BB49: 722.2170574 | BC49: 922.3366265 | BD49: 1.749831031 | BE49: 706.0970351 | BF49: 596.5575866
A50: BLR | B50: 2005 | C50: BLR_2005_MICS | D50: 158 | E50: Kind of toilet facility | F50: Pit latrine without slab/open pit | H50: 1.638097079 | I50: 1.348740407 | J50: 0.1981743612 | K50: 0 | L50: 0 | M50: 2.111572838 | N50: 0.1255003369 | O50: 0 | P50: 0 | Q50: 0 | R50: 1.362068273 | S50: 1.882839185 | T50: 0.3466642066 | U50: 1.105022955 | V50: 0.3402925444 | W50: Brest | X50: Gomel | Y50: Grodno | Z50: Minsk | AA50: Minsk city | AB50: Mogilev | AC50: Vitebsk | AD50: 0.05392431894 | AE50: 0.04941209853 | AF50: 0.9907795652 | AG50: 0.1454389015 | AH50: 0 | AI50: 0 | AJ50: 3.443098787 | AK50: 58.69231243 | AL50: 48.32347602 | AM50: 7.105052598 | AN50: 0 | AO50: 0 | AP50: 50.05968418 | AQ50: 2.978102526 | AR50: 0 | AS50: 0 | AT50: 0 | AU50: 16.53351091 | AV50: 22.82654483 | AW50: 4.210474429 | AX50: 13.3855741 | AY50: 4.126950073 | AZ50: 1.429427348 | BA50: 1.33664463 | BB50: 22.11891389 | BC50: 4.126950073 | BD50: 0 | BE50: 0 | BF50: 85.10890511
A51: BLR | B51: 2005 | C51: BLR_2005_MICS | D51: 159 | E51: Kind of toilet facility | F51: Composting toilet | H51: 0.1151827996 | I51: 0 | J51: 0 | K51: 0 | L51: 0 | M51: 0 | N51: 0 | O51: 0 | P51: 0 | Q51: 0 | R51: 0 | S51: 0.3404099644 | T51: 0 | U51: 0 | V51: 0 | W51: Brest | X51: Gomel | Y51: Grodno | Z51: Minsk | AA51: Minsk city | AB51: Mogilev | AC51: Vitebsk | AD51: 0 | AE51: 0 | AF51: 0 | AG51: 0.1454389015 | AH51: 0 | AI51: 0 | AJ51: 0 | AK51: 4.126950073 | AL51: 0 | AM51: 0 | AN51: 0 | AO51: 0 | AP51: 0 | AQ51: 0 | AR51: 0 | AS51: 0 | AT51: 0 | AU51: 0 | AV51: 4.126950073 | AW51: 0 | AX51: 0 | AY51: 0 | AZ51: 0 | BA51: 0 | BB51: 0 | BC51: 4.126950073 | BD51: 0 | BE51: 0 | BF51: 0
A52: BLR | B52: 2005 | C52: BLR_2005_MICS | D52: 160 | E52: Kind of toilet facility | F52: Bucket | H52: 0.1220415614 | I52: 0 | J52: 0 | K52: 0 | L52: 0 | M52: 0.05402887125 | N52: 0 | O52: 0 | P52: 0 | Q52: 0 | R52: 0.125082901 | S52: 0.1297891684 | T52: 0 | U52: 0 | V52: 0 | W52: Brest | X52: Gomel | Y52: Grodno | Z52: Minsk | AA52: Minsk city | AB52: Mogilev | AC52: Vitebsk | AD52: 0 | AE52: 0.04735057682 | AF52: 0 | AG52: 0 | AH52: 0 | AI52: 0.06997587808 | AJ52: 0.06365607845 | AK52: 4.372696553 | AL52: 0 | AM52: 0 | AN52: 0 | AO52: 0 | AP52: 1.280878491 | AQ52: 0 | AR52: 0 | AS52: 0 | AT52: 0 | AU52: 1.518322942 | AV52: 1.57349512 | AW52: 0 | AX52: 0 | AY52: 0 | AZ52: 0 | BA52: 1.280878491 | BB52: 0 | BC52: 0 | BD52: 0 | BE52: 1.518322942 | BF52: 1.57349512
A53: BLR | B53: 2012 | C53: BLR_2012_MICS | D53: 16 | E53: Water | F53: Improved | G53: w_imp | H53: 98.94111039 | I53: 99.57749579 | J53: 99.81490815 | K53: 99.86451667 | L53: 99.89631582 | M53: 99.79603975 | N53: 99.68842409 | O53: 100 | P53: 99.81309827 | Q53: 99.85680997 | R53: 98.10571568 | S53: 98.6942715 | T53: 99.00820629 | U53: 99.94784515 | V53: 99.55050808 | W53: Brest region | X53: Gomel region | Y53: Grodno region | Z53: Minsk city | AA53: Minsk region | AB53: Mogilev region | AC53: Vitebsk region | AD53: 99.50143819 | AE53: 99.92350446 | AF53: 99.58699187 | AG53: 99.88627365 | AH53: 99.39425664 | AI53: 99.5570617 | AJ53: 99.38299524
A54: BLR | B54: 2012 | C54: BLR_2012_MICS | D54: 17 | E54: Water | F54: Not Improved | H54: 1.05888961 | I54: 0.4225042098 | J54: 0.1850918454 | K54: 0.1354833275 | L54: 0.1036841835 | M54: 0.2039602513 | N54: 0.3115759147 | O54: 0 | P54: 0.1869017278 | Q54: 0.1431900251 | R54: 1.894284322 | S54: 1.305728502 | T54: 0.9917937097 | U54: 0.05215484504 | V54: 0.449491921 | W54: Brest region | X54: Gomel region | Y54: Grodno region | Z54: Minsk city | AA54: Minsk region | AB54: Mogilev region | AC54: Vitebsk region | AD54: 0.4985618086 | AE54: 0.076495543 | AF54: 0.4130081275 | AG54: 0.1137263491 | AH54: 0.6057433552 | AI54: 0.4429383008 | AJ54: 0.6170047644
A55: BLR | B55: 2012 | C55: BLR_2012_MICS | D55: 18 | E55: Water ladder | F55: Basic | G55: w_bas | H55: 98.66967584 | I55: 99.50174122 | J55: 99.81490815 | K55: 99.83965799 | L55: 99.89631582 | M55: 99.71705552 | N55: 99.66285566 | O55: 99.96570271 | P55: 99.81309827 | Q55: 99.85680997 | R55: 97.83417603 | S55: 97.98112508 | T55: 99.00820629 | U55: 99.94784515 | V55: 99.55050808 | W55: Brest region | X55: Gomel region | Y55: Grodno region | Z55: Minsk city | AA55: Minsk region | AB55: Mogilev region | AC55: Vitebsk region | AD55: 99.42657703 | AE55: 99.68171244 | AF55: 99.58699187 | AG55: 99.88627365 | AH55: 99.39425664 | AI55: 99.37105429 | AJ55: 99.34556012
A56: BLR | B56: 2012 | C56: BLR_2012_MICS | D56: 19 | E56: Water ladder | F56: Limited | G56: w_lim | H56: 0.271434551 | I56: 0.07575456871 | J56: 0 | K56: 0.02485868572 | L56: 0 | M56: 0.07898423163 | N56: 0.02556842089 | O56: 0.03429728613 | P56: 0 | Q56: 0 | R56: 0.2715396474 | S56: 0.7131464204 | T56: 0 | U56: 0 | V56: 0 | W56: Brest region | X56: Gomel region | Y56: Grodno region | Z56: Minsk city | AA56: Minsk region | AB56: Mogilev region | AC56: Vitebsk region | AD56: 0.07486115793 | AE56: 0.2417920152 | AF56: 0 | AG56: 0 | AH56: 0 | AI56: 0.1860074128 | AJ56: 0.03743511884
